Workbook

Sheet Classement
B1: =A2 -> 0 | D1: =A3 -> 0 | F1: =A4 -> 0 | H1: =A5 -> 0 | J1: =A6 -> 0 | L1: =A7 -> 0 | N1: =A8 -> 0 | P1: =A9 -> 0 | R1: =A10 -> 0 | T1: =A11 -> 0 | V1: =A12 -> 0 | X1: =A13 -> 0 | Z1: =A14 -> 0 | AB1: =A15 -> 0 | AD1: =A16 -> 0 | AF1: =A17 -> 0 | AH1: =A18 -> 0 | AJ1: =A19 -> 0 | AL1: GAGNE | AM1: NUL | AN1: PERDU
A2: ='J01'!AN5:AR5 -> 0 | D2: =IF(ISERROR(VLOOKUP(calculs!$Q1,calculs!$R$1:$T$380,2,0)),"",(VLOOKUP(calculs!$Q1,calculs!$R$1:$T$380,2,0))) ->  | E2: =IF(ISERROR(VLOOKUP(calculs!$Q1,calculs!$R$1:$T$380,3,0)),"",(VLOOKUP(calculs!$Q1,calculs!$R$1:$T$380,3,0))) ->  | F2: =IF(ISERROR(VLOOKUP(calculs!$Q2,calculs!$R$1:$T$380,2,0)),"",(VLOOKUP(calculs!$Q2,calculs!$R$1:$T$380,2,0))) ->  | G2: =IF(ISERROR(VLOOKUP(calculs!$Q2,calculs!$R$1:$T$380,3,0)),"",(VLOOKUP(calculs!$Q2,calculs!$R$1:$T$380,3,0))) ->  | H2: =IF(ISERROR(VLOOKUP(calculs!$Q3,calculs!$R$1:$T$380,2,0)),"",(VLOOKUP(calculs!$Q3,calculs!$R$1:$T$380,2,0))) ->  | I2: =IF(ISERROR(VLOOKUP(calculs!$Q3,calculs!$R$1:$T$380,3,0)),"",(VLOOKUP(calculs!$Q3,calculs!$R$1:$T$380,3,0))) ->  | J2: =IF(ISERROR(VLOOKUP(calculs!$Q4,calculs!$R$1:$T$380,2,0)),"",(VLOOKUP(calculs!$Q4,calculs!$R$1:$T$380,2,0))) ->  | K2: =IF(ISERROR(VLOOKUP(calculs!$Q4,calculs!$R$1:$T$380,3,0)),"",(VLOOKUP(calculs!$Q4,calculs!$R$1:$T$380,3,0))) ->  | L2: =IF(ISERROR(VLOOKUP(calculs!$Q5,calculs!$R$1:$T$380,2,0)),"",(VLOOKUP(calculs!$Q5,calculs!$R$1:$T$380,2,0))) ->  | M2: =IF(ISERROR(VLOOKUP(calculs!$Q5,calculs!$R$1:$T$380,3,0)),"",(VLOOKUP(calculs!$Q5,calculs!$R$1:$T$380,3,0))) ->  | N2: =IF(ISERROR(VLOOKUP(calculs!$Q6,calculs!$R$1:$T$380,2,0)),"",(VLOOKUP(calculs!$Q6,calculs!$R$1:$T$380,2,0))) ->  | O2: =IF(ISERROR(VLOOKUP(calculs!$Q6,calculs!$R$1:$T$380,3,0)),"",(VLOOKUP(calculs!$Q6,calculs!$R$1:$T$380,3,0))) ->  | P2: =IF(ISERROR(VLOOKUP(calculs!$Q7,calculs!$R$1:$T$380,2,0)),"",(VLOOKUP(calculs!$Q7,calculs!$R$1:$T$380,2,0))) ->  | Q2: =IF(ISERROR(VLOOKUP(calculs!$Q7,calculs!$R$1:$T$380,3,0)),"",(VLOOKUP(calculs!$Q7,calculs!$R$1:$T$380,3,0))) ->  | R2: =IF(ISERROR(VLOOKUP(calculs!$Q8,calculs!$R$1:$T$380,2,0)),"",(VLOOKUP(calculs!$Q8,calculs!$R$1:$T$380,2,0))) ->  | S2: =IF(ISERROR(VLOOKUP(calculs!$Q8,calculs!$R$1:$T$380,3,0)),"",(VLOOKUP(calculs!$Q8,calculs!$R$1:$T$380,3,0))) ->  | T2: =IF(ISERROR(VLOOKUP(calculs!$Q9,calculs!$R$1:$T$380,2,0)),"",(VLOOKUP(calculs!$Q9,calculs!$R$1:$T$380,2,0))) ->  | U2: =IF(ISERROR(VLOOKUP(calculs!$Q9,calculs!$R$1:$T$380,3,0)),"",(VLOOKUP(calculs!$Q9,calculs!$R$1:$T$380,3,0))) ->  | V2: =IF(ISERROR(VLOOKUP(calculs!$Q10,calculs!$R$1:$T$380,2,0)),"",(VLOOKUP(calculs!$Q10,calculs!$R$1:$T$380,2,0))) ->  | W2: =IF(ISERROR(VLOOKUP(calculs!$Q10,calculs!$R$1:$T$380,3,0)),"",(VLOOKUP(calculs!$Q10,calculs!$R$1:$T$380,3,0))) ->  | X2: =IF(ISERROR(VLOOKUP(calculs!$Q11,calculs!$R$1:$T$380,2,0)),"",(VLOOKUP(calculs!$Q11,calculs!$R$1:$T$380,2,0))) ->  | Y2: =IF(ISERROR(VLOOKUP(calculs!$Q11,calculs!$R$1:$T$380,3,0)),"",(VLOOKUP(calculs!$Q11,calculs!$R$1:$T$380,3,0))) ->  | Z2: =IF(ISERROR(VLOOKUP(calculs!$Q12,calculs!$R$1:$T$380,2,0)),"",(VLOOKUP(calculs!$Q12,calculs!$R$1:$T$380,2,0))) ->  | AA2: =IF(ISERROR(VLOOKUP(calculs!$Q12,calculs!$R$1:$T$380,3,0)),"",(VLOOKUP(calculs!$Q12,calculs!$R$1:$T$380,3,0))) ->  | AB2: =IF(ISERROR(VLOOKUP(calculs!$Q13,calculs!$R$1:$T$380,2,0)),"",(VLOOKUP(calculs!$Q13,calculs!$R$1:$T$380,2,0))) ->  | AC2: =IF(ISERROR(VLOOKUP(calculs!$Q13,calculs!$R$1:$T$380,3,0)),"",(VLOOKUP(calculs!$Q13,calculs!$R$1:$T$380,3,0))) ->  | AD2: =IF(ISERROR(VLOOKUP(calculs!$Q14,calculs!$R$1:$T$380,2,0)),"",(VLOOKUP(calculs!$Q14,calculs!$R$1:$T$380,2,0))) ->  | AE2: =IF(ISERROR(VLOOKUP(calculs!$Q14,calculs!$R$1:$T$380,3,0)),"",(VLOOKUP(calculs!$Q14,calculs!$R$1:$T$380,3,0))) ->  | AF2: =IF(ISERROR(VLOOKUP(calculs!$Q15,calculs!$R$1:$T$380,2,0)),"",(VLOOKUP(calculs!$Q15,calculs!$R$1:$T$380,2,0))) ->  | AG2: =IF(ISERROR(VLOOKUP(calculs!$Q15,calculs!$R$1:$T$380,3,0)),"",(VLOOKUP(calculs!$Q15,calculs!$R$1:$T$380,3,0))) ->  | AH2: =IF(ISERROR(VLOOKUP(calculs!$Q16,calculs!$R$1:$T$380,2,0)),"",(VLOOKUP(calculs!$Q16,calculs!$R$1:$T$380,2,0))) ->  | AI2: =IF(ISERROR(VLOOKUP(calculs!$Q16,calculs!$R$1:$T$380,3,0)),"",(VLOOKUP(calculs!$Q16,calculs!$R$1:$T$380,3,0))) ->  | AJ2: =IF(ISERROR(VLOOKUP(calculs!$Q17,calculs!$R$1:$T$380,2,0)),"",(VLOOKUP(calculs!$Q17,calculs!$R$1:$T$380,2,0))) ->  | AK2: =IF(ISERROR(VLOOKUP(calculs!$Q17,calculs!$R$1:$T$380,3,0)),"",(VLOOKUP(calculs!$Q17,calculs!$R$1:$T$380,3,0))) ->  | AL2: ='J34'!AY5 -> 0 | AM2: ='J34'!AZ5 -> 0 | AN2: ='J34'!BA5 -> 0
A3: ='J01'!AN6:AR6 -> 0 | B3: =IF(ISERROR(VLOOKUP(calculs!$Q18,calculs!$R$1:$T$380,2,0)),"",(VLOOKUP(calculs!$Q18,calculs!$R$1:$T$380,2,0))) ->  | C3: =IF(ISERROR(VLOOKUP(calculs!$Q18,calculs!$R$1:$T$380,3,0)),"",(VLOOKUP(calculs!$Q18,calculs!$R$1:$T$380,3,0))) ->  | D3: =IF(ISERROR(VLOOKUP(calculs!$Q2,calculs!$R$1:$T$380,2,0)),"",(VLOOKUP(calculs!$Q2,calculs!$R$1:$T$380,2,0))) ->  | F3: =IF(ISERROR(VLOOKUP(calculs!$Q19,calculs!$R$1:$T$380,2,0)),"",(VLOOKUP(calculs!$Q19,calculs!$R$1:$T$380,2,0))) ->  | G3: =IF(ISERROR(VLOOKUP(calculs!$Q19,calculs!$R$1:$T$380,3,0)),"",(VLOOKUP(calculs!$Q19,calculs!$R$1:$T$380,3,0))) ->  | H3: =IF(ISERROR(VLOOKUP(calculs!$Q20,calculs!$R$1:$T$380,2,0)),"",(VLOOKUP(calculs!$Q20,calculs!$R$1:$T$380,2,0))) ->  | I3: =IF(ISERROR(VLOOKUP(calculs!$Q20,calculs!$R$1:$T$380,3,0)),"",(VLOOKUP(calculs!$Q20,calculs!$R$1:$T$380,3,0))) ->  | J3: =IF(ISERROR(VLOOKUP(calculs!$Q21,calculs!$R$1:$T$380,2,0)),"",(VLOOKUP(calculs!$Q21,calculs!$R$1:$T$380,2,0))) ->  | K3: =IF(ISERROR(VLOOKUP(calculs!$Q21,calculs!$R$1:$T$380,3,0)),"",(VLOOKUP(calculs!$Q21,calculs!$R$1:$T$380,3,0))) ->  | L3: =IF(ISERROR(VLOOKUP(calculs!$Q22,calculs!$R$1:$T$380,2,0)),"",(VLOOKUP(calculs!$Q22,calculs!$R$1:$T$380,2,0))) ->  | M3: =IF(ISERROR(VLOOKUP(calculs!$Q22,calculs!$R$1:$T$380,3,0)),"",(VLOOKUP(calculs!$Q22,calculs!$R$1:$T$380,3,0))) ->  | N3: =IF(ISERROR(VLOOKUP(calculs!$Q23,calculs!$R$1:$T$380,2,0)),"",(VLOOKUP(calculs!$Q23,calculs!$R$1:$T$380,2,0))) ->  | O3: =IF(ISERROR(VLOOKUP(calculs!$Q23,calculs!$R$1:$T$380,3,0)),"",(VLOOKUP(calculs!$Q23,calculs!$R$1:$T$380,3,0))) ->  | P3: =IF(ISERROR(VLOOKUP(calculs!$Q24,calculs!$R$1:$T$380,2,0)),"",(VLOOKUP(calculs!$Q24,calculs!$R$1:$T$380,2,0))) ->  | Q3: =IF(ISERROR(VLOOKUP(calculs!$Q24,calculs!$R$1:$T$380,3,0)),"",(VLOOKUP(calculs!$Q24,calculs!$R$1:$T$380,3,0))) ->  | R3: =IF(ISERROR(VLOOKUP(calculs!$Q25,calculs!$R$1:$T$380,2,0)),"",(VLOOKUP(calculs!$Q25,calculs!$R$1:$T$380,2,0))) ->  | S3: =IF(ISERROR(VLOOKUP(calculs!$Q25,calculs!$R$1:$T$380,3,0)),"",(VLOOKUP(calculs!$Q25,calculs!$R$1:$T$380,3,0))) ->  | T3: =IF(ISERROR(VLOOKUP(calculs!$Q26,calculs!$R$1:$T$380,2,0)),"",(VLOOKUP(calculs!$Q26,calculs!$R$1:$T$380,2,0))) ->  | U3: =IF(ISERROR(VLOOKUP(calculs!$Q26,calculs!$R$1:$T$380,3,0)),"",(VLOOKUP(calculs!$Q26,calculs!$R$1:$T$380,3,0))) ->  | V3: =IF(ISERROR(VLOOKUP(calculs!$Q27,calculs!$R$1:$T$380,2,0)),"",(VLOOKUP(calculs!$Q27,calculs!$R$1:$T$380,2,0))) ->  | W3: =IF(ISERROR(VLOOKUP(calculs!$Q27,calculs!$R$1:$T$380,3,0)),"",(VLOOKUP(calculs!$Q27,calculs!$R$1:$T$380,3,0))) ->  | X3: =IF(ISERROR(VLOOKUP(calculs!$Q28,calculs!$R$1:$T$380,2,0)),"",(VLOOKUP(calculs!$Q28,calculs!$R$1:$T$380,2,0))) ->  | Y3: =IF(ISERROR(VLOOKUP(calculs!$Q28,calculs!$R$1:$T$380,3,0)),"",(VLOOKUP(calculs!$Q28,calculs!$R$1:$T$380,3,0))) ->  | Z3: =IF(ISERROR(VLOOKUP(calculs!$Q29,calculs!$R$1:$T$380,2,0)),"",(VLOOKUP(calculs!$Q29,calculs!$R$1:$T$380,2,0))) ->  | AA3: =IF(ISERROR(VLOOKUP(calculs!$Q29,calculs!$R$1:$T$380,3,0)),"",(VLOOKUP(calculs!$Q29,calculs!$R$1:$T$380,3,0))) ->  | AB3: =IF(ISERROR(VLOOKUP(calculs!$Q30,calculs!$R$1:$T$380,2,0)),"",(VLOOKUP(calculs!$Q30,calculs!$R$1:$T$380,2,0))) ->  | AC3: =IF(ISERROR(VLOOKUP(calculs!$Q30,calculs!$R$1:$T$380,3,0)),"",(VLOOKUP(calculs!$Q30,calculs!$R$1:$T$380,3,0))) ->  | AD3: =IF(ISERROR(VLOOKUP(calculs!$Q31,calculs!$R$1:$T$380,2,0)),"",(VLOOKUP(calculs!$Q31,calculs!$R$1:$T$380,2,0))) ->  | AE3: =IF(ISERROR(VLOOKUP(calculs!$Q31,calculs!$R$1:$T$380,3,0)),"",(VLOOKUP(calculs!$Q31,calculs!$R$1:$T$380,3,0))) ->  | AF3: =IF(ISERROR(VLOOKUP(calculs!$Q32,calculs!$R$1:$T$380,2,0)),"",(VLOOKUP(calculs!$Q32,calculs!$R$1:$T$380,2,0))) ->  | AG3: =IF(ISERROR(VLOOKUP(calculs!$Q32,calculs!$R$1:$T$380,3,0)),"",(VLOOKUP(calculs!$Q32,calculs!$R$1:$T$380,3,0))) ->  | AH3: =IF(ISERROR(VLOOKUP(calculs!$Q33,calculs!$R$1:$T$380,2,0)),"",(VLOOKUP(calculs!$Q33,calculs!$R$1:$T$380,2,0))) ->  | AI3: =IF(ISERROR(VLOOKUP(calculs!$Q33,calculs!$R$1:$T$380,3,0)),"",(VLOOKUP(calculs!$Q33,calculs!$R$1:$T$380,3,0))) ->  | AJ3: =IF(ISERROR(VLOOKUP(calculs!$Q34,calculs!$R$1:$T$380,2,0)),"",(VLOOKUP(calculs!$Q34,calculs!$R$1:$T$380,2,0))) ->  | AK3: =IF(ISERROR(VLOOKUP(calculs!$Q34,calculs!$R$1:$T$380,3,0)),"",(VLOOKUP(calculs!$Q34,calculs!$R$1:$T$380,3,0))) ->  | AL3: ='J34'!AY6 -> 0 | AM3: ='J34'!AZ6 -> 0 | AN3: ='J34'!BA6 -> 0
A4: ='J01'!AN7:AR7 -> 0 | B4: =IF(ISERROR(VLOOKUP(calculs!$Q35,calculs!$R$1:$T$380,2,0)),"",(VLOOKUP(calculs!$Q35,calculs!$R$1:$T$380,2,0))) ->  | C4: =IF(ISERROR(VLOOKUP(calculs!$Q35,calculs!$R$1:$T$380,3,0)),"",(VLOOKUP(calculs!$Q35,calculs!$R$1:$T$380,3,0))) ->  | D4: =IF(ISERROR(VLOOKUP(calculs!$Q36,calculs!$R$1:$T$380,2,0)),"",(VLOOKUP(calculs!$Q36,calculs!$R$1:$T$380,2,0))) ->  | E4: =IF(ISERROR(VLOOKUP(calculs!$Q36,calculs!$R$1:$T$380,3,0)),"",(VLOOKUP(calculs!$Q36,calculs!$R$1:$T$380,3,0))) ->  | F4: =IF(ISERROR(VLOOKUP(calculs!$Q3,calculs!$R$1:$T$380,2,0)),"",(VLOOKUP(calculs!$Q3,calculs!$R$1:$T$380,2,0))) ->  | H4: =IF(ISERROR(VLOOKUP(calculs!$Q37,calculs!$R$1:$T$380,2,0)),"",(VLOOKUP(calculs!$Q37,calculs!$R$1:$T$380,2,0))) ->  | I4: =IF(ISERROR(VLOOKUP(calculs!$Q37,calculs!$R$1:$T$380,3,0)),"",(VLOOKUP(calculs!$Q37,calculs!$R$1:$T$380,3,0))) ->  | J4: =IF(ISERROR(VLOOKUP(calculs!$Q38,calculs!$R$1:$T$380,2,0)),"",(VLOOKUP(calculs!$Q38,calculs!$R$1:$T$380,2,0))) ->  | K4: =IF(ISERROR(VLOOKUP(calculs!$Q38,calculs!$R$1:$T$380,3,0)),"",(VLOOKUP(calculs!$Q38,calculs!$R$1:$T$380,3,0))) ->  | L4: =IF(ISERROR(VLOOKUP(calculs!$Q39,calculs!$R$1:$T$380,2,0)),"",(VLOOKUP(calculs!$Q39,calculs!$R$1:$T$380,2,0))) ->  | M4: =IF(ISERROR(VLOOKUP(calculs!$Q39,calculs!$R$1:$T$380,3,0)),"",(VLOOKUP(calculs!$Q39,calculs!$R$1:$T$380,3,0))) ->  | N4: =IF(ISERROR(VLOOKUP(calculs!$Q40,calculs!$R$1:$T$380,2,0)),"",(VLOOKUP(calculs!$Q40,calculs!$R$1:$T$380,2,0))) ->  | O4: =IF(ISERROR(VLOOKUP(calculs!$Q40,calculs!$R$1:$T$380,3,0)),"",(VLOOKUP(calculs!$Q40,calculs!$R$1:$T$380,3,0))) ->  | P4: =IF(ISERROR(VLOOKUP(calculs!$Q41,calculs!$R$1:$T$380,2,0)),"",(VLOOKUP(calculs!$Q41,calculs!$R$1:$T$380,2,0))) ->  | Q4: =IF(ISERROR(VLOOKUP(calculs!$Q41,calculs!$R$1:$T$380,3,0)),"",(VLOOKUP(calculs!$Q41,calculs!$R$1:$T$380,3,0))) ->  | R4: =IF(ISERROR(VLOOKUP(calculs!$Q42,calculs!$R$1:$T$380,2,0)),"",(VLOOKUP(calculs!$Q42,calculs!$R$1:$T$380,2,0))) ->  | S4: =IF(ISERROR(VLOOKUP(calculs!$Q42,calculs!$R$1:$T$380,3,0)),"",(VLOOKUP(calculs!$Q42,calculs!$R$1:$T$380,3,0))) ->  | T4: =IF(ISERROR(VLOOKUP(calculs!$Q43,calculs!$R$1:$T$380,2,0)),"",(VLOOKUP(calculs!$Q43,calculs!$R$1:$T$380,2,0))) ->  | U4: =IF(ISERROR(VLOOKUP(calculs!$Q43,calculs!$R$1:$T$380,3,0)),"",(VLOOKUP(calculs!$Q43,calculs!$R$1:$T$380,3,0))) ->  | V4: =IF(ISERROR(VLOOKUP(calculs!$Q44,calculs!$R$1:$T$380,2,0)),"",(VLOOKUP(calculs!$Q44,calculs!$R$1:$T$380,2,0))) ->  | W4: =IF(ISERROR(VLOOKUP(calculs!$Q44,calculs!$R$1:$T$380,3,0)),"",(VLOOKUP(calculs!$Q44,calculs!$R$1:$T$380,3,0))) ->  | X4: =IF(ISERROR(VLOOKUP(calculs!$Q45,calculs!$R$1:$T$380,2,0)),"",(VLOOKUP(calculs!$Q45,calculs!$R$1:$T$380,2,0))) ->  | Y4: =IF(ISERROR(VLOOKUP(calculs!$Q45,calculs!$R$1:$T$380,3,0)),"",(VLOOKUP(calculs!$Q45,calculs!$R$1:$T$380,3,0))) ->  | Z4: =IF(ISERROR(VLOOKUP(calculs!$Q46,calculs!$R$1:$T$380,2,0)),"",(VLOOKUP(calculs!$Q46,calculs!$R$1:$T$380,2,0))) ->  | AA4: =IF(ISERROR(VLOOKUP(calculs!$Q46,calculs!$R$1:$T$380,3,0)),"",(VLOOKUP(calculs!$Q46,calculs!$R$1:$T$380,3,0))) ->  | AB4: =IF(ISERROR(VLOOKUP(calculs!$Q47,calculs!$R$1:$T$380,2,0)),"",(VLOOKUP(calculs!$Q47,calculs!$R$1:$T$380,2,0))) ->  | AC4: =IF(ISERROR(VLOOKUP(calculs!$Q47,calculs!$R$1:$T$380,3,0)),"",(VLOOKUP(calculs!$Q47,calculs!$R$1:$T$380,3,0))) ->  | AD4: =IF(ISERROR(VLOOKUP(calculs!$Q48,calculs!$R$1:$T$380,2,0)),"",(VLOOKUP(calculs!$Q48,calculs!$R$1:$T$380,2,0))) ->  | AE4: =IF(ISERROR(VLOOKUP(calculs!$Q48,calculs!$R$1:$T$380,3,0)),"",(VLOOKUP(calculs!$Q48,calculs!$R$1:$T$380,3,0))) ->  | AF4: =IF(ISERROR(VLOOKUP(calculs!$Q49,calculs!$R$1:$T$380,2,0)),"",(VLOOKUP(calculs!$Q49,calculs!$R$1:$T$380,2,0))) ->  | AG4: =IF(ISERROR(VLOOKUP(calculs!$Q49,calculs!$R$1:$T$380,3,0)),"",(VLOOKUP(calculs!$Q49,calculs!$R$1:$T$380,3,0))) ->  | AH4: =IF(ISERROR(VLOOKUP(calculs!$Q50,calculs!$R$1:$T$380,2,0)),"",(VLOOKUP(calculs!$Q50,calculs!$R$1:$T$380,2,0))) ->  | AI4: =IF(ISERROR(VLOOKUP(calculs!$Q50,calculs!$R$1:$T$380,3,0)),"",(VLOOKUP(calculs!$Q50,calculs!$R$1:$T$380,3,0))) ->  | AJ4: =IF(ISERROR(VLOOKUP(calculs!$Q51,calculs!$R$1:$T$380,2,0)),"",(VLOOKUP(calculs!$Q51,calculs!$R$1:$T$380,2,0))) ->  | AK4: =IF(ISERROR(VLOOKUP(calculs!$Q51,calculs!$R$1:$T$380,3,0)),"",(VLOOKUP(calculs!$Q51,calculs!$R$1:$T$380,3,0))) ->  | AL4: ='J34'!AY7 -> 0 | AM4: ='J34'!AZ7 -> 0 | AN4: ='J34'!BA7 -> 0
A5: ='J01'!AN8:AR8 -> 0 | B5: =IF(ISERROR(VLOOKUP(calculs!$Q52,calculs!$R$1:$T$380,2,0)),"",(VLOOKUP(calculs!$Q52,calculs!$R$1:$T$380,2,0))) ->  | C5: =IF(ISERROR(VLOOKUP(calculs!$Q52,calculs!$R$1:$T$380,3,0)),"",(VLOOKUP(calculs!$Q52,calculs!$R$1:$T$380,3,0))) ->  | D5: =IF(ISERROR(VLOOKUP(calculs!$Q53,calculs!$R$1:$T$380,2,0)),"",(VLOOKUP(calculs!$Q53,calculs!$R$1:$T$380,2,0))) ->  | E5: =IF(ISERROR(VLOOKUP(calculs!$Q53,calculs!$R$1:$T$380,3,0)),"",(VLOOKUP(calculs!$Q53,calculs!$R$1:$T$380,3,0))) ->  | F5: =IF(ISERROR(VLOOKUP(calculs!$Q54,calculs!$R$1:$T$380,2,0)),"",(VLOOKUP(calculs!$Q54,calculs!$R$1:$T$380,2,0))) ->  | G5: =IF(ISERROR(VLOOKUP(calculs!$Q54,calculs!$R$1:$T$380,3,0)),"",(VLOOKUP(calculs!$Q54,calculs!$R$1:$T$380,3,0))) ->  | H5: =IF(ISERROR(VLOOKUP(calculs!$Q4,calculs!$R$1:$T$380,2,0)),"",(VLOOKUP(calculs!$Q4,calculs!$R$1:$T$380,2,0))) ->  | J5: =IF(ISERROR(VLOOKUP(calculs!$Q55,calculs!$R$1:$T$380,2,0)),"",(VLOOKUP(calculs!$Q55,calculs!$R$1:$T$380,2,0))) ->  | K5: =IF(ISERROR(VLOOKUP(calculs!$Q55,calculs!$R$1:$T$380,3,0)),"",(VLOOKUP(calculs!$Q55,calculs!$R$1:$T$380,3,0))) ->  | L5: =IF(ISERROR(VLOOKUP(calculs!$Q56,calculs!$R$1:$T$380,2,0)),"",(VLOOKUP(calculs!$Q56,calculs!$R$1:$T$380,2,0))) ->  | M5: =IF(ISERROR(VLOOKUP(calculs!$Q56,calculs!$R$1:$T$380,3,0)),"",(VLOOKUP(calculs!$Q56,calculs!$R$1:$T$380,3,0))) ->  | N5: =IF(ISERROR(VLOOKUP(calculs!$Q57,calculs!$R$1:$T$380,2,0)),"",(VLOOKUP(calculs!$Q57,calculs!$R$1:$T$380,2,0))) ->  | O5: =IF(ISERROR(VLOOKUP(calculs!$Q57,calculs!$R$1:$T$380,3,0)),"",(VLOOKUP(calculs!$Q57,calculs!$R$1:$T$380,3,0))) ->  | P5: =IF(ISERROR(VLOOKUP(calculs!$Q58,calculs!$R$1:$T$380,2,0)),"",(VLOOKUP(calculs!$Q58,calculs!$R$1:$T$380,2,0))) ->  | Q5: =IF(ISERROR(VLOOKUP(calculs!$Q58,calculs!$R$1:$T$380,3,0)),"",(VLOOKUP(calculs!$Q58,calculs!$R$1:$T$380,3,0))) ->  | R5: =IF(ISERROR(VLOOKUP(calculs!$Q59,calculs!$R$1:$T$380,2,0)),"",(VLOOKUP(calculs!$Q59,calculs!$R$1:$T$380,2,0))) ->  | S5: =IF(ISERROR(VLOOKUP(calculs!$Q59,calculs!$R$1:$T$380,3,0)),"",(VLOOKUP(calculs!$Q59,calculs!$R$1:$T$380,3,0))) ->  | T5: =IF(ISERROR(VLOOKUP(calculs!$Q60,calculs!$R$1:$T$380,2,0)),"",(VLOOKUP(calculs!$Q60,calculs!$R$1:$T$380,2,0))) ->  | U5: =IF(ISERROR(VLOOKUP(calculs!$Q60,calculs!$R$1:$T$380,3,0)),"",(VLOOKUP(calculs!$Q60,calculs!$R$1:$T$380,3,0))) ->  | V5: =IF(ISERROR(VLOOKUP(calculs!$Q61,calculs!$R$1:$T$380,2,0)),"",(VLOOKUP(calculs!$Q61,calculs!$R$1:$T$380,2,0))) ->  | W5: =IF(ISERROR(VLOOKUP(calculs!$Q61,calculs!$R$1:$T$380,3,0)),"",(VLOOKUP(calculs!$Q61,calculs!$R$1:$T$380,3,0))) ->  | X5: =IF(ISERROR(VLOOKUP(calculs!$Q62,calculs!$R$1:$T$380,2,0)),"",(VLOOKUP(calculs!$Q62,calculs!$R$1:$T$380,2,0))) ->  | Y5: =IF(ISERROR(VLOOKUP(calculs!$Q62,calculs!$R$1:$T$380,3,0)),"",(VLOOKUP(calculs!$Q62,calculs!$R$1:$T$380,3,0))) ->  | Z5: =IF(ISERROR(VLOOKUP(calculs!$Q63,calculs!$R$1:$T$380,2,0)),"",(VLOOKUP(calculs!$Q63,calculs!$R$1:$T$380,2,0))) ->  | AA5: =IF(ISERROR(VLOOKUP(calculs!$Q63,calculs!$R$1:$T$380,3,0)),"",(VLOOKUP(calculs!$Q63,calculs!$R$1:$T$380,3,0))) ->  | AB5: =IF(ISERROR(VLOOKUP(calculs!$Q64,calculs!$R$1:$T$380,2,0)),"",(VLOOKUP(calculs!$Q64,calculs!$R$1:$T$380,2,0))) ->  | AC5: =IF(ISERROR(VLOOKUP(calculs!$Q64,calculs!$R$1:$T$380,3,0)),"",(VLOOKUP(calculs!$Q64,calculs!$R$1:$T$380,3,0))) ->  | AD5: =IF(ISERROR(VLOOKUP(calculs!$Q65,calculs!$R$1:$T$380,2,0)),"",(VLOOKUP(calculs!$Q65,calculs!$R$1:$T$380,2,0))) ->  | AE5: =IF(ISERROR(VLOOKUP(calculs!$Q65,calculs!$R$1:$T$380,3,0)),"",(VLOOKUP(calculs!$Q65,calculs!$R$1:$T$380,3,0))) ->  | AF5: =IF(ISERROR(VLOOKUP(calculs!$Q66,calculs!$R$1:$T$380,2,0)),"",(VLOOKUP(calculs!$Q66,calculs!$R$1:$T$380,2,0))) ->  | AG5: =IF(ISERROR(VLOOKUP(calculs!$Q66,calculs!$R$1:$T$380,3,0)),"",(VLOOKUP(calculs!$Q66,calculs!$R$1:$T$380,3,0))) ->  | AH5: =IF(ISERROR(VLOOKUP(calculs!$Q67,calculs!$R$1:$T$380,2,0)),"",(VLOOKUP(calculs!$Q67,calculs!$R$1:$T$380,2,0))) ->  | AI5: =IF(ISERROR(VLOOKUP(calculs!$Q67,calculs!$R$1:$T$380,3,0)),"",(VLOOKUP(calculs!$Q67,calculs!$R$1:$T$380,3,0))) ->  | AJ5: =IF(ISERROR(VLOOKUP(calculs!$Q68,calculs!$R$1:$T$380,2,0)),"",(VLOOKUP(calculs!$Q68,calculs!$R$1:$T$380,2,0))) ->  | AK5: =IF(ISERROR(VLOOKUP(calculs!$Q68,calculs!$R$1:$T$380,3,0)),"",(VLOOKUP(calculs!$Q68,calculs!$R$1:$T$380,3,0))) ->  | AL5: ='J34'!AY8 -> 0 | AM5: ='J34'!AZ8 -> 0 | AN5: ='J34'!BA8 -> 0
A6: ='J01'!AN9:AR9 -> 0 | B6: =IF(ISERROR(VLOOKUP(calculs!$Q69,calculs!$R$1:$T$380,2,0)),"",(VLOOKUP(calculs!$Q69,calculs!$R$1:$T$380,2,0))) ->  | C6: =IF(ISERROR(VLOOKUP(calculs!$Q69,calculs!$R$1:$T$380,3,0)),"",(VLOOKUP(calculs!$Q69,calculs!$R$1:$T$380,3,0))) ->  | D6: =IF(ISERROR(VLOOKUP(calculs!$Q70,calculs!$R$1:$T$380,2,0)),"",(VLOOKUP(calculs!$Q70,calculs!$R$1:$T$380,2,0))) ->  | E6: =IF(ISERROR(VLOOKUP(calculs!$Q70,calculs!$R$1:$T$380,3,0)),"",(VLOOKUP(calculs!$Q70,calculs!$R$1:$T$380,3,0))) ->  | F6: =IF(ISERROR(VLOOKUP(calculs!$Q71,calculs!$R$1:$T$380,2,0)),"",(VLOOKUP(calculs!$Q71,calculs!$R$1:$T$380,2,0))) ->  | G6: =IF(ISERROR(VLOOKUP(calculs!$Q71,calculs!$R$1:$T$380,3,0)),"",(VLOOKUP(calculs!$Q71,calculs!$R$1:$T$380,3,0))) ->  | H6: =IF(ISERROR(VLOOKUP(calculs!$Q72,calculs!$R$1:$T$380,2,0)),"",(VLOOKUP(calculs!$Q72,calculs!$R$1:$T$380,2,0))) ->  | I6: =IF(ISERROR(VLOOKUP(calculs!$Q72,calculs!$R$1:$T$380,3,0)),"",(VLOOKUP(calculs!$Q72,calculs!$R$1:$T$380,3,0))) ->  | J6: =IF(ISERROR(VLOOKUP(calculs!$Q5,calculs!$R$1:$T$380,2,0)),"",(VLOOKUP(calculs!$Q5,calculs!$R$1:$T$380,2,0))) ->  | L6: =IF(ISERROR(VLOOKUP(calculs!$Q73,calculs!$R$1:$T$380,2,0)),"",(VLOOKUP(calculs!$Q73,calculs!$R$1:$T$380,2,0))) ->  | M6: =IF(ISERROR(VLOOKUP(calculs!$Q73,calculs!$R$1:$T$380,3,0)),"",(VLOOKUP(calculs!$Q73,calculs!$R$1:$T$380,3,0))) ->  | N6: =IF(ISERROR(VLOOKUP(calculs!$Q74,calculs!$R$1:$T$380,2,0)),"",(VLOOKUP(calculs!$Q74,calculs!$R$1:$T$380,2,0))) ->  | O6: =IF(ISERROR(VLOOKUP(calculs!$Q74,calculs!$R$1:$T$380,3,0)),"",(VLOOKUP(calculs!$Q74,calculs!$R$1:$T$380,3,0))) ->  | P6: =IF(ISERROR(VLOOKUP(calculs!$Q75,calculs!$R$1:$T$380,2,0)),"",(VLOOKUP(calculs!$Q75,calculs!$R$1:$T$380,2,0))) ->  | Q6: =IF(ISERROR(VLOOKUP(calculs!$Q75,calculs!$R$1:$T$380,3,0)),"",(VLOOKUP(calculs!$Q75,calculs!$R$1:$T$380,3,0))) ->  | R6: =IF(ISERROR(VLOOKUP(calculs!$Q76,calculs!$R$1:$T$380,2,0)),"",(VLOOKUP(calculs!$Q76,calculs!$R$1:$T$380,2,0))) ->  | S6: =IF(ISERROR(VLOOKUP(calculs!$Q76,calculs!$R$1:$T$380,3,0)),"",(VLOOKUP(calculs!$Q76,calculs!$R$1:$T$380,3,0))) ->  | T6: =IF(ISERROR(VLOOKUP(calculs!$Q77,calculs!$R$1:$T$380,2,0)),"",(VLOOKUP(calculs!$Q77,calculs!$R$1:$T$380,2,0))) ->  | U6: =IF(ISERROR(VLOOKUP(calculs!$Q77,calculs!$R$1:$T$380,3,0)),"",(VLOOKUP(calculs!$Q77,calculs!$R$1:$T$380,3,0))) ->  | V6: =IF(ISERROR(VLOOKUP(calculs!$Q78,calculs!$R$1:$T$380,2,0)),"",(VLOOKUP(calculs!$Q78,calculs!$R$1:$T$380,2,0))) ->  | W6: =IF(ISERROR(VLOOKUP(calculs!$Q78,calculs!$R$1:$T$380,3,0)),"",(VLOOKUP(calculs!$Q78,calculs!$R$1:$T$380,3,0))) ->  | X6: =IF(ISERROR(VLOOKUP(calculs!$Q79,calculs!$R$1:$T$380,2,0)),"",(VLOOKUP(calculs!$Q79,calculs!$R$1:$T$380,2,0))) ->  | Y6: =IF(ISERROR(VLOOKUP(calculs!$Q79,calculs!$R$1:$T$380,3,0)),"",(VLOOKUP(calculs!$Q79,calculs!$R$1:$T$380,3,0))) ->  | Z6: =IF(ISERROR(VLOOKUP(calculs!$Q80,calculs!$R$1:$T$380,2,0)),"",(VLOOKUP(calculs!$Q80,calculs!$R$1:$T$380,2,0))) ->  | AA6: =IF(ISERROR(VLOOKUP(calculs!$Q80,calculs!$R$1:$T$380,3,0)),"",(VLOOKUP(calculs!$Q80,calculs!$R$1:$T$380,3,0))) ->  | AB6: =IF(ISERROR(VLOOKUP(calculs!$Q81,calculs!$R$1:$T$380,2,0)),"",(VLOOKUP(calculs!$Q81,calculs!$R$1:$T$380,2,0))) ->  | AC6: =IF(ISERROR(VLOOKUP(calculs!$Q81,calculs!$R$1:$T$380,3,0)),"",(VLOOKUP(calculs!$Q81,calculs!$R$1:$T$380,3,0))) ->  | AD6: =IF(ISERROR(VLOOKUP(calculs!$Q82,calculs!$R$1:$T$380,2,0)),"",(VLOOKUP(calculs!$Q82,calculs!$R$1:$T$380,2,0))) ->  | AE6: =IF(ISERROR(VLOOKUP(calculs!$Q82,calculs!$R$1:$T$380,3,0)),"",(VLOOKUP(calculs!$Q82,calculs!$R$1:$T$380,3,0))) ->  | AF6: =IF(ISERROR(VLOOKUP(calculs!$Q83,calculs!$R$1:$T$380,2,0)),"",(VLOOKUP(calculs!$Q83,calculs!$R$1:$T$380,2,0))) ->  | AG6: =IF(ISERROR(VLOOKUP(calculs!$Q83,calculs!$R$1:$T$380,3,0)),"",(VLOOKUP(calculs!$Q83,calculs!$R$1:$T$380,3,0))) ->  | AH6: =IF(ISERROR(VLOOKUP(calculs!$Q84,calculs!$R$1:$T$380,2,0)),"",(VLOOKUP(calculs!$Q84,calculs!$R$1:$T$380,2,0))) ->  | AI6: =IF(ISERROR(VLOOKUP(calculs!$Q84,calculs!$R$1:$T$380,3,0)),"",(VLOOKUP(calculs!$Q84,calculs!$R$1:$T$380,3,0))) ->  | AJ6: =IF(ISERROR(VLOOKUP(calculs!$Q85,calculs!$R$1:$T$380,2,0)),"",(VLOOKUP(calculs!$Q85,calculs!$R$1:$T$380,2,0))) ->  | AK6: =IF(ISERROR(VLOOKUP(calculs!$Q85,calculs!$R$1:$T$380,3,0)),"",(VLOOKUP(calculs!$Q85,calculs!$R$1:$T$380,3,0))) ->  | AL6: ='J34'!AY9 -> 0 | AM6: ='J34'!AZ9 -> 0 | AN6: ='J34'!BA9 -> 0
A7: ='J01'!AN10:AR10 -> 0 | B7: =IF(ISERROR(VLOOKUP(calculs!$Q86,calculs!$R$1:$T$380,2,0)),"",(VLOOKUP(calculs!$Q86,calculs!$R$1:$T$380,2,0))) ->  | C7: =IF(ISERROR(VLOOKUP(calculs!$Q86,calculs!$R$1:$T$380,3,0)),"",(VLOOKUP(calculs!$Q86,calculs!$R$1:$T$380,3,0))) ->  | D7: =IF(ISERROR(VLOOKUP(calculs!$Q87,calculs!$R$1:$T$380,2,0)),"",(VLOOKUP(calculs!$Q87,calculs!$R$1:$T$380,2,0))) ->  | E7: =IF(ISERROR(VLOOKUP(calculs!$Q87,calculs!$R$1:$T$380,3,0)),"",(VLOOKUP(calculs!$Q87,calculs!$R$1:$T$380,3,0))) ->  | F7: =IF(ISERROR(VLOOKUP(calculs!$Q88,calculs!$R$1:$T$380,2,0)),"",(VLOOKUP(calculs!$Q88,calculs!$R$1:$T$380,2,0))) ->  | G7: =IF(ISERROR(VLOOKUP(calculs!$Q88,calculs!$R$1:$T$380,3,0)),"",(VLOOKUP(calculs!$Q88,calculs!$R$1:$T$380,3,0))) ->  | H7: =IF(ISERROR(VLOOKUP(calculs!$Q89,calculs!$R$1:$T$380,2,0)),"",(VLOOKUP(calculs!$Q89,calculs!$R$1:$T$380,2,0))) ->  | I7: =IF(ISERROR(VLOOKUP(calculs!$Q89,calculs!$R$1:$T$380,3,0)),"",(VLOOKUP(calculs!$Q89,calculs!$R$1:$T$380,3,0))) ->  | J7: =IF(ISERROR(VLOOKUP(calculs!$Q90,calculs!$R$1:$T$380,2,0)),"",(VLOOKUP(calculs!$Q90,calculs!$R$1:$T$380,2,0))) ->  | K7: =IF(ISERROR(VLOOKUP(calculs!$Q90,calculs!$R$1:$T$380,3,0)),"",(VLOOKUP(calculs!$Q90,calculs!$R$1:$T$380,3,0))) ->  | L7: =IF(ISERROR(VLOOKUP(calculs!$Q6,calculs!$R$1:$T$380,2,0)),"",(VLOOKUP(calculs!$Q6,calculs!$R$1:$T$380,2,0))) ->  | N7: =IF(ISERROR(VLOOKUP(calculs!$Q91,calculs!$R$1:$T$380,2,0)),"",(VLOOKUP(calculs!$Q91,calculs!$R$1:$T$380,2,0))) ->  | O7: =IF(ISERROR(VLOOKUP(calculs!$Q91,calculs!$R$1:$T$380,3,0)),"",(VLOOKUP(calculs!$Q91,calculs!$R$1:$T$380,3,0))) ->  | P7: =IF(ISERROR(VLOOKUP(calculs!$Q92,calculs!$R$1:$T$380,2,0)),"",(VLOOKUP(calculs!$Q92,calculs!$R$1:$T$380,2,0))) ->  | Q7: =IF(ISERROR(VLOOKUP(calculs!$Q92,calculs!$R$1:$T$380,3,0)),"",(VLOOKUP(calculs!$Q92,calculs!$R$1:$T$380,3,0))) ->  | R7: =IF(ISERROR(VLOOKUP(calculs!$Q93,calculs!$R$1:$T$380,2,0)),"",(VLOOKUP(calculs!$Q93,calculs!$R$1:$T$380,2,0))) ->  | S7: =IF(ISERROR(VLOOKUP(calculs!$Q93,calculs!$R$1:$T$380,3,0)),"",(VLOOKUP(calculs!$Q93,calculs!$R$1:$T$380,3,0))) ->  | T7: =IF(ISERROR(VLOOKUP(calculs!$Q94,calculs!$R$1:$T$380,2,0)),"",(VLOOKUP(calculs!$Q94,calculs!$R$1:$T$380,2,0))) ->  | U7: =IF(ISERROR(VLOOKUP(calculs!$Q94,calculs!$R$1:$T$380,3,0)),"",(VLOOKUP(calculs!$Q94,calculs!$R$1:$T$380,3,0))) ->  | V7: =IF(ISERROR(VLOOKUP(calculs!$Q95,calculs!$R$1:$T$380,2,0)),"",(VLOOKUP(calculs!$Q95,calculs!$R$1:$T$380,2,0))) ->  | W7: =IF(ISERROR(VLOOKUP(calculs!$Q95,calculs!$R$1:$T$380,3,0)),"",(VLOOKUP(calculs!$Q95,calculs!$R$1:$T$380,3,0))) ->  | X7: =IF(ISERROR(VLOOKUP(calculs!$Q96,calculs!$R$1:$T$380,2,0)),"",(VLOOKUP(calculs!$Q96,calculs!$R$1:$T$380,2,0))) ->  | Y7: =IF(ISERROR(VLOOKUP(calculs!$Q96,calculs!$R$1:$T$380,3,0)),"",(VLOOKUP(calculs!$Q96,calculs!$R$1:$T$380,3,0))) ->  | Z7: =IF(ISERROR(VLOOKUP(calculs!$Q97,calculs!$R$1:$T$380,2,0)),"",(VLOOKUP(calculs!$Q97,calculs!$R$1:$T$380,2,0))) ->  | AA7: =IF(ISERROR(VLOOKUP(calculs!$Q97,calculs!$R$1:$T$380,3,0)),"",(VLOOKUP(calculs!$Q97,calculs!$R$1:$T$380,3,0))) ->  | AB7: =IF(ISERROR(VLOOKUP(calculs!$Q98,calculs!$R$1:$T$380,2,0)),"",(VLOOKUP(calculs!$Q98,calculs!$R$1:$T$380,2,0))) ->  | AC7: =IF(ISERROR(VLOOKUP(calculs!$Q98,calculs!$R$1:$T$380,3,0)),"",(VLOOKUP(calculs!$Q98,calculs!$R$1:$T$380,3,0))) ->  | AD7: =IF(ISERROR(VLOOKUP(calculs!$Q99,calculs!$R$1:$T$380,2,0)),"",(VLOOKUP(calculs!$Q99,calculs!$R$1:$T$380,2,0))) ->  | AE7: =IF(ISERROR(VLOOKUP(calculs!$Q99,calculs!$R$1:$T$380,3,0)),"",(VLOOKUP(calculs!$Q99,calculs!$R$1:$T$380,3,0))) ->  | AF7: =IF(ISERROR(VLOOKUP(calculs!$Q100,calculs!$R$1:$T$380,2,0)),"",(VLOOKUP(calculs!$Q100,calculs!$R$1:$T$380,2,0))) ->  | AG7: =IF(ISERROR(VLOOKUP(calculs!$Q100,calculs!$R$1:$T$380,3,0)),"",(VLOOKUP(calculs!$Q100,calculs!$R$1:$T$380,3,0))) ->  | AH7: =IF(ISERROR(VLOOKUP(calculs!$Q101,calculs!$R$1:$T$380,2,0)),"",(VLOOKUP(calculs!$Q101,calculs!$R$1:$T$380,2,0))) ->  | AI7: =IF(ISERROR(VLOOKUP(calculs!$Q101,calculs!$R$1:$T$380,3,0)),"",(VLOOKUP(calculs!$Q101,calculs!$R$1:$T$380,3,0))) ->  | AJ7: =IF(ISERROR(VLOOKUP(calculs!$Q102,calculs!$R$1:$T$380,2,0)),"",(VLOOKUP(calculs!$Q102,calculs!$R$1:$T$380,2,0))) ->  | AK7: =IF(ISERROR(VLOOKUP(calculs!$Q102,calculs!$R$1:$T$380,3,0)),"",(VLOOKUP(calculs!$Q102,calculs!$R$1:$T$380,3,0))) ->  | AL7: ='J34'!AY10 -> 0 | AM7: ='J34'!AZ10 -> 0 | AN7: ='J34'!BA10 -> 0
A8: ='J01'!AN11:AR11 -> 0 | B8: =IF(ISERROR(VLOOKUP(calculs!$Q103,calculs!$R$1:$T$380,2,0)),"",(VLOOKUP(calculs!$Q103,calculs!$R$1:$T$380,2,0))) ->  | C8: =IF(ISERROR(VLOOKUP(calculs!$Q103,calculs!$R$1:$T$380,3,0)),"",(VLOOKUP(calculs!$Q103,calculs!$R$1:$T$380,3,0))) ->  | D8: =IF(ISERROR(VLOOKUP(calculs!$Q104,calculs!$R$1:$T$380,2,0)),"",(VLOOKUP(calculs!$Q104,calculs!$R$1:$T$380,2,0))) ->  | E8: =IF(ISERROR(VLOOKUP(calculs!$Q104,calculs!$R$1:$T$380,3,0)),"",(VLOOKUP(calculs!$Q104,calculs!$R$1:$T$380,3,0))) ->  | F8: =IF(ISERROR(VLOOKUP(calculs!$Q105,calculs!$R$1:$T$380,2,0)),"",(VLOOKUP(calculs!$Q105,calculs!$R$1:$T$380,2,0))) ->  | G8: =IF(ISERROR(VLOOKUP(calculs!$Q105,calculs!$R$1:$T$380,3,0)),"",(VLOOKUP(calculs!$Q105,calculs!$R$1:$T$380,3,0))) ->  | H8: =IF(ISERROR(VLOOKUP(calculs!$Q106,calculs!$R$1:$T$380,2,0)),"",(VLOOKUP(calculs!$Q106,calculs!$R$1:$T$380,2,0))) ->  | I8: =IF(ISERROR(VLOOKUP(calculs!$Q106,calculs!$R$1:$T$380,3,0)),"",(VLOOKUP(calculs!$Q106,calculs!$R$1:$T$380,3,0))) ->  | J8: =IF(ISERROR(VLOOKUP(calculs!$Q107,calculs!$R$1:$T$380,2,0)),"",(VLOOKUP(calculs!$Q107,calculs!$R$1:$T$380,2,0))) ->  | K8: =IF(ISERROR(VLOOKUP(calculs!$Q107,calculs!$R$1:$T$380,3,0)),"",(VLOOKUP(calculs!$Q107,calculs!$R$1:$T$380,3,0))) ->  | L8: =IF(ISERROR(VLOOKUP(calculs!$Q108,calculs!$R$1:$T$380,2,0)),"",(VLOOKUP(calculs!$Q108,calculs!$R$1:$T$380,2,0))) ->  | M8: =IF(ISERROR(VLOOKUP(calculs!$Q108,calculs!$R$1:$T$380,3,0)),"",(VLOOKUP(calculs!$Q108,calculs!$R$1:$T$380,3,0))) ->  | N8: =IF(ISERROR(VLOOKUP(calculs!$Q7,calculs!$R$1:$T$380,2,0)),"",(VLOOKUP(calculs!$Q7,calculs!$R$1:$T$380,2,0))) ->  | P8: =IF(ISERROR(VLOOKUP(calculs!$Q109,calculs!$R$1:$T$380,2,0)),"",(VLOOKUP(calculs!$Q109,calculs!$R$1:$T$380,2,0))) ->  | Q8: =IF(ISERROR(VLOOKUP(calculs!$Q109,calculs!$R$1:$T$380,3,0)),"",(VLOOKUP(calculs!$Q109,calculs!$R$1:$T$380,3,0))) ->  | R8: =IF(ISERROR(VLOOKUP(calculs!$Q110,calculs!$R$1:$T$380,2,0)),"",(VLOOKUP(calculs!$Q110,calculs!$R$1:$T$380,2,0))) ->  | S8: =IF(ISERROR(VLOOKUP(calculs!$Q110,calculs!$R$1:$T$380,3,0)),"",(VLOOKUP(calculs!$Q110,calculs!$R$1:$T$380,3,0))) ->  | T8: =IF(ISERROR(VLOOKUP(calculs!$Q111,calculs!$R$1:$T$380,2,0)),"",(VLOOKUP(calculs!$Q111,calculs!$R$1:$T$380,2,0))) ->  | U8: =IF(ISERROR(VLOOKUP(calculs!$Q111,calculs!$R$1:$T$380,3,0)),"",(VLOOKUP(calculs!$Q111,calculs!$R$1:$T$380,3,0))) ->  | V8: =IF(ISERROR(VLOOKUP(calculs!$Q112,calculs!$R$1:$T$380,2,0)),"",(VLOOKUP(calculs!$Q112,calculs!$R$1:$T$380,2,0))) ->  | W8: =IF(ISERROR(VLOOKUP(calculs!$Q112,calculs!$R$1:$T$380,3,0)),"",(VLOOKUP(calculs!$Q112,calculs!$R$1:$T$380,3,0))) ->  | X8: =IF(ISERROR(VLOOKUP(calculs!$Q113,calculs!$R$1:$T$380,2,0)),"",(VLOOKUP(calculs!$Q113,calculs!$R$1:$T$380,2,0))) ->  | Y8: =IF(ISERROR(VLOOKUP(calculs!$Q113,calculs!$R$1:$T$380,3,0)),"",(VLOOKUP(calculs!$Q113,calculs!$R$1:$T$380,3,0))) ->  | Z8: =IF(ISERROR(VLOOKUP(calculs!$Q114,calculs!$R$1:$T$380,2,0)),"",(VLOOKUP(calculs!$Q114,calculs!$R$1:$T$380,2,0))) ->  | AA8: =IF(ISERROR(VLOOKUP(calculs!$Q114,calculs!$R$1:$T$380,3,0)),"",(VLOOKUP(calculs!$Q114,calculs!$R$1:$T$380,3,0))) ->  | AB8: =IF(ISERROR(VLOOKUP(calculs!$Q115,calculs!$R$1:$T$380,2,0)),"",(VLOOKUP(calculs!$Q115,calculs!$R$1:$T$380,2,0))) ->  | AC8: =IF(ISERROR(VLOOKUP(calculs!$Q115,calculs!$R$1:$T$380,3,0)),"",(VLOOKUP(calculs!$Q115,calculs!$R$1:$T$380,3,0))) ->  | AD8: =IF(ISERROR(VLOOKUP(calculs!$Q116,calculs!$R$1:$T$380,2,0)),"",(VLOOKUP(calculs!$Q116,calculs!$R$1:$T$380,2,0))) ->  | AE8: =IF(ISERROR(VLOOKUP(calculs!$Q116,calculs!$R$1:$T$380,3,0)),"",(VLOOKUP(calculs!$Q116,calculs!$R$1:$T$380,3,0))) ->  | AF8: =IF(ISERROR(VLOOKUP(calculs!$Q117,calculs!$R$1:$T$380,2,0)),"",(VLOOKUP(calculs!$Q117,calculs!$R$1:$T$380,2,0))) ->  | AG8: =IF(ISERROR(VLOOKUP(calculs!$Q117,calculs!$R$1:$T$380,3,0)),"",(VLOOKUP(calculs!$Q117,calculs!$R$1:$T$380,3,0))) ->  | AH8: =IF(ISERROR(VLOOKUP(calculs!$Q118,calculs!$R$1:$T$380,2,0)),"",(VLOOKUP(calculs!$Q118,calculs!$R$1:$T$380,2,0))) ->  | AI8: =IF(ISERROR(VLOOKUP(calculs!$Q118,calculs!$R$1:$T$380,3,0)),"",(VLOOKUP(calculs!$Q118,calculs!$R$1:$T$380,3,0))) ->  | AJ8: =IF(ISERROR(VLOOKUP(calculs!$Q119,calculs!$R$1:$T$380,2,0)),"",(VLOOKUP(calculs!$Q119,calculs!$R$1:$T$380,2,0))) ->  | AK8: =IF(ISERROR(VLOOKUP(calculs!$Q119,calculs!$R$1:$T$380,3,0)),"",(VLOOKUP(calculs!$Q119,calculs!$R$1:$T$380,3,0))) ->  | AL8: ='J34'!AY11 -> 0 | AM8: ='J34'!AZ11 -> 0 | AN8: ='J34'!BA11 -> 0
A9: ='J01'!AN12:AR12 -> 0 | B9: =IF(ISERROR(VLOOKUP(calculs!$Q120,calculs!$R$1:$T$380,2,0)),"",(VLOOKUP(calculs!$Q120,calculs!$R$1:$T$380,2,0))) ->  | C9: =IF(ISERROR(VLOOKUP(calculs!$Q120,calculs!$R$1:$T$380,3,0)),"",(VLOOKUP(calculs!$Q120,calculs!$R$1:$T$380,3,0))) ->  | D9: =IF(ISERROR(VLOOKUP(calculs!$Q121,calculs!$R$1:$T$380,2,0)),"",(VLOOKUP(calculs!$Q121,calculs!$R$1:$T$380,2,0))) ->  | E9: =IF(ISERROR(VLOOKUP(calculs!$Q121,calculs!$R$1:$T$380,3,0)),"",(VLOOKUP(calculs!$Q121,calculs!$R$1:$T$380,3,0))) ->  | F9: =IF(ISERROR(VLOOKUP(calculs!$Q122,calculs!$R$1:$T$380,2,0)),"",(VLOOKUP(calculs!$Q122,calculs!$R$1:$T$380,2,0))) ->  | G9: =IF(ISERROR(VLOOKUP(calculs!$Q122,calculs!$R$1:$T$380,3,0)),"",(VLOOKUP(calculs!$Q122,calculs!$R$1:$T$380,3,0))) ->  | H9: =IF(ISERROR(VLOOKUP(calculs!$Q123,calculs!$R$1:$T$380,2,0)),"",(VLOOKUP(calculs!$Q123,calculs!$R$1:$T$380,2,0))) ->  | I9: =IF(ISERROR(VLOOKUP(calculs!$Q123,calculs!$R$1:$T$380,3,0)),"",(VLOOKUP(calculs!$Q123,calculs!$R$1:$T$380,3,0))) ->  | J9: =IF(ISERROR(VLOOKUP(calculs!$Q124,calculs!$R$1:$T$380,2,0)),"",(VLOOKUP(calculs!$Q124,calculs!$R$1:$T$380,2,0))) ->  | K9: =IF(ISERROR(VLOOKUP(calculs!$Q124,calculs!$R$1:$T$380,3,0)),"",(VLOOKUP(calculs!$Q124,calculs!$R$1:$T$380,3,0))) ->  | L9: =IF(ISERROR(VLOOKUP(calculs!$Q125,calculs!$R$1:$T$380,2,0)),"",(VLOOKUP(calculs!$Q125,calculs!$R$1:$T$380,2,0))) ->  | M9: =IF(ISERROR(VLOOKUP(calculs!$Q125,calculs!$R$1:$T$380,3,0)),"",(VLOOKUP(calculs!$Q125,calculs!$R$1:$T$380,3,0))) ->  | N9: =IF(ISERROR(VLOOKUP(calculs!$Q126,calculs!$R$1:$T$380,2,0)),"",(VLOOKUP(calculs!$Q126,calculs!$R$1:$T$380,2,0))) ->  | O9: =IF(ISERROR(VLOOKUP(calculs!$Q126,calculs!$R$1:$T$380,3,0)),"",(VLOOKUP(calculs!$Q126,calculs!$R$1:$T$380,3,0))) ->  | P9: =IF(ISERROR(VLOOKUP(calculs!$Q8,calculs!$R$1:$T$380,2,0)),"",(VLOOKUP(calculs!$Q8,calculs!$R$1:$T$380,2,0))) ->  | R9: =IF(ISERROR(VLOOKUP(calculs!$Q127,calculs!$R$1:$T$380,2,0)),"",(VLOOKUP(calculs!$Q127,calculs!$R$1:$T$380,2,0))) ->  | S9: =IF(ISERROR(VLOOKUP(calculs!$Q127,calculs!$R$1:$T$380,3,0)),"",(VLOOKUP(calculs!$Q127,calculs!$R$1:$T$380,3,0))) ->  | T9: =IF(ISERROR(VLOOKUP(calculs!$Q128,calculs!$R$1:$T$380,2,0)),"",(VLOOKUP(calculs!$Q128,calculs!$R$1:$T$380,2,0))) ->  | U9: =IF(ISERROR(VLOOKUP(calculs!$Q128,calculs!$R$1:$T$380,3,0)),"",(VLOOKUP(calculs!$Q128,calculs!$R$1:$T$380,3,0))) ->  | V9: =IF(ISERROR(VLOOKUP(calculs!$Q129,calculs!$R$1:$T$380,2,0)),"",(VLOOKUP(calculs!$Q129,calculs!$R$1:$T$380,2,0))) ->  | W9: =IF(ISERROR(VLOOKUP(calculs!$Q129,calculs!$R$1:$T$380,3,0)),"",(VLOOKUP(calculs!$Q129,calculs!$R$1:$T$380,3,0))) ->  | X9: =IF(ISERROR(VLOOKUP(calculs!$Q130,calculs!$R$1:$T$380,2,0)),"",(VLOOKUP(calculs!$Q130,calculs!$R$1:$T$380,2,0))) ->  | Y9: =IF(ISERROR(VLOOKUP(calculs!$Q130,calculs!$R$1:$T$380,3,0)),"",(VLOOKUP(calculs!$Q130,calculs!$R$1:$T$380,3,0))) ->  | Z9: =IF(ISERROR(VLOOKUP(calculs!$Q131,calculs!$R$1:$T$380,2,0)),"",(VLOOKUP(calculs!$Q131,calculs!$R$1:$T$380,2,0))) ->  | AA9: =IF(ISERROR(VLOOKUP(calculs!$Q131,calculs!$R$1:$T$380,3,0)),"",(VLOOKUP(calculs!$Q131,calculs!$R$1:$T$380,3,0))) ->  | AB9: =IF(ISERROR(VLOOKUP(calculs!$Q132,calculs!$R$1:$T$380,2,0)),"",(VLOOKUP(calculs!$Q132,calculs!$R$1:$T$380,2,0))) ->  | AC9: =IF(ISERROR(VLOOKUP(calculs!$Q132,calculs!$R$1:$T$380,3,0)),"",(VLOOKUP(calculs!$Q132,calculs!$R$1:$T$380,3,0))) ->  | AD9: =IF(ISERROR(VLOOKUP(calculs!$Q133,calculs!$R$1:$T$380,2,0)),"",(VLOOKUP(calculs!$Q133,calculs!$R$1:$T$380,2,0))) ->  | AE9: =IF(ISERROR(VLOOKUP(calculs!$Q133,calculs!$R$1:$T$380,3,0)),"",(VLOOKUP(calculs!$Q133,calculs!$R$1:$T$380,3,0))) ->  | AF9: =IF(ISERROR(VLOOKUP(calculs!$Q134,calculs!$R$1:$T$380,2,0)),"",(VLOOKUP(calculs!$Q134,calculs!$R$1:$T$380,2,0))) ->  | AG9: =IF(ISERROR(VLOOKUP(calculs!$Q134,calculs!$R$1:$T$380,3,0)),"",(VLOOKUP(calculs!$Q134,calculs!$R$1:$T$380,3,0))) ->  | AH9: =IF(ISERROR(VLOOKUP(calculs!$Q135,calculs!$R$1:$T$380,2,0)),"",(VLOOKUP(calculs!$Q135,calculs!$R$1:$T$380,2,0))) ->  | AI9: =IF(ISERROR(VLOOKUP(calculs!$Q135,calculs!$R$1:$T$380,3,0)),"",(VLOOKUP(calculs!$Q135,calculs!$R$1:$T$380,3,0))) ->  | AJ9: =IF(ISERROR(VLOOKUP(calculs!$Q136,calculs!$R$1:$T$380,2,0)),"",(VLOOKUP(calculs!$Q136,calculs!$R$1:$T$380,2,0))) ->  | AK9: =IF(ISERROR(VLOOKUP(calculs!$Q136,calculs!$R$1:$T$380,3,0)),"",(VLOOKUP(calculs!$Q136,calculs!$R$1:$T$380,3,0))) ->  | AL9: ='J34'!AY12 -> 0 | AM9: ='J34'!AZ12 -> 0 | AN9: ='J34'!BA12 -> 0
A10: ='J01'!AN13:AR13 -> 0 | B10: =IF(ISERROR(VLOOKUP(calculs!$Q137,calculs!$R$1:$T$380,2,0)),"",(VLOOKUP(calculs!$Q137,calculs!$R$1:$T$380,2,0))) ->  | C10: =IF(ISERROR(VLOOKUP(calculs!$Q137,calculs!$R$1:$T$380,3,0)),"",(VLOOKUP(calculs!$Q137,calculs!$R$1:$T$380,3,0))) ->  | D10: =IF(ISERROR(VLOOKUP(calculs!$Q138,calculs!$R$1:$T$380,2,0)),"",(VLOOKUP(calculs!$Q138,calculs!$R$1:$T$380,2,0))) ->  | E10: =IF(ISERROR(VLOOKUP(calculs!$Q138,calculs!$R$1:$T$380,3,0)),"",(VLOOKUP(calculs!$Q138,calculs!$R$1:$T$380,3,0))) ->  | F10: =IF(ISERROR(VLOOKUP(calculs!$Q139,calculs!$R$1:$T$380,2,0)),"",(VLOOKUP(calculs!$Q139,calculs!$R$1:$T$380,2,0))) ->  | G10: =IF(ISERROR(VLOOKUP(calculs!$Q139,calculs!$R$1:$T$380,3,0)),"",(VLOOKUP(calculs!$Q139,calculs!$R$1:$T$380,3,0))) ->  | H10: =IF(ISERROR(VLOOKUP(calculs!$Q140,calculs!$R$1:$T$380,2,0)),"",(VLOOKUP(calculs!$Q140,calculs!$R$1:$T$380,2,0))) ->  | I10: =IF(ISERROR(VLOOKUP(calculs!$Q140,calculs!$R$1:$T$380,3,0)),"",(VLOOKUP(calculs!$Q140,calculs!$R$1:$T$380,3,0))) ->  | J10: =IF(ISERROR(VLOOKUP(calculs!$Q141,calculs!$R$1:$T$380,2,0)),"",(VLOOKUP(calculs!$Q141,calculs!$R$1:$T$380,2,0))) ->  | K10: =IF(ISERROR(VLOOKUP(calculs!$Q141,calculs!$R$1:$T$380,3,0)),"",(VLOOKUP(calculs!$Q141,calculs!$R$1:$T$380,3,0))) ->  | L10: =IF(ISERROR(VLOOKUP(calculs!$Q142,calculs!$R$1:$T$380,2,0)),"",(VLOOKUP(calculs!$Q142,calculs!$R$1:$T$380,2,0))) ->  | M10: =IF(ISERROR(VLOOKUP(calculs!$Q142,calculs!$R$1:$T$380,3,0)),"",(VLOOKUP(calculs!$Q142,calculs!$R$1:$T$380,3,0))) ->  | N10: =IF(ISERROR(VLOOKUP(calculs!$Q143,calculs!$R$1:$T$380,2,0)),"",(VLOOKUP(calculs!$Q143,calculs!$R$1:$T$380,2,0))) ->  | O10: =IF(ISERROR(VLOOKUP(calculs!$Q143,calculs!$R$1:$T$380,3,0)),"",(VLOOKUP(calculs!$Q143,calculs!$R$1:$T$380,3,0))) ->  | P10: =IF(ISERROR(VLOOKUP(calculs!$Q144,calculs!$R$1:$T$380,2,0)),"",(VLOOKUP(calculs!$Q144,calculs!$R$1:$T$380,2,0))) ->  | Q10: =IF(ISERROR(VLOOKUP(calculs!$Q144,calculs!$R$1:$T$380,3,0)),"",(VLOOKUP(calculs!$Q144,calculs!$R$1:$T$380,3,0))) ->  | T10: =IF(ISERROR(VLOOKUP(calculs!$Q145,calculs!$R$1:$T$380,2,0)),"",(VLOOKUP(calculs!$Q145,calculs!$R$1:$T$380,2,0))) ->  | U10: =IF(ISERROR(VLOOKUP(calculs!$Q145,calculs!$R$1:$T$380,3,0)),"",(VLOOKUP(calculs!$Q145,calculs!$R$1:$T$380,3,0))) ->  | V10: =IF(ISERROR(VLOOKUP(calculs!$Q146,calculs!$R$1:$T$380,2,0)),"",(VLOOKUP(calculs!$Q146,calculs!$R$1:$T$380,2,0))) ->  | W10: =IF(ISERROR(VLOOKUP(calculs!$Q146,calculs!$R$1:$T$380,3,0)),"",(VLOOKUP(calculs!$Q146,calculs!$R$1:$T$380,3,0))) ->  | X10: =IF(ISERROR(VLOOKUP(calculs!$Q147,calculs!$R$1:$T$380,2,0)),"",(VLOOKUP(calculs!$Q147,calculs!$R$1:$T$380,2,0))) ->  | Y10: =IF(ISERROR(VLOOKUP(calculs!$Q147,calculs!$R$1:$T$380,3,0)),"",(VLOOKUP(calculs!$Q147,calculs!$R$1:$T$380,3,0))) ->  | Z10: =IF(ISERROR(VLOOKUP(calculs!$Q148,calculs!$R$1:$T$380,2,0)),"",(VLOOKUP(calculs!$Q148,calculs!$R$1:$T$380,2,0))) ->  | AA10: =IF(ISERROR(VLOOKUP(calculs!$Q148,calculs!$R$1:$T$380,3,0)),"",(VLOOKUP(calculs!$Q148,calculs!$R$1:$T$380,3,0))) ->  | AB10: =IF(ISERROR(VLOOKUP(calculs!$Q149,calculs!$R$1:$T$380,2,0)),"",(VLOOKUP(calculs!$Q149,calculs!$R$1:$T$380,2,0))) ->  | AC10: =IF(ISERROR(VLOOKUP(calculs!$Q149,calculs!$R$1:$T$380,3,0)),"",(VLOOKUP(calculs!$Q149,calculs!$R$1:$T$380,3,0))) ->  | AD10: =IF(ISERROR(VLOOKUP(calculs!$Q150,calculs!$R$1:$T$380,2,0)),"",(VLOOKUP(calculs!$Q150,calculs!$R$1:$T$380,2,0))) ->  | AE10: =IF(ISERROR(VLOOKUP(calculs!$Q150,calculs!$R$1:$T$380,3,0)),"",(VLOOKUP(calculs!$Q150,calculs!$R$1:$T$380,3,0))) ->  | AF10: =IF(ISERROR(VLOOKUP(calculs!$Q151,calculs!$R$1:$T$380,2,0)),"",(VLOOKUP(calculs!$Q151,calculs!$R$1:$T$380,2,0))) ->  | AG10: =IF(ISERROR(VLOOKUP(calculs!$Q151,calculs!$R$1:$T$380,3,0)),"",(VLOOKUP(calculs!$Q151,calculs!$R$1:$T$380,3,0))) ->  | AH10: =IF(ISERROR(VLOOKUP(calculs!$Q152,calculs!$R$1:$T$380,2,0)),"",(VLOOKUP(calculs!$Q152,calculs!$R$1:$T$380,2,0))) ->  | AI10: =IF(ISERROR(VLOOKUP(calculs!$Q152,calculs!$R$1:$T$380,3,0)),"",(VLOOKUP(calculs!$Q152,calculs!$R$1:$T$380,3,0))) ->  | AJ10: =IF(ISERROR(VLOOKUP(calculs!$Q153,calculs!$R$1:$T$380,2,0)),"",(VLOOKUP(calculs!$Q153,calculs!$R$1:$T$380,2,0))) ->  | AK10: =IF(ISERROR(VLOOKUP(calculs!$Q153,calculs!$R$1:$T$380,3,0)),"",(VLOOKUP(calculs!$Q153,calculs!$R$1:$T$380,3,0))) ->  | AL10: ='J34'!AY13 -> 0 | AM10: ='J34'!AZ13 -> 0 | AN10: ='J34'!BA13 -> 0
A11: ='J01'!AN14:AR14 -> 0 | B11: =IF(ISERROR(VLOOKUP(calculs!$Q154,calculs!$R$1:$T$380,2,0)),"",(VLOOKUP(calculs!$Q154,calculs!$R$1:$T$380,2,0))) ->  | C11: =IF(ISERROR(VLOOKUP(calculs!$Q154,calculs!$R$1:$T$380,3,0)),"",(VLOOKUP(calculs!$Q154,calculs!$R$1:$T$380,3,0))) ->  | D11: =IF(ISERROR(VLOOKUP(calculs!$Q155,calculs!$R$1:$T$380,2,0)),"",(VLOOKUP(calculs!$Q155,calculs!$R$1:$T$380,2,0))) ->  | E11: =IF(ISERROR(VLOOKUP(calculs!$Q155,calculs!$R$1:$T$380,3,0)),"",(VLOOKUP(calculs!$Q155,calculs!$R$1:$T$380,3,0))) ->  | F11: =IF(ISERROR(VLOOKUP(calculs!$Q156,calculs!$R$1:$T$380,2,0)),"",(VLOOKUP(calculs!$Q156,calculs!$R$1:$T$380,2,0))) ->  | G11: =IF(ISERROR(VLOOKUP(calculs!$Q156,calculs!$R$1:$T$380,3,0)),"",(VLOOKUP(calculs!$Q156,calculs!$R$1:$T$380,3,0))) ->  | H11: =IF(ISERROR(VLOOKUP(calculs!$Q157,calculs!$R$1:$T$380,2,0)),"",(VLOOKUP(calculs!$Q157,calculs!$R$1:$T$380,2,0))) ->  | I11: =IF(ISERROR(VLOOKUP(calculs!$Q157,calculs!$R$1:$T$380,3,0)),"",(VLOOKUP(calculs!$Q157,calculs!$R$1:$T$380,3,0))) ->  | J11: =IF(ISERROR(VLOOKUP(calculs!$Q158,calculs!$R$1:$T$380,2,0)),"",(VLOOKUP(calculs!$Q158,calculs!$R$1:$T$380,2,0))) ->  | K11: =IF(ISERROR(VLOOKUP(calculs!$Q158,calculs!$R$1:$T$380,3,0)),"",(VLOOKUP(calculs!$Q158,calculs!$R$1:$T$380,3,0))) ->  | L11: =IF(ISERROR(VLOOKUP(calculs!$Q159,calculs!$R$1:$T$380,2,0)),"",(VLOOKUP(calculs!$Q159,calculs!$R$1:$T$380,2,0))) ->  | M11: =IF(ISERROR(VLOOKUP(calculs!$Q159,calculs!$R$1:$T$380,3,0)),"",(VLOOKUP(calculs!$Q159,calculs!$R$1:$T$380,3,0))) ->  | N11: =IF(ISERROR(VLOOKUP(calculs!$Q160,calculs!$R$1:$T$380,2,0)),"",(VLOOKUP(calculs!$Q160,calculs!$R$1:$T$380,2,0))) ->  | O11: =IF(ISERROR(VLOOKUP(calculs!$Q160,calculs!$R$1:$T$380,3,0)),"",(VLOOKUP(calculs!$Q160,calculs!$R$1:$T$380,3,0))) ->  | P11: =IF(ISERROR(VLOOKUP(calculs!$Q161,calculs!$R$1:$T$380,2,0)),"",(VLOOKUP(calculs!$Q161,calculs!$R$1:$T$380,2,0))) ->  | Q11: =IF(ISERROR(VLOOKUP(calculs!$Q161,calculs!$R$1:$T$380,3,0)),"",(VLOOKUP(calculs!$Q161,calculs!$R$1:$T$380,3,0))) ->  | R11: =IF(ISERROR(VLOOKUP(calculs!$Q162,calculs!$R$1:$T$380,2,0)),"",(VLOOKUP(calculs!$Q162,calculs!$R$1:$T$380,2,0))) ->  | S11: =IF(ISERROR(VLOOKUP(calculs!$Q162,calculs!$R$1:$T$380,3,0)),"",(VLOOKUP(calculs!$Q162,calculs!$R$1:$T$380,3,0))) ->  | T11: =IF(ISERROR(VLOOKUP(calculs!$Q10,calculs!$R$1:$T$380,2,0)),"",(VLOOKUP(calculs!$Q10,calculs!$R$1:$T$380,2,0))) ->  | V11: =IF(ISERROR(VLOOKUP(calculs!$Q163,calculs!$R$1:$T$380,2,0)),"",(VLOOKUP(calculs!$Q163,calculs!$R$1:$T$380,2,0))) ->  | W11: =IF(ISERROR(VLOOKUP(calculs!$Q163,calculs!$R$1:$T$380,3,0)),"",(VLOOKUP(calculs!$Q163,calculs!$R$1:$T$380,3,0))) ->  | X11: =IF(ISERROR(VLOOKUP(calculs!$Q164,calculs!$R$1:$T$380,2,0)),"",(VLOOKUP(calculs!$Q164,calculs!$R$1:$T$380,2,0))) ->  | Y11: =IF(ISERROR(VLOOKUP(calculs!$Q164,calculs!$R$1:$T$380,3,0)),"",(VLOOKUP(calculs!$Q164,calculs!$R$1:$T$380,3,0))) ->  | Z11: =IF(ISERROR(VLOOKUP(calculs!$Q165,calculs!$R$1:$T$380,2,0)),"",(VLOOKUP(calculs!$Q165,calculs!$R$1:$T$380,2,0))) ->  | AA11: =IF(ISERROR(VLOOKUP(calculs!$Q165,calculs!$R$1:$T$380,3,0)),"",(VLOOKUP(calculs!$Q165,calculs!$R$1:$T$380,3,0))) ->  | AB11: =IF(ISERROR(VLOOKUP(calculs!$Q166,calculs!$R$1:$T$380,2,0)),"",(VLOOKUP(calculs!$Q166,calculs!$R$1:$T$380,2,0))) ->  | AC11: =IF(ISERROR(VLOOKUP(calculs!$Q166,calculs!$R$1:$T$380,3,0)),"",(VLOOKUP(calculs!$Q166,calculs!$R$1:$T$380,3,0))) ->  | AD11: =IF(ISERROR(VLOOKUP(calculs!$Q167,calculs!$R$1:$T$380,2,0)),"",(VLOOKUP(calculs!$Q167,calculs!$R$1:$T$380,2,0))) ->  | AE11: =IF(ISERROR(VLOOKUP(calculs!$Q167,calculs!$R$1:$T$380,3,0)),"",(VLOOKUP(calculs!$Q167,calculs!$R$1:$T$380,3,0))) ->  | AF11: =IF(ISERROR(VLOOKUP(calculs!$Q168,calculs!$R$1:$T$380,2,0)),"",(VLOOKUP(calculs!$Q168,calculs!$R$1:$T$380,2,0))) ->  | AG11: =IF(ISERROR(VLOOKUP(calculs!$Q168,calculs!$R$1:$T$380,3,0)),"",(VLOOKUP(calculs!$Q168,calculs!$R$1:$T$380,3,0))) ->  | AH11: =IF(ISERROR(VLOOKUP(calculs!$Q169,calculs!$R$1:$T$380,2,0)),"",(VLOOKUP(calculs!$Q169,calculs!$R$1:$T$380,2,0))) ->  | AI11: =IF(ISERROR(VLOOKUP(calculs!$Q169,calculs!$R$1:$T$380,3,0)),"",(VLOOKUP(calculs!$Q169,calculs!$R$1:$T$380,3,0))) ->  | AJ11: =IF(ISERROR(VLOOKUP(calculs!$Q170,calculs!$R$1:$T$380,2,0)),"",(VLOOKUP(calculs!$Q170,calculs!$R$1:$T$380,2,0))) ->  | AK11: =IF(ISERROR(VLOOKUP(calculs!$Q170,calculs!$R$1:$T$380,3,0)),"",(VLOOKUP(calculs!$Q170,calculs!$R$1:$T$380,3,0))) ->  | AL11: ='J34'!AY14 -> 0 | AM11: ='J34'!AZ14 -> 0 | AN11: ='J34'!BA14 -> 0
A12: ='J01'!AN15:AR15 -> 0 | B12: =IF(ISERROR(VLOOKUP(calculs!$Q171,calculs!$R$1:$T$380,2,0)),"",(VLOOKUP(calculs!$Q171,calculs!$R$1:$T$380,2,0))) ->  | C12: =IF(ISERROR(VLOOKUP(calculs!$Q171,calculs!$R$1:$T$380,3,0)),"",(VLOOKUP(calculs!$Q171,calculs!$R$1:$T$380,3,0))) ->  | D12: =IF(ISERROR(VLOOKUP(calculs!$Q172,calculs!$R$1:$T$380,2,0)),"",(VLOOKUP(calculs!$Q172,calculs!$R$1:$T$380,2,0))) ->  | E12: =IF(ISERROR(VLOOKUP(calculs!$Q172,calculs!$R$1:$T$380,3,0)),"",(VLOOKUP(calculs!$Q172,calculs!$R$1:$T$380,3,0))) ->  | F12: =IF(ISERROR(VLOOKUP(calculs!$Q173,calculs!$R$1:$T$380,2,0)),"",(VLOOKUP(calculs!$Q173,calculs!$R$1:$T$380,2,0))) ->  | G12: =IF(ISERROR(VLOOKUP(calculs!$Q173,calculs!$R$1:$T$380,3,0)),"",(VLOOKUP(calculs!$Q173,calculs!$R$1:$T$380,3,0))) ->  | H12: =IF(ISERROR(VLOOKUP(calculs!$Q174,calculs!$R$1:$T$380,2,0)),"",(VLOOKUP(calculs!$Q174,calculs!$R$1:$T$380,2,0))) ->  | I12: =IF(ISERROR(VLOOKUP(calculs!$Q174,calculs!$R$1:$T$380,3,0)),"",(VLOOKUP(calculs!$Q174,calculs!$R$1:$T$380,3,0))) ->  | J12: =IF(ISERROR(VLOOKUP(calculs!$Q175,calculs!$R$1:$T$380,2,0)),"",(VLOOKUP(calculs!$Q175,calculs!$R$1:$T$380,2,0))) ->  | K12: =IF(ISERROR(VLOOKUP(calculs!$Q175,calculs!$R$1:$T$380,3,0)),"",(VLOOKUP(calculs!$Q175,calculs!$R$1:$T$380,3,0))) ->  | L12: =IF(ISERROR(VLOOKUP(calculs!$Q176,calculs!$R$1:$T$380,2,0)),"",(VLOOKUP(calculs!$Q176,calculs!$R$1:$T$380,2,0))) ->  | M12: =IF(ISERROR(VLOOKUP(calculs!$Q176,calculs!$R$1:$T$380,3,0)),"",(VLOOKUP(calculs!$Q176,calculs!$R$1:$T$380,3,0))) ->  | N12: =IF(ISERROR(VLOOKUP(calculs!$Q177,calculs!$R$1:$T$380,2,0)),"",(VLOOKUP(calculs!$Q177,calculs!$R$1:$T$380,2,0))) ->  | O12: =IF(ISERROR(VLOOKUP(calculs!$Q177,calculs!$R$1:$T$380,3,0)),"",(VLOOKUP(calculs!$Q177,calculs!$R$1:$T$380,3,0))) ->  | P12: =IF(ISERROR(VLOOKUP(calculs!$Q178,calculs!$R$1:$T$380,2,0)),"",(VLOOKUP(calculs!$Q178,calculs!$R$1:$T$380,2,0))) ->  | Q12: =IF(ISERROR(VLOOKUP(calculs!$Q178,calculs!$R$1:$T$380,3,0)),"",(VLOOKUP(calculs!$Q178,calculs!$R$1:$T$380,3,0))) ->  | R12: =IF(ISERROR(VLOOKUP(calculs!$Q179,calculs!$R$1:$T$380,2,0)),"",(VLOOKUP(calculs!$Q179,calculs!$R$1:$T$380,2,0))) ->  | S12: =IF(ISERROR(VLOOKUP(calculs!$Q179,calculs!$R$1:$T$380,3,0)),"",(VLOOKUP(calculs!$Q179,calculs!$R$1:$T$380,3,0))) ->  | T12: =IF(ISERROR(VLOOKUP(calculs!$Q180,calculs!$R$1:$T$380,2,0)),"",(VLOOKUP(calculs!$Q180,calculs!$R$1:$T$380,2,0))) ->  | U12: =IF(ISERROR(VLOOKUP(calculs!$Q180,calculs!$R$1:$T$380,3,0)),"",(VLOOKUP(calculs!$Q180,calculs!$R$1:$T$380,3,0))) ->  | V12: =IF(ISERROR(VLOOKUP(calculs!$Q11,calculs!$R$1:$T$380,2,0)),"",(VLOOKUP(calculs!$Q11,calculs!$R$1:$T$380,2,0))) ->  | X12: =IF(ISERROR(VLOOKUP(calculs!$Q181,calculs!$R$1:$T$380,2,0)),"",(VLOOKUP(calculs!$Q181,calculs!$R$1:$T$380,2,0))) ->  | Y12: =IF(ISERROR(VLOOKUP(calculs!$Q181,calculs!$R$1:$T$380,3,0)),"",(VLOOKUP(calculs!$Q181,calculs!$R$1:$T$380,3,0))) ->  | Z12: =IF(ISERROR(VLOOKUP(calculs!$Q182,calculs!$R$1:$T$380,2,0)),"",(VLOOKUP(calculs!$Q182,calculs!$R$1:$T$380,2,0))) ->  | AA12: =IF(ISERROR(VLOOKUP(calculs!$Q182,calculs!$R$1:$T$380,3,0)),"",(VLOOKUP(calculs!$Q182,calculs!$R$1:$T$380,3,0))) ->  | AB12: =IF(ISERROR(VLOOKUP(calculs!$Q183,calculs!$R$1:$T$380,2,0)),"",(VLOOKUP(calculs!$Q183,calculs!$R$1:$T$380,2,0))) ->  | AC12: =IF(ISERROR(VLOOKUP(calculs!$Q183,calculs!$R$1:$T$380,3,0)),"",(VLOOKUP(calculs!$Q183,calculs!$R$1:$T$380,3,0))) ->  | AD12: =IF(ISERROR(VLOOKUP(calculs!$Q184,calculs!$R$1:$T$380,2,0)),"",(VLOOKUP(calculs!$Q184,calculs!$R$1:$T$380,2,0))) ->  | AE12: =IF(ISERROR(VLOOKUP(calculs!$Q184,calculs!$R$1:$T$380,3,0)),"",(VLOOKUP(calculs!$Q184,calculs!$R$1:$T$380,3,0))) ->  | AF12: =IF(ISERROR(VLOOKUP(calculs!$Q185,calculs!$R$1:$T$380,2,0)),"",(VLOOKUP(calculs!$Q185,calculs!$R$1:$T$380,2,0))) ->  | AG12: =IF(ISERROR(VLOOKUP(calculs!$Q185,calculs!$R$1:$T$380,3,0)),"",(VLOOKUP(calculs!$Q185,calculs!$R$1:$T$380,3,0))) ->  | AH12: =IF(ISERROR(VLOOKUP(calculs!$Q186,calculs!$R$1:$T$380,2,0)),"",(VLOOKUP(calculs!$Q186,calculs!$R$1:$T$380,2,0))) ->  | AI12: =IF(ISERROR(VLOOKUP(calculs!$Q186,calculs!$R$1:$T$380,3,0)),"",(VLOOKUP(calculs!$Q186,calculs!$R$1:$T$380,3,0))) ->  | AJ12: =IF(ISERROR(VLOOKUP(calculs!$Q187,calculs!$R$1:$T$380,2,0)),"",(VLOOKUP(calculs!$Q187,calculs!$R$1:$T$380,2,0))) ->  | AK12: =IF(ISERROR(VLOOKUP(calculs!$Q187,calculs!$R$1:$T$380,3,0)),"",(VLOOKUP(calculs!$Q187,calculs!$R$1:$T$380,3,0))) ->  | AL12: ='J34'!AY15 -> 0 | AM12: ='J34'!AZ15 -> 0 | AN12: ='J34'!BA15 -> 0
A13: ='J01'!AN16:AR16 -> 0 | B13: =IF(ISERROR(VLOOKUP(calculs!$Q188,calculs!$R$1:$T$380,2,0)),"",(VLOOKUP(calculs!$Q188,calculs!$R$1:$T$380,2,0))) ->  | C13: =IF(ISERROR(VLOOKUP(calculs!$Q188,calculs!$R$1:$T$380,3,0)),"",(VLOOKUP(calculs!$Q188,calculs!$R$1:$T$380,3,0))) ->  | D13: =IF(ISERROR(VLOOKUP(calculs!$Q189,calculs!$R$1:$T$380,2,0)),"",(VLOOKUP(calculs!$Q189,calculs!$R$1:$T$380,2,0))) ->  | E13: =IF(ISERROR(VLOOKUP(calculs!$Q189,calculs!$R$1:$T$380,3,0)),"",(VLOOKUP(calculs!$Q189,calculs!$R$1:$T$380,3,0))) ->  | F13: =IF(ISERROR(VLOOKUP(calculs!$Q190,calculs!$R$1:$T$380,2,0)),"",(VLOOKUP(calculs!$Q190,calculs!$R$1:$T$380,2,0))) ->  | G13: =IF(ISERROR(VLOOKUP(calculs!$Q190,calculs!$R$1:$T$380,3,0)),"",(VLOOKUP(calculs!$Q190,calculs!$R$1:$T$380,3,0))) ->  | H13: =IF(ISERROR(VLOOKUP(calculs!$Q191,calculs!$R$1:$T$380,2,0)),"",(VLOOKUP(calculs!$Q191,calculs!$R$1:$T$380,2,0))) ->  | I13: =IF(ISERROR(VLOOKUP(calculs!$Q191,calculs!$R$1:$T$380,3,0)),"",(VLOOKUP(calculs!$Q191,calculs!$R$1:$T$380,3,0))) ->  | J13: =IF(ISERROR(VLOOKUP(calculs!$Q192,calculs!$R$1:$T$380,2,0)),"",(VLOOKUP(calculs!$Q192,calculs!$R$1:$T$380,2,0))) ->  | K13: =IF(ISERROR(VLOOKUP(calculs!$Q192,calculs!$R$1:$T$380,3,0)),"",(VLOOKUP(calculs!$Q192,calculs!$R$1:$T$380,3,0))) ->  | L13: =IF(ISERROR(VLOOKUP(calculs!$Q193,calculs!$R$1:$T$380,2,0)),"",(VLOOKUP(calculs!$Q193,calculs!$R$1:$T$380,2,0))) ->  | M13: =IF(ISERROR(VLOOKUP(calculs!$Q193,calculs!$R$1:$T$380,3,0)),"",(VLOOKUP(calculs!$Q193,calculs!$R$1:$T$380,3,0))) ->  | N13: =IF(ISERROR(VLOOKUP(calculs!$Q194,calculs!$R$1:$T$380,2,0)),"",(VLOOKUP(calculs!$Q194,calculs!$R$1:$T$380,2,0))) ->  | O13: =IF(ISERROR(VLOOKUP(calculs!$Q194,calculs!$R$1:$T$380,3,0)),"",(VLOOKUP(calculs!$Q194,calculs!$R$1:$T$380,3,0))) ->  | P13: =IF(ISERROR(VLOOKUP(calculs!$Q195,calculs!$R$1:$T$380,2,0)),"",(VLOOKUP(calculs!$Q195,calculs!$R$1:$T$380,2,0))) ->  | Q13: =IF(ISERROR(VLOOKUP(calculs!$Q195,calculs!$R$1:$T$380,3,0)),"",(VLOOKUP(calculs!$Q195,calculs!$R$1:$T$380,3,0))) ->  | R13: =IF(ISERROR(VLOOKUP(calculs!$Q196,calculs!$R$1:$T$380,2,0)),"",(VLOOKUP(calculs!$Q196,calculs!$R$1:$T$380,2,0))) ->  | S13: =IF(ISERROR(VLOOKUP(calculs!$Q196,calculs!$R$1:$T$380,3,0)),"",(VLOOKUP(calculs!$Q196,calculs!$R$1:$T$380,3,0))) ->  | T13: =IF(ISERROR(VLOOKUP(calculs!$Q197,calculs!$R$1:$T$380,2,0)),"",(VLOOKUP(calculs!$Q197,calculs!$R$1:$T$380,2,0))) ->  | U13: =IF(ISERROR(VLOOKUP(calculs!$Q197,calculs!$R$1:$T$380,3,0)),"",(VLOOKUP(calculs!$Q197,calculs!$R$1:$T$380,3,0))) ->  | V13: =IF(ISERROR(VLOOKUP(calculs!$Q198,calculs!$R$1:$T$380,2,0)),"",(VLOOKUP(calculs!$Q198,calculs!$R$1:$T$380,2,0))) ->  | W13: =IF(ISERROR(VLOOKUP(calculs!$Q198,calculs!$R$1:$T$380,3,0)),"",(VLOOKUP(calculs!$Q198,calculs!$R$1:$T$380,3,0))) ->  | X13: =IF(ISERROR(VLOOKUP(calculs!$Q12,calculs!$R$1:$T$380,2,0)),"",(VLOOKUP(calculs!$Q12,calculs!$R$1:$T$380,2,0))) ->  | Z13: =IF(ISERROR(VLOOKUP(calculs!$Q199,calculs!$R$1:$T$380,2,0)),"",(VLOOKUP(calculs!$Q199,calculs!$R$1:$T$380,2,0))) ->  | AA13: =IF(ISERROR(VLOOKUP(calculs!$Q199,calculs!$R$1:$T$380,3,0)),"",(VLOOKUP(calculs!$Q199,calculs!$R$1:$T$380,3,0))) ->  | AB13: =IF(ISERROR(VLOOKUP(calculs!$Q200,calculs!$R$1:$T$380,2,0)),"",(VLOOKUP(calculs!$Q200,calculs!$R$1:$T$380,2,0))) ->  | AC13: =IF(ISERROR(VLOOKUP(calculs!$Q200,calculs!$R$1:$T$380,3,0)),"",(VLOOKUP(calculs!$Q200,calculs!$R$1:$T$380,3,0))) ->  | AD13: =IF(ISERROR(VLOOKUP(calculs!$Q201,calculs!$R$1:$T$380,2,0)),"",(VLOOKUP(calculs!$Q201,calculs!$R$1:$T$380,2,0))) ->  | AE13: =IF(ISERROR(VLOOKUP(calculs!$Q201,calculs!$R$1:$T$380,3,0)),"",(VLOOKUP(calculs!$Q201,calculs!$R$1:$T$380,3,0))) ->  | AF13: =IF(ISERROR(VLOOKUP(calculs!$Q202,calculs!$R$1:$T$380,2,0)),"",(VLOOKUP(calculs!$Q202,calculs!$R$1:$T$380,2,0))) ->  | AG13: =IF(ISERROR(VLOOKUP(calculs!$Q202,calculs!$R$1:$T$380,3,0)),"",(VLOOKUP(calculs!$Q202,calculs!$R$1:$T$380,3,0))) ->  | AH13: =IF(ISERROR(VLOOKUP(calculs!$Q203,calculs!$R$1:$T$380,2,0)),"",(VLOOKUP(calculs!$Q203,calculs!$R$1:$T$380,2,0))) ->  | AI13: =IF(ISERROR(VLOOKUP(calculs!$Q203,calculs!$R$1:$T$380,3,0)),"",(VLOOKUP(calculs!$Q203,calculs!$R$1:$T$380,3,0))) ->  | AJ13: =IF(ISERROR(VLOOKUP(calculs!$Q204,calculs!$R$1:$T$380,2,0)),"",(VLOOKUP(calculs!$Q204,calculs!$R$1:$T$380,2,0))) ->  | AK13: =IF(ISERROR(VLOOKUP(calculs!$Q204,calculs!$R$1:$T$380,3,0)),"",(VLOOKUP(calculs!$Q204,calculs!$R$1:$T$380,3,0))) ->  | AL13: ='J34'!AY16 -> 0 | AM13: ='J34'!AZ16 -> 0 | AN13: ='J34'!BA16 -> 0
A14: ='J01'!AN17:AR17 -> 0 | B14: =IF(ISERROR(VLOOKUP(calculs!$Q205,calculs!$R$1:$T$380,2,0)),"",(VLOOKUP(calculs!$Q205,calculs!$R$1:$T$380,2,0))) ->  | C14: =IF(ISERROR(VLOOKUP(calculs!$Q205,calculs!$R$1:$T$380,3,0)),"",(VLOOKUP(calculs!$Q205,calculs!$R$1:$T$380,3,0))) ->  | D14: =IF(ISERROR(VLOOKUP(calculs!$Q206,calculs!$R$1:$T$380,2,0)),"",(VLOOKUP(calculs!$Q206,calculs!$R$1:$T$380,2,0))) ->  | E14: =IF(ISERROR(VLOOKUP(calculs!$Q206,calculs!$R$1:$T$380,3,0)),"",(VLOOKUP(calculs!$Q206,calculs!$R$1:$T$380,3,0))) ->  | F14: =IF(ISERROR(VLOOKUP(calculs!$Q207,calculs!$R$1:$T$380,2,0)),"",(VLOOKUP(calculs!$Q207,calculs!$R$1:$T$380,2,0))) ->  | G14: =IF(ISERROR(VLOOKUP(calculs!$Q207,calculs!$R$1:$T$380,3,0)),"",(VLOOKUP(calculs!$Q207,calculs!$R$1:$T$380,3,0))) ->  | H14: =IF(ISERROR(VLOOKUP(calculs!$Q208,calculs!$R$1:$T$380,2,0)),"",(VLOOKUP(calculs!$Q208,calculs!$R$1:$T$380,2,0))) ->  | I14: =IF(ISERROR(VLOOKUP(calculs!$Q208,calculs!$R$1:$T$380,3,0)),"",(VLOOKUP(calculs!$Q208,calculs!$R$1:$T$380,3,0))) ->  | J14: =IF(ISERROR(VLOOKUP(calculs!$Q209,calculs!$R$1:$T$380,2,0)),"",(VLOOKUP(calculs!$Q209,calculs!$R$1:$T$380,2,0))) ->  | K14: =IF(ISERROR(VLOOKUP(calculs!$Q209,calculs!$R$1:$T$380,3,0)),"",(VLOOKUP(calculs!$Q209,calculs!$R$1:$T$380,3,0))) ->  | L14: =IF(ISERROR(VLOOKUP(calculs!$Q210,calculs!$R$1:$T$380,2,0)),"",(VLOOKUP(calculs!$Q210,calculs!$R$1:$T$380,2,0))) ->  | M14: =IF(ISERROR(VLOOKUP(calculs!$Q210,calculs!$R$1:$T$380,3,0)),"",(VLOOKUP(calculs!$Q210,calculs!$R$1:$T$380,3,0))) ->  | N14: =IF(ISERROR(VLOOKUP(calculs!$Q211,calculs!$R$1:$T$380,2,0)),"",(VLOOKUP(calculs!$Q211,calculs!$R$1:$T$380,2,0))) ->  | O14: =IF(ISERROR(VLOOKUP(calculs!$Q211,calculs!$R$1:$T$380,3,0)),"",(VLOOKUP(calculs!$Q211,calculs!$R$1:$T$380,3,0))) ->  | P14: =IF(ISERROR(VLOOKUP(calculs!$Q212,calculs!$R$1:$T$380,2,0)),"",(VLOOKUP(calculs!$Q212,calculs!$R$1:$T$380,2,0))) ->  | Q14: =IF(ISERROR(VLOOKUP(calculs!$Q212,calculs!$R$1:$T$380,3,0)),"",(VLOOKUP(calculs!$Q212,calculs!$R$1:$T$380,3,0))) ->  | R14: =IF(ISERROR(VLOOKUP(calculs!$Q213,calculs!$R$1:$T$380,2,0)),"",(VLOOKUP(calculs!$Q213,calculs!$R$1:$T$380,2,0))) ->  | S14: =IF(ISERROR(VLOOKUP(calculs!$Q213,calculs!$R$1:$T$380,3,0)),"",(VLOOKUP(calculs!$Q213,calculs!$R$1:$T$380,3,0))) ->  | T14: =IF(ISERROR(VLOOKUP(calculs!$Q214,calculs!$R$1:$T$380,2,0)),"",(VLOOKUP(calculs!$Q214,calculs!$R$1:$T$380,2,0))) ->  | U14: =IF(ISERROR(VLOOKUP(calculs!$Q214,calculs!$R$1:$T$380,3,0)),"",(VLOOKUP(calculs!$Q214,calculs!$R$1:$T$380,3,0))) ->  | V14: =IF(ISERROR(VLOOKUP(calculs!$Q215,calculs!$R$1:$T$380,2,0)),"",(VLOOKUP(calculs!$Q215,calculs!$R$1:$T$380,2,0))) ->  | W14: =IF(ISERROR(VLOOKUP(calculs!$Q215,calculs!$R$1:$T$380,3,0)),"",(VLOOKUP(calculs!$Q215,calculs!$R$1:$T$380,3,0))) ->  | X14: =IF(ISERROR(VLOOKUP(calculs!$Q216,calculs!$R$1:$T$380,2,0)),"",(VLOOKUP(calculs!$Q216,calculs!$R$1:$T$380,2,0))) ->  | Y14: =IF(ISERROR(VLOOKUP(calculs!$Q216,calculs!$R$1:$T$380,3,0)),"",(VLOOKUP(calculs!$Q216,calculs!$R$1:$T$380,3,0))) ->  | Z14: =IF(ISERROR(VLOOKUP(calculs!$Q13,calculs!$R$1:$T$380,2,0)),"",(VLOOKUP(calculs!$Q13,calculs!$R$1:$T$380,2,0))) ->  | AB14: =IF(ISERROR(VLOOKUP(calculs!$Q217,calculs!$R$1:$T$380,2,0)),"",(VLOOKUP(calculs!$Q217,calculs!$R$1:$T$380,2,0))) ->  | AC14: =IF(ISERROR(VLOOKUP(calculs!$Q217,calculs!$R$1:$T$380,3,0)),"",(VLOOKUP(calculs!$Q217,calculs!$R$1:$T$380,3,0))) ->  | AD14: =IF(ISERROR(VLOOKUP(calculs!$Q218,calculs!$R$1:$T$380,2,0)),"",(VLOOKUP(calculs!$Q218,calculs!$R$1:$T$380,2,0))) ->  | AE14: =IF(ISERROR(VLOOKUP(calculs!$Q218,calculs!$R$1:$T$380,3,0)),"",(VLOOKUP(calculs!$Q218,calculs!$R$1:$T$380,3,0))) ->  | AF14: =IF(ISERROR(VLOOKUP(calculs!$Q219,calculs!$R$1:$T$380,2,0)),"",(VLOOKUP(calculs!$Q219,calculs!$R$1:$T$380,2,0))) ->  | AG14: =IF(ISERROR(VLOOKUP(calculs!$Q219,calculs!$R$1:$T$380,3,0)),"",(VLOOKUP(calculs!$Q219,calculs!$R$1:$T$380,3,0))) ->  | AH14: =IF(ISERROR(VLOOKUP(calculs!$Q220,calculs!$R$1:$T$380,2,0)),"",(VLOOKUP(calculs!$Q220,calculs!$R$1:$T$380,2,0))) ->  | AI14: =IF(ISERROR(VLOOKUP(calculs!$Q220,calculs!$R$1:$T$380,3,0)),"",(VLOOKUP(calculs!$Q220,calculs!$R$1:$T$380,3,0))) ->  | AJ14: =IF(ISERROR(VLOOKUP(calculs!$Q221,calculs!$R$1:$T$380,2,0)),"",(VLOOKUP(calculs!$Q221,calculs!$R$1:$T$380,2,0))) ->  | AK14: =IF(ISERROR(VLOOKUP(calculs!$Q221,calculs!$R$1:$T$380,3,0)),"",(VLOOKUP(calculs!$Q221,calculs!$R$1:$T$380,3,0))) ->  | AL14: ='J34'!AY17 -> 0 | AM14: ='J34'!AZ17 -> 0 | AN14: ='J34'!BA17 -> 0
A15: ='J01'!AN18:AR18 -> 0 | B15: =IF(ISERROR(VLOOKUP(calculs!$Q222,calculs!$R$1:$T$380,2,0)),"",(VLOOKUP(calculs!$Q222,calculs!$R$1:$T$380,2,0))) ->  | C15: =IF(ISERROR(VLOOKUP(calculs!$Q222,calculs!$R$1:$T$380,3,0)),"",(VLOOKUP(calculs!$Q222,calculs!$R$1:$T$380,3,0))) ->  | D15: =IF(ISERROR(VLOOKUP(calculs!$Q223,calculs!$R$1:$T$380,2,0)),"",(VLOOKUP(calculs!$Q223,calculs!$R$1:$T$380,2,0))) ->  | E15: =IF(ISERROR(VLOOKUP(calculs!$Q223,calculs!$R$1:$T$380,3,0)),"",(VLOOKUP(calculs!$Q223,calculs!$R$1:$T$380,3,0))) ->  | F15: =IF(ISERROR(VLOOKUP(calculs!$Q224,calculs!$R$1:$T$380,2,0)),"",(VLOOKUP(calculs!$Q224,calculs!$R$1:$T$380,2,0))) ->  | G15: =IF(ISERROR(VLOOKUP(calculs!$Q224,calculs!$R$1:$T$380,3,0)),"",(VLOOKUP(calculs!$Q224,calculs!$R$1:$T$380,3,0))) ->  | H15: =IF(ISERROR(VLOOKUP(calculs!$Q225,calculs!$R$1:$T$380,2,0)),"",(VLOOKUP(calculs!$Q225,calculs!$R$1:$T$380,2,0))) ->  | I15: =IF(ISERROR(VLOOKUP(calculs!$Q225,calculs!$R$1:$T$380,3,0)),"",(VLOOKUP(calculs!$Q225,calculs!$R$1:$T$380,3,0))) ->  | J15: =IF(ISERROR(VLOOKUP(calculs!$Q226,calculs!$R$1:$T$380,2,0)),"",(VLOOKUP(calculs!$Q226,calculs!$R$1:$T$380,2,0))) ->  | K15: =IF(ISERROR(VLOOKUP(calculs!$Q226,calculs!$R$1:$T$380,3,0)),"",(VLOOKUP(calculs!$Q226,calculs!$R$1:$T$380,3,0))) ->  | L15: =IF(ISERROR(VLOOKUP(calculs!$Q227,calculs!$R$1:$T$380,2,0)),"",(VLOOKUP(calculs!$Q227,calculs!$R$1:$T$380,2,0))) ->  | M15: =IF(ISERROR(VLOOKUP(calculs!$Q227,calculs!$R$1:$T$380,3,0)),"",(VLOOKUP(calculs!$Q227,calculs!$R$1:$T$380,3,0))) ->  | N15: =IF(ISERROR(VLOOKUP(calculs!$Q228,calculs!$R$1:$T$380,2,0)),"",(VLOOKUP(calculs!$Q228,calculs!$R$1:$T$380,2,0))) ->  | O15: =IF(ISERROR(VLOOKUP(calculs!$Q228,calculs!$R$1:$T$380,3,0)),"",(VLOOKUP(calculs!$Q228,calculs!$R$1:$T$380,3,0))) ->  | P15: =IF(ISERROR(VLOOKUP(calculs!$Q229,calculs!$R$1:$T$380,2,0)),"",(VLOOKUP(calculs!$Q229,calculs!$R$1:$T$380,2,0))) ->  | Q15: =IF(ISERROR(VLOOKUP(calculs!$Q229,calculs!$R$1:$T$380,3,0)),"",(VLOOKUP(calculs!$Q229,calculs!$R$1:$T$380,3,0))) ->  | R15: =IF(ISERROR(VLOOKUP(calculs!$Q230,calculs!$R$1:$T$380,2,0)),"",(VLOOKUP(calculs!$Q230,calculs!$R$1:$T$380,2,0))) ->  | S15: =IF(ISERROR(VLOOKUP(calculs!$Q230,calculs!$R$1:$T$380,3,0)),"",(VLOOKUP(calculs!$Q230,calculs!$R$1:$T$380,3,0))) ->  | T15: =IF(ISERROR(VLOOKUP(calculs!$Q231,calculs!$R$1:$T$380,2,0)),"",(VLOOKUP(calculs!$Q231,calculs!$R$1:$T$380,2,0))) ->  | U15: =IF(ISERROR(VLOOKUP(calculs!$Q231,calculs!$R$1:$T$380,3,0)),"",(VLOOKUP(calculs!$Q231,calculs!$R$1:$T$380,3,0))) ->  | V15: =IF(ISERROR(VLOOKUP(calculs!$Q232,calculs!$R$1:$T$380,2,0)),"",(VLOOKUP(calculs!$Q232,calculs!$R$1:$T$380,2,0))) ->  | W15: =IF(ISERROR(VLOOKUP(calculs!$Q232,calculs!$R$1:$T$380,3,0)),"",(VLOOKUP(calculs!$Q232,calculs!$R$1:$T$380,3,0))) ->  | X15: =IF(ISERROR(VLOOKUP(calculs!$Q233,calculs!$R$1:$T$380,2,0)),"",(VLOOKUP(calculs!$Q233,calculs!$R$1:$T$380,2,0))) ->  | Y15: =IF(ISERROR(VLOOKUP(calculs!$Q233,calculs!$R$1:$T$380,3,0)),"",(VLOOKUP(calculs!$Q233,calculs!$R$1:$T$380,3,0))) ->  | Z15: =IF(ISERROR(VLOOKUP(calculs!$Q234,calculs!$R$1:$T$380,2,0)),"",(VLOOKUP(calculs!$Q234,calculs!$R$1:$T$380,2,0))) ->  | AA15: =IF(ISERROR(VLOOKUP(calculs!$Q234,calculs!$R$1:$T$380,3,0)),"",(VLOOKUP(calculs!$Q234,calculs!$R$1:$T$380,3,0))) ->  | AB15: =IF(ISERROR(VLOOKUP(calculs!$Q14,calculs!$R$1:$T$380,2,0)),"",(VLOOKUP(calculs!$Q14,calculs!$R$1:$T$380,2,0))) ->  | AD15: =IF(ISERROR(VLOOKUP(calculs!$Q235,calculs!$R$1:$T$380,2,0)),"",(VLOOKUP(calculs!$Q235,calculs!$R$1:$T$380,2,0))) ->  | AE15: =IF(ISERROR(VLOOKUP(calculs!$Q235,calculs!$R$1:$T$380,3,0)),"",(VLOOKUP(calculs!$Q235,calculs!$R$1:$T$380,3,0))) ->  | AF15: =IF(ISERROR(VLOOKUP(calculs!$Q236,calculs!$R$1:$T$380,2,0)),"",(VLOOKUP(calculs!$Q236,calculs!$R$1:$T$380,2,0))) ->  | AG15: =IF(ISERROR(VLOOKUP(calculs!$Q236,calculs!$R$1:$T$380,3,0)),"",(VLOOKUP(calculs!$Q236,calculs!$R$1:$T$380,3,0))) ->  | AH15: =IF(ISERROR(VLOOKUP(calculs!$Q237,calculs!$R$1:$T$380,2,0)),"",(VLOOKUP(calculs!$Q237,calculs!$R$1:$T$380,2,0))) ->  | AI15: =IF(ISERROR(VLOOKUP(calculs!$Q237,calculs!$R$1:$T$380,3,0)),"",(VLOOKUP(calculs!$Q237,calculs!$R$1:$T$380,3,0))) ->  | AJ15: =IF(ISERROR(VLOOKUP(calculs!$Q238,calculs!$R$1:$T$380,2,0)),"",(VLOOKUP(calculs!$Q238,calculs!$R$1:$T$380,2,0))) ->  | AK15: =IF(ISERROR(VLOOKUP(calculs!$Q238,calculs!$R$1:$T$380,3,0)),"",(VLOOKUP(calculs!$Q238,calculs!$R$1:$T$380,3,0))) ->  | AL15: ='J34'!AY18 -> 0 | AM15: ='J34'!AZ18 -> 0 | AN15: ='J34'!BA18 -> 0
A16: ='J01'!AN19:AR19 -> 0 | B16: =IF(ISERROR(VLOOKUP(calculs!$Q239,calculs!$R$1:$T$380,2,0)),"",(VLOOKUP(calculs!$Q239,calculs!$R$1:$T$380,2,0))) ->  | C16: =IF(ISERROR(VLOOKUP(calculs!$Q239,calculs!$R$1:$T$380,3,0)),"",(VLOOKUP(calculs!$Q239,calculs!$R$1:$T$380,3,0))) ->  | D16: =IF(ISERROR(VLOOKUP(calculs!$Q240,calculs!$R$1:$T$380,2,0)),"",(VLOOKUP(calculs!$Q240,calculs!$R$1:$T$380,2,0))) ->  | E16: =IF(ISERROR(VLOOKUP(calculs!$Q240,calculs!$R$1:$T$380,3,0)),"",(VLOOKUP(calculs!$Q240,calculs!$R$1:$T$380,3,0))) ->  | F16: =IF(ISERROR(VLOOKUP(calculs!$Q241,calculs!$R$1:$T$380,2,0)),"",(VLOOKUP(calculs!$Q241,calculs!$R$1:$T$380,2,0))) ->  | G16: =IF(ISERROR(VLOOKUP(calculs!$Q241,calculs!$R$1:$T$380,3,0)),"",(VLOOKUP(calculs!$Q241,calculs!$R$1:$T$380,3,0))) ->  | H16: =IF(ISERROR(VLOOKUP(calculs!$Q242,calculs!$R$1:$T$380,2,0)),"",(VLOOKUP(calculs!$Q242,calculs!$R$1:$T$380,2,0))) ->  | I16: =IF(ISERROR(VLOOKUP(calculs!$Q242,calculs!$R$1:$T$380,3,0)),"",(VLOOKUP(calculs!$Q242,calculs!$R$1:$T$380,3,0))) ->  | J16: =IF(ISERROR(VLOOKUP(calculs!$Q243,calculs!$R$1:$T$380,2,0)),"",(VLOOKUP(calculs!$Q243,calculs!$R$1:$T$380,2,0))) ->  | K16: =IF(ISERROR(VLOOKUP(calculs!$Q243,calculs!$R$1:$T$380,3,0)),"",(VLOOKUP(calculs!$Q243,calculs!$R$1:$T$380,3,0))) ->  | L16: =IF(ISERROR(VLOOKUP(calculs!$Q244,calculs!$R$1:$T$380,2,0)),"",(VLOOKUP(calculs!$Q244,calculs!$R$1:$T$380,2,0))) ->  | M16: =IF(ISERROR(VLOOKUP(calculs!$Q244,calculs!$R$1:$T$380,3,0)),"",(VLOOKUP(calculs!$Q244,calculs!$R$1:$T$380,3,0))) ->  | N16: =IF(ISERROR(VLOOKUP(calculs!$Q245,calculs!$R$1:$T$380,2,0)),"",(VLOOKUP(calculs!$Q245,calculs!$R$1:$T$380,2,0))) ->  | O16: =IF(ISERROR(VLOOKUP(calculs!$Q245,calculs!$R$1:$T$380,3,0)),"",(VLOOKUP(calculs!$Q245,calculs!$R$1:$T$380,3,0))) ->  | P16: =IF(ISERROR(VLOOKUP(calculs!$Q246,calculs!$R$1:$T$380,2,0)),"",(VLOOKUP(calculs!$Q246,calculs!$R$1:$T$380,2,0))) ->  | Q16: =IF(ISERROR(VLOOKUP(calculs!$Q246,calculs!$R$1:$T$380,3,0)),"",(VLOOKUP(calculs!$Q246,calculs!$R$1:$T$380,3,0))) ->  | R16: =IF(ISERROR(VLOOKUP(calculs!$Q247,calculs!$R$1:$T$380,2,0)),"",(VLOOKUP(calculs!$Q247,calculs!$R$1:$T$380,2,0))) ->  | S16: =IF(ISERROR(VLOOKUP(calculs!$Q247,calculs!$R$1:$T$380,3,0)),"",(VLOOKUP(calculs!$Q247,calculs!$R$1:$T$380,3,0))) ->  | T16: =IF(ISERROR(VLOOKUP(calculs!$Q248,calculs!$R$1:$T$380,2,0)),"",(VLOOKUP(calculs!$Q248,calculs!$R$1:$T$380,2,0))) ->  | U16: =IF(ISERROR(VLOOKUP(calculs!$Q248,calculs!$R$1:$T$380,3,0)),"",(VLOOKUP(calculs!$Q248,calculs!$R$1:$T$380,3,0))) ->  | V16: =IF(ISERROR(VLOOKUP(calculs!$Q249,calculs!$R$1:$T$380,2,0)),"",(VLOOKUP(calculs!$Q249,calculs!$R$1:$T$380,2,0))) ->  | W16: =IF(ISERROR(VLOOKUP(calculs!$Q249,calculs!$R$1:$T$380,3,0)),"",(VLOOKUP(calculs!$Q249,calculs!$R$1:$T$380,3,0))) ->  | X16: =IF(ISERROR(VLOOKUP(calculs!$Q250,calculs!$R$1:$T$380,2,0)),"",(VLOOKUP(calculs!$Q250,calculs!$R$1:$T$380,2,0))) ->  | Y16: =IF(ISERROR(VLOOKUP(calculs!$Q250,calculs!$R$1:$T$380,3,0)),"",(VLOOKUP(calculs!$Q250,calculs!$R$1:$T$380,3,0))) ->  | Z16: =IF(ISERROR(VLOOKUP(calculs!$Q251,calculs!$R$1:$T$380,2,0)),"",(VLOOKUP(calculs!$Q251,calculs!$R$1:$T$380,2,0))) ->  | AA16: =IF(ISERROR(VLOOKUP(calculs!$Q251,calculs!$R$1:$T$380,3,0)),"",(VLOOKUP(calculs!$Q251,calculs!$R$1:$T$380,3,0))) ->  | AB16: =IF(ISERROR(VLOOKUP(calculs!$Q252,calculs!$R$1:$T$380,2,0)),"",(VLOOKUP(calculs!$Q252,calculs!$R$1:$T$380,2,0))) ->  | AC16: =IF(ISERROR(VLOOKUP(calculs!$Q252,calculs!$R$1:$T$380,3,0)),"",(VLOOKUP(calculs!$Q252,calculs!$R$1:$T$380,3,0))) ->  | AD16: =IF(ISERROR(VLOOKUP(calculs!$Q15,calculs!$R$1:$T$380,2,0)),"",(VLOOKUP(calculs!$Q15,calculs!$R$1:$T$380,2,0))) ->  | AF16: =IF(ISERROR(VLOOKUP(calculs!$Q253,calculs!$R$1:$T$380,2,0)),"",(VLOOKUP(calculs!$Q253,calculs!$R$1:$T$380,2,0))) ->  | AG16: =IF(ISERROR(VLOOKUP(calculs!$Q253,calculs!$R$1:$T$380,3,0)),"",(VLOOKUP(calculs!$Q253,calculs!$R$1:$T$380,3,0))) ->  | AH16: =IF(ISERROR(VLOOKUP(calculs!$Q254,calculs!$R$1:$T$380,2,0)),"",(VLOOKUP(calculs!$Q254,calculs!$R$1:$T$380,2,0))) ->  | AI16: =IF(ISERROR(VLOOKUP(calculs!$Q254,calculs!$R$1:$T$380,3,0)),"",(VLOOKUP(calculs!$Q254,calculs!$R$1:$T$380,3,0))) ->  | AJ16: =IF(ISERROR(VLOOKUP(calculs!$Q255,calculs!$R$1:$T$380,2,0)),"",(VLOOKUP(calculs!$Q255,calculs!$R$1:$T$380,2,0))) ->  | AK16: =IF(ISERROR(VLOOKUP(calculs!$Q255,calculs!$R$1:$T$380,3,0)),"",(VLOOKUP(calculs!$Q255,calculs!$R$1:$T$380,3,0))) ->  | AL16: ='J34'!AY19 -> 0 | AM16: ='J34'!AZ19 -> 0 | AN16: ='J34'!BA19 -> 0
A17: ='J01'!AN20:AR20 -> 0 | B17: =IF(ISERROR(VLOOKUP(calculs!$Q256,calculs!$R$1:$T$380,2,0)),"",(VLOOKUP(calculs!$Q256,calculs!$R$1:$T$380,2,0))) ->  | C17: =IF(ISERROR(VLOOKUP(calculs!$Q256,calculs!$R$1:$T$380,3,0)),"",(VLOOKUP(calculs!$Q256,calculs!$R$1:$T$380,3,0))) ->  | D17: =IF(ISERROR(VLOOKUP(calculs!$Q257,calculs!$R$1:$T$380,2,0)),"",(VLOOKUP(calculs!$Q257,calculs!$R$1:$T$380,2,0))) ->  | E17: =IF(ISERROR(VLOOKUP(calculs!$Q257,calculs!$R$1:$T$380,3,0)),"",(VLOOKUP(calculs!$Q257,calculs!$R$1:$T$380,3,0))) ->  | F17: =IF(ISERROR(VLOOKUP(calculs!$Q258,calculs!$R$1:$T$380,2,0)),"",(VLOOKUP(calculs!$Q258,calculs!$R$1:$T$380,2,0))) ->  | G17: =IF(ISERROR(VLOOKUP(calculs!$Q258,calculs!$R$1:$T$380,3,0)),"",(VLOOKUP(calculs!$Q258,calculs!$R$1:$T$380,3,0))) ->  | H17: =IF(ISERROR(VLOOKUP(calculs!$Q259,calculs!$R$1:$T$380,2,0)),"",(VLOOKUP(calculs!$Q259,calculs!$R$1:$T$380,2,0))) ->  | I17: =IF(ISERROR(VLOOKUP(calculs!$Q259,calculs!$R$1:$T$380,3,0)),"",(VLOOKUP(calculs!$Q259,calculs!$R$1:$T$380,3,0))) ->  | J17: =IF(ISERROR(VLOOKUP(calculs!$Q260,calculs!$R$1:$T$380,2,0)),"",(VLOOKUP(calculs!$Q260,calculs!$R$1:$T$380,2,0))) ->  | K17: =IF(ISERROR(VLOOKUP(calculs!$Q260,calculs!$R$1:$T$380,3,0)),"",(VLOOKUP(calculs!$Q260,calculs!$R$1:$T$380,3,0))) ->  | L17: =IF(ISERROR(VLOOKUP(calculs!$Q261,calculs!$R$1:$T$380,2,0)),"",(VLOOKUP(calculs!$Q261,calculs!$R$1:$T$380,2,0))) ->  | M17: =IF(ISERROR(VLOOKUP(calculs!$Q261,calculs!$R$1:$T$380,3,0)),"",(VLOOKUP(calculs!$Q261,calculs!$R$1:$T$380,3,0))) ->  | N17: =IF(ISERROR(VLOOKUP(calculs!$Q262,calculs!$R$1:$T$380,2,0)),"",(VLOOKUP(calculs!$Q262,calculs!$R$1:$T$380,2,0))) ->  | O17: =IF(ISERROR(VLOOKUP(calculs!$Q262,calculs!$R$1:$T$380,3,0)),"",(VLOOKUP(calculs!$Q262,calculs!$R$1:$T$380,3,0))) ->  | P17: =IF(ISERROR(VLOOKUP(calculs!$Q263,calculs!$R$1:$T$380,2,0)),"",(VLOOKUP(calculs!$Q263,calculs!$R$1:$T$380,2,0))) ->  | Q17: =IF(ISERROR(VLOOKUP(calculs!$Q263,calculs!$R$1:$T$380,3,0)),"",(VLOOKUP(calculs!$Q263,calculs!$R$1:$T$380,3,0))) ->  | R17: =IF(ISERROR(VLOOKUP(calculs!$Q264,calculs!$R$1:$T$380,2,0)),"",(VLOOKUP(calculs!$Q264,calculs!$R$1:$T$380,2,0))) ->  | S17: =IF(ISERROR(VLOOKUP(calculs!$Q264,calculs!$R$1:$T$380,3,0)),"",(VLOOKUP(calculs!$Q264,calculs!$R$1:$T$380,3,0))) ->  | T17: =IF(ISERROR(VLOOKUP(calculs!$Q265,calculs!$R$1:$T$380,2,0)),"",(VLOOKUP(calculs!$Q265,calculs!$R$1:$T$380,2,0))) ->  | U17: =IF(ISERROR(VLOOKUP(calculs!$Q265,calculs!$R$1:$T$380,3,0)),"",(VLOOKUP(calculs!$Q265,calculs!$R$1:$T$380,3,0))) ->  | V17: =IF(ISERROR(VLOOKUP(calculs!$Q266,calculs!$R$1:$T$380,2,0)),"",(VLOOKUP(calculs!$Q266,calculs!$R$1:$T$380,2,0))) ->  | W17: =IF(ISERROR(VLOOKUP(calculs!$Q266,calculs!$R$1:$T$380,3,0)),"",(VLOOKUP(calculs!$Q266,calculs!$R$1:$T$380,3,0))) ->  | X17: =IF(ISERROR(VLOOKUP(calculs!$Q267,calculs!$R$1:$T$380,2,0)),"",(VLOOKUP(calculs!$Q267,calculs!$R$1:$T$380,2,0))) ->  | Y17: =IF(ISERROR(VLOOKUP(calculs!$Q267,calculs!$R$1:$T$380,3,0)),"",(VLOOKUP(calculs!$Q267,calculs!$R$1:$T$380,3,0))) ->  | Z17: =IF(ISERROR(VLOOKUP(calculs!$Q268,calculs!$R$1:$T$380,2,0)),"",(VLOOKUP(calculs!$Q268,calculs!$R$1:$T$380,2,0))) ->  | AA17: =IF(ISERROR(VLOOKUP(calculs!$Q268,calculs!$R$1:$T$380,3,0)),"",(VLOOKUP(calculs!$Q268,calculs!$R$1:$T$380,3,0))) ->  | AB17: =IF(ISERROR(VLOOKUP(calculs!$Q269,calculs!$R$1:$T$380,2,0)),"",(VLOOKUP(calculs!$Q269,calculs!$R$1:$T$380,2,0))) ->  | AC17: =IF(ISERROR(VLOOKUP(calculs!$Q269,calculs!$R$1:$T$380,3,0)),"",(VLOOKUP(calculs!$Q269,calculs!$R$1:$T$380,3,0))) ->  | AD17: =IF(ISERROR(VLOOKUP(calculs!$Q270,calculs!$R$1:$T$380,2,0)),"",(VLOOKUP(calculs!$Q270,calculs!$R$1:$T$380,2,0))) ->  | AE17: =IF(ISERROR(VLOOKUP(calculs!$Q270,calculs!$R$1:$T$380,3,0)),"",(VLOOKUP(calculs!$Q270,calculs!$R$1:$T$380,3,0))) ->  | AF17: =IF(ISERROR(VLOOKUP(calculs!$Q16,calculs!$R$1:$T$380,2,0)),"",(VLOOKUP(calculs!$Q16,calculs!$R$1:$T$380,2,0))) ->  | AH17: =IF(ISERROR(VLOOKUP(calculs!$Q271,calculs!$R$1:$T$380,2,0)),"",(VLOOKUP(calculs!$Q271,calculs!$R$1:$T$380,2,0))) ->  | AI17: =IF(ISERROR(VLOOKUP(calculs!$Q271,calculs!$R$1:$T$380,3,0)),"",(VLOOKUP(calculs!$Q271,calculs!$R$1:$T$380,3,0))) ->  | AJ17: =IF(ISERROR(VLOOKUP(calculs!$Q272,calculs!$R$1:$T$380,2,0)),"",(VLOOKUP(calculs!$Q272,calculs!$R$1:$T$380,2,0))) ->  | AK17: =IF(ISERROR(VLOOKUP(calculs!$Q272,calculs!$R$1:$T$380,3,0)),"",(VLOOKUP(calculs!$Q272,calculs!$R$1:$T$380,3,0))) ->  | AL17: ='J34'!AY20 -> 0 | AM17: ='J34'!AZ20 -> 0 | AN17: ='J34'!BA20 -> 0
A18: ='J01'!AN21:AR21 -> 0 | B18: =IF(ISERROR(VLOOKUP(calculs!$Q273,calculs!$R$1:$T$380,2,0)),"",(VLOOKUP(calculs!$Q273,calculs!$R$1:$T$380,2,0))) ->  | C18: =IF(ISERROR(VLOOKUP(calculs!$Q273,calculs!$R$1:$T$380,3,0)),"",(VLOOKUP(calculs!$Q273,calculs!$R$1:$T$380,3,0))) ->  | D18: =IF(ISERROR(VLOOKUP(calculs!$Q274,calculs!$R$1:$T$380,2,0)),"",(VLOOKUP(calculs!$Q274,calculs!$R$1:$T$380,2,0))) ->  | E18: =IF(ISERROR(VLOOKUP(calculs!$Q274,calculs!$R$1:$T$380,3,0)),"",(VLOOKUP(calculs!$Q274,calculs!$R$1:$T$380,3,0))) ->  | F18: =IF(ISERROR(VLOOKUP(calculs!$Q275,calculs!$R$1:$T$380,2,0)),"",(VLOOKUP(calculs!$Q275,calculs!$R$1:$T$380,2,0))) ->  | G18: =IF(ISERROR(VLOOKUP(calculs!$Q275,calculs!$R$1:$T$380,3,0)),"",(VLOOKUP(calculs!$Q275,calculs!$R$1:$T$380,3,0))) ->  | H18: =IF(ISERROR(VLOOKUP(calculs!$Q276,calculs!$R$1:$T$380,2,0)),"",(VLOOKUP(calculs!$Q276,calculs!$R$1:$T$380,2,0))) ->  | I18: =IF(ISERROR(VLOOKUP(calculs!$Q276,calculs!$R$1:$T$380,3,0)),"",(VLOOKUP(calculs!$Q276,calculs!$R$1:$T$380,3,0))) ->  | J18: =IF(ISERROR(VLOOKUP(calculs!$Q277,calculs!$R$1:$T$380,2,0)),"",(VLOOKUP(calculs!$Q277,calculs!$R$1:$T$380,2,0))) ->  | K18: =IF(ISERROR(VLOOKUP(calculs!$Q277,calculs!$R$1:$T$380,3,0)),"",(VLOOKUP(calculs!$Q277,calculs!$R$1:$T$380,3,0))) ->  | L18: =IF(ISERROR(VLOOKUP(calculs!$Q278,calculs!$R$1:$T$380,2,0)),"",(VLOOKUP(calculs!$Q278,calculs!$R$1:$T$380,2,0))) ->  | M18: =IF(ISERROR(VLOOKUP(calculs!$Q278,calculs!$R$1:$T$380,3,0)),"",(VLOOKUP(calculs!$Q278,calculs!$R$1:$T$380,3,0))) ->  | N18: =IF(ISERROR(VLOOKUP(calculs!$Q279,calculs!$R$1:$T$380,2,0)),"",(VLOOKUP(calculs!$Q279,calculs!$R$1:$T$380,2,0))) ->  | O18: =IF(ISERROR(VLOOKUP(calculs!$Q279,calculs!$R$1:$T$380,3,0)),"",(VLOOKUP(calculs!$Q279,calculs!$R$1:$T$380,3,0))) ->  | P18: =IF(ISERROR(VLOOKUP(calculs!$Q280,calculs!$R$1:$T$380,2,0)),"",(VLOOKUP(calculs!$Q280,calculs!$R$1:$T$380,2,0))) ->  | Q18: =IF(ISERROR(VLOOKUP(calculs!$Q280,calculs!$R$1:$T$380,3,0)),"",(VLOOKUP(calculs!$Q280,calculs!$R$1:$T$380,3,0))) ->  | R18: =IF(ISERROR(VLOOKUP(calculs!$Q281,calculs!$R$1:$T$380,2,0)),"",(VLOOKUP(calculs!$Q281,calculs!$R$1:$T$380,2,0))) ->  | S18: =IF(ISERROR(VLOOKUP(calculs!$Q281,calculs!$R$1:$T$380,3,0)),"",(VLOOKUP(calculs!$Q281,calculs!$R$1:$T$380,3,0))) ->  | T18: =IF(ISERROR(VLOOKUP(calculs!$Q282,calculs!$R$1:$T$380,2,0)),"",(VLOOKUP(calculs!$Q282,calculs!$R$1:$T$380,2,0))) ->  | U18: =IF(ISERROR(VLOOKUP(calculs!$Q282,calculs!$R$1:$T$380,3,0)),"",(VLOOKUP(calculs!$Q282,calculs!$R$1:$T$380,3,0))) ->  | V18: =IF(ISERROR(VLOOKUP(calculs!$Q283,calculs!$R$1:$T$380,2,0)),"",(VLOOKUP(calculs!$Q283,calculs!$R$1:$T$380,2,0))) ->  | W18: =IF(ISERROR(VLOOKUP(calculs!$Q283,calculs!$R$1:$T$380,3,0)),"",(VLOOKUP(calculs!$Q283,calculs!$R$1:$T$380,3,0))) ->  | X18: =IF(ISERROR(VLOOKUP(calculs!$Q284,calculs!$R$1:$T$380,2,0)),"",(VLOOKUP(calculs!$Q284,calculs!$R$1:$T$380,2,0))) ->  | Y18: =IF(ISERROR(VLOOKUP(calculs!$Q284,calculs!$R$1:$T$380,3,0)),"",(VLOOKUP(calculs!$Q284,calculs!$R$1:$T$380,3,0))) ->  | Z18: =IF(ISERROR(VLOOKUP(calculs!$Q285,calculs!$R$1:$T$380,2,0)),"",(VLOOKUP(calculs!$Q285,calculs!$R$1:$T$380,2,0))) ->  | AA18: =IF(ISERROR(VLOOKUP(calculs!$Q285,calculs!$R$1:$T$380,3,0)),"",(VLOOKUP(calculs!$Q285,calculs!$R$1:$T$380,3,0))) ->  | AB18: =IF(ISERROR(VLOOKUP(calculs!$Q286,calculs!$R$1:$T$380,2,0)),"",(VLOOKUP(calculs!$Q286,calculs!$R$1:$T$380,2,0))) ->  | AC18: =IF(ISERROR(VLOOKUP(calculs!$Q286,calculs!$R$1:$T$380,3,0)),"",(VLOOKUP(calculs!$Q286,calculs!$R$1:$T$380,3,0))) ->  | AD18: =IF(ISERROR(VLOOKUP(calculs!$Q287,calculs!$R$1:$T$380,2,0)),"",(VLOOKUP(calculs!$Q287,calculs!$R$1:$T$380,2,0))) ->  | AE18: =IF(ISERROR(VLOOKUP(calculs!$Q287,calculs!$R$1:$T$380,3,0)),"",(VLOOKUP(calculs!$Q287,calculs!$R$1:$T$380,3,0))) ->  | AF18: =IF(ISERROR(VLOOKUP(calculs!$Q288,calculs!$R$1:$T$380,2,0)),"",(VLOOKUP(calculs!$Q288,calculs!$R$1:$T$380,2,0))) ->  | AG18: =IF(ISERROR(VLOOKUP(calculs!$Q288,calculs!$R$1:$T$380,3,0)),"",(VLOOKUP(calculs!$Q288,calculs!$R$1:$T$380,3,0))) ->  | AH18: =IF(ISERROR(VLOOKUP(calculs!$Q17,calculs!$R$1:$T$380,2,0)),"",(VLOOKUP(calculs!$Q17,calculs!$R$1:$T$380,2,0))) ->  | AJ18: =IF(ISERROR(VLOOKUP(calculs!$Q289,calculs!$R$1:$T$380,2,0)),"",(VLOOKUP(calculs!$Q289,calculs!$R$1:$T$380,2,0))) ->  | AK18: =IF(ISERROR(VLOOKUP(calculs!$Q289,calculs!$R$1:$T$380,3,0)),"",(VLOOKUP(calculs!$Q289,calculs!$R$1:$T$380,3,0))) ->  | AL18: ='J34'!AY21 -> 0 | AM18: ='J34'!AZ21 -> 0 | AN18: ='J34'!BA21 -> 0
A19: ='J01'!AN22:AR22 -> 0 | B19: =IF(ISERROR(VLOOKUP(calculs!$Q290,calculs!$R$1:$T$380,2,0)),"",(VLOOKUP(calculs!$Q290,calculs!$R$1:$T$380,2,0))) ->  | C19: =IF(ISERROR(VLOOKUP(calculs!$Q290,calculs!$R$1:$T$380,3,0)),"",(VLOOKUP(calculs!$Q290,calculs!$R$1:$T$380,3,0))) ->  | D19: =IF(ISERROR(VLOOKUP(calculs!$Q291,calculs!$R$1:$T$380,2,0)),"",(VLOOKUP(calculs!$Q291,calculs!$R$1:$T$380,2,0))) ->  | E19: =IF(ISERROR(VLOOKUP(calculs!$Q291,calculs!$R$1:$T$380,3,0)),"",(VLOOKUP(calculs!$Q291,calculs!$R$1:$T$380,3,0))) ->  | F19: =IF(ISERROR(VLOOKUP(calculs!$Q292,calculs!$R$1:$T$380,2,0)),"",(VLOOKUP(calculs!$Q292,calculs!$R$1:$T$380,2,0))) ->  | G19: =IF(ISERROR(VLOOKUP(calculs!$Q292,calculs!$R$1:$T$380,3,0)),"",(VLOOKUP(calculs!$Q292,calculs!$R$1:$T$380,3,0))) ->  | H19: =IF(ISERROR(VLOOKUP(calculs!$Q293,calculs!$R$1:$T$380,2,0)),"",(VLOOKUP(calculs!$Q293,calculs!$R$1:$T$380,2,0))) ->  | I19: =IF(ISERROR(VLOOKUP(calculs!$Q293,calculs!$R$1:$T$380,3,0)),"",(VLOOKUP(calculs!$Q293,calculs!$R$1:$T$380,3,0))) ->  | J19: =IF(ISERROR(VLOOKUP(calculs!$Q294,calculs!$R$1:$T$380,2,0)),"",(VLOOKUP(calculs!$Q294,calculs!$R$1:$T$380,2,0))) ->  | K19: =IF(ISERROR(VLOOKUP(calculs!$Q294,calculs!$R$1:$T$380,3,0)),"",(VLOOKUP(calculs!$Q294,calculs!$R$1:$T$380,3,0))) ->  | L19: =IF(ISERROR(VLOOKUP(calculs!$Q295,calculs!$R$1:$T$380,2,0)),"",(VLOOKUP(calculs!$Q295,calculs!$R$1:$T$380,2,0))) ->  | M19: =IF(ISERROR(VLOOKUP(calculs!$Q295,calculs!$R$1:$T$380,3,0)),"",(VLOOKUP(calculs!$Q295,calculs!$R$1:$T$380,3,0))) ->  | N19: =IF(ISERROR(VLOOKUP(calculs!$Q296,calculs!$R$1:$T$380,2,0)),"",(VLOOKUP(calculs!$Q296,calculs!$R$1:$T$380,2,0))) ->  | O19: =IF(ISERROR(VLOOKUP(calculs!$Q296,calculs!$R$1:$T$380,3,0)),"",(VLOOKUP(calculs!$Q296,calculs!$R$1:$T$380,3,0))) ->  | P19: =IF(ISERROR(VLOOKUP(calculs!$Q297,calculs!$R$1:$T$380,2,0)),"",(VLOOKUP(calculs!$Q297,calculs!$R$1:$T$380,2,0))) ->  | Q19: =IF(ISERROR(VLOOKUP(calculs!$Q297,calculs!$R$1:$T$380,3,0)),"",(VLOOKUP(calculs!$Q297,calculs!$R$1:$T$380,3,0))) ->  | R19: =IF(ISERROR(VLOOKUP(calculs!$Q298,calculs!$R$1:$T$380,2,0)),"",(VLOOKUP(calculs!$Q298,calculs!$R$1:$T$380,2,0))) ->  | S19: =IF(ISERROR(VLOOKUP(calculs!$Q298,calculs!$R$1:$T$380,3,0)),"",(VLOOKUP(calculs!$Q298,calculs!$R$1:$T$380,3,0))) ->  | T19: =IF(ISERROR(VLOOKUP(calculs!$Q299,calculs!$R$1:$T$380,2,0)),"",(VLOOKUP(calculs!$Q299,calculs!$R$1:$T$380,2,0))) ->  | U19: =IF(ISERROR(VLOOKUP(calculs!$Q299,calculs!$R$1:$T$380,3,0)),"",(VLOOKUP(calculs!$Q299,calculs!$R$1:$T$380,3,0))) ->  | V19: =IF(ISERROR(VLOOKUP(calculs!$Q300,calculs!$R$1:$T$380,2,0)),"",(VLOOKUP(calculs!$Q300,calculs!$R$1:$T$380,2,0))) ->  | W19: =IF(ISERROR(VLOOKUP(calculs!$Q300,calculs!$R$1:$T$380,3,0)),"",(VLOOKUP(calculs!$Q300,calculs!$R$1:$T$380,3,0))) ->  | X19: =IF(ISERROR(VLOOKUP(calculs!$Q301,calculs!$R$1:$T$380,2,0)),"",(VLOOKUP(calculs!$Q301,calculs!$R$1:$T$380,2,0))) ->  | Y19: =IF(ISERROR(VLOOKUP(calculs!$Q301,calculs!$R$1:$T$380,3,0)),"",(VLOOKUP(calculs!$Q301,calculs!$R$1:$T$380,3,0))) ->  | Z19: =IF(ISERROR(VLOOKUP(calculs!$Q302,calculs!$R$1:$T$380,2,0)),"",(VLOOKUP(calculs!$Q302,calculs!$R$1:$T$380,2,0))) ->  | AA19: =IF(ISERROR(VLOOKUP(calculs!$Q302,calculs!$R$1:$T$380,3,0)),"",(VLOOKUP(calculs!$Q302,calculs!$R$1:$T$380,3,0))) ->  | AB19: =IF(ISERROR(VLOOKUP(calculs!$Q303,calculs!$R$1:$T$380,2,0)),"",(VLOOKUP(calculs!$Q303,calculs!$R$1:$T$380,2,0))) ->  | AC19: =IF(ISERROR(VLOOKUP(calculs!$Q303,calculs!$R$1:$T$380,3,0)),"",(VLOOKUP(calculs!$Q303,calculs!$R$1:$T$380,3,0))) ->  | AD19: =IF(ISERROR(VLOOKUP(calculs!$Q304,calculs!$R$1:$T$380,2,0)),"",(VLOOKUP(calculs!$Q304,calculs!$R$1:$T$380,2,0))) ->  | AE19: =IF(ISERROR(VLOOKUP(calculs!$Q304,calculs!$R$1:$T$380,3,0)),"",(VLOOKUP(calculs!$Q304,calculs!$R$1:$T$380,3,0))) ->  | AF19: =IF(ISERROR(VLOOKUP(calculs!$Q305,calculs!$R$1:$T$380,2,0)),"",(VLOOKUP(calculs!$Q305,calculs!$R$1:$T$380,2,0))) ->  | AG19: =IF(ISERROR(VLOOKUP(calculs!$Q305,calculs!$R$1:$T$380,3,0)),"",(VLOOKUP(calculs!$Q305,calculs!$R$1:$T$380,3,0))) ->  | AH19: =IF(ISERROR(VLOOKUP(calculs!$Q306,calculs!$R$1:$T$380,2,0)),"",(VLOOKUP(calculs!$Q306,calculs!$R$1:$T$380,2,0))) ->  | AI19: =IF(ISERROR(VLOOKUP(calculs!$Q306,calculs!$R$1:$T$380,3,0)),"",(VLOOKUP(calculs!$Q306,calculs!$R$1:$T$380,3,0))) ->  | AJ19: =IF(ISERROR(VLOOKUP(calculs!$Q18,calculs!$R$1:$T$380,2,0)),"",(VLOOKUP(calculs!$Q18,calculs!$R$1:$T$380,2,0))) ->  | AL19: ='J34'!AY22 -> 0 | AM19: ='J34'!AZ22 -> 0 | AN19: ='J34'!BA22 -> 0

Sheet calculs (hidden)
A1: ='J01'!B5:F5 -> 0 | B1: =IF('J01'!G5="","",'J01'!G5) ->  | C1: =IF('J01'!H5="","",'J01'!H5) ->  | D1: =IF('J01'!I5="","",'J01'!I5) ->  | E1: J01 | F1: =D1 ->  | G1: =IF(N1="","",N1) ->  | H1: =IF(O1="","",O1) ->  | I1: =A1 -> 0 | J1: =IF(P1="","",P1) -> J01 | K1: 1 | M1: =F1&I1 -> 0 | N1: =VLOOKUP(M1,$R$1:$U$306,2,0) ->  | O1: =VLOOKUP(M1,$R$1:$U$306,3,0) ->  | P1: =VLOOKUP(M1,$R$1:$U$306,4,0) -> J01 | Q1: =Classement!A2&Classement!D1 -> 00 | R1: =A1&D1 -> 0 | S1: =B1 ->  | T1: =C1 ->  | U1: =E1 -> J01
A2: ='J01'!B6:F6 -> 0 | B2: =IF('J01'!G6="","",'J01'!G6) ->  | C2: =IF('J01'!H6="","",'J01'!H6) ->  | D2: =IF('J01'!I6="","",'J01'!I6) ->  | E2: J01 | F2: =D2 ->  | G2: =IF(N2="","",N2) ->  | H2: =IF(O2="","",O2) ->  | I2: =A2 -> 0 | J2: =IF(P2="","",P2) -> J01 | M2: =F2&I2 -> 0 | N2: =VLOOKUP(M2,$R$1:$U$306,2,0) ->  | O2: =VLOOKUP(M2,$R$1:$U$306,3,0) ->  | P2: =VLOOKUP(M2,$R$1:$U$306,4,0) -> J01 | Q2: =Classement!A2&Classement!F1 -> 00 | R2: =A2&D2 -> 0 | S2: =B2 ->  | T2: =C2 ->  | U2: =E2 -> J01
A3: ='J01'!B7:F7 -> 0 | B3: =IF('J01'!G7="","",'J01'!G7) ->  | C3: =IF('J01'!H7="","",'J01'!H7) ->  | D3: =IF('J01'!I7="","",'J01'!I7) ->  | E3: J01 | I3: 0 | J3: J01 | M3: 0 | P3: J01 | Q3: =Classement!A2&Classement!H1 -> 00 | R3: 0 | U3: J01
A4: ='J01'!B8:F8 -> 0 | B4: =IF('J01'!G8="","",'J01'!G8) ->  | C4: =IF('J01'!H8="","",'J01'!H8) ->  | D4: =IF('J01'!I8="","",'J01'!I8) ->  | E4: J01 | I4: 0 | J4: J01 | M4: 0 | P4: J01 | Q4: =Classement!A2&Classement!J1 -> 00 | R4: 0 | U4: J01
A5: ='J01'!B9:F9 -> 0 | B5: =IF('J01'!G9="","",'J01'!G9) ->  | C5: =IF('J01'!H9="","",'J01'!H9) ->  | D5: =IF('J01'!I9="","",'J01'!I9) ->  | E5: J01 | I5: 0 | J5: J01 | M5: 0 | P5: J01 | Q5: =Classement!A2&Classement!L1 -> 00 | R5: 0 | U5: J01
A6: ='J01'!B10:F10 -> 0 | B6: =IF('J01'!G10="","",'J01'!G10) ->  | C6: =IF('J01'!H10="","",'J01'!H10) ->  | D6: =IF('J01'!I10="","",'J01'!I10) ->  | E6: J01 | I6: 0 | J6: J01 | M6: 0 | P6: J01 | Q6: =Classement!A2&Classement!N1 -> 00 | R6: 0 | U6: J01
A7: ='J01'!B11:F11 -> 0 | B7: =IF('J01'!G11="","",'J01'!G11) ->  | C7: =IF('J01'!H11="","",'J01'!H11) ->  | D7: =IF('J01'!I11="","",'J01'!I11) ->  | E7: J01 | I7: 0 | J7: J01 | M7: 0 | P7: J01 | Q7: =Classement!A2&Classement!P1 -> 00 | R7: 0 | U7: J01
A8: ='J01'!B12:F12 -> 0 | B8: =IF('J01'!G12="","",'J01'!G12) ->  | C8: =IF('J01'!H12="","",'J01'!H12) ->  | D8: =IF('J01'!I12="","",'J01'!I12) ->  | E8: J01 | I8: 0 | J8: J01 | M8: 0 | P8: J01 | Q8: =Classement!A2&Classement!R1 -> 00 | R8: 0 | U8: J01
A9: ='J01'!B13:F13 -> 0 | B9: =IF('J01'!G13="","",'J01'!G13) ->  | C9: =IF('J01'!H13="","",'J01'!H13) ->  | D9: =IF('J01'!I13="","",'J01'!I13) ->  | E9: J01 | I9: 0 | J9: J01 | M9: 0 | P9: J01 | Q9: =Classement!A2&Classement!T1 -> 00 | R9: 0 | U9: J01
A10: ='J02'!B5:F5 -> 0 | B10: =IF('J02'!G5="","",'J02'!G5) ->  | C10: =IF('J02'!H5="","",'J02'!H5) ->  | D10: =IF('J02'!I5="","",'J02'!I5) ->  | E10: J02 | I10: 0 | J10: J01 | K10: 2 | M10: 0 | P10: J01 | Q10: =Classement!A2&Classement!V1 -> 00 | R10: 0 | U10: J02
A11: ='J02'!B6:F6 -> 0 | B11: =IF('J02'!G6="","",'J02'!G6) ->  | C11: =IF('J02'!H6="","",'J02'!H6) ->  | D11: =IF('J02'!I6="","",'J02'!I6) ->  | E11: J02 | I11: 0 | J11: J01 | M11: 0 | P11: J01 | Q11: =Classement!A2&Classement!X1 -> 00 | R11: 0 | U11: J02
A12: ='J02'!B7:F7 -> 0 | B12: =IF('J02'!G7="","",'J02'!G7) ->  | C12: =IF('J02'!H7="","",'J02'!H7) ->  | D12: =IF('J02'!I7="","",'J02'!I7) ->  | E12: J02 | I12: 0 | J12: J01 | M12: 0 | P12: J01 | Q12: =Classement!A2&Classement!Z1 -> 00 | R12: 0 | U12: J02
A13: ='J02'!B8:F8 -> 0 | B13: =IF('J02'!G8="","",'J02'!G8) ->  | C13: =IF('J02'!H8="","",'J02'!H8) ->  | D13: =IF('J02'!I8="","",'J02'!I8) ->  | E13: J02 | I13: 0 | J13: J01 | M13: 0 | P13: J01 | Q13: =Classement!A2&Classement!AB1 -> 00 | R13: 0 | U13: J02
A14: ='J02'!B9:F9 -> 0 | B14: =IF('J02'!G9="","",'J02'!G9) ->  | C14: =IF('J02'!H9="","",'J02'!H9) ->  | D14: =IF('J02'!I9="","",'J02'!I9) ->  | E14: J02 | I14: 0 | J14: J01 | M14: 0 | P14: J01 | Q14: =Classement!A2&Classement!AD1 -> 00 | R14: 0 | U14: J02
A15: ='J02'!B10:F10 -> 0 | B15: =IF('J02'!G10="","",'J02'!G10) ->  | C15: =IF('J02'!H10="","",'J02'!H10) ->  | D15: =IF('J02'!I10="","",'J02'!I10) ->  | E15: J02 | I15: 0 | J15: J01 | M15: 0 | P15: J01 | Q15: =Classement!A2&Classement!AF1 -> 00 | R15: 0 | U15: J02
A16: ='J02'!B11:F11 -> 0 | B16: =IF('J02'!G11="","",'J02'!G11) ->  | C16: =IF('J02'!H11="","",'J02'!H11) ->  | D16: =IF('J02'!I11="","",'J02'!I11) ->  | E16: J02 | I16: 0 | J16: J01 | M16: 0 | P16: J01 | Q16: =Classement!A2&Classement!AH1 -> 00 | R16: 0 | U16: J02
A17: ='J02'!B12:F12 -> 0 | B17: =IF('J02'!G12="","",'J02'!G12) ->  | C17: =IF('J02'!H12="","",'J02'!H12) ->  | D17: =IF('J02'!I12="","",'J02'!I12) ->  | E17: J02 | I17: 0 | J17: J01 | M17: 0 | P17: J01 | Q17: =Classement!A2&Classement!AJ1 -> 00 | R17: 0 | U17: J02
A18: ='J02'!B13:F13 -> 0 | B18: =IF('J02'!G13="","",'J02'!G13) ->  | C18: =IF('J02'!H13="","",'J02'!H13) ->  | D18: =IF('J02'!I13="","",'J02'!I13) ->  | E18: J02 | I18: 0 | J18: J01 | M18: 0 | P18: J01 | Q18: =Classement!A3&Classement!B1 -> 00 | R18: 0 | U18: J02
A19: ='J03'!B5:F5 -> 0 | B19: =IF('J03'!G5="","",'J03'!G5) ->  | C19: =IF('J03'!H5="","",'J03'!H5) ->  | D19: =IF('J03'!I5="","",'J03'!I5) ->  | E19: J03 | I19: 0 | J19: J01 | K19: 3 | M19: 0 | P19: J01 | Q19: =Classement!A3&Classement!F1 -> 00 | R19: 0 | U19: J03
A20: ='J03'!B6:F6 -> 0 | B20: =IF('J03'!G6="","",'J03'!G6) ->  | C20: =IF('J03'!H6="","",'J03'!H6) ->  | D20: =IF('J03'!I6="","",'J03'!I6) ->  | E20: J03 | I20: 0 | J20: J01 | M20: 0 | P20: J01 | Q20: =Classement!A3&Classement!H1 -> 00 | R20: 0 | U20: J03
A21: ='J03'!B7:F7 -> 0 | B21: =IF('J03'!G7="","",'J03'!G7) ->  | C21: =IF('J03'!H7="","",'J03'!H7) ->  | D21: =IF('J03'!I7="","",'J03'!I7) ->  | E21: J03 | I21: 0 | J21: J01 | M21: 0 | P21: J01 | Q21: =Classement!A3&Classement!J1 -> 00 | R21: 0 | U21: J03
A22: ='J03'!B8:F8 -> 0 | B22: =IF('J03'!G8="","",'J03'!G8) ->  | C22: =IF('J03'!H8="","",'J03'!H8) ->  | D22: =IF('J03'!I8="","",'J03'!I8) ->  | E22: J03 | I22: 0 | J22: J01 | M22: 0 | P22: J01 | Q22: =Classement!A3&Classement!L1 -> 00 | R22: 0 | U22: J03
A23: ='J03'!B9:F9 -> 0 | B23: =IF('J03'!G9="","",'J03'!G9) ->  | C23: =IF('J03'!H9="","",'J03'!H9) ->  | D23: =IF('J03'!I9="","",'J03'!I9) ->  | E23: J03 | I23: 0 | J23: J01 | M23: 0 | P23: J01 | Q23: =Classement!A3&Classement!N1 -> 00 | R23: 0 | U23: J03
A24: ='J03'!B10:F10 -> 0 | B24: =IF('J03'!G10="","",'J03'!G10) ->  | C24: =IF('J03'!H10="","",'J03'!H10) ->  | D24: =IF('J03'!I10="","",'J03'!I10) ->  | E24: J03 | I24: 0 | J24: J01 | M24: 0 | P24: J01 | Q24: =Classement!A3&Classement!P1 -> 00 | R24: 0 | U24: J03
A25: ='J03'!B11:F11 -> 0 | B25: =IF('J03'!G11="","",'J03'!G11) ->  | C25: =IF('J03'!H11="","",'J03'!H11) ->  | D25: =IF('J03'!I11="","",'J03'!I11) ->  | E25: J03 | I25: 0 | J25: J01 | M25: 0 | P25: J01 | Q25: =Classement!A3&Classement!R1 -> 00 | R25: 0 | U25: J03
A26: ='J03'!B12:F12 -> 0 | B26: =IF('J03'!G12="","",'J03'!G12) ->  | C26: =IF('J03'!H12="","",'J03'!H12) ->  | D26: =IF('J03'!I12="","",'J03'!I12) ->  | E26: J03 | I26: 0 | J26: J01 | M26: 0 | P26: J01 | Q26: =Classement!A3&Classement!T1 -> 00 | R26: 0 | U26: J03
A27: ='J03'!B13:F13 -> 0 | B27: =IF('J03'!G13="","",'J03'!G13) ->  | C27: =IF('J03'!H13="","",'J03'!H13) ->  | D27: =IF('J03'!I13="","",'J03'!I13) ->  | E27: J03 | I27: 0 | J27: J01 | M27: 0 | P27: J01 | Q27: =Classement!A3&Classement!V1 -> 00 | R27: 0 | U27: J03
A28: ='J04'!B5:F5 -> 0 | B28: =IF('J04'!G5="","",'J04'!G5) ->  | C28: =IF('J04'!H5="","",'J04'!H5) ->  | D28: =IF('J04'!I5="","",'J04'!I5) ->  | E28: J04 | I28: 0 | J28: J01 | K28: 4 | M28: 0 | P28: J01 | Q28: =Classement!A3&Classement!X1 -> 00 | R28: 0 | U28: J04
A29: ='J04'!B6:F6 -> 0 | B29: =IF('J04'!G6="","",'J04'!G6) ->  | C29: =IF('J04'!H6="","",'J04'!H6) ->  | D29: =IF('J04'!I6="","",'J04'!I6) ->  | E29: J04 | I29: 0 | J29: J01 | M29: 0 | P29: J01 | Q29: =Classement!A3&Classement!Z1 -> 00 | R29: 0 | U29: J04
A30: ='J04'!B7:F7 -> 0 | B30: =IF('J04'!G7="","",'J04'!G7) ->  | C30: =IF('J04'!H7="","",'J04'!H7) ->  | D30: =IF('J04'!I7="","",'J04'!I7) ->  | E30: J04 | I30: 0 | J30: J01 | M30: 0 | P30: J01 | Q30: =Classement!A3&Classement!AB1 -> 00 | R30: 0 | U30: J04
A31: ='J04'!B8:F8 -> 0 | B31: =IF('J04'!G8="","",'J04'!G8) ->  | C31: =IF('J04'!H8="","",'J04'!H8) ->  | D31: =IF('J04'!I8="","",'J04'!I8) ->  | E31: J04 | I31: 0 | J31: J01 | M31: 0 | P31: J01 | Q31: =Classement!A3&Classement!AD1 -> 00 | R31: 0 | U31: J04
A32: ='J04'!B9:F9 -> 0 | B32: =IF('J04'!G9="","",'J04'!G9) ->  | C32: =IF('J04'!H9="","",'J04'!H9) ->  | D32: =IF('J04'!I9="","",'J04'!I9) ->  | E32: J04 | I32: 0 | J32: J01 | M32: 0 | P32: J01 | Q32: =Classement!A3&Classement!AF1 -> 00 | R32: 0 | U32: J04
A33: ='J04'!B10:F10 -> 0 | B33: =IF('J04'!G10="","",'J04'!G10) ->  | C33: =IF('J04'!H10="","",'J04'!H10) ->  | D33: =IF('J04'!I10="","",'J04'!I10) ->  | E33: J04 | I33: 0 | J33: J01 | M33: 0 | P33: J01 | Q33: =Classement!A3&Classement!AH1 -> 00 | R33: 0 | U33: J04
A34: ='J04'!B11:F11 -> 0 | B34: =IF('J04'!G11="","",'J04'!G11) ->  | C34: =IF('J04'!H11="","",'J04'!H11) ->  | D34: =IF('J04'!I11="","",'J04'!I11) ->  | E34: J04 | I34: 0 | J34: J01 | M34: 0 | P34: J01 | Q34: =Classement!A3&Classement!AJ1 -> 00 | R34: 0 | U34: J04
A35: ='J04'!B12:F12 -> 0 | B35: =IF('J04'!G12="","",'J04'!G12) ->  | C35: =IF('J04'!H12="","",'J04'!H12) ->  | D35: =IF('J04'!I12="","",'J04'!I12) ->  | E35: J04 | I35: 0 | J35: J01 | M35: 0 | P35: J01 | Q35: =Classement!A4&Classement!B1 -> 00 | R35: 0 | U35: J04
A36: ='J04'!B13:F13 -> 0 | B36: =IF('J04'!G13="","",'J04'!G13) ->  | C36: =IF('J04'!H13="","",'J04'!H13) ->  | D36: =IF('J04'!I13="","",'J04'!I13) ->  | E36: J04 | I36: 0 | J36: J01 | M36: 0 | P36: J01 | Q36: =Classement!A4&Classement!D1 -> 00 | R36: 0 | U36: J04
A37: ='J05'!B5:F5 -> 0 | B37: =IF('J05'!G5="","",'J05'!G5) ->  | C37: =IF('J05'!H5="","",'J05'!H5) ->  | D37: =IF('J05'!I5="","",'J05'!I5) ->  | E37: J05 | I37: 0 | J37: J01 | K37: 5 | M37: 0 | P37: J01 | Q37: =Classement!A4&Classement!H1 -> 00 | R37: 0 | U37: J05
A38: ='J05'!B6:F6 -> 0 | B38: =IF('J05'!G6="","",'J05'!G6) ->  | C38: =IF('J05'!H6="","",'J05'!H6) ->  | D38: =IF('J05'!I6="","",'J05'!I6) ->  | E38: J05 | I38: 0 | J38: J01 | M38: 0 | P38: J01 | Q38: =Classement!A4&Classement!J1 -> 00 | R38: 0 | U38: J05
A39: ='J05'!B7:F7 -> 0 | B39: =IF('J05'!G7="","",'J05'!G7) ->  | C39: =IF('J05'!H7="","",'J05'!H7) ->  | D39: =IF('J05'!I7="","",'J05'!I7) ->  | E39: J05 | I39: 0 | J39: J01 | M39: 0 | P39: J01 | Q39: =Classement!A4&Classement!L1 -> 00 | R39: 0 | U39: J05
A40: ='J05'!B8:F8 -> 0 | B40: =IF('J05'!G8="","",'J05'!G8) ->  | C40: =IF('J05'!H8="","",'J05'!H8) ->  | D40: =IF('J05'!I8="","",'J05'!I8) ->  | E40: J05 | I40: 0 | J40: J01 | M40: 0 | P40: J01 | Q40: =Classement!A4&Classement!N1 -> 00 | R40: 0 | U40: J05
A41: ='J05'!B9:F9 -> 0 | B41: =IF('J05'!G9="","",'J05'!G9) ->  | C41: =IF('J05'!H9="","",'J05'!H9) ->  | D41: =IF('J05'!I9="","",'J05'!I9) ->  | E41: J05 | I41: 0 | J41: J01 | M41: 0 | P41: J01 | Q41: =Classement!A4&Classement!P1 -> 00 | R41: 0 | U41: J05
A42: ='J05'!B10:F10 -> 0 | B42: =IF('J05'!G10="","",'J05'!G10) ->  | C42: =IF('J05'!H10="","",'J05'!H10) ->  | D42: =IF('J05'!I10="","",'J05'!I10) ->  | E42: J05 | I42: 0 | J42: J01 | M42: 0 | P42: J01 | Q42: =Classement!A4&Classement!R1 -> 00 | R42: 0 | U42: J05
A43: ='J05'!B11:F11 -> 0 | B43: =IF('J05'!G11="","",'J05'!G11) ->  | C43: =IF('J05'!H11="","",'J05'!H11) ->  | D43: =IF('J05'!I11="","",'J05'!I11) ->  | E43: J05 | I43: 0 | J43: J01 | M43: 0 | P43: J01 | Q43: =Classement!A4&Classement!T1 -> 00 | R43: 0 | U43: J05
A44: ='J05'!B12:F12 -> 0 | B44: =IF('J05'!G12="","",'J05'!G12) ->  | C44: =IF('J05'!H12="","",'J05'!H12) ->  | D44: =IF('J05'!I12="","",'J05'!I12) ->  | E44: J05 | I44: 0 | J44: J01 | M44: 0 | P44: J01 | Q44: =Classement!A4&Classement!V1 -> 00 | R44: 0 | U44: J05
A45: ='J05'!B13:F13 -> 0 | B45: =IF('J05'!G13="","",'J05'!G13) ->  | C45: =IF('J05'!H13="","",'J05'!H13) ->  | D45: =IF('J05'!I13="","",'J05'!I13) ->  | E45: J05 | I45: 0 | J45: J01 | M45: 0 | P45: J01 | Q45: =Classement!A4&Classement!X1 -> 00 | R45: 0 | U45: J05
A46: ='J06'!B5:F5 -> 0 | B46: =IF('J06'!G5="","",'J06'!G5) ->  | C46: =IF('J06'!H5="","",'J06'!H5) ->  | D46: =IF('J06'!I5="","",'J06'!I5) ->  | E46: J06 | I46: 0 | J46: J01 | K46: 6 | M46: 0 | P46: J01 | Q46: =Classement!A4&Classement!Z1 -> 00 | R46: 0 | U46: J06
A47: ='J06'!B6:F6 -> 0 | B47: =IF('J06'!G6="","",'J06'!G6) ->  | C47: =IF('J06'!H6="","",'J06'!H6) ->  | D47: =IF('J06'!I6="","",'J06'!I6) ->  | E47: J06 | I47: 0 | J47: J01 | M47: 0 | P47: J01 | Q47: =Classement!A4&Classement!AB1 -> 00 | R47: 0 | U47: J06
A48: ='J06'!B7:F7 -> 0 | B48: =IF('J06'!G7="","",'J06'!G7) ->  | C48: =IF('J06'!H7="","",'J06'!H7) ->  | D48: =IF('J06'!I7="","",'J06'!I7) ->  | E48: J06 | I48: 0 | J48: J01 | M48: 0 | P48: J01 | Q48: =Classement!A4&Classement!AD1 -> 00 | R48: 0 | U48: J06
A49: ='J06'!B8:F8 -> 0 | B49: =IF('J06'!G8="","",'J06'!G8) ->  | C49: =IF('J06'!H8="","",'J06'!H8) ->  | D49: =IF('J06'!I8="","",'J06'!I8) ->  | E49: J06 | I49: 0 | J49: J01 | M49: 0 | P49: J01 | Q49: =Classement!A4&Classement!AF1 -> 00 | R49: 0 | U49: J06
A50: ='J06'!B9:F9 -> 0 | B50: =IF('J06'!G9="","",'J06'!G9) ->  | C50: =IF('J06'!H9="","",'J06'!H9) ->  | D50: =IF('J06'!I9="","",'J06'!I9) ->  | E50: J06 | I50: 0 | J50: J01 | M50: 0 | P50: J01 | Q50: =Classement!A4&Classement!AH1 -> 00 | R50: 0 | U50: J06
A51: ='J06'!B10:F10 -> 0 | B51: =IF('J06'!G10="","",'J06'!G10) ->  | C51: =IF('J06'!H10="","",'J06'!H10) ->  | D51: =IF('J06'!I10="","",'J06'!I10) ->  | E51: J06 | I51: 0 | J51: J01 | M51: 0 | P51: J01 | Q51: =Classement!A4&Classement!AJ1 -> 00 | R51: 0 | U51: J06
A52: ='J06'!B11:F11 -> 0 | B52: =IF('J06'!G11="","",'J06'!G11) ->  | C52: =IF('J06'!H11="","",'J06'!H11) ->  | D52: =IF('J06'!I11="","",'J06'!I11) ->  | E52: J06 | I52: 0 | J52: J01 | M52: 0 | P52: J01 | Q52: =Classement!A5&Classement!B1 -> 00 | R52: 0 | U52: J06
A53: ='J06'!B12:F12 -> 0 | B53: =IF('J06'!G12="","",'J06'!G12) ->  | C53: =IF('J06'!H12="","",'J06'!H12) ->  | D53: =IF('J06'!I12="","",'J06'!I12) ->  | E53: J06 | I53: 0 | J53: J01 | M53: 0 | P53: J01 | Q53: =Classement!A5&Classement!D1 -> 00 | R53: 0 | U53: J06
A54: ='J06'!B13:F13 -> 0 | B54: =IF('J06'!G13="","",'J06'!G13) ->  | C54: =IF('J06'!H13="","",'J06'!H13) ->  | D54: =IF('J06'!I13="","",'J06'!I13) ->  | E54: J06 | I54: 0 | J54: J01 | M54: 0 | P54: J01 | Q54: =Classement!A5&Classement!F1 -> 00 | R54: 0 | U54: J06
A55: ='J07'!B5:F5 -> 0 | B55: =IF('J07'!G5="","",'J07'!G5) ->  | C55: =IF('J07'!H5="","",'J07'!H5) ->  | D55: =IF('J07'!I5="","",'J07'!I5) ->  | E55: J07 | I55: 0 | J55: J01 | K55: 7 | M55: 0 | P55: J01 | Q55: =Classement!A5&Classement!J1 -> 00 | R55: 0 | U55: J07
A56: ='J07'!B6:F6 -> 0 | B56: =IF('J07'!G6="","",'J07'!G6) ->  | C56: =IF('J07'!H6="","",'J07'!H6) ->  | D56: =IF('J07'!I6="","",'J07'!I6) ->  | E56: J07 | I56: 0 | J56: J01 | M56: 0 | P56: J01 | Q56: =Classement!A5&Classement!L1 -> 00 | R56: 0 | U56: J07
A57: ='J07'!B7:F7 -> 0 | B57: =IF('J07'!G7="","",'J07'!G7) ->  | C57: =IF('J07'!H7="","",'J07'!H7) ->  | D57: =IF('J07'!I7="","",'J07'!I7) ->  | E57: J07 | I57: 0 | J57: J01 | M57: 0 | P57: J01 | Q57: =Classement!A5&Classement!N1 -> 00 | R57: 0 | U57: J07
A58: ='J07'!B8:F8 -> 0 | B58: =IF('J07'!G8="","",'J07'!G8) ->  | C58: =IF('J07'!H8="","",'J07'!H8) ->  | D58: =IF('J07'!I8="","",'J07'!I8) ->  | E58: J07 | I58: 0 | J58: J01 | M58: 0 | P58: J01 | Q58: =Classement!A5&Classement!P1 -> 00 | R58: 0 | U58: J07
A59: ='J07'!B9:F9 -> 0 | B59: =IF('J07'!G9="","",'J07'!G9) ->  | C59: =IF('J07'!H9="","",'J07'!H9) ->  | D59: =IF('J07'!I9="","",'J07'!I9) ->  | E59: J07 | I59: 0 | J59: J01 | M59: 0 | P59: J01 | Q59: =Classement!A5&Classement!R1 -> 00 | R59: 0 | U59: J07
A60: ='J07'!B10:F10 -> 0 | B60: =IF('J07'!G10="","",'J07'!G10) ->  | C60: =IF('J07'!H10="","",'J07'!H10) ->  | D60: =IF('J07'!I10="","",'J07'!I10) ->  | E60: J07 | I60: 0 | J60: J01 | M60: 0 | P60: J01 | Q60: =Classement!A5&Classement!T1 -> 00 | R60: 0 | U60: J07
A61: ='J07'!B11:F11 -> 0 | B61: =IF('J07'!G11="","",'J07'!G11) ->  | C61: =IF('J07'!H11="","",'J07'!H11) ->  | D61: =IF('J07'!I11="","",'J07'!I11) ->  | E61: J07 | I61: 0 | J61: J01 | M61: 0 | P61: J01 | Q61: =Classement!A5&Classement!V1 -> 00 | R61: 0 | U61: J07
A62: ='J07'!B12:F12 -> 0 | B62: =IF('J07'!G12="","",'J07'!G12) ->  | C62: =IF('J07'!H12="","",'J07'!H12) ->  | D62: =IF('J07'!I12="","",'J07'!I12) ->  | E62: J07 | I62: 0 | J62: J01 | M62: 0 | P62: J01 | Q62: =Classement!A5&Classement!X1 -> 00 | R62: 0 | U62: J07
A63: ='J07'!B13:F13 -> 0 | B63: =IF('J07'!G13="","",'J07'!G13) ->  | C63: =IF('J07'!H13="","",'J07'!H13) ->  | D63: =IF('J07'!I13="","",'J07'!I13) ->  | E63: J07 | I63: 0 | J63: J01 | M63: 0 | P63: J01 | Q63: =Classement!A5&Classement!Z1 -> 00 | R63: 0 | U63: J07
A64: ='J08'!B5:F5 -> 0 | B64: =IF('J08'!G5="","",'J08'!G5) ->  | C64: =IF('J08'!H5="","",'J08'!H5) ->  | D64: =IF('J08'!I5="","",'J08'!I5) ->  | E64: J08 | I64: 0 | J64: J01 | K64: 8 | M64: 0 | P64: J01 | Q64: =Classement!A5&Classement!AB1 -> 00 | R64: 0 | U64: J08
A65: ='J08'!B6:F6 -> 0 | B65: =IF('J08'!G6="","",'J08'!G6) ->  | C65: =IF('J08'!H6="","",'J08'!H6) ->  | D65: =IF('J08'!I6="","",'J08'!I6) ->  | E65: J08 | I65: 0 | J65: J01 | M65: 0 | P65: J01 | Q65: =Classement!A5&Classement!AD1 -> 00 | R65: 0 | U65: J08
A66: ='J08'!B7:F7 -> 0 | B66: =IF('J08'!G7="","",'J08'!G7) ->  | C66: =IF('J08'!H7="","",'J08'!H7) ->  | D66: =IF('J08'!I7="","",'J08'!I7) ->  | E66: J08 | F66: =D66 ->  | G66: =IF(N66="","",N66) ->  | H66: =IF(O66="","",O66) ->  | I66: =A66 -> 0 | J66: =IF(P66="","",P66) -> J01 | M66: =F66&I66 -> 0 | N66: =VLOOKUP(M66,$R$1:$U$306,2,0) ->  | O66: =VLOOKUP(M66,$R$1:$U$306,3,0) ->  | P66: =VLOOKUP(M66,$R$1:$U$306,4,0) -> J01 | Q66: =Classement!A5&Classement!AF1 -> 00 | R66: =A66&D66 -> 0 | S66: =B66 ->  | T66: =C66 ->  | U66: =E66 -> J08
A67: ='J08'!B8:F8 -> 0 | B67: =IF('J08'!G8="","",'J08'!G8) ->  | C67: =IF('J08'!H8="","",'J08'!H8) ->  | D67: =IF('J08'!I8="","",'J08'!I8) ->  | E67: J08 | I67: 0 | J67: J01 | M67: 0 | P67: J01 | Q67: =Classement!A5&Classement!AH1 -> 00 | R67: 0 | U67: J08
A68: ='J08'!B9:F9 -> 0 | B68: =IF('J08'!G9="","",'J08'!G9) ->  | C68: =IF('J08'!H9="","",'J08'!H9) ->  | D68: =IF('J08'!I9="","",'J08'!I9) ->  | E68: J08 | I68: 0 | J68: J01 | M68: 0 | P68: J01 | Q68: =Classement!A5&Classement!AJ1 -> 00 | R68: 0 | U68: J08
A69: ='J08'!B10:F10 -> 0 | B69: =IF('J08'!G10="","",'J08'!G10) ->  | C69: =IF('J08'!H10="","",'J08'!H10) ->  | D69: =IF('J08'!I10="","",'J08'!I10) ->  | E69: J08 | I69: 0 | J69: J01 | M69: 0 | P69: J01 | Q69: =Classement!A6&Classement!B1 -> 00 | R69: 0 | U69: J08
A70: ='J08'!B11:F11 -> 0 | B70: =IF('J08'!G11="","",'J08'!G11) ->  | C70: =IF('J08'!H11="","",'J08'!H11) ->  | D70: =IF('J08'!I11="","",'J08'!I11) ->  | E70: J08 | I70: 0 | J70: J01 | M70: 0 | P70: J01 | Q70: =Classement!A6&Classement!D1 -> 00 | R70: 0 | U70: J08
A71: ='J08'!B12:F12 -> 0 | B71: =IF('J08'!G12="","",'J08'!G12) ->  | C71: =IF('J08'!H12="","",'J08'!H12) ->  | D71: =IF('J08'!I12="","",'J08'!I12) ->  | E71: J08 | I71: 0 | J71: J01 | M71: 0 | P71: J01 | Q71: =Classement!A6&Classement!F1 -> 00 | R71: 0 | U71: J08
A72: ='J08'!B13:F13 -> 0 | B72: =IF('J08'!G13="","",'J08'!G13) ->  | C72: =IF('J08'!H13="","",'J08'!H13) ->  | D72: =IF('J08'!I13="","",'J08'!I13) ->  | E72: J08 | I72: 0 | J72: J01 | M72: 0 | P72: J01 | Q72: =Classement!A6&Classement!H1 -> 00 | R72: 0 | U72: J08
A73: ='J09'!B5:F5 -> 0 | B73: =IF('J09'!G5="","",'J09'!G5) ->  | C73: =IF('J09'!H5="","",'J09'!H5) ->  | D73: =IF('J09'!I5="","",'J09'!I5) ->  | E73: J09 | I73: 0 | J73: J01 | K73: 9 | M73: 0 | P73: J01 | Q73: =Classement!A6&Classement!L1 -> 00 | R73: 0 | U73: J09
A74: ='J09'!B6:F6 -> 0 | B74: =IF('J09'!G6="","",'J09'!G6) ->  | C74: =IF('J09'!H6="","",'J09'!H6) ->  | D74: =IF('J09'!I6="","",'J09'!I6) ->  | E74: J09 | I74: 0 | J74: J01 | M74: 0 | P74: J01 | Q74: =Classement!A6&Classement!N1 -> 00 | R74: 0 | U74: J09
A75: ='J09'!B7:F7 -> 0 | B75: =IF('J09'!G7="","",'J09'!G7) ->  | C75: =IF('J09'!H7="","",'J09'!H7) ->  | D75: =IF('J09'!I7="","",'J09'!I7) ->  | E75: J09 | I75: 0 | J75: J01 | M75: 0 | P75: J01 | Q75: =Classement!A6&Classement!P1 -> 00 | R75: 0 | U75: J09
A76: ='J09'!B8:F8 -> 0 | B76: =IF('J09'!G8="","",'J09'!G8) ->  | C76: =IF('J09'!H8="","",'J09'!H8) ->  | D76: =IF('J09'!I8="","",'J09'!I8) ->  | E76: J09 | I76: 0 | J76: J01 | M76: 0 | P76: J01 | Q76: =Classement!A6&Classement!R1 -> 00 | R76: 0 | U76: J09
A77: ='J09'!B9:F9 -> 0 | B77: =IF('J09'!G9="","",'J09'!G9) ->  | C77: =IF('J09'!H9="","",'J09'!H9) ->  | D77: =IF('J09'!I9="","",'J09'!I9) ->  | E77: J09 | I77: 0 | J77: J01 | M77: 0 | P77: J01 | Q77: =Classement!A6&Classement!T1 -> 00 | R77: 0 | U77: J09
A78: ='J09'!B10:F10 -> 0 | B78: =IF('J09'!G10="","",'J09'!G10) ->  | C78: =IF('J09'!H10="","",'J09'!H10) ->  | D78: =IF('J09'!I10="","",'J09'!I10) ->  | E78: J09 | I78: 0 | J78: J01 | M78: 0 | P78: J01 | Q78: =Classement!A6&Classement!V1 -> 00 | R78: 0 | U78: J09
A79: ='J09'!B11:F11 -> 0 | B79: =IF('J09'!G11="","",'J09'!G11) ->  | C79: =IF('J09'!H11="","",'J09'!H11) ->  | D79: =IF('J09'!I11="","",'J09'!I11) ->  | E79: J09 | I79: 0 | J79: J01 | M79: 0 | P79: J01 | Q79: =Classement!A6&Classement!X1 -> 00 | R79: 0 | U79: J09
A80: ='J09'!B12:F12 -> 0 | B80: =IF('J09'!G12="","",'J09'!G12) ->  | C80: =IF('J09'!H12="","",'J09'!H12) ->  | D80: =IF('J09'!I12="","",'J09'!I12) ->  | E80: J09 | I80: 0 | J80: J01 | M80: 0 | P80: J01 | Q80: =Classement!A6&Classement!Z1 -> 00 | R80: 0 | U80: J09
A81: ='J09'!B13:F13 -> 0 | B81: =IF('J09'!G13="","",'J09'!G13) ->  | C81: =IF('J09'!H13="","",'J09'!H13) ->  | D81: =IF('J09'!I13="","",'J09'!I13) ->  | E81: J09 | I81: 0 | J81: J01 | M81: 0 | P81: J01 | Q81: =Classement!A6&Classement!AB1 -> 00 | R81: 0 | U81: J09
A82: ='J10'!B5:F5 -> 0 | B82: =IF('J10'!G5="","",'J10'!G5) ->  | C82: =IF('J10'!H5="","",'J10'!H5) ->  | D82: =IF('J10'!I5="","",'J10'!I5) ->  | E82: J10 | I82: 0 | J82: J01 | K82: 10 | M82: 0 | P82: J01 | Q82: =Classement!A6&Classement!AD1 -> 00 | R82: 0 | U82: J10
A83: ='J10'!B6:F6 -> 0 | B83: =IF('J10'!G6="","",'J10'!G6) ->  | C83: =IF('J10'!H6="","",'J10'!H6) ->  | D83: =IF('J10'!I6="","",'J10'!I6) ->  | E83: J10 | I83: 0 | J83: J01 | M83: 0 | P83: J01 | Q83: =Classement!A6&Classement!AF1 -> 00 | R83: 0 | U83: J10
A84: ='J10'!B7:F7 -> 0 | B84: =IF('J10'!G7="","",'J10'!G7) ->  | C84: =IF('J10'!H7="","",'J10'!H7) ->  | D84: =IF('J10'!I7="","",'J10'!I7) ->  | E84: J10 | I84: 0 | J84: J01 | M84: 0 | P84: J01 | Q84: =Classement!A6&Classement!AH1 -> 00 | R84: 0 | U84: J10
A85: ='J10'!B8:F8 -> 0 | B85: =IF('J10'!G8="","",'J10'!G8) ->  | C85: =IF('J10'!H8="","",'J10'!H8) ->  | D85: =IF('J10'!I8="","",'J10'!I8) ->  | E85: J10 | I85: 0 | J85: J01 | M85: 0 | P85: J01 | Q85: =Classement!A6&Classement!AJ1 -> 00 | R85: 0 | U85: J10
A86: ='J10'!B9:F9 -> 0 | B86: =IF('J10'!G9="","",'J10'!G9) ->  | C86: =IF('J10'!H9="","",'J10'!H9) ->  | D86: =IF('J10'!I9="","",'J10'!I9) ->  | E86: J10 | I86: 0 | J86: J01 | M86: 0 | P86: J01 | Q86: =Classement!A7&Classement!B1 -> 00 | R86: 0 | U86: J10
A87: ='J10'!B10:F10 -> 0 | B87: =IF('J10'!G10="","",'J10'!G10) ->  | C87: =IF('J10'!H10="","",'J10'!H10) ->  | D87: =IF('J10'!I10="","",'J10'!I10) ->  | E87: J10 | I87: 0 | J87: J01 | M87: 0 | P87: J01 | Q87: =Classement!A7&Classement!D1 -> 00 | R87: 0 | U87: J10
A88: ='J10'!B11:F11 -> 0 | B88: =IF('J10'!G11="","",'J10'!G11) ->  | C88: =IF('J10'!H11="","",'J10'!H11) ->  | D88: =IF('J10'!I11="","",'J10'!I11) ->  | E88: J10 | I88: 0 | J88: J01 | M88: 0 | P88: J01 | Q88: =Classement!A7&Classement!F1 -> 00 | R88: 0 | U88: J10
A89: ='J10'!B12:F12 -> 0 | B89: =IF('J10'!G12="","",'J10'!G12) ->  | C89: =IF('J10'!H12="","",'J10'!H12) ->  | D89: =IF('J10'!I12="","",'J10'!I12) ->  | E89: J10 | I89: 0 | J89: J01 | M89: 0 | P89: J01 | Q89: =Classement!A7&Classement!H1 -> 00 | R89: 0 | U89: J10
A90: ='J10'!B13:F13 -> 0 | B90: =IF('J10'!G13="","",'J10'!G13) ->  | C90: =IF('J10'!H13="","",'J10'!H13) ->  | D90: =IF('J10'!I13="","",'J10'!I13) ->  | E90: J10 | I90: 0 | J90: J01 | M90: 0 | P90: J01 | Q90: =Classement!A7&Classement!J1 -> 00 | R90: 0 | U90: J10
A91: ='J11'!B5:F5 -> 0 | B91: =IF('J11'!G5="","",'J11'!G5) ->  | C91: =IF('J11'!H5="","",'J11'!H5) ->  | D91: =IF('J11'!I5="","",'J11'!I5) ->  | E91: J11 | I91: 0 | J91: J01 | K91: 11 | M91: 0 | P91: J01 | Q91: =Classement!A7&Classement!N1 -> 00 | R91: 0 | U91: J11
A92: ='J11'!B6:F6 -> 0 | B92: =IF('J11'!G6="","",'J11'!G6) ->  | C92: =IF('J11'!H6="","",'J11'!H6) ->  | D92: =IF('J11'!I6="","",'J11'!I6) ->  | E92: J11 | I92: 0 | J92: J01 | M92: 0 | P92: J01 | Q92: =Classement!A7&Classement!P1 -> 00 | R92: 0 | U92: J11
A93: ='J11'!B7:F7 -> 0 | B93: =IF('J11'!G7="","",'J11'!G7) ->  | C93: =IF('J11'!H7="","",'J11'!H7) ->  | D93: =IF('J11'!I7="","",'J11'!I7) ->  | E93: J11 | I93: 0 | J93: J01 | M93: 0 | P93: J01 | Q93: =Classement!A7&Classement!R1 -> 00 | R93: 0 | U93: J11
A94: ='J11'!B8:F8 -> 0 | B94: =IF('J11'!G8="","",'J11'!G8) ->  | C94: =IF('J11'!H8="","",'J11'!H8) ->  | D94: =IF('J11'!I8="","",'J11'!I8) ->  | E94: J11 | I94: 0 | J94: J01 | M94: 0 | P94: J01 | Q94: =Classement!A7&Classement!T1 -> 00 | R94: 0 | U94: J11
A95: ='J11'!B9:F9 -> 0 | B95: =IF('J11'!G9="","",'J11'!G9) ->  | C95: =IF('J11'!H9="","",'J11'!H9) ->  | D95: =IF('J11'!I9="","",'J11'!I9) ->  | E95: J11 | I95: 0 | J95: J01 | M95: 0 | P95: J01 | Q95: =Classement!A7&Classement!V1 -> 00 | R95: 0 | U95: J11
A96: ='J11'!B10:F10 -> 0 | B96: =IF('J11'!G10="","",'J11'!G10) ->  | C96: =IF('J11'!H10="","",'J11'!H10) ->  | D96: =IF('J11'!I10="","",'J11'!I10) ->  | E96: J11 | I96: 0 | J96: J01 | M96: 0 | P96: J01 | Q96: =Classement!A7&Classement!X1 -> 00 | R96: 0 | U96: J11
A97: ='J11'!B11:F11 -> 0 | B97: =IF('J11'!G11="","",'J11'!G11) ->  | C97: =IF('J11'!H11="","",'J11'!H11) ->  | D97: =IF('J11'!I11="","",'J11'!I11) ->  | E97: J11 | I97: 0 | J97: J01 | M97: 0 | P97: J01 | Q97: =Classement!A7&Classement!Z1 -> 00 | R97: 0 | U97: J11
A98: ='J11'!B12:F12 -> 0 | B98: =IF('J11'!G12="","",'J11'!G12) ->  | C98: =IF('J11'!H12="","",'J11'!H12) ->  | D98: =IF('J11'!I12="","",'J11'!I12) ->  | E98: J11 | I98: 0 | J98: J01 | M98: 0 | P98: J01 | Q98: =Classement!A7&Classement!AB1 -> 00 | R98: 0 | U98: J11
A99: ='J11'!B13:F13 -> 0 | B99: =IF('J11'!G13="","",'J11'!G13) ->  | C99: =IF('J11'!H13="","",'J11'!H13) ->  | D99: =IF('J11'!I13="","",'J11'!I13) ->  | E99: J11 | I99: 0 | J99: J01 | M99: 0 | P99: J01 | Q99: =Classement!A7&Classement!AD1 -> 00 | R99: 0 | U99: J11
A100: ='J12'!B5:F5 -> 0 | B100: =IF('J12'!G5="","",'J12'!G5) ->  | C100: =IF('J12'!H5="","",'J12'!H5) ->  | D100: =IF('J12'!I5="","",'J12'!I5) ->  | E100: J12 | I100: 0 | J100: J01 | K100: 12 | M100: 0 | P100: J01 | Q100: =Classement!A7&Classement!AF1 -> 00 | R100: 0 | U100: J12
A101: ='J12'!B6:F6 -> 0 | B101: =IF('J12'!G6="","",'J12'!G6) ->  | C101: =IF('J12'!H6="","",'J12'!H6) ->  | D101: =IF('J12'!I6="","",'J12'!I6) ->  | E101: J12 | I101: 0 | J101: J01 | M101: 0 | P101: J01 | Q101: =Classement!A7&Classement!AH1 -> 00 | R101: 0 | U101: J12
A102: ='J12'!B7:F7 -> 0 | B102: =IF('J12'!G7="","",'J12'!G7) ->  | C102: =IF('J12'!H7="","",'J12'!H7) ->  | D102: =IF('J12'!I7="","",'J12'!I7) ->  | E102: J12 | I102: 0 | J102: J01 | M102: 0 | P102: J01 | Q102: =Classement!A7&Classement!AJ1 -> 00 | R102: 0 | U102: J12
A103: ='J12'!B8:F8 -> 0 | B103: =IF('J12'!G8="","",'J12'!G8) ->  | C103: =IF('J12'!H8="","",'J12'!H8) ->  | D103: =IF('J12'!I8="","",'J12'!I8) ->  | E103: J12 | I103: 0 | J103: J01 | M103: 0 | P103: J01 | Q103: =Classement!A8&Classement!B1 -> 00 | R103: 0 | U103: J12
A104: ='J12'!B9:F9 -> 0 | B104: =IF('J12'!G9="","",'J12'!G9) ->  | C104: =IF('J12'!H9="","",'J12'!H9) ->  | D104: =IF('J12'!I9="","",'J12'!I9) ->  | E104: J12 | I104: 0 | J104: J01 | M104: 0 | P104: J01 | Q104: =Classement!A8&Classement!D1 -> 00 | R104: 0 | U104: J12
A105: ='J12'!B10:F10 -> 0 | B105: =IF('J12'!G10="","",'J12'!G10) ->  | C105: =IF('J12'!H10="","",'J12'!H10) ->  | D105: =IF('J12'!I10="","",'J12'!I10) ->  | E105: J12 | I105: 0 | J105: J01 | M105: 0 | P105: J01 | Q105: =Classement!A8&Classement!F1 -> 00 | R105: 0 | U105: J12
A106: ='J12'!B11:F11 -> 0 | B106: =IF('J12'!G11="","",'J12'!G11) ->  | C106: =IF('J12'!H11="","",'J12'!H11) ->  | D106: =IF('J12'!I11="","",'J12'!I11) ->  | E106: J12 | I106: 0 | J106: J01 | M106: 0 | P106: J01 | Q106: =Classement!A8&Classement!H1 -> 00 | R106: 0 | U106: J12
A107: ='J12'!B12:F12 -> 0 | B107: =IF('J12'!G12="","",'J12'!G12) ->  | C107: =IF('J12'!H12="","",'J12'!H12) ->  | D107: =IF('J12'!I12="","",'J12'!I12) ->  | E107: J12 | I107: 0 | J107: J01 | M107: 0 | P107: J01 | Q107: =Classement!A8&Classement!J1 -> 00 | R107: 0 | U107: J12
A108: ='J12'!B13:F13 -> 0 | B108: =IF('J12'!G13="","",'J12'!G13) ->  | C108: =IF('J12'!H13="","",'J12'!H13) ->  | D108: =IF('J12'!I13="","",'J12'!I13) ->  | E108: J12 | I108: 0 | J108: J01 | M108: 0 | P108: J01 | Q108: =Classement!A8&Classement!L1 -> 00 | R108: 0 | U108: J12
A109: ='J13'!B5:F5 -> 0 | B109: =IF('J13'!G5="","",'J13'!G5) ->  | C109: =IF('J13'!H5="","",'J13'!H5) ->  | D109: =IF('J13'!I5="","",'J13'!I5) ->  | E109: J13 | I109: 0 | J109: J01 | K109: 13 | M109: 0 | P109: J01 | Q109: =Classement!A8&Classement!P1 -> 00 | R109: 0 | U109: J13
A110: ='J13'!B6:F6 -> 0 | B110: =IF('J13'!G6="","",'J13'!G6) ->  | C110: =IF('J13'!H6="","",'J13'!H6) ->  | D110: =IF('J13'!I6="","",'J13'!I6) ->  | E110: J13 | I110: 0 | J110: J01 | M110: 0 | P110: J01 | Q110: =Classement!A8&Classement!R1 -> 00 | R110: 0 | U110: J13
A111: ='J13'!B7:F7 -> 0 | B111: =IF('J13'!G7="","",'J13'!G7) ->  | C111: =IF('J13'!H7="","",'J13'!H7) ->  | D111: =IF('J13'!I7="","",'J13'!I7) ->  | E111: J13 | I111: 0 | J111: J01 | M111: 0 | P111: J01 | Q111: =Classement!A8&Classement!T1 -> 00 | R111: 0 | U111: J13
A112: ='J13'!B8:F8 -> 0 | B112: =IF('J13'!G8="","",'J13'!G8) ->  | C112: =IF('J13'!H8="","",'J13'!H8) ->  | D112: =IF('J13'!I8="","",'J13'!I8) ->  | E112: J13 | I112: 0 | J112: J01 | M112: 0 | P112: J01 | Q112: =Classement!A8&Classement!V1 -> 00 | R112: 0 | U112: J13
A113: ='J13'!B9:F9 -> 0 | B113: =IF('J13'!G9="","",'J13'!G9) ->  | C113: =IF('J13'!H9="","",'J13'!H9) ->  | D113: =IF('J13'!I9="","",'J13'!I9) ->  | E113: J13 | I113: 0 | J113: J01 | M113: 0 | P113: J01 | Q113: =Classement!A8&Classement!X1 -> 00 | R113: 0 | U113: J13
A114: ='J13'!B10:F10 -> 0 | B114: =IF('J13'!G10="","",'J13'!G10) ->  | C114: =IF('J13'!H10="","",'J13'!H10) ->  | D114: =IF('J13'!I10="","",'J13'!I10) ->  | E114: J13 | I114: 0 | J114: J01 | M114: 0 | P114: J01 | Q114: =Classement!A8&Classement!Z1 -> 00 | R114: 0 | U114: J13
A115: ='J13'!B11:F11 -> 0 | B115: =IF('J13'!G11="","",'J13'!G11) ->  | C115: =IF('J13'!H11="","",'J13'!H11) ->  | D115: =IF('J13'!I11="","",'J13'!I11) ->  | E115: J13 | I115: 0 | J115: J01 | M115: 0 | P115: J01 | Q115: =Classement!A8&Classement!AB1 -> 00 | R115: 0 | U115: J13
A116: ='J13'!B12:F12 -> 0 | B116: =IF('J13'!G12="","",'J13'!G12) ->  | C116: =IF('J13'!H12="","",'J13'!H12) ->  | D116: =IF('J13'!I12="","",'J13'!I12) ->  | E116: J13 | I116: 0 | J116: J01 | M116: 0 | P116: J01 | Q116: =Classement!A8&Classement!AD1 -> 00 | R116: 0 | U116: J13
A117: ='J13'!B13:F13 -> 0 | B117: =IF('J13'!G13="","",'J13'!G13) ->  | C117: =IF('J13'!H13="","",'J13'!H13) ->  | D117: =IF('J13'!I13="","",'J13'!I13) ->  | E117: J13 | I117: 0 | J117: J01 | M117: 0 | P117: J01 | Q117: =Classement!A8&Classement!AF1 -> 00 | R117: 0 | U117: J13
A118: ='J14'!B5:F5 -> 0 | B118: =IF('J14'!G5="","",'J14'!G5) ->  | C118: =IF('J14'!H5="","",'J14'!H5) ->  | D118: =IF('J14'!I5="","",'J14'!I5) ->  | E118: J14 | I118: 0 | J118: J01 | K118: 14 | M118: 0 | P118: J01 | Q118: =Classement!A8&Classement!AH1 -> 00 | R118: 0 | U118: J14
A119: ='J14'!B6:F6 -> 0 | B119: =IF('J14'!G6="","",'J14'!G6) ->  | C119: =IF('J14'!H6="","",'J14'!H6) ->  | D119: =IF('J14'!I6="","",'J14'!I6) ->  | E119: J14 | I119: 0 | J119: J01 | M119: 0 | P119: J01 | Q119: =Classement!A8&Classement!AJ1 -> 00 | R119: 0 | U119: J14
A120: ='J14'!B7:F7 -> 0 | B120: =IF('J14'!G7="","",'J14'!G7) ->  | C120: =IF('J14'!H7="","",'J14'!H7) ->  | D120: =IF('J14'!I7="","",'J14'!I7) ->  | E120: J14 | I120: 0 | J120: J01 | M120: 0 | P120: J01 | Q120: =Classement!A9&Classement!B1 -> 00 | R120: 0 | U120: J14
A121: ='J14'!B8:F8 -> 0 | B121: =IF('J14'!G8="","",'J14'!G8) ->  | C121: =IF('J14'!H8="","",'J14'!H8) ->  | D121: =IF('J14'!I8="","",'J14'!I8) ->  | E121: J14 | I121: 0 | J121: J01 | M121: 0 | P121: J01 | Q121: =Classement!A9&Classement!D1 -> 00 | R121: 0 | U121: J14
A122: ='J14'!B9:F9 -> 0 | B122: =IF('J14'!G9="","",'J14'!G9) ->  | C122: =IF('J14'!H9="","",'J14'!H9) ->  | D122: =IF('J14'!I9="","",'J14'!I9) ->  | E122: J14 | I122: 0 | J122: J01 | M122: 0 | P122: J01 | Q122: =Classement!A9&Classement!F1 -> 00 | R122: 0 | U122: J14
A123: ='J14'!B10:F10 -> 0 | B123: =IF('J14'!G10="","",'J14'!G10) ->  | C123: =IF('J14'!H10="","",'J14'!H10) ->  | D123: =IF('J14'!I10="","",'J14'!I10) ->  | E123: J14 | I123: 0 | J123: J01 | M123: 0 | P123: J01 | Q123: =Classement!A9&Classement!H1 -> 00 | R123: 0 | U123: J14
A124: ='J14'!B11:F11 -> 0 | B124: =IF('J14'!G11="","",'J14'!G11) ->  | C124: =IF('J14'!H11="","",'J14'!H11) ->  | D124: =IF('J14'!I11="","",'J14'!I11) ->  | E124: J14 | I124: 0 | J124: J01 | M124: 0 | P124: J01 | Q124: =Classement!A9&Classement!J1 -> 00 | R124: 0 | U124: J14
A125: ='J14'!B12:F12 -> 0 | B125: =IF('J14'!G12="","",'J14'!G12) ->  | C125: =IF('J14'!H12="","",'J14'!H12) ->  | D125: =IF('J14'!I12="","",'J14'!I12) ->  | E125: J14 | I125: 0 | J125: J01 | M125: 0 | P125: J01 | Q125: =Classement!A9&Classement!L1 -> 00 | R125: 0 | U125: J14
A126: ='J14'!B13:F13 -> 0 | B126: =IF('J14'!G13="","",'J14'!G13) ->  | C126: =IF('J14'!H13="","",'J14'!H13) ->  | D126: =IF('J14'!I13="","",'J14'!I13) ->  | E126: J14 | I126: 0 | J126: J01 | M126: 0 | P126: J01 | Q126: =Classement!A9&Classement!N1 -> 00 | R126: 0 | U126: J14
A127: ='J15'!B5:F5 -> 0 | B127: =IF('J15'!G5="","",'J15'!G5) ->  | C127: =IF('J15'!H5="","",'J15'!H5) ->  | D127: =IF('J15'!I5="","",'J15'!I5) ->  | E127: J15 | I127: 0 | J127: J01 | K127: 15 | M127: 0 | P127: J01 | Q127: =Classement!A9&Classement!R1 -> 00 | R127: 0 | U127: J15
A128: ='J15'!B6:F6 -> 0 | B128: =IF('J15'!G6="","",'J15'!G6) ->  | C128: =IF('J15'!H6="","",'J15'!H6) ->  | D128: =IF('J15'!I6="","",'J15'!I6) ->  | E128: J15 | I128: 0 | J128: J01 | M128: 0 | P128: J01 | Q128: =Classement!A9&Classement!T1 -> 00 | R128: 0 | U128: J15
A129: ='J15'!B7:F7 -> 0 | B129: =IF('J15'!G7="","",'J15'!G7) ->  | C129: =IF('J15'!H7="","",'J15'!H7) ->  | D129: =IF('J15'!I7="","",'J15'!I7) ->  | E129: J15 | I129: 0 | J129: J01 | M129: 0 | P129: J01 | Q129: =Classement!A9&Classement!V1 -> 00 | R129: 0 | U129: J15
A130: ='J15'!B8:F8 -> 0 | B130: =IF('J15'!G8="","",'J15'!G8) ->  | C130: =IF('J15'!H8="","",'J15'!H8) ->  | D130: =IF('J15'!I8="","",'J15'!I8) ->  | E130: J15 | F130: =D130 ->  | G130: =IF(N130="","",N130) ->  | H130: =IF(O130="","",O130) ->  | I130: =A130 -> 0 | J130: =IF(P130="","",P130) -> J01 | M130: =F130&I130 -> 0 | N130: =VLOOKUP(M130,$R$1:$U$306,2,0) ->  | O130: =VLOOKUP(M130,$R$1:$U$306,3,0) ->  | P130: =VLOOKUP(M130,$R$1:$U$306,4,0) -> J01 | Q130: =Classement!A9&Classement!X1 -> 00 | R130: =A130&D130 -> 0 | S130: =B130 ->  | T130: =C130 ->  | U130: =E130 -> J15
A131: ='J15'!B9:F9 -> 0 | B131: =IF('J15'!G9="","",'J15'!G9) ->  | C131: =IF('J15'!H9="","",'J15'!H9) ->  | D131: =IF('J15'!I9="","",'J15'!I9) ->  | E131: J15 | I131: 0 | J131: J01 | M131: 0 | P131: J01 | Q131: =Classement!A9&Classement!Z1 -> 00 | R131: 0 | U131: J15
A132: ='J15'!B10:F10 -> 0 | B132: =IF('J15'!G10="","",'J15'!G10) ->  | C132: =IF('J15'!H10="","",'J15'!H10) ->  | D132: =IF('J15'!I10="","",'J15'!I10) ->  | E132: J15 | I132: 0 | J132: J01 | M132: 0 | P132: J01 | Q132: =Classement!A9&Classement!AB1 -> 00 | R132: 0 | U132: J15
A133: ='J15'!B11:F11 -> 0 | B133: =IF('J15'!G11="","",'J15'!G11) ->  | C133: =IF('J15'!H11="","",'J15'!H11) ->  | D133: =IF('J15'!I11="","",'J15'!I11) ->  | E133: J15 | I133: 0 | J133: J01 | M133: 0 | P133: J01 | Q133: =Classement!A9&Classement!AD1 -> 00 | R133: 0 | U133: J15
A134: ='J15'!B12:F12 -> 0 | B134: =IF('J15'!G12="","",'J15'!G12) ->  | C134: =IF('J15'!H12="","",'J15'!H12) ->  | D134: =IF('J15'!I12="","",'J15'!I12) ->  | E134: J15 | I134: 0 | J134: J01 | M134: 0 | P134: J01 | Q134: =Classement!A9&Classement!AF1 -> 00 | R134: 0 | U134: J15
A135: ='J15'!B13:F13 -> 0 | B135: =IF('J15'!G13="","",'J15'!G13) ->  | C135: =IF('J15'!H13="","",'J15'!H13) ->  | D135: =IF('J15'!I13="","",'J15'!I13) ->  | E135: J15 | I135: 0 | J135: J01 | M135: 0 | P135: J01 | Q135: =Classement!A9&Classement!AH1 -> 00 | R135: 0 | U135: J15
A136: ='J16'!B5:F5 -> 0 | B136: =IF('J16'!G5="","",'J16'!G5) ->  | C136: =IF('J16'!H5="","",'J16'!H5) ->  | D136: =IF('J16'!I5="","",'J16'!I5) ->  | E136: J16 | I136: 0 | J136: J01 | K136: 16 | M136: 0 | P136: J01 | Q136: =Classement!A9&Classement!AJ1 -> 00 | R136: 0 | U136: J16
A137: ='J16'!B6:F6 -> 0 | B137: =IF('J16'!G6="","",'J16'!G6) ->  | C137: =IF('J16'!H6="","",'J16'!H6) ->  | D137: =IF('J16'!I6="","",'J16'!I6) ->  | E137: J16 | I137: 0 | J137: J01 | M137: 0 | P137: J01 | Q137: =Classement!A10&Classement!B1 -> 00 | R137: 0 | U137: J16
A138: ='J16'!B7:F7 -> 0 | B138: =IF('J16'!G7="","",'J16'!G7) ->  | C138: =IF('J16'!H7="","",'J16'!H7) ->  | D138: =IF('J16'!I7="","",'J16'!I7) ->  | E138: J16 | I138: 0 | J138: J01 | M138: 0 | P138: J01 | Q138: =Classement!A10&Classement!D1 -> 00 | R138: 0 | U138: J16
A139: ='J16'!B8:F8 -> 0 | B139: =IF('J16'!G8="","",'J16'!G8) ->  | C139: =IF('J16'!H8="","",'J16'!H8) ->  | D139: =IF('J16'!I8="","",'J16'!I8) ->  | E139: J16 | I139: 0 | J139: J01 | M139: 0 | P139: J01 | Q139: =Classement!A10&Classement!F1 -> 00 | R139: 0 | U139: J16
A140: ='J16'!B9:F9 -> 0 | B140: =IF('J16'!G9="","",'J16'!G9) ->  | C140: =IF('J16'!H9="","",'J16'!H9) ->  | D140: =IF('J16'!I9="","",'J16'!I9) ->  | E140: J16 | I140: 0 | J140: J01 | M140: 0 | P140: J01 | Q140: =Classement!A10&Classement!H1 -> 00 | R140: 0 | U140: J16
A141: ='J16'!B10:F10 -> 0 | B141: =IF('J16'!G10="","",'J16'!G10) ->  | C141: =IF('J16'!H10="","",'J16'!H10) ->  | D141: =IF('J16'!I10="","",'J16'!I10) ->  | E141: J16 | I141: 0 | J141: J01 | M141: 0 | P141: J01 | Q141: =Classement!A10&Classement!J1 -> 00 | R141: 0 | U141: J16
A142: ='J16'!B11:F11 -> 0 | B142: =IF('J16'!G11="","",'J16'!G11) ->  | C142: =IF('J16'!H11="","",'J16'!H11) ->  | D142: =IF('J16'!I11="","",'J16'!I11) ->  | E142: J16 | I142: 0 | J142: J01 | M142: 0 | P142: J01 | Q142: =Classement!A10&Classement!L1 -> 00 | R142: 0 | U142: J16
A143: ='J16'!B12:F12 -> 0 | B143: =IF('J16'!G12="","",'J16'!G12) ->  | C143: =IF('J16'!H12="","",'J16'!H12) ->  | D143: =IF('J16'!I12="","",'J16'!I12) ->  | E143: J16 | I143: 0 | J143: J01 | M143: 0 | P143: J01 | Q143: =Classement!A10&Classement!N1 -> 00 | R143: 0 | U143: J16
A144: ='J16'!B13:F13 -> 0 | B144: =IF('J16'!G13="","",'J16'!G13) ->  | C144: =IF('J16'!H13="","",'J16'!H13) ->  | D144: =IF('J16'!I13="","",'J16'!I13) ->  | E144: J16 | I144: 0 | J144: J01 | M144: 0 | P144: J01 | Q144: =Classement!A10&Classement!P1 -> 00 | R144: 0 | U144: J16
A145: ='J17'!B5:F5 -> 0 | B145: =IF('J17'!G5="","",'J17'!G5) ->  | C145: =IF('J17'!H5="","",'J17'!H5) ->  | D145: =IF('J17'!I5="","",'J17'!I5) ->  | E145: J17 | I145: 0 | J145: J01 | K145: 17 | M145: 0 | P145: J01 | Q145: =Classement!A10&Classement!T1 -> 00 | R145: 0 | U145: J17
A146: ='J17'!B6:F6 -> 0 | B146: =IF('J17'!G6="","",'J17'!G6) ->  | C146: =IF('J17'!H6="","",'J17'!H6) ->  | D146: =IF('J17'!I6="","",'J17'!I6) ->  | E146: J17 | I146: 0 | J146: J01 | M146: 0 | P146: J01 | Q146: =Classement!A10&Classement!V1 -> 00 | R146: 0 | U146: J17
A147: ='J17'!B7:F7 -> 0 | B147: =IF('J17'!G7="","",'J17'!G7) ->  | C147: =IF('J17'!H7="","",'J17'!H7) ->  | D147: =IF('J17'!I7="","",'J17'!I7) ->  | E147: J17 | I147: 0 | J147: J01 | M147: 0 | P147: J01 | Q147: =Classement!A10&Classement!X1 -> 00 | R147: 0 | U147: J17
A148: ='J17'!B8:F8 -> 0 | B148: =IF('J17'!G8="","",'J17'!G8) ->  | C148: =IF('J17'!H8="","",'J17'!H8) ->  | D148: =IF('J17'!I8="","",'J17'!I8) ->  | E148: J17 | I148: 0 | J148: J01 | M148: 0 | P148: J01 | Q148: =Classement!A10&Classement!Z1 -> 00 | R148: 0 | U148: J17
A149: ='J17'!B9:F9 -> 0 | B149: =IF('J17'!G9="","",'J17'!G9) ->  | C149: =IF('J17'!H9="","",'J17'!H9) ->  | D149: =IF('J17'!I9="","",'J17'!I9) ->  | E149: J17 | I149: 0 | J149: J01 | M149: 0 | P149: J01 | Q149: =Classement!A10&Classement!AB1 -> 00 | R149: 0 | U149: J17
A150: ='J17'!B10:F10 -> 0 | B150: =IF('J17'!G10="","",'J17'!G10) ->  | C150: =IF('J17'!H10="","",'J17'!H10) ->  | D150: =IF('J17'!I10="","",'J17'!I10) ->  | E150: J17 | I150: 0 | J150: J01 | M150: 0 | P150: J01 | Q150: =Classement!A10&Classement!AD1 -> 00 | R150: 0 | U150: J17
A151: ='J17'!B11:F11 -> 0 | B151: =IF('J17'!G11="","",'J17'!G11) ->  | C151: =IF('J17'!H11="","",'J17'!H11) ->  | D151: =IF('J17'!I11="","",'J17'!I11) ->  | E151: J17 | I151: 0 | J151: J01 | M151: 0 | P151: J01 | Q151: =Classement!A10&Classement!AF1 -> 00 | R151: 0 | U151: J17
A152: ='J17'!B12:F12 -> 0 | B152: =IF('J17'!G12="","",'J17'!G12) ->  | C152: =IF('J17'!H12="","",'J17'!H12) ->  | D152: =IF('J17'!I12="","",'J17'!I12) ->  | E152: J17 | I152: 0 | J152: J01 | M152: 0 | P152: J01 | Q152: =Classement!A10&Classement!AH1 -> 00 | R152: 0 | U152: J17
A153: ='J17'!B13:F13 -> 0 | B153: =IF('J17'!G13="","",'J17'!G13) ->  | C153: =IF('J17'!H13="","",'J17'!H13) ->  | D153: =IF('J17'!I13="","",'J17'!I13) ->  | E153: J17 | I153: 0 | J153: J01 | M153: 0 | P153: J01 | Q153: =Classement!A10&Classement!AJ1 -> 00 | R153: 0 | U153: J17
A154: ='J18'!B5:F5 -> 0 | B154: =IF('J18'!G5="","",'J18'!G5) ->  | C154: =IF('J18'!H5="","",'J18'!H5) ->  | D154: =IF('J18'!I5="","",'J18'!I5) ->  | E154: J18 | I154: 0 | J154: J01 | K154: 18 | M154: 0 | P154: J01 | Q154: =Classement!A11&Classement!B1 -> 00 | R154: 0 | U154: J18
A155: ='J18'!B6:F6 -> 0 | B155: =IF('J18'!G6="","",'J18'!G6) ->  | C155: =IF('J18'!H6="","",'J18'!H6) ->  | D155: =IF('J18'!I6="","",'J18'!I6) ->  | E155: J18 | I155: 0 | J155: J01 | M155: 0 | P155: J01 | Q155: =Classement!A11&Classement!D1 -> 00 | R155: 0 | U155: J18
A156: ='J18'!B7:F7 -> 0 | B156: =IF('J18'!G7="","",'J18'!G7) ->  | C156: =IF('J18'!H7="","",'J18'!H7) ->  | D156: =IF('J18'!I7="","",'J18'!I7) ->  | E156: J18 | I156: 0 | J156: J01 | M156: 0 | P156: J01 | Q156: =Classement!A11&Classement!F1 -> 00 | R156: 0 | U156: J18
A157: ='J18'!B8:F8 -> 0 | B157: =IF('J18'!G8="","",'J18'!G8) ->  | C157: =IF('J18'!H8="","",'J18'!H8) ->  | D157: =IF('J18'!I8="","",'J18'!I8) ->  | E157: J18 | I157: 0 | J157: J01 | M157: 0 | P157: J01 | Q157: =Classement!A11&Classement!H1 -> 00 | R157: 0 | U157: J18
A158: ='J18'!B9:F9 -> 0 | B158: =IF('J18'!G9="","",'J18'!G9) ->  | C158: =IF('J18'!H9="","",'J18'!H9) ->  | D158: =IF('J18'!I9="","",'J18'!I9) ->  | E158: J18 | I158: 0 | J158: J01 | M158: 0 | P158: J01 | Q158: =Classement!A11&Classement!J1 -> 00 | R158: 0 | U158: J18
A159: ='J18'!B10:F10 -> 0 | B159: =IF('J18'!G10="","",'J18'!G10) ->  | C159: =IF('J18'!H10="","",'J18'!H10) ->  | D159: =IF('J18'!I10="","",'J18'!I10) ->  | E159: J18 | I159: 0 | J159: J01 | M159: 0 | P159: J01 | Q159: =Classement!A11&Classement!L1 -> 00 | R159: 0 | U159: J18
A160: ='J18'!B11:F11 -> 0 | B160: =IF('J18'!G11="","",'J18'!G11) ->  | C160: =IF('J18'!H11="","",'J18'!H11) ->  | D160: =IF('J18'!I11="","",'J18'!I11) ->  | E160: J18 | I160: 0 | J160: J01 | M160: 0 | P160: J01 | Q160: =Classement!A11&Classement!N1 -> 00 | R160: 0 | U160: J18
A161: ='J18'!B12:F12 -> 0 | B161: =IF('J18'!G12="","",'J18'!G12) ->  | C161: =IF('J18'!H12="","",'J18'!H12) ->  | D161: =IF('J18'!I12="","",'J18'!I12) ->  | E161: J18 | I161: 0 | J161: J01 | M161: 0 | P161: J01 | Q161: =Classement!A11&Classement!P1 -> 00 | R161: 0 | U161: J18
A162: ='J18'!B13:F13 -> 0 | B162: =IF('J18'!G13="","",'J18'!G13) ->  | C162: =IF('J18'!H13="","",'J18'!H13) ->  | D162: =IF('J18'!I13="","",'J18'!I13) ->  | E162: J18 | I162: 0 | J162: J01 | M162: 0 | P162: J01 | Q162: =Classement!A11&Classement!R1 -> 00 | R162: 0 | U162: J18
A163: ='J19'!B5:F5 -> 0 | B163: =IF('J19'!G5="","",'J19'!G5) ->  | C163: =IF('J19'!H5="","",'J19'!H5) ->  | D163: =IF('J19'!I5="","",'J19'!I5) ->  | E163: J19 | I163: 0 | J163: J01 | K163: 19 | M163: 0 | P163: J01 | Q163: =Classement!A11&Classement!V1 -> 00 | R163: 0 | U163: J19
A164: ='J19'!B6:F6 -> 0 | B164: =IF('J19'!G6="","",'J19'!G6) ->  | C164: =IF('J19'!H6="","",'J19'!H6) ->  | D164: =IF('J19'!I6="","",'J19'!I6) ->  | E164: J19 | I164: 0 | J164: J01 | M164: 0 | P164: J01 | Q164: =Classement!A11&Classement!X1 -> 00 | R164: 0 | U164: J19
A165: ='J19'!B7:F7 -> 0 | B165: =IF('J19'!G7="","",'J19'!G7) ->  | C165: =IF('J19'!H7="","",'J19'!H7) ->  | D165: =IF('J19'!I7="","",'J19'!I7) ->  | E165: J19 | I165: 0 | J165: J01 | M165: 0 | P165: J01 | Q165: =Classement!A11&Classement!Z1 -> 00 | R165: 0 | U165: J19
A166: ='J19'!B8:F8 -> 0 | B166: =IF('J19'!G8="","",'J19'!G8) ->  | C166: =IF('J19'!H8="","",'J19'!H8) ->  | D166: =IF('J19'!I8="","",'J19'!I8) ->  | E166: J19 | I166: 0 | J166: J01 | M166: 0 | P166: J01 | Q166: =Classement!A11&Classement!AB1 -> 00 | R166: 0 | U166: J19
A167: ='J19'!B9:F9 -> 0 | B167: =IF('J19'!G9="","",'J19'!G9) ->  | C167: =IF('J19'!H9="","",'J19'!H9) ->  | D167: =IF('J19'!I9="","",'J19'!I9) ->  | E167: J19 | I167: 0 | J167: J01 | M167: 0 | P167: J01 | Q167: =Classement!A11&Classement!AD1 -> 00 | R167: 0 | U167: J19
A168: ='J19'!B10:F10 -> 0 | B168: =IF('J19'!G10="","",'J19'!G10) ->  | C168: =IF('J19'!H10="","",'J19'!H10) ->  | D168: =IF('J19'!I10="","",'J19'!I10) ->  | E168: J19 | I168: 0 | J168: J01 | M168: 0 | P168: J01 | Q168: =Classement!A11&Classement!AF1 -> 00 | R168: 0 | U168: J19
A169: ='J19'!B11:F11 -> 0 | B169: =IF('J19'!G11="","",'J19'!G11) ->  | C169: =IF('J19'!H11="","",'J19'!H11) ->  | D169: =IF('J19'!I11="","",'J19'!I11) ->  | E169: J19 | I169: 0 | J169: J01 | M169: 0 | P169: J01 | Q169: =Classement!A11&Classement!AH1 -> 00 | R169: 0 | U169: J19
A170: ='J19'!B12:F12 -> 0 | B170: =IF('J19'!G12="","",'J19'!G12) ->  | C170: =IF('J19'!H12="","",'J19'!H12) ->  | D170: =IF('J19'!I12="","",'J19'!I12) ->  | E170: J19 | I170: 0 | J170: J01 | M170: 0 | P170: J01 | Q170: =Classement!A11&Classement!AJ1 -> 00 | R170: 0 | U170: J19
A171: ='J19'!B13:F13 -> 0 | B171: =IF('J19'!G13="","",'J19'!G13) ->  | C171: =IF('J19'!H13="","",'J19'!H13) ->  | D171: =IF('J19'!I13="","",'J19'!I13) ->  | E171: J19 | I171: 0 | J171: J01 | M171: 0 | P171: J01 | Q171: =Classement!A12&Classement!B1 -> 00 | R171: 0 | U171: J19
A172: ='J20'!B5:F5 -> 0 | B172: =IF('J20'!G5="","",'J20'!G5) ->  | C172: =IF('J20'!H5="","",'J20'!H5) ->  | D172: =IF('J20'!I5="","",'J20'!I5) ->  | E172: J20 | I172: 0 | J172: J01 | K172: 20 | M172: 0 | P172: J01 | Q172: =Classement!A12&Classement!D1 -> 00 | R172: 0 | U172: J20
A173: ='J20'!B6:F6 -> 0 | B173: =IF('J20'!G6="","",'J20'!G6) ->  | C173: =IF('J20'!H6="","",'J20'!H6) ->  | D173: =IF('J20'!I6="","",'J20'!I6) ->  | E173: J20 | I173: 0 | J173: J01 | M173: 0 | P173: J01 | Q173: =Classement!A12&Classement!F1 -> 00 | R173: 0 | U173: J20
A174: ='J20'!B7:F7 -> 0 | B174: =IF('J20'!G7="","",'J20'!G7) ->  | C174: =IF('J20'!H7="","",'J20'!H7) ->  | D174: =IF('J20'!I7="","",'J20'!I7) ->  | E174: J20 | I174: 0 | J174: J01 | M174: 0 | P174: J01 | Q174: =Classement!A12&Classement!H1 -> 00 | R174: 0 | U174: J20
A175: ='J20'!B8:F8 -> 0 | B175: =IF('J20'!G8="","",'J20'!G8) ->  | C175: =IF('J20'!H8="","",'J20'!H8) ->  | D175: =IF('J20'!I8="","",'J20'!I8) ->  | E175: J20 | I175: 0 | J175: J01 | M175: 0 | P175: J01 | Q175: =Classement!A12&Classement!J1 -> 00 | R175: 0 | U175: J20
A176: ='J20'!B9:F9 -> 0 | B176: =IF('J20'!G9="","",'J20'!G9) ->  | C176: =IF('J20'!H9="","",'J20'!H9) ->  | D176: =IF('J20'!I9="","",'J20'!I9) ->  | E176: J20 | I176: 0 | J176: J01 | M176: 0 | P176: J01 | Q176: =Classement!A12&Classement!L1 -> 00 | R176: 0 | U176: J20
A177: ='J20'!B10:F10 -> 0 | B177: =IF('J20'!G10="","",'J20'!G10) ->  | C177: =IF('J20'!H10="","",'J20'!H10) ->  | D177: =IF('J20'!I10="","",'J20'!I10) ->  | E177: J20 | I177: 0 | J177: J01 | M177: 0 | P177: J01 | Q177: =Classement!A12&Classement!N1 -> 00 | R177: 0 | U177: J20
A178: ='J20'!B11:F11 -> 0 | B178: =IF('J20'!G11="","",'J20'!G11) ->  | C178: =IF('J20'!H11="","",'J20'!H11) ->  | D178: =IF('J20'!I11="","",'J20'!I11) ->  | E178: J20 | I178: 0 | J178: J01 | M178: 0 | P178: J01 | Q178: =Classement!A12&Classement!P1 -> 00 | R178: 0 | U178: J20
A179: ='J20'!B12:F12 -> 0 | B179: =IF('J20'!G12="","",'J20'!G12) ->  | C179: =IF('J20'!H12="","",'J20'!H12) ->  | D179: =IF('J20'!I12="","",'J20'!I12) ->  | E179: J20 | I179: 0 | J179: J01 | M179: 0 | P179: J01 | Q179: =Classement!A12&Classement!R1 -> 00 | R179: 0 | U179: J20
A180: ='J20'!B13:F13 -> 0 | B180: =IF('J20'!G13="","",'J20'!G13) ->  | C180: =IF('J20'!H13="","",'J20'!H13) ->  | D180: =IF('J20'!I13="","",'J20'!I13) ->  | E180: J20 | I180: 0 | J180: J01 | M180: 0 | P180: J01 | Q180: =Classement!A12&Classement!T1 -> 00 | R180: 0 | U180: J20
A181: ='J21'!B5:F5 -> 0 | B181: =IF('J21'!G5="","",'J21'!G5) ->  | C181: =IF('J21'!H5="","",'J21'!H5) ->  | D181: =IF('J21'!I5="","",'J21'!I5) ->  | E181: J21 | I181: 0 | J181: J01 | K181: 21 | M181: 0 | P181: J01 | Q181: =Classement!A12&Classement!X1 -> 00 | R181: 0 | U181: J21
A182: ='J21'!B6:F6 -> 0 | B182: =IF('J21'!G6="","",'J21'!G6) ->  | C182: =IF('J21'!H6="","",'J21'!H6) ->  | D182: =IF('J21'!I6="","",'J21'!I6) ->  | E182: J21 | I182: 0 | J182: J01 | M182: 0 | P182: J01 | Q182: =Classement!A12&Classement!Z1 -> 00 | R182: 0 | U182: J21
A183: ='J21'!B7:F7 -> 0 | B183: =IF('J21'!G7="","",'J21'!G7) ->  | C183: =IF('J21'!H7="","",'J21'!H7) ->  | D183: =IF('J21'!I7="","",'J21'!I7) ->  | E183: J21 | I183: 0 | J183: J01 | M183: 0 | P183: J01 | Q183: =Classement!A12&Classement!AB1 -> 00 | R183: 0 | U183: J21
A184: ='J21'!B8:F8 -> 0 | B184: =IF('J21'!G8="","",'J21'!G8) ->  | C184: =IF('J21'!H8="","",'J21'!H8) ->  | D184: =IF('J21'!I8="","",'J21'!I8) ->  | E184: J21 | I184: 0 | J184: J01 | M184: 0 | P184: J01 | Q184: =Classement!A12&Classement!AD1 -> 00 | R184: 0 | U184: J21
A185: ='J21'!B9:F9 -> 0 | B185: =IF('J21'!G9="","",'J21'!G9) ->  | C185: =IF('J21'!H9="","",'J21'!H9) ->  | D185: =IF('J21'!I9="","",'J21'!I9) ->  | E185: J21 | I185: 0 | J185: J01 | M185: 0 | P185: J01 | Q185: =Classement!A12&Classement!AF1 -> 00 | R185: 0 | U185: J21
A186: ='J21'!B10:F10 -> 0 | B186: =IF('J21'!G10="","",'J21'!G10) ->  | C186: =IF('J21'!H10="","",'J21'!H10) ->  | D186: =IF('J21'!I10="","",'J21'!I10) ->  | E186: J21 | I186: 0 | J186: J01 | M186: 0 | P186: J01 | Q186: =Classement!A12&Classement!AH1 -> 00 | R186: 0 | U186: J21
A187: ='J21'!B11:F11 -> 0 | B187: =IF('J21'!G11="","",'J21'!G11) ->  | C187: =IF('J21'!H11="","",'J21'!H11) ->  | D187: =IF('J21'!I11="","",'J21'!I11) ->  | E187: J21 | I187: 0 | J187: J01 | M187: 0 | P187: J01 | Q187: =Classement!A12&Classement!AJ1 -> 00 | R187: 0 | U187: J21
A188: ='J21'!B12:F12 -> 0 | B188: =IF('J21'!G12="","",'J21'!G12) ->  | C188: =IF('J21'!H12="","",'J21'!H12) ->  | D188: =IF('J21'!I12="","",'J21'!I12) ->  | E188: J21 | I188: 0 | J188: J01 | M188: 0 | P188: J01 | Q188: =Classement!A13&Classement!B1 -> 00 | R188: 0 | U188: J21
A189: ='J21'!B13:F13 -> 0 | B189: =IF('J21'!G13="","",'J21'!G13) ->  | C189: =IF('J21'!H13="","",'J21'!H13) ->  | D189: =IF('J21'!I13="","",'J21'!I13) ->  | E189: J21 | I189: 0 | J189: J01 | M189: 0 | P189: J01 | Q189: =Classement!A13&Classement!D1 -> 00 | R189: 0 | U189: J21
A190: ='J22'!B5:F5 -> 0 | B190: =IF('J22'!G5="","",'J22'!G5) ->  | C190: =IF('J22'!H5="","",'J22'!H5) ->  | D190: =IF('J22'!I5="","",'J22'!I5) ->  | E190: J22 | I190: 0 | J190: J01 | K190: 22 | M190: 0 | P190: J01 | Q190: =Classement!A13&Classement!F1 -> 00 | R190: 0 | U190: J22
A191: ='J22'!B6:F6 -> 0 | B191: =IF('J22'!G6="","",'J22'!G6) ->  | C191: =IF('J22'!H6="","",'J22'!H6) ->  | D191: =IF('J22'!I6="","",'J22'!I6) ->  | E191: J22 | I191: 0 | J191: J01 | M191: 0 | P191: J01 | Q191: =Classement!A13&Classement!H1 -> 00 | R191: 0 | U191: J22
A192: ='J22'!B7:F7 -> 0 | B192: =IF('J22'!G7="","",'J22'!G7) ->  | C192: =IF('J22'!H7="","",'J22'!H7) ->  | D192: =IF('J22'!I7="","",'J22'!I7) ->  | E192: J22 | I192: 0 | J192: J01 | M192: 0 | P192: J01 | Q192: =Classement!A13&Classement!J1 -> 00 | R192: 0 | U192: J22
A193: ='J22'!B8:F8 -> 0 | B193: =IF('J22'!G8="","",'J22'!G8) ->  | C193: =IF('J22'!H8="","",'J22'!H8) ->  | D193: =IF('J22'!I8="","",'J22'!I8) ->  | E193: J22 | I193: 0 | J193: J01 | M193: 0 | P193: J01 | Q193: =Classement!A13&Classement!L1 -> 00 | R193: 0 | U193: J22
A194: ='J22'!B9:F9 -> 0 | B194: =IF('J22'!G9="","",'J22'!G9) ->  | C194: =IF('J22'!H9="","",'J22'!H9) ->  | D194: =IF('J22'!I9="","",'J22'!I9) ->  | E194: J22 | F194: =D194 ->  | G194: =IF(N194="","",N194) ->  | H194: =IF(O194="","",O194) ->  | I194: =A194 -> 0 | J194: =IF(P194="","",P194) -> J01 | M194: =F194&I194 -> 0 | N194: =VLOOKUP(M194,$R$1:$U$306,2,0) ->  | O194: =VLOOKUP(M194,$R$1:$U$306,3,0) ->  | P194: =VLOOKUP(M194,$R$1:$U$306,4,0) -> J01 | Q194: =Classement!A13&Classement!N1 -> 00 | R194: =A194&D194 -> 0 | S194: =B194 ->  | T194: =C194 ->  | U194: =E194 -> J22
A195: ='J22'!B10:F10 -> 0 | B195: =IF('J22'!G10="","",'J22'!G10) ->  | C195: =IF('J22'!H10="","",'J22'!H10) ->  | D195: =IF('J22'!I10="","",'J22'!I10) ->  | E195: J22 | I195: 0 | J195: J01 | M195: 0 | P195: J01 | Q195: =Classement!A13&Classement!P1 -> 00 | R195: 0 | U195: J22
A196: ='J22'!B11:F11 -> 0 | B196: =IF('J22'!G11="","",'J22'!G11) ->  | C196: =IF('J22'!H11="","",'J22'!H11) ->  | D196: =IF('J22'!I11="","",'J22'!I11) ->  | E196: J22 | I196: 0 | J196: J01 | M196: 0 | P196: J01 | Q196: =Classement!A13&Classement!R1 -> 00 | R196: 0 | U196: J22
A197: ='J22'!B12:F12 -> 0 | B197: =IF('J22'!G12="","",'J22'!G12) ->  | C197: =IF('J22'!H12="","",'J22'!H12) ->  | D197: =IF('J22'!I12="","",'J22'!I12) ->  | E197: J22 | I197: 0 | J197: J01 | M197: 0 | P197: J01 | Q197: =Classement!A13&Classement!T1 -> 00 | R197: 0 | U197: J22
A198: ='J22'!B13:F13 -> 0 | B198: =IF('J22'!G13="","",'J22'!G13) ->  | C198: =IF('J22'!H13="","",'J22'!H13) ->  | D198: =IF('J22'!I13="","",'J22'!I13) ->  | E198: J22 | I198: 0 | J198: J01 | M198: 0 | P198: J01 | Q198: =Classement!A13&Classement!V1 -> 00 | R198: 0 | U198: J22
A199: ='J23'!B5:F5 -> 0 | B199: =IF('J23'!G5="","",'J23'!G5) ->  | C199: =IF('J23'!H5="","",'J23'!H5) ->  | D199: =IF('J23'!I5="","",'J23'!I5) ->  | E199: J23 | I199: 0 | J199: J01 | K199: 23 | M199: 0 | P199: J01 | Q199: =Classement!A13&Classement!Z1 -> 00 | R199: 0 | U199: J23
A200: ='J23'!B6:F6 -> 0 | B200: =IF('J23'!G6="","",'J23'!G6) ->  | C200: =IF('J23'!H6="","",'J23'!H6) ->  | D200: =IF('J23'!I6="","",'J23'!I6) ->  | E200: J23 | I200: 0 | J200: J01 | M200: 0 | P200: J01 | Q200: =Classement!A13&Classement!AB1 -> 00 | R200: 0 | U200: J23
... 106 more rows

Sheet J01
A1: TOURNOI 219 - 2020 | I1: JOURNEE 01 | O1: CLASSEMENT | AN1: CLASSEMENT
A3: Pén | B3: Equipes | G3: Bts | H3: Bts | I3: Equipes | N3: Pén | O3: Equipes | T3: Evolution | V3: R | W3: Pts | X3: J | Y3: G | Z3: N | AA3: P | AB3: Bts + | AC3: Bts - | AD3: Diff | AE3: Domicile | AH3: Extérieur | AN3: Equipes | AS3: R | AT3: Evolution | AV3: R | AW3: Pts | AX3: J | AY3: G | AZ3: N | BA3: P | BB3: Bts + | BC3: Bts - | BD3: Diff | BE3: Domicile | BH3: Extérieur | CF3: DOMICILE | CI3: EXTERIRUR
AE4: G | AF4: N | AG4: P | AH4: G | AI4: N | AJ4: P | AM4: R | BE4: G | BF4: N | BG4: P | BH4: G | BI4: N | BJ4: P | BL4: % | BM4: % | BN4: P | BO4: P | BP4: Pts | BQ4: Pts | BR4: T Pts | BS4: T Pts | BT4: J | BU4: J | BV4: G | BW4: G | BX4: N | BY4: N | BZ4: P | CA4: P | CB4: B + | CC4: B + | CD4: B - | CE4: B - | CF4: G | CG4: N | CH4: P | CI4: G | CJ4: N | CK4: P | CL4: Equipes | CM4: % | CN4: R | CO4: Equipes
O5: =VLOOKUP(AL5,$AM$5:$AR$22,2,0) -> 0 | T5: =VLOOKUP(O5,$AN$5:$BJ$22,7,0) ->  | U5: =VLOOKUP(O5,$AN$5:$BJ$22,8,0) ->  | V5: 1 | W5: =VLOOKUP(O5,$AN$5:$BJ$22,10,0) ->  | X5: =VLOOKUP(O5,$AN$5:$BJ$22,11,0) ->  | Y5: =VLOOKUP(O5,$AN$5:$BJ$22,12,0) ->  | Z5: =VLOOKUP(O5,$AN$5:$BJ$22,13,0) ->  | AA5: =VLOOKUP(O5,$AN$5:$BJ$22,14,0) ->  | AB5: =VLOOKUP(O5,$AN$5:$BJ$22,15,0) ->  | AC5: =VLOOKUP(O5,$AN$5:$BJ$22,16,0) ->  | AD5: =VLOOKUP(O5,$AN$5:$BJ$22,17,0) ->  | AE5: =VLOOKUP(O5,$AN$5:$BJ$22,18,0) ->  | AF5: =VLOOKUP(O5,$AN$5:$BJ$22,19,0) ->  | AG5: =VLOOKUP(O5,$AN$5:$BJ$22,20,0) ->  | AH5: =VLOOKUP(O5,$AN$5:$BJ$22,21,0) ->  | AI5: =VLOOKUP(O5,$AN$5:$BJ$22,22,0) ->  | AJ5: =VLOOKUP(O5,$AN$5:$BJ$22,23,0) ->  | AL5: 1 | AM5: =AV5 -> 1 | AS5: =RANK(BL5,$BL$5:$BL$22) -> 1 | AT5: 0 | AU5: u | AV5: =RANK(BM5,$BM$5:$BM$22) -> 1 | AW5: =SUMPRODUCT(($B$5:$F$13=AN5)*($BR$5:$BR$13))+SUMPRODUCT(($I$5:$M$13=AN5)*($BS$5:$BS$13)) -> 0 | AX5: =SUMPRODUCT(($B$5:$F$13=AN5)*($BT$5:$BT$13))+SUMPRODUCT(($I$5:$M$13=AN5)*($BU$5:$BU$13)) -> 0 | AY5: =SUMPRODUCT(($B$5:$F$13=AN5)*($BV$5:$BV$13))+SUMPRODUCT(($I$5:$M$13=AN5)*($BW$5:$BW$13)) -> 0 | AZ5: =SUMPRODUCT(($B$5:$F$13=AN5)*($BX$5:$BX$13))+SUMPRODUCT(($I$5:$M$13=AN5)*($BY$5:$BY$13)) -> 0 | BA5: =SUMPRODUCT(($B$5:$F$13=AN5)*($BZ$5:$BZ$13))+SUMPRODUCT(($I$5:$M$13=AN5)*($CA$5:$CA$13)) -> 0 | BB5: =SUMPRODUCT(($B$5:$F$13=AN5)*($CB$5:$CB$13))+SUMPRODUCT(($I$5:$M$13=AN5)*($CC$5:$CC$13)) -> 0 | BC5: =SUMPRODUCT(($B$5:$F$13=AN5)*($CD$5:$CD$13))+SUMPRODUCT(($I$5:$M$13=AN5)*($CE$5:$CE$13)) -> 0 | BD5: =BB5-BC5 -> 0 | BE5: =SUMPRODUCT(($B$5:$F$13=AN5)*($CF$5:$CF$13)) -> 0 | BF5: =SUMPRODUCT(($B$5:$F$13=AN5)*($CG$5:$CG$13)) -> 0 | BG5: =SUMPRODUCT(($B$5:$F$13=AN5)*($CH$5:$CH$13)) -> 0 | BH5: =SUMPRODUCT(($I$5:$M$13=AN5)*($CI$5:$CI$13)) -> 0 | BI5: =SUMPRODUCT(($I$5:$M$13=AN5)*($CJ$5:$CJ$13)) -> 0 | BJ5: =SUMPRODUCT(($I$5:$M$13=AN5)*($CK$5:$CK$13)) -> 0 | BL5: =SUM(AW5*1000+(BD5/100+(BB5/1000))) -> 0 | BM5: =BL5+0.0000003 -> 3e-07 | BN5: =A5 -> 0 | BO5: =N5 -> 0 | BP5: =IF(G5="",0,IF(G5>H5,3,IF(G5=H5,1,IF(G5<H5,0)))) -> 0 | BQ5: =IF(H5="",0,IF(H5>G5,3,IF(H5=G5,1,IF(H5<G5,0)))) -> 0 | BR5: =BP5-BN5 -> 0 | BS5: =BQ5-BO5 -> 0 | BT5: =IF(G5="",0,1) -> 0 | BU5: =IF(H5="",0,1) -> 0 | BV5: =IF(G5<>"",IF(G5>H5,1)) -> FALSE | BW5: =IF(H5<>"",IF(H5>G5,1)) -> FALSE | BX5: =IF(G5<>"",IF(G5=H5,1)) -> FALSE | BY5: =IF(H5<>"",IF(H5=G5,1)) -> FALSE | BZ5: =IF(G5<>"",IF(G5<H5,1)) -> FALSE | CA5: =IF(H5<>"",IF(H5<G5,1)) -> FALSE | CB5: =G5 -> 0 | CC5: =H5 -> 0 | CD5: =H5 -> 0 | CE5: =G5 -> 0 | CF5: =IF(G5<>"",IF(G5>H5,1)) -> FALSE | CG5: =IF(G5<>"",IF(G5=H5,1)) -> FALSE | CH5: =IF(G5<>"",IF(G5<H5,1)) -> FALSE | CI5: =IF(H5<>"",IF(H5>G5,1)) -> FALSE | CJ5: =IF(H5<>"",IF(H5=G5,1)) -> FALSE | CK5: =IF(H5<>"",IF(H5<G5,1)) -> FALSE | CL5: =VLOOKUP(AL5,$AM$5:$AR$22,2,0) -> 0 | CM5: =VLOOKUP(CL5,$AN$5:$BL$22,25,0) ->  | CN5: =RANK(CM5,$CM$5:$CM$22) ->  | CO5: =AN5 -> 0
O6: =VLOOKUP(AL6,$AM$5:$AR$22,2,0) -> 0 | T6: =VLOOKUP(O6,$AN$5:$BJ$22,7,0) ->  | U6: =VLOOKUP(O6,$AN$5:$BJ$22,8,0) ->  | V6: =IF(CM6=CM5,CN5,CN6) ->  | W6: =VLOOKUP(O6,$AN$5:$BJ$22,10,0) ->  | X6: =VLOOKUP(O6,$AN$5:$BJ$22,11,0) ->  | Y6: =VLOOKUP(O6,$AN$5:$BJ$22,12,0) ->  | Z6: =VLOOKUP(O6,$AN$5:$BJ$22,13,0) ->  | AA6: =VLOOKUP(O6,$AN$5:$BJ$22,14,0) ->  | AB6: =VLOOKUP(O6,$AN$5:$BJ$22,15,0) ->  | AC6: =VLOOKUP(O6,$AN$5:$BJ$22,16,0) ->  | AD6: =VLOOKUP(O6,$AN$5:$BJ$22,17,0) ->  | AE6: =VLOOKUP(O6,$AN$5:$BJ$22,18,0) ->  | AF6: =VLOOKUP(O6,$AN$5:$BJ$22,19,0) ->  | AG6: =VLOOKUP(O6,$AN$5:$BJ$22,20,0) ->  | AH6: =VLOOKUP(O6,$AN$5:$BJ$22,21,0) ->  | AI6: =VLOOKUP(O6,$AN$5:$BJ$22,22,0) ->  | AJ6: =VLOOKUP(O6,$AN$5:$BJ$22,23,0) ->  | AL6: 2 | AM6: =AV6 -> 2 | AS6: =RANK(BL6,$BL$5:$BL$22) -> 1 | AT6: 0 | AU6: u | AV6: =RANK(BM6,$BM$5:$BM$22) -> 2 | AW6: =SUMPRODUCT(($B$5:$F$13=AN6)*($BR$5:$BR$13))+SUMPRODUCT(($I$5:$M$13=AN6)*($BS$5:$BS$13)) -> 0 | AX6: =SUMPRODUCT(($B$5:$F$13=AN6)*($BT$5:$BT$13))+SUMPRODUCT(($I$5:$M$13=AN6)*($BU$5:$BU$13)) -> 0 | AY6: =SUMPRODUCT(($B$5:$F$13=AN6)*($BV$5:$BV$13))+SUMPRODUCT(($I$5:$M$13=AN6)*($BW$5:$BW$13)) -> 0 | AZ6: =SUMPRODUCT(($B$5:$F$13=AN6)*($BX$5:$BX$13))+SUMPRODUCT(($I$5:$M$13=AN6)*($BY$5:$BY$13)) -> 0 | BA6: =SUMPRODUCT(($B$5:$F$13=AN6)*($BZ$5:$BZ$13))+SUMPRODUCT(($I$5:$M$13=AN6)*($CA$5:$CA$13)) -> 0 | BB6: =SUMPRODUCT(($B$5:$F$13=AN6)*($CB$5:$CB$13))+SUMPRODUCT(($I$5:$M$13=AN6)*($CC$5:$CC$13)) -> 0 | BC6: =SUMPRODUCT(($B$5:$F$13=AN6)*($CD$5:$CD$13))+SUMPRODUCT(($I$5:$M$13=AN6)*($CE$5:$CE$13)) -> 0 | BD6: =BB6-BC6 -> 0 | BE6: =SUMPRODUCT(($B$5:$F$13=AN6)*($CF$5:$CF$13)) -> 0 | BF6: =SUMPRODUCT(($B$5:$F$13=AN6)*($CG$5:$CG$13)) -> 0 | BG6: =SUMPRODUCT(($B$5:$F$13=AN6)*($CH$5:$CH$13)) -> 0 | BH6: =SUMPRODUCT(($I$5:$M$13=AN6)*($CI$5:$CI$13)) -> 0 | BI6: =SUMPRODUCT(($I$5:$M$13=AN6)*($CJ$5:$CJ$13)) -> 0 | BJ6: =SUMPRODUCT(($I$5:$M$13=AN6)*($CK$5:$CK$13)) -> 0 | BL6: =SUM(AW6*1000+(BD6/100+(BB6/1000))) -> 0 | BM6: =BL6+0.00000029 -> 2.9e-07 | BN6: =A6 -> 0 | BO6: =N6 -> 0 | BP6: =IF(G6="",0,IF(G6>H6,3,IF(G6=H6,1,IF(G6<H6,0)))) -> 0 | BQ6: =IF(H6="",0,IF(H6>G6,3,IF(H6=G6,1,IF(H6<G6,0)))) -> 0 | BR6: =BP6-BN6 -> 0 | BS6: =BQ6-BO6 -> 0 | BT6: =IF(G6="",0,1) -> 0 | BU6: =IF(H6="",0,1) -> 0 | BV6: =IF(G6<>"",IF(G6>H6,1)) -> FALSE | BW6: =IF(H6<>"",IF(H6>G6,1)) -> FALSE | BX6: =IF(G6<>"",IF(G6=H6,1)) -> FALSE | BY6: =IF(H6<>"",IF(H6=G6,1)) -> FALSE | BZ6: =IF(G6<>"",IF(G6<H6,1)) -> FALSE | CA6: =IF(H6<>"",IF(H6<G6,1)) -> FALSE | CB6: =G6 -> 0 | CC6: =H6 -> 0 | CD6: =H6 -> 0 | CE6: =G6 -> 0 | CF6: =IF(G6<>"",IF(G6>H6,1)) -> FALSE | CG6: =IF(G6<>"",IF(G6=H6,1)) -> FALSE | CH6: =IF(G6<>"",IF(G6<H6,1)) -> FALSE | CI6: =IF(H6<>"",IF(H6>G6,1)) -> FALSE | CJ6: =IF(H6<>"",IF(H6=G6,1)) -> FALSE | CK6: =IF(H6<>"",IF(H6<G6,1)) -> FALSE | CL6: =VLOOKUP(AL6,$AM$5:$AR$22,2,0) -> 0 | CM6: =VLOOKUP(CL6,$AN$5:$BL$22,25,0) ->  | CN6: =RANK(CM6,$CM$5:$CM$22) ->  | CO6: =AN6 -> 0
O7: 0 | V7: =IF(CM7=CM6,CN6,CN7) ->  | AL7: 3 | AM7: 3 | AS7: 1 | AT7: 0 | AU7: u | AV7: 3 | AW7: 0 | AX7: 0 | AY7: 0 | AZ7: 0 | BA7: 0 | BB7: 0 | BC7: 0 | BD7: 0 | BE7: 0 | BF7: 0 | BG7: 0 | BH7: 0 | BI7: 0 | BJ7: 0 | BL7: 0 | BM7: =BL7+0.00000028 -> 2.8e-07 | BN7: 0 | BO7: 0 | BP7: 0 | BQ7: 0 | BR7: 0 | BS7: 0 | BT7: 0 | BU7: 0 | BV7: FALSE | BW7: FALSE | BX7: FALSE | BY7: FALSE | BZ7: FALSE | CA7: FALSE | CB7: 0 | CC7: 0 | CD7: 0 | CE7: 0 | CF7: FALSE | CG7: FALSE | CH7: FALSE | CI7: FALSE | CJ7: FALSE | CK7: FALSE | CL7: 0 | CO7: 0
O8: 0 | AL8: 4 | AM8: 4 | AS8: 1 | AT8: 0 | AU8: u | AV8: 4 | AW8: 0 | AX8: 0 | AY8: 0 | AZ8: 0 | BA8: 0 | BB8: 0 | BC8: 0 | BD8: 0 | BE8: 0 | BF8: 0 | BG8: 0 | BH8: 0 | BI8: 0 | BJ8: 0 | BL8: 0 | BM8: =BL8+0.00000027 -> 2.7e-07 | BN8: 0 | BO8: 0 | BP8: 0 | BQ8: 0 | BR8: 0 | BS8: 0 | BT8: 0 | BU8: 0 | BV8: FALSE | BW8: FALSE | BX8: FALSE | BY8: FALSE | BZ8: FALSE | CA8: FALSE | CB8: 0 | CC8: 0 | CD8: 0 | CE8: 0 | CF8: FALSE | CG8: FALSE | CH8: FALSE | CI8: FALSE | CJ8: FALSE | CK8: FALSE | CL8: 0 | CO8: 0
O9: 0 | AL9: 5 | AM9: 5 | AS9: 1 | AT9: 0 | AU9: u | AV9: 5 | AW9: 0 | AX9: 0 | AY9: 0 | AZ9: 0 | BA9: 0 | BB9: 0 | BC9: 0 | BD9: 0 | BE9: 0 | BF9: 0 | BG9: 0 | BH9: 0 | BI9: 0 | BJ9: 0 | BL9: 0 | BM9: =BL9+0.00000026 -> 2.6e-07 | BN9: 0 | BO9: 0 | BP9: 0 | BQ9: 0 | BR9: 0 | BS9: 0 | BT9: 0 | BU9: 0 | BV9: FALSE | BW9: FALSE | BX9: FALSE | BY9: FALSE | BZ9: FALSE | CA9: FALSE | CB9: 0 | CC9: 0 | CD9: 0 | CE9: 0 | CF9: FALSE | CG9: FALSE | CH9: FALSE | CI9: FALSE | CJ9: FALSE | CK9: FALSE | CL9: 0 | CO9: 0
O10: 0 | AL10: 6 | AM10: 6 | AS10: 1 | AT10: 0 | AU10: u | AV10: 6 | AW10: 0 | AX10: 0 | AY10: 0 | AZ10: 0 | BA10: 0 | BB10: 0 | BC10: 0 | BD10: 0 | BE10: 0 | BF10: 0 | BG10: 0 | BH10: 0 | BI10: 0 | BJ10: 0 | BL10: 0 | BM10: =BL10+0.00000025 -> 2.5e-07 | BN10: 0 | BO10: 0 | BP10: 0 | BQ10: 0 | BR10: 0 | BS10: 0 | BT10: 0 | BU10: 0 | BV10: FALSE | BW10: FALSE | BX10: FALSE | BY10: FALSE | BZ10: FALSE | CA10: FALSE | CB10: 0 | CC10: 0 | CD10: 0 | CE10: 0 | CF10: FALSE | CG10: FALSE | CH10: FALSE | CI10: FALSE | CJ10: FALSE | CK10: FALSE | CL10: 0 | CO10: 0
O11: 0 | AL11: 7 | AM11: 7 | AS11: 1 | AT11: 0 | AU11: u | AV11: 7 | AW11: 0 | AX11: 0 | AY11: 0 | AZ11: 0 | BA11: 0 | BB11: 0 | BC11: 0 | BD11: 0 | BE11: 0 | BF11: 0 | BG11: 0 | BH11: 0 | BI11: 0 | BJ11: 0 | BL11: 0 | BM11: =BL11+0.00000024 -> 2.4e-07 | BN11: 0 | BO11: 0 | BP11: 0 | BQ11: 0 | BR11: 0 | BS11: 0 | BT11: 0 | BU11: 0 | BV11: FALSE | BW11: FALSE | BX11: FALSE | BY11: FALSE | BZ11: FALSE | CA11: FALSE | CB11: 0 | CC11: 0 | CD11: 0 | CE11: 0 | CF11: FALSE | CG11: FALSE | CH11: FALSE | CI11: FALSE | CJ11: FALSE | CK11: FALSE | CL11: 0 | CO11: 0
O12: 0 | AL12: 8 | AM12: 8 | AS12: 1 | AT12: 0 | AU12: u | AV12: 8 | AW12: 0 | AX12: 0 | AY12: 0 | AZ12: 0 | BA12: 0 | BB12: 0 | BC12: 0 | BD12: 0 | BE12: 0 | BF12: 0 | BG12: 0 | BH12: 0 | BI12: 0 | BJ12: 0 | BL12: 0 | BM12: =BL12+0.00000023 -> 2.3e-07 | BN12: 0 | BO12: 0 | BP12: 0 | BQ12: 0 | BR12: 0 | BS12: 0 | BT12: 0 | BU12: 0 | BV12: FALSE | BW12: FALSE | BX12: FALSE | BY12: FALSE | BZ12: FALSE | CA12: FALSE | CB12: 0 | CC12: 0 | CD12: 0 | CE12: 0 | CF12: FALSE | CG12: FALSE | CH12: FALSE | CI12: FALSE | CJ12: FALSE | CK12: FALSE | CL12: 0 | CO12: 0
O13: 0 | AL13: 9 | AM13: 9 | AS13: 1 | AT13: 0 | AU13: u | AV13: 9 | AW13: 0 | AX13: 0 | AY13: 0 | AZ13: 0 | BA13: 0 | BB13: 0 | BC13: 0 | BD13: 0 | BE13: 0 | BF13: 0 | BG13: 0 | BH13: 0 | BI13: 0 | BJ13: 0 | BL13: 0 | BM13: =BL13+0.00000022 -> 2.2e-07 | BN13: 0 | BO13: 0 | BP13: 0 | BQ13: 0 | BR13: 0 | BS13: 0 | BT13: 0 | BU13: 0 | BV13: FALSE | BW13: FALSE | BX13: FALSE | BY13: FALSE | BZ13: FALSE | CA13: FALSE | CB13: 0 | CC13: 0 | CD13: 0 | CE13: 0 | CF13: FALSE | CG13: FALSE | CH13: FALSE | CI13: FALSE | CJ13: FALSE | CK13: FALSE | CL13: 0 | CO13: 0
O14: 0 | AL14: 10 | AM14: 10 | AS14: 1 | AT14: 0 | AU14: u | AV14: 10 | AW14: 0 | AX14: 0 | AY14: 0 | AZ14: 0 | BA14: 0 | BB14: 0 | BC14: 0 | BD14: 0 | BE14: 0 | BF14: 0 | BG14: 0 | BH14: 0 | BI14: 0 | BJ14: 0 | BL14: 0 | BM14: =BL14+0.00000021 -> 2.1e-07 | CL14: 0 | CO14: 0
O15: 0 | AL15: 11 | AM15: 11 | AS15: 1 | AT15: 0 | AU15: u | AV15: 11 | AW15: 0 | AX15: 0 | AY15: 0 | AZ15: 0 | BA15: 0 | BB15: 0 | BC15: 0 | BD15: 0 | BE15: 0 | BF15: 0 | BG15: 0 | BH15: 0 | BI15: 0 | BJ15: 0 | BL15: 0 | BM15: =BL15+0.0000002 -> 2e-07 | CL15: 0 | CO15: 0
O16: 0 | AL16: 12 | AM16: 12 | AS16: 1 | AT16: 0 | AU16: u | AV16: 12 | AW16: 0 | AX16: 0 | AY16: 0 | AZ16: 0 | BA16: 0 | BB16: 0 | BC16: 0 | BD16: 0 | BE16: 0 | BF16: 0 | BG16: 0 | BH16: 0 | BI16: 0 | BJ16: 0 | BL16: 0 | BM16: =BL16+0.00000019 -> 1.9e-07 | CL16: 0 | CO16: 0
O17: 0 | AL17: 13 | AM17: 13 | AS17: 1 | AT17: 0 | AU17: u | AV17: 13 | AW17: 0 | AX17: 0 | AY17: 0 | AZ17: 0 | BA17: 0 | BB17: 0 | BC17: 0 | BD17: 0 | BE17: 0 | BF17: 0 | BG17: 0 | BH17: 0 | BI17: 0 | BJ17: 0 | BL17: 0 | BM17: =BL17+0.00000018 -> 1.8e-07 | CL17: 0 | CO17: 0
O18: 0 | AL18: 14 | AM18: 14 | AS18: 1 | AT18: 0 | AU18: u | AV18: 14 | AW18: 0 | AX18: 0 | AY18: 0 | AZ18: 0 | BA18: 0 | BB18: 0 | BC18: 0 | BD18: 0 | BE18: 0 | BF18: 0 | BG18: 0 | BH18: 0 | BI18: 0 | BJ18: 0 | BL18: 0 | BM18: =BL18+0.00000017 -> 1.7e-07 | CL18: 0 | CO18: 0
O19: 0 | AL19: 15 | AM19: 15 | AS19: 1 | AT19: 0 | AU19: u | AV19: 15 | AW19: 0 | AX19: 0 | AY19: 0 | AZ19: 0 | BA19: 0 | BB19: 0 | BC19: 0 | BD19: 0 | BE19: 0 | BF19: 0 | BG19: 0 | BH19: 0 | BI19: 0 | BJ19: 0 | BL19: 0 | BM19: =BL19+0.00000016 -> 1.6e-07 | CL19: 0 | CO19: 0
O20: 0 | AL20: 16 | AM20: 16 | AS20: 1 | AT20: 0 | AU20: u | AV20: 16 | AW20: 0 | AX20: 0 | AY20: 0 | AZ20: 0 | BA20: 0 | BB20: 0 | BC20: 0 | BD20: 0 | BE20: 0 | BF20: 0 | BG20: 0 | BH20: 0 | BI20: 0 | BJ20: 0 | BL20: 0 | BM20: =BL20+0.00000015 -> 1.5e-07 | CL20: 0 | CO20: 0
O21: 0 | AL21: 17 | AM21: 17 | AS21: 1 | AT21: 0 | AU21: u | AV21: 17 | AW21: 0 | AX21: 0 | AY21: 0 | AZ21: 0 | BA21: 0 | BB21: 0 | BC21: 0 | BD21: 0 | BE21: 0 | BF21: 0 | BG21: 0 | BH21: 0 | BI21: 0 | BJ21: 0 | BL21: 0 | BM21: =BL21+0.00000014 -> 1.4e-07 | CL21: 0 | CO21: 0
O22: 0 | AL22: 18 | AM22: 18 | AS22: 1 | AT22: 0 | AU22: u | AV22: 18 | AW22: 0 | AX22: 0 | AY22: 0 | AZ22: 0 | BA22: 0 | BB22: 0 | BC22: 0 | BD22: 0 | BE22: 0 | BF22: 0 | BG22: 0 | BH22: 0 | BI22: 0 | BJ22: 0 | BL22: 0 | BM22: =BL22+0.00000013 -> 1.3e-07 | CL22: 0 | CO22: 0
W23: 2019 - 2020 | AC23: Buts Journée | AG23: Total Buts | AS23: p | AT23: u | AU23: q
AC24: =SUM(G5:H13) -> 0 | AG24: =AC24 -> 0 | AS24: p | AT24: u | AU24: q

Sheet J02
A1: TOURNOI 219 - 2020 | I1: JOURNEE 02 | O1: CLASSEMENT | AN1: CLASSEMENT
A3: Pén | B3: Equipes | G3: Bts | H3: Bts | I3: Equipes | N3: Pén | O3: Equipes | T3: Evolution | V3: R | W3: Pts | X3: J | Y3: G | Z3: N | AA3: P | AB3: Bts + | AC3: Bts - | AD3: Diff | AE3: Domicile | AH3: Extérieur | AN3: Equipes | AS3: R | AT3: Evolution | AV3: R | AW3: Pts | AX3: J | AY3: G | AZ3: N | BA3: P | BB3: Bts + | BC3: Bts - | BD3: Diff | BE3: Domicile | BH3: Extérieur | CF3: DOMICILE | CI3: EXTERIRUR
AE4: G | AF4: N | AG4: P | AH4: G | AI4: N | AJ4: P | AM4: R | BE4: G | BF4: N | BG4: P | BH4: G | BI4: N | BJ4: P | BL4: % | BM4: % | BN4: P | BO4: P | BP4: Pts | BQ4: Pts | BR4: T Pts | BS4: T Pts | BT4: J | BU4: J | BV4: G | BW4: G | BX4: N | BY4: N | BZ4: P | CA4: P | CB4: B + | CC4: B + | CD4: B - | CE4: B - | CF4: G | CG4: N | CH4: P | CI4: G | CJ4: N | CK4: P | CL4: Equipes | CM4: % | CN4: R | CO4: Equipes
O5: =VLOOKUP(AL5,$AM$5:$AR$22,2,0) -> 0 | T5: =VLOOKUP(O5,$AN$5:$BJ$22,7,0) -> 0 | U5: =VLOOKUP(O5,$AN$5:$BJ$22,8,0) -> u | V5: 1 | W5: =VLOOKUP(O5,$AN$5:$BJ$22,10,0) -> 0 | X5: =VLOOKUP(O5,$AN$5:$BJ$22,11,0) -> 0 | Y5: =VLOOKUP(O5,$AN$5:$BJ$22,12,0) -> 0 | Z5: =VLOOKUP(O5,$AN$5:$BJ$22,13,0) -> 0 | AA5: =VLOOKUP(O5,$AN$5:$BJ$22,14,0) -> 0 | AB5: =VLOOKUP(O5,$AN$5:$BJ$22,15,0) -> 0 | AC5: =VLOOKUP(O5,$AN$5:$BJ$22,16,0) -> 0 | AD5: =VLOOKUP(O5,$AN$5:$BJ$22,17,0) -> 0 | AE5: =VLOOKUP(O5,$AN$5:$BJ$22,18,0) -> 0 | AF5: =VLOOKUP(O5,$AN$5:$BJ$22,19,0) -> 0 | AG5: =VLOOKUP(O5,$AN$5:$BJ$22,20,0) -> 0 | AH5: =VLOOKUP(O5,$AN$5:$BJ$22,21,0) -> 0 | AI5: =VLOOKUP(O5,$AN$5:$BJ$22,22,0) -> 0 | AJ5: =VLOOKUP(O5,$AN$5:$BJ$22,23,0) -> 0 | AL5: 1 | AM5: =AV5 -> 1 | AN5: ='J01'!AN5:AR5 -> 0 | AS5: =RANK(BL5,$BL$5:$BL$22) -> 1 | AT5: ='J01'!AS5-AS5 -> 0 | AU5: =IF(AS5>'J01'!AS5,'J01'!$AU$23,IF(AS5<'J01'!AS5,'J01'!$AS$23,IF(AS5='J01'!AS5,'J01'!$AT$23))) -> u | AV5: =RANK(BM5,$BM$5:$BM$22) -> 1 | AW5: =SUMPRODUCT(($B$5:$F$13=AN5)*($BR$5:$BR$13))+SUMPRODUCT(($I$5:$M$13=AN5)*($BS$5:$BS$13))+'J01'!AW5 -> 0 | AX5: =SUMPRODUCT(($B$5:$F$13=AN5)*($BT$5:$BT$13))+SUMPRODUCT(($I$5:$M$13=AN5)*($BU$5:$BU$13))+'J01'!AX5 -> 0 | AY5: =SUMPRODUCT(($B$5:$F$13=AN5)*($BV$5:$BV$13))+SUMPRODUCT(($I$5:$M$13=AN5)*($BW$5:$BW$13))+'J01'!AY5 -> 0 | AZ5: =SUMPRODUCT(($B$5:$F$13=AN5)*($BX$5:$BX$13))+SUMPRODUCT(($I$5:$M$13=AN5)*($BY$5:$BY$13))+'J01'!AZ5 -> 0 | BA5: =SUMPRODUCT(($B$5:$F$13=AN5)*($BZ$5:$BZ$13))+SUMPRODUCT(($I$5:$M$13=AN5)*($CA$5:$CA$13))+'J01'!BA5 -> 0 | BB5: =SUMPRODUCT(($B$5:$F$13=AN5)*($CB$5:$CB$13))+SUMPRODUCT(($I$5:$M$13=AN5)*($CC$5:$CC$13))+'J01'!BB5 -> 0 | BC5: =SUMPRODUCT(($B$5:$F$13=AN5)*($CD$5:$CD$13))+SUMPRODUCT(($I$5:$M$13=AN5)*($CE$5:$CE$13))+'J01'!BC5 -> 0 | BD5: =BB5-BC5 -> 0 | BE5: =SUMPRODUCT(($B$5:$F$13=AN5)*($CF$5:$CF$13))+'J01'!BE5 -> 0 | BF5: =SUMPRODUCT(($B$5:$F$13=AN5)*($CG$5:$CG$13))+'J01'!BF5 -> 0 | BG5: =SUMPRODUCT(($B$5:$F$13=AN5)*($CH$5:$CH$13))+'J01'!BG5 -> 0 | BH5: =SUMPRODUCT(($I$5:$M$13=AN5)*($CI$5:$CI$13))+'J01'!BH5 -> 0 | BI5: =SUMPRODUCT(($I$5:$M$13=AN5)*($CJ$5:$CJ$13))+'J01'!BI5 -> 0 | BJ5: =SUMPRODUCT(($I$5:$M$13=AN5)*($CK$5:$CK$13))+'J01'!BJ5 -> 0 | BL5: =SUM(AW5*1000+(BD5/100+(BB5/1000))) -> 0 | BM5: =BL5+0.0000003 -> 3e-07 | BN5: =A5 -> 0 | BO5: =N5 -> 0 | BP5: =IF(G5="",0,IF(G5>H5,3,IF(G5=H5,1,IF(G5<H5,0)))) -> 0 | BQ5: =IF(H5="",0,IF(H5>G5,3,IF(H5=G5,1,IF(H5<G5,0)))) -> 0 | BR5: =BP5-BN5 -> 0 | BS5: =BQ5-BO5 -> 0 | BT5: =IF(G5="",0,1) -> 0 | BU5: =IF(H5="",0,1) -> 0 | BV5: =IF(G5<>"",IF(G5>H5,1)) -> FALSE | BW5: =IF(H5<>"",IF(H5>G5,1)) -> FALSE | BX5: =IF(G5<>"",IF(G5=H5,1)) -> FALSE | BY5: =IF(H5<>"",IF(H5=G5,1)) -> FALSE | BZ5: =IF(G5<>"",IF(G5<H5,1)) -> FALSE | CA5: =IF(H5<>"",IF(H5<G5,1)) -> FALSE | CB5: =G5 -> 0 | CC5: =H5 -> 0 | CD5: =H5 -> 0 | CE5: =G5 -> 0 | CF5: =IF(G5<>"",IF(G5>H5,1)) -> FALSE | CG5: =IF(G5<>"",IF(G5=H5,1)) -> FALSE | CH5: =IF(G5<>"",IF(G5<H5,1)) -> FALSE | CI5: =IF(H5<>"",IF(H5>G5,1)) -> FALSE | CJ5: =IF(H5<>"",IF(H5=G5,1)) -> FALSE | CK5: =IF(H5<>"",IF(H5<G5,1)) -> FALSE | CL5: =VLOOKUP(AL5,$AM$5:$AR$22,2,0) -> 0 | CM5: =VLOOKUP(CL5,$AN$5:$BL$22,25,0) -> 0 | CN5: =RANK(CM5,$CM$5:$CM$22) -> 1 | CO5: =AN5 -> 0
O6: =VLOOKUP(AL6,$AM$5:$AR$22,2,0) -> 0 | T6: =VLOOKUP(O6,$AN$5:$BJ$22,7,0) -> 0 | U6: =VLOOKUP(O6,$AN$5:$BJ$22,8,0) -> u | V6: =IF(CM6=CM5,CN5,CN6) -> 1 | W6: =VLOOKUP(O6,$AN$5:$BJ$22,10,0) -> 0 | X6: =VLOOKUP(O6,$AN$5:$BJ$22,11,0) -> 0 | Y6: =VLOOKUP(O6,$AN$5:$BJ$22,12,0) -> 0 | Z6: =VLOOKUP(O6,$AN$5:$BJ$22,13,0) -> 0 | AA6: =VLOOKUP(O6,$AN$5:$BJ$22,14,0) -> 0 | AB6: =VLOOKUP(O6,$AN$5:$BJ$22,15,0) -> 0 | AC6: =VLOOKUP(O6,$AN$5:$BJ$22,16,0) -> 0 | AD6: =VLOOKUP(O6,$AN$5:$BJ$22,17,0) -> 0 | AE6: =VLOOKUP(O6,$AN$5:$BJ$22,18,0) -> 0 | AF6: =VLOOKUP(O6,$AN$5:$BJ$22,19,0) -> 0 | AG6: =VLOOKUP(O6,$AN$5:$BJ$22,20,0) -> 0 | AH6: =VLOOKUP(O6,$AN$5:$BJ$22,21,0) -> 0 | AI6: =VLOOKUP(O6,$AN$5:$BJ$22,22,0) -> 0 | AJ6: =VLOOKUP(O6,$AN$5:$BJ$22,23,0) -> 0 | AL6: 2 | AM6: =AV6 -> 2 | AN6: ='J01'!AN6:AR6 -> 0 | AS6: =RANK(BL6,$BL$5:$BL$22) -> 1 | AT6: ='J01'!AS6-AS6 -> 0 | AU6: =IF(AS6>'J01'!AS6,'J01'!$AU$23,IF(AS6<'J01'!AS6,'J01'!$AS$23,IF(AS6='J01'!AS6,'J01'!$AT$23))) -> u | AV6: =RANK(BM6,$BM$5:$BM$22) -> 2 | AW6: =SUMPRODUCT(($B$5:$F$13=AN6)*($BR$5:$BR$13))+SUMPRODUCT(($I$5:$M$13=AN6)*($BS$5:$BS$13))+'J01'!AW6 -> 0 | AX6: =SUMPRODUCT(($B$5:$F$13=AN6)*($BT$5:$BT$13))+SUMPRODUCT(($I$5:$M$13=AN6)*($BU$5:$BU$13))+'J01'!AX6 -> 0 | AY6: =SUMPRODUCT(($B$5:$F$13=AN6)*($BV$5:$BV$13))+SUMPRODUCT(($I$5:$M$13=AN6)*($BW$5:$BW$13))+'J01'!AY6 -> 0 | AZ6: =SUMPRODUCT(($B$5:$F$13=AN6)*($BX$5:$BX$13))+SUMPRODUCT(($I$5:$M$13=AN6)*($BY$5:$BY$13))+'J01'!AZ6 -> 0 | BA6: =SUMPRODUCT(($B$5:$F$13=AN6)*($BZ$5:$BZ$13))+SUMPRODUCT(($I$5:$M$13=AN6)*($CA$5:$CA$13))+'J01'!BA6 -> 0 | BB6: =SUMPRODUCT(($B$5:$F$13=AN6)*($CB$5:$CB$13))+SUMPRODUCT(($I$5:$M$13=AN6)*($CC$5:$CC$13))+'J01'!BB6 -> 0 | BC6: =SUMPRODUCT(($B$5:$F$13=AN6)*($CD$5:$CD$13))+SUMPRODUCT(($I$5:$M$13=AN6)*($CE$5:$CE$13))+'J01'!BC6 -> 0 | BD6: =BB6-BC6 -> 0 | BE6: =SUMPRODUCT(($B$5:$F$13=AN6)*($CF$5:$CF$13))+'J01'!BE6 -> 0 | BF6: =SUMPRODUCT(($B$5:$F$13=AN6)*($CG$5:$CG$13))+'J01'!BF6 -> 0 | BG6: =SUMPRODUCT(($B$5:$F$13=AN6)*($CH$5:$CH$13))+'J01'!BG6 -> 0 | BH6: =SUMPRODUCT(($I$5:$M$13=AN6)*($CI$5:$CI$13))+'J01'!BH6 -> 0 | BI6: =SUMPRODUCT(($I$5:$M$13=AN6)*($CJ$5:$CJ$13))+'J01'!BI6 -> 0 | BJ6: =SUMPRODUCT(($I$5:$M$13=AN6)*($CK$5:$CK$13))+'J01'!BJ6 -> 0 | BL6: =SUM(AW6*1000+(BD6/100+(BB6/1000))) -> 0 | BM6: =BL6+0.00000029 -> 2.9e-07 | BN6: =A6 -> 0 | BO6: =N6 -> 0 | BP6: =IF(G6="",0,IF(G6>H6,3,IF(G6=H6,1,IF(G6<H6,0)))) -> 0 | BQ6: =IF(H6="",0,IF(H6>G6,3,IF(H6=G6,1,IF(H6<G6,0)))) -> 0 | BR6: =BP6-BN6 -> 0 | BS6: 0 | BT6: =IF(G6="",0,1) -> 0 | BU6: 0 | BV6: =IF(G6<>"",IF(G6>H6,1)) -> FALSE | BW6: =IF(H6<>"",IF(H6>G6,1)) -> FALSE | BX6: =IF(G6<>"",IF(G6=H6,1)) -> FALSE | BY6: =IF(H6<>"",IF(H6=G6,1)) -> FALSE | BZ6: =IF(G6<>"",IF(G6<H6,1)) -> FALSE | CA6: =IF(H6<>"",IF(H6<G6,1)) -> FALSE | CB6: =G6 -> 0 | CC6: 0 | CD6: =H6 -> 0 | CE6: =G6 -> 0 | CF6: =IF(G6<>"",IF(G6>H6,1)) -> FALSE | CG6: =IF(G6<>"",IF(G6=H6,1)) -> FALSE | CH6: =IF(G6<>"",IF(G6<H6,1)) -> FALSE | CI6: =IF(H6<>"",IF(H6>G6,1)) -> FALSE | CJ6: =IF(H6<>"",IF(H6=G6,1)) -> FALSE | CK6: =IF(H6<>"",IF(H6<G6,1)) -> FALSE | CL6: =VLOOKUP(AL6,$AM$5:$AR$22,2,0) -> 0 | CM6: =VLOOKUP(CL6,$AN$5:$BL$22,25,0) -> 0 | CN6: =RANK(CM6,$CM$5:$CM$22) -> 1 | CO6: =AN6 -> 0
O7: 0 | T7: 0 | U7: u | V7: =IF(CM7=CM6,CN6,CN7) -> 1 | W7: 0 | X7: 0 | Y7: 0 | Z7: 0 | AA7: 0 | AB7: 0 | AC7: 0 | AD7: 0 | AE7: 0 | AF7: 0 | AG7: 0 | AH7: 0 | AI7: 0 | AJ7: 0 | AL7: 3 | AM7: 3 | AN7: ='J01'!AN7:AR7 -> 0 | AS7: 1 | AT7: ='J01'!AS7-AS7 -> 0 | AU7: =IF(AS7>'J01'!AS7,'J01'!$AU$23,IF(AS7<'J01'!AS7,'J01'!$AS$23,IF(AS7='J01'!AS7,'J01'!$AT$23))) -> u | AV7: 3 | AW7: =SUMPRODUCT(($B$5:$F$13=AN7)*($BR$5:$BR$13))+SUMPRODUCT(($I$5:$M$13=AN7)*($BS$5:$BS$13))+'J01'!AW7 -> 0 | AX7: =SUMPRODUCT(($B$5:$F$13=AN7)*($BT$5:$BT$13))+SUMPRODUCT(($I$5:$M$13=AN7)*($BU$5:$BU$13))+'J01'!AX7 -> 0 | AY7: =SUMPRODUCT(($B$5:$F$13=AN7)*($BV$5:$BV$13))+SUMPRODUCT(($I$5:$M$13=AN7)*($BW$5:$BW$13))+'J01'!AY7 -> 0 | AZ7: =SUMPRODUCT(($B$5:$F$13=AN7)*($BX$5:$BX$13))+SUMPRODUCT(($I$5:$M$13=AN7)*($BY$5:$BY$13))+'J01'!AZ7 -> 0 | BA7: =SUMPRODUCT(($B$5:$F$13=AN7)*($BZ$5:$BZ$13))+SUMPRODUCT(($I$5:$M$13=AN7)*($CA$5:$CA$13))+'J01'!BA7 -> 0 | BB7: =SUMPRODUCT(($B$5:$F$13=AN7)*($CB$5:$CB$13))+SUMPRODUCT(($I$5:$M$13=AN7)*($CC$5:$CC$13))+'J01'!BB7 -> 0 | BC7: =SUMPRODUCT(($B$5:$F$13=AN7)*($CD$5:$CD$13))+SUMPRODUCT(($I$5:$M$13=AN7)*($CE$5:$CE$13))+'J01'!BC7 -> 0 | BD7: 0 | BE7: =SUMPRODUCT(($B$5:$F$13=AN7)*($CF$5:$CF$13))+'J01'!BE7 -> 0 | BF7: =SUMPRODUCT(($B$5:$F$13=AN7)*($CG$5:$CG$13))+'J01'!BF7 -> 0 | BG7: =SUMPRODUCT(($B$5:$F$13=AN7)*($CH$5:$CH$13))+'J01'!BG7 -> 0 | BH7: =SUMPRODUCT(($I$5:$M$13=AN7)*($CI$5:$CI$13))+'J01'!BH7 -> 0 | BI7: =SUMPRODUCT(($I$5:$M$13=AN7)*($CJ$5:$CJ$13))+'J01'!BI7 -> 0 | BJ7: =SUMPRODUCT(($I$5:$M$13=AN7)*($CK$5:$CK$13))+'J01'!BJ7 -> 0 | BL7: 0 | BM7: =BL7+0.00000028 -> 2.8e-07 | BN7: 0 | BO7: 0 | BP7: 0 | BQ7: 0 | BR7: 0 | BS7: 0 | BT7: 0 | BU7: 0 | BV7: FALSE | BW7: FALSE | BX7: FALSE | BY7: FALSE | BZ7: FALSE | CA7: FALSE | CB7: 0 | CC7: 0 | CD7: 0 | CE7: 0 | CF7: FALSE | CG7: FALSE | CH7: FALSE | CI7: FALSE | CJ7: FALSE | CK7: FALSE | CL7: 0 | CM7: 0 | CN7: 1 | CO7: 0
O8: 0 | T8: 0 | U8: u | V8: 1 | W8: 0 | X8: 0 | Y8: 0 | Z8: 0 | AA8: 0 | AB8: 0 | AC8: 0 | AD8: 0 | AE8: 0 | AF8: 0 | AG8: 0 | AH8: 0 | AI8: 0 | AJ8: 0 | AL8: 4 | AM8: 4 | AN8: ='J01'!AN8:AR8 -> 0 | AS8: 1 | AT8: ='J01'!AS8-AS8 -> 0 | AU8: =IF(AS8>'J01'!AS8,'J01'!$AU$23,IF(AS8<'J01'!AS8,'J01'!$AS$23,IF(AS8='J01'!AS8,'J01'!$AT$23))) -> u | AV8: 4 | AW8: =SUMPRODUCT(($B$5:$F$13=AN8)*($BR$5:$BR$13))+SUMPRODUCT(($I$5:$M$13=AN8)*($BS$5:$BS$13))+'J01'!AW8 -> 0 | AX8: =SUMPRODUCT(($B$5:$F$13=AN8)*($BT$5:$BT$13))+SUMPRODUCT(($I$5:$M$13=AN8)*($BU$5:$BU$13))+'J01'!AX8 -> 0 | AY8: =SUMPRODUCT(($B$5:$F$13=AN8)*($BV$5:$BV$13))+SUMPRODUCT(($I$5:$M$13=AN8)*($BW$5:$BW$13))+'J01'!AY8 -> 0 | AZ8: =SUMPRODUCT(($B$5:$F$13=AN8)*($BX$5:$BX$13))+SUMPRODUCT(($I$5:$M$13=AN8)*($BY$5:$BY$13))+'J01'!AZ8 -> 0 | BA8: =SUMPRODUCT(($B$5:$F$13=AN8)*($BZ$5:$BZ$13))+SUMPRODUCT(($I$5:$M$13=AN8)*($CA$5:$CA$13))+'J01'!BA8 -> 0 | BB8: =SUMPRODUCT(($B$5:$F$13=AN8)*($CB$5:$CB$13))+SUMPRODUCT(($I$5:$M$13=AN8)*($CC$5:$CC$13))+'J01'!BB8 -> 0 | BC8: =SUMPRODUCT(($B$5:$F$13=AN8)*($CD$5:$CD$13))+SUMPRODUCT(($I$5:$M$13=AN8)*($CE$5:$CE$13))+'J01'!BC8 -> 0 | BD8: 0 | BE8: =SUMPRODUCT(($B$5:$F$13=AN8)*($CF$5:$CF$13))+'J01'!BE8 -> 0 | BF8: =SUMPRODUCT(($B$5:$F$13=AN8)*($CG$5:$CG$13))+'J01'!BF8 -> 0 | BG8: =SUMPRODUCT(($B$5:$F$13=AN8)*($CH$5:$CH$13))+'J01'!BG8 -> 0 | BH8: =SUMPRODUCT(($I$5:$M$13=AN8)*($CI$5:$CI$13))+'J01'!BH8 -> 0 | BI8: =SUMPRODUCT(($I$5:$M$13=AN8)*($CJ$5:$CJ$13))+'J01'!BI8 -> 0 | BJ8: =SUMPRODUCT(($I$5:$M$13=AN8)*($CK$5:$CK$13))+'J01'!BJ8 -> 0 | BL8: 0 | BM8: =BL8+0.00000027 -> 2.7e-07 | BN8: 0 | BO8: 0 | BP8: 0 | BQ8: 0 | BR8: 0 | BS8: 0 | BT8: 0 | BU8: 0 | BV8: FALSE | BW8: FALSE | BX8: FALSE | BY8: FALSE | BZ8: FALSE | CA8: FALSE | CB8: 0 | CC8: 0 | CD8: 0 | CE8: 0 | CF8: FALSE | CG8: FALSE | CH8: FALSE | CI8: FALSE | CJ8: FALSE | CK8: FALSE | CL8: 0 | CM8: 0 | CN8: 1 | CO8: 0
O9: 0 | T9: 0 | U9: u | V9: 1 | W9: 0 | X9: 0 | Y9: 0 | Z9: 0 | AA9: 0 | AB9: 0 | AC9: 0 | AD9: 0 | AE9: 0 | AF9: 0 | AG9: 0 | AH9: 0 | AI9: 0 | AJ9: 0 | AL9: 5 | AM9: 5 | AN9: ='J01'!AN9:AR9 -> 0 | AS9: 1 | AT9: ='J01'!AS9-AS9 -> 0 | AU9: =IF(AS9>'J01'!AS9,'J01'!$AU$23,IF(AS9<'J01'!AS9,'J01'!$AS$23,IF(AS9='J01'!AS9,'J01'!$AT$23))) -> u | AV9: 5 | AW9: =SUMPRODUCT(($B$5:$F$13=AN9)*($BR$5:$BR$13))+SUMPRODUCT(($I$5:$M$13=AN9)*($BS$5:$BS$13))+'J01'!AW9 -> 0 | AX9: =SUMPRODUCT(($B$5:$F$13=AN9)*($BT$5:$BT$13))+SUMPRODUCT(($I$5:$M$13=AN9)*($BU$5:$BU$13))+'J01'!AX9 -> 0 | AY9: =SUMPRODUCT(($B$5:$F$13=AN9)*($BV$5:$BV$13))+SUMPRODUCT(($I$5:$M$13=AN9)*($BW$5:$BW$13))+'J01'!AY9 -> 0 | AZ9: =SUMPRODUCT(($B$5:$F$13=AN9)*($BX$5:$BX$13))+SUMPRODUCT(($I$5:$M$13=AN9)*($BY$5:$BY$13))+'J01'!AZ9 -> 0 | BA9: =SUMPRODUCT(($B$5:$F$13=AN9)*($BZ$5:$BZ$13))+SUMPRODUCT(($I$5:$M$13=AN9)*($CA$5:$CA$13))+'J01'!BA9 -> 0 | BB9: =SUMPRODUCT(($B$5:$F$13=AN9)*($CB$5:$CB$13))+SUMPRODUCT(($I$5:$M$13=AN9)*($CC$5:$CC$13))+'J01'!BB9 -> 0 | BC9: =SUMPRODUCT(($B$5:$F$13=AN9)*($CD$5:$CD$13))+SUMPRODUCT(($I$5:$M$13=AN9)*($CE$5:$CE$13))+'J01'!BC9 -> 0 | BD9: 0 | BE9: =SUMPRODUCT(($B$5:$F$13=AN9)*($CF$5:$CF$13))+'J01'!BE9 -> 0 | BF9: =SUMPRODUCT(($B$5:$F$13=AN9)*($CG$5:$CG$13))+'J01'!BF9 -> 0 | BG9: =SUMPRODUCT(($B$5:$F$13=AN9)*($CH$5:$CH$13))+'J01'!BG9 -> 0 | BH9: =SUMPRODUCT(($I$5:$M$13=AN9)*($CI$5:$CI$13))+'J01'!BH9 -> 0 | BI9: =SUMPRODUCT(($I$5:$M$13=AN9)*($CJ$5:$CJ$13))+'J01'!BI9 -> 0 | BJ9: =SUMPRODUCT(($I$5:$M$13=AN9)*($CK$5:$CK$13))+'J01'!BJ9 -> 0 | BL9: 0 | BM9: =BL9+0.00000026 -> 2.6e-07 | BN9: 0 | BO9: 0 | BP9: 0 | BQ9: 0 | BR9: 0 | BS9: 0 | BT9: 0 | BU9: 0 | BV9: FALSE | BW9: FALSE | BX9: FALSE | BY9: FALSE | BZ9: FALSE | CA9: FALSE | CB9: 0 | CC9: 0 | CD9: 0 | CE9: 0 | CF9: FALSE | CG9: FALSE | CH9: FALSE | CI9: FALSE | CJ9: FALSE | CK9: FALSE | CL9: 0 | CM9: 0 | CN9: 1 | CO9: 0
O10: 0 | T10: 0 | U10: u | V10: 1 | W10: 0 | X10: 0 | Y10: 0 | Z10: 0 | AA10: 0 | AB10: 0 | AC10: 0 | AD10: 0 | AE10: 0 | AF10: 0 | AG10: 0 | AH10: 0 | AI10: 0 | AJ10: 0 | AL10: 6 | AM10: 6 | AN10: ='J01'!AN10:AR10 -> 0 | AS10: 1 | AT10: ='J01'!AS10-AS10 -> 0 | AU10: =IF(AS10>'J01'!AS10,'J01'!$AU$23,IF(AS10<'J01'!AS10,'J01'!$AS$23,IF(AS10='J01'!AS10,'J01'!$AT$23))) -> u | AV10: 6 | AW10: =SUMPRODUCT(($B$5:$F$13=AN10)*($BR$5:$BR$13))+SUMPRODUCT(($I$5:$M$13=AN10)*($BS$5:$BS$13))+'J01'!AW10 -> 0 | AX10: =SUMPRODUCT(($B$5:$F$13=AN10)*($BT$5:$BT$13))+SUMPRODUCT(($I$5:$M$13=AN10)*($BU$5:$BU$13))+'J01'!AX10 -> 0 | AY10: =SUMPRODUCT(($B$5:$F$13=AN10)*($BV$5:$BV$13))+SUMPRODUCT(($I$5:$M$13=AN10)*($BW$5:$BW$13))+'J01'!AY10 -> 0 | AZ10: =SUMPRODUCT(($B$5:$F$13=AN10)*($BX$5:$BX$13))+SUMPRODUCT(($I$5:$M$13=AN10)*($BY$5:$BY$13))+'J01'!AZ10 -> 0 | BA10: =SUMPRODUCT(($B$5:$F$13=AN10)*($BZ$5:$BZ$13))+SUMPRODUCT(($I$5:$M$13=AN10)*($CA$5:$CA$13))+'J01'!BA10 -> 0 | BB10: =SUMPRODUCT(($B$5:$F$13=AN10)*($CB$5:$CB$13))+SUMPRODUCT(($I$5:$M$13=AN10)*($CC$5:$CC$13))+'J01'!BB10 -> 0 | BC10: =SUMPRODUCT(($B$5:$F$13=AN10)*($CD$5:$CD$13))+SUMPRODUCT(($I$5:$M$13=AN10)*($CE$5:$CE$13))+'J01'!BC10 -> 0 | BD10: 0 | BE10: =SUMPRODUCT(($B$5:$F$13=AN10)*($CF$5:$CF$13))+'J01'!BE10 -> 0 | BF10: =SUMPRODUCT(($B$5:$F$13=AN10)*($CG$5:$CG$13))+'J01'!BF10 -> 0 | BG10: =SUMPRODUCT(($B$5:$F$13=AN10)*($CH$5:$CH$13))+'J01'!BG10 -> 0 | BH10: =SUMPRODUCT(($I$5:$M$13=AN10)*($CI$5:$CI$13))+'J01'!BH10 -> 0 | BI10: =SUMPRODUCT(($I$5:$M$13=AN10)*($CJ$5:$CJ$13))+'J01'!BI10 -> 0 | BJ10: =SUMPRODUCT(($I$5:$M$13=AN10)*($CK$5:$CK$13))+'J01'!BJ10 -> 0 | BL10: 0 | BM10: =BL10+0.00000025 -> 2.5e-07 | BN10: 0 | BO10: 0 | BP10: 0 | BQ10: 0 | BR10: 0 | BS10: 0 | BT10: 0 | BU10: 0 | BV10: FALSE | BW10: FALSE | BX10: FALSE | BY10: FALSE | BZ10: FALSE | CA10: FALSE | CB10: 0 | CC10: 0 | CD10: 0 | CE10: 0 | CF10: FALSE | CG10: FALSE | CH10: FALSE | CI10: FALSE | CJ10: FALSE | CK10: FALSE | CL10: 0 | CM10: 0 | CN10: 1 | CO10: 0
O11: 0 | T11: 0 | U11: u | V11: 1 | W11: 0 | X11: 0 | Y11: 0 | Z11: 0 | AA11: 0 | AB11: 0 | AC11: 0 | AD11: 0 | AE11: 0 | AF11: 0 | AG11: 0 | AH11: 0 | AI11: 0 | AJ11: 0 | AL11: 7 | AM11: 7 | AN11: ='J01'!AN11:AR11 -> 0 | AS11: 1 | AT11: ='J01'!AS11-AS11 -> 0 | AU11: =IF(AS11>'J01'!AS11,'J01'!$AU$23,IF(AS11<'J01'!AS11,'J01'!$AS$23,IF(AS11='J01'!AS11,'J01'!$AT$23))) -> u | AV11: 7 | AW11: =SUMPRODUCT(($B$5:$F$13=AN11)*($BR$5:$BR$13))+SUMPRODUCT(($I$5:$M$13=AN11)*($BS$5:$BS$13))+'J01'!AW11 -> 0 | AX11: =SUMPRODUCT(($B$5:$F$13=AN11)*($BT$5:$BT$13))+SUMPRODUCT(($I$5:$M$13=AN11)*($BU$5:$BU$13))+'J01'!AX11 -> 0 | AY11: =SUMPRODUCT(($B$5:$F$13=AN11)*($BV$5:$BV$13))+SUMPRODUCT(($I$5:$M$13=AN11)*($BW$5:$BW$13))+'J01'!AY11 -> 0 | AZ11: =SUMPRODUCT(($B$5:$F$13=AN11)*($BX$5:$BX$13))+SUMPRODUCT(($I$5:$M$13=AN11)*($BY$5:$BY$13))+'J01'!AZ11 -> 0 | BA11: =SUMPRODUCT(($B$5:$F$13=AN11)*($BZ$5:$BZ$13))+SUMPRODUCT(($I$5:$M$13=AN11)*($CA$5:$CA$13))+'J01'!BA11 -> 0 | BB11: =SUMPRODUCT(($B$5:$F$13=AN11)*($CB$5:$CB$13))+SUMPRODUCT(($I$5:$M$13=AN11)*($CC$5:$CC$13))+'J01'!BB11 -> 0 | BC11: =SUMPRODUCT(($B$5:$F$13=AN11)*($CD$5:$CD$13))+SUMPRODUCT(($I$5:$M$13=AN11)*($CE$5:$CE$13))+'J01'!BC11 -> 0 | BD11: 0 | BE11: =SUMPRODUCT(($B$5:$F$13=AN11)*($CF$5:$CF$13))+'J01'!BE11 -> 0 | BF11: =SUMPRODUCT(($B$5:$F$13=AN11)*($CG$5:$CG$13))+'J01'!BF11 -> 0 | BG11: =SUMPRODUCT(($B$5:$F$13=AN11)*($CH$5:$CH$13))+'J01'!BG11 -> 0 | BH11: =SUMPRODUCT(($I$5:$M$13=AN11)*($CI$5:$CI$13))+'J01'!BH11 -> 0 | BI11: =SUMPRODUCT(($I$5:$M$13=AN11)*($CJ$5:$CJ$13))+'J01'!BI11 -> 0 | BJ11: =SUMPRODUCT(($I$5:$M$13=AN11)*($CK$5:$CK$13))+'J01'!BJ11 -> 0 | BL11: 0 | BM11: =BL11+0.00000024 -> 2.4e-07 | BN11: 0 | BO11: 0 | BP11: 0 | BQ11: 0 | BR11: 0 | BS11: 0 | BT11: 0 | BU11: 0 | BV11: FALSE | BW11: FALSE | BX11: FALSE | BY11: FALSE | BZ11: FALSE | CA11: FALSE | CB11: 0 | CC11: 0 | CD11: 0 | CE11: 0 | CF11: FALSE | CG11: FALSE | CH11: FALSE | CI11: FALSE | CJ11: FALSE | CK11: FALSE | CL11: 0 | CM11: 0 | CN11: 1 | CO11: 0
O12: 0 | T12: 0 | U12: u | V12: 1 | W12: 0 | X12: 0 | Y12: 0 | Z12: 0 | AA12: 0 | AB12: 0 | AC12: 0 | AD12: 0 | AE12: 0 | AF12: 0 | AG12: 0 | AH12: 0 | AI12: 0 | AJ12: 0 | AL12: 8 | AM12: 8 | AN12: ='J01'!AN12:AR12 -> 0 | AS12: 1 | AT12: ='J01'!AS12-AS12 -> 0 | AU12: =IF(AS12>'J01'!AS12,'J01'!$AU$23,IF(AS12<'J01'!AS12,'J01'!$AS$23,IF(AS12='J01'!AS12,'J01'!$AT$23))) -> u | AV12: 8 | AW12: =SUMPRODUCT(($B$5:$F$13=AN12)*($BR$5:$BR$13))+SUMPRODUCT(($I$5:$M$13=AN12)*($BS$5:$BS$13))+'J01'!AW12 -> 0 | AX12: =SUMPRODUCT(($B$5:$F$13=AN12)*($BT$5:$BT$13))+SUMPRODUCT(($I$5:$M$13=AN12)*($BU$5:$BU$13))+'J01'!AX12 -> 0 | AY12: =SUMPRODUCT(($B$5:$F$13=AN12)*($BV$5:$BV$13))+SUMPRODUCT(($I$5:$M$13=AN12)*($BW$5:$BW$13))+'J01'!AY12 -> 0 | AZ12: =SUMPRODUCT(($B$5:$F$13=AN12)*($BX$5:$BX$13))+SUMPRODUCT(($I$5:$M$13=AN12)*($BY$5:$BY$13))+'J01'!AZ12 -> 0 | BA12: =SUMPRODUCT(($B$5:$F$13=AN12)*($BZ$5:$BZ$13))+SUMPRODUCT(($I$5:$M$13=AN12)*($CA$5:$CA$13))+'J01'!BA12 -> 0 | BB12: =SUMPRODUCT(($B$5:$F$13=AN12)*($CB$5:$CB$13))+SUMPRODUCT(($I$5:$M$13=AN12)*($CC$5:$CC$13))+'J01'!BB12 -> 0 | BC12: =SUMPRODUCT(($B$5:$F$13=AN12)*($CD$5:$CD$13))+SUMPRODUCT(($I$5:$M$13=AN12)*($CE$5:$CE$13))+'J01'!BC12 -> 0 | BD12: 0 | BE12: =SUMPRODUCT(($B$5:$F$13=AN12)*($CF$5:$CF$13))+'J01'!BE12 -> 0 | BF12: =SUMPRODUCT(($B$5:$F$13=AN12)*($CG$5:$CG$13))+'J01'!BF12 -> 0 | BG12: =SUMPRODUCT(($B$5:$F$13=AN12)*($CH$5:$CH$13))+'J01'!BG12 -> 0 | BH12: =SUMPRODUCT(($I$5:$M$13=AN12)*($CI$5:$CI$13))+'J01'!BH12 -> 0 | BI12: =SUMPRODUCT(($I$5:$M$13=AN12)*($CJ$5:$CJ$13))+'J01'!BI12 -> 0 | BJ12: =SUMPRODUCT(($I$5:$M$13=AN12)*($CK$5:$CK$13))+'J01'!BJ12 -> 0 | BL12: 0 | BM12: =BL12+0.00000023 -> 2.3e-07 | BN12: 0 | BO12: 0 | BP12: 0 | BQ12: 0 | BR12: 0 | BS12: 0 | BT12: 0 | BU12: 0 | BV12: FALSE | BW12: FALSE | BX12: FALSE | BY12: FALSE | BZ12: FALSE | CA12: FALSE | CB12: 0 | CC12: 0 | CD12: 0 | CE12: 0 | CF12: FALSE | CG12: FALSE | CH12: FALSE | CI12: FALSE | CJ12: FALSE | CK12: FALSE | CL12: 0 | CM12: 0 | CN12: 1 | CO12: 0
O13: 0 | T13: 0 | U13: u | V13: 1 | W13: 0 | X13: 0 | Y13: 0 | Z13: 0 | AA13: 0 | AB13: 0 | AC13: 0 | AD13: 0 | AE13: 0 | AF13: 0 | AG13: 0 | AH13: 0 | AI13: 0 | AJ13: 0 | AL13: 9 | AM13: 9 | AN13: ='J01'!AN13:AR13 -> 0 | AS13: 1 | AT13: ='J01'!AS13-AS13 -> 0 | AU13: =IF(AS13>'J01'!AS13,'J01'!$AU$23,IF(AS13<'J01'!AS13,'J01'!$AS$23,IF(AS13='J01'!AS13,'J01'!$AT$23))) -> u | AV13: 9 | AW13: =SUMPRODUCT(($B$5:$F$13=AN13)*($BR$5:$BR$13))+SUMPRODUCT(($I$5:$M$13=AN13)*($BS$5:$BS$13))+'J01'!AW13 -> 0 | AX13: =SUMPRODUCT(($B$5:$F$13=AN13)*($BT$5:$BT$13))+SUMPRODUCT(($I$5:$M$13=AN13)*($BU$5:$BU$13))+'J01'!AX13 -> 0 | AY13: =SUMPRODUCT(($B$5:$F$13=AN13)*($BV$5:$BV$13))+SUMPRODUCT(($I$5:$M$13=AN13)*($BW$5:$BW$13))+'J01'!AY13 -> 0 | AZ13: =SUMPRODUCT(($B$5:$F$13=AN13)*($BX$5:$BX$13))+SUMPRODUCT(($I$5:$M$13=AN13)*($BY$5:$BY$13))+'J01'!AZ13 -> 0 | BA13: =SUMPRODUCT(($B$5:$F$13=AN13)*($BZ$5:$BZ$13))+SUMPRODUCT(($I$5:$M$13=AN13)*($CA$5:$CA$13))+'J01'!BA13 -> 0 | BB13: =SUMPRODUCT(($B$5:$F$13=AN13)*($CB$5:$CB$13))+SUMPRODUCT(($I$5:$M$13=AN13)*($CC$5:$CC$13))+'J01'!BB13 -> 0 | BC13: =SUMPRODUCT(($B$5:$F$13=AN13)*($CD$5:$CD$13))+SUMPRODUCT(($I$5:$M$13=AN13)*($CE$5:$CE$13))+'J01'!BC13 -> 0 | BD13: 0 | BE13: =SUMPRODUCT(($B$5:$F$13=AN13)*($CF$5:$CF$13))+'J01'!BE13 -> 0 | BF13: =SUMPRODUCT(($B$5:$F$13=AN13)*($CG$5:$CG$13))+'J01'!BF13 -> 0 | BG13: =SUMPRODUCT(($B$5:$F$13=AN13)*($CH$5:$CH$13))+'J01'!BG13 -> 0 | BH13: =SUMPRODUCT(($I$5:$M$13=AN13)*($CI$5:$CI$13))+'J01'!BH13 -> 0 | BI13: =SUMPRODUCT(($I$5:$M$13=AN13)*($CJ$5:$CJ$13))+'J01'!BI13 -> 0 | BJ13: =SUMPRODUCT(($I$5:$M$13=AN13)*($CK$5:$CK$13))+'J01'!BJ13 -> 0 | BL13: 0 | BM13: =BL13+0.00000022 -> 2.2e-07 | BN13: 0 | BO13: 0 | BP13: 0 | BQ13: 0 | BR13: 0 | BS13: 0 | BT13: 0 | BU13: 0 | BV13: FALSE | BW13: FALSE | BX13: FALSE | BY13: FALSE | BZ13: FALSE | CA13: FALSE | CB13: 0 | CC13: 0 | CD13: 0 | CE13: 0 | CF13: FALSE | CG13: FALSE | CH13: FALSE | CI13: FALSE | CJ13: FALSE | CK13: FALSE | CL13: 0 | CM13: 0 | CN13: 1 | CO13: 0
O14: 0 | T14: 0 | U14: u | V14: 1 | W14: 0 | X14: 0 | Y14: 0 | Z14: 0 | AA14: 0 | AB14: 0 | AC14: 0 | AD14: 0 | AE14: 0 | AF14: 0 | AG14: 0 | AH14: 0 | AI14: 0 | AJ14: 0 | AL14: 10 | AM14: 10 | AN14: ='J01'!AN14:AR14 -> 0 | AS14: 1 | AT14: ='J01'!AS14-AS14 -> 0 | AU14: =IF(AS14>'J01'!AS14,'J01'!$AU$23,IF(AS14<'J01'!AS14,'J01'!$AS$23,IF(AS14='J01'!AS14,'J01'!$AT$23))) -> u | AV14: 10 | AW14: =SUMPRODUCT(($B$5:$F$13=AN14)*($BR$5:$BR$13))+SUMPRODUCT(($I$5:$M$13=AN14)*($BS$5:$BS$13))+'J01'!AW14 -> 0 | AX14: =SUMPRODUCT(($B$5:$F$13=AN14)*($BT$5:$BT$13))+SUMPRODUCT(($I$5:$M$13=AN14)*($BU$5:$BU$13))+'J01'!AX14 -> 0 | AY14: =SUMPRODUCT(($B$5:$F$13=AN14)*($BV$5:$BV$13))+SUMPRODUCT(($I$5:$M$13=AN14)*($BW$5:$BW$13))+'J01'!AY14 -> 0 | AZ14: =SUMPRODUCT(($B$5:$F$13=AN14)*($BX$5:$BX$13))+SUMPRODUCT(($I$5:$M$13=AN14)*($BY$5:$BY$13))+'J01'!AZ14 -> 0 | BA14: =SUMPRODUCT(($B$5:$F$13=AN14)*($BZ$5:$BZ$13))+SUMPRODUCT(($I$5:$M$13=AN14)*($CA$5:$CA$13))+'J01'!BA14 -> 0 | BB14: =SUMPRODUCT(($B$5:$F$13=AN14)*($CB$5:$CB$13))+SUMPRODUCT(($I$5:$M$13=AN14)*($CC$5:$CC$13))+'J01'!BB14 -> 0 | BC14: =SUMPRODUCT(($B$5:$F$13=AN14)*($CD$5:$CD$13))+SUMPRODUCT(($I$5:$M$13=AN14)*($CE$5:$CE$13))+'J01'!BC14 -> 0 | BD14: 0 | BE14: =SUMPRODUCT(($B$5:$F$13=AN14)*($CF$5:$CF$13))+'J01'!BE14 -> 0 | BF14: =SUMPRODUCT(($B$5:$F$13=AN14)*($CG$5:$CG$13))+'J01'!BF14 -> 0 | BG14: =SUMPRODUCT(($B$5:$F$13=AN14)*($CH$5:$CH$13))+'J01'!BG14 -> 0 | BH14: =SUMPRODUCT(($I$5:$M$13=AN14)*($CI$5:$CI$13))+'J01'!BH14 -> 0 | BI14: =SUMPRODUCT(($I$5:$M$13=AN14)*($CJ$5:$CJ$13))+'J01'!BI14 -> 0 | BJ14: =SUMPRODUCT(($I$5:$M$13=AN14)*($CK$5:$CK$13))+'J01'!BJ14 -> 0 | BL14: 0 | BM14: =BL14+0.00000021 -> 2.1e-07 | CL14: 0 | CM14: 0 | CN14: 1 | CO14: 0
O15: 0 | T15: 0 | U15: u | V15: 1 | W15: 0 | X15: 0 | Y15: 0 | Z15: 0 | AA15: 0 | AB15: 0 | AC15: 0 | AD15: 0 | AE15: 0 | AF15: 0 | AG15: 0 | AH15: 0 | AI15: 0 | AJ15: 0 | AL15: 11 | AM15: 11 | AN15: ='J01'!AN15:AR15 -> 0 | AS15: 1 | AT15: ='J01'!AS15-AS15 -> 0 | AU15: =IF(AS15>'J01'!AS15,'J01'!$AU$23,IF(AS15<'J01'!AS15,'J01'!$AS$23,IF(AS15='J01'!AS15,'J01'!$AT$23))) -> u | AV15: 11 | AW15: =SUMPRODUCT(($B$5:$F$13=AN15)*($BR$5:$BR$13))+SUMPRODUCT(($I$5:$M$13=AN15)*($BS$5:$BS$13))+'J01'!AW15 -> 0 | AX15: =SUMPRODUCT(($B$5:$F$13=AN15)*($BT$5:$BT$13))+SUMPRODUCT(($I$5:$M$13=AN15)*($BU$5:$BU$13))+'J01'!AX15 -> 0 | AY15: =SUMPRODUCT(($B$5:$F$13=AN15)*($BV$5:$BV$13))+SUMPRODUCT(($I$5:$M$13=AN15)*($BW$5:$BW$13))+'J01'!AY15 -> 0 | AZ15: =SUMPRODUCT(($B$5:$F$13=AN15)*($BX$5:$BX$13))+SUMPRODUCT(($I$5:$M$13=AN15)*($BY$5:$BY$13))+'J01'!AZ15 -> 0 | BA15: =SUMPRODUCT(($B$5:$F$13=AN15)*($BZ$5:$BZ$13))+SUMPRODUCT(($I$5:$M$13=AN15)*($CA$5:$CA$13))+'J01'!BA15 -> 0 | BB15: =SUMPRODUCT(($B$5:$F$13=AN15)*($CB$5:$CB$13))+SUMPRODUCT(($I$5:$M$13=AN15)*($CC$5:$CC$13))+'J01'!BB15 -> 0 | BC15: =SUMPRODUCT(($B$5:$F$13=AN15)*($CD$5:$CD$13))+SUMPRODUCT(($I$5:$M$13=AN15)*($CE$5:$CE$13))+'J01'!BC15 -> 0 | BD15: 0 | BE15: =SUMPRODUCT(($B$5:$F$13=AN15)*($CF$5:$CF$13))+'J01'!BE15 -> 0 | BF15: =SUMPRODUCT(($B$5:$F$13=AN15)*($CG$5:$CG$13))+'J01'!BF15 -> 0 | BG15: =SUMPRODUCT(($B$5:$F$13=AN15)*($CH$5:$CH$13))+'J01'!BG15 -> 0 | BH15: =SUMPRODUCT(($I$5:$M$13=AN15)*($CI$5:$CI$13))+'J01'!BH15 -> 0 | BI15: =SUMPRODUCT(($I$5:$M$13=AN15)*($CJ$5:$CJ$13))+'J01'!BI15 -> 0 | BJ15: =SUMPRODUCT(($I$5:$M$13=AN15)*($CK$5:$CK$13))+'J01'!BJ15 -> 0 | BL15: 0 | BM15: =BL15+0.0000002 -> 2e-07 | CL15: 0 | CM15: 0 | CN15: 1 | CO15: 0
O16: 0 | T16: 0 | U16: u | V16: 1 | W16: 0 | X16: 0 | Y16: 0 | Z16: 0 | AA16: 0 | AB16: 0 | AC16: 0 | AD16: 0 | AE16: 0 | AF16: 0 | AG16: 0 | AH16: 0 | AI16: 0 | AJ16: 0 | AL16: 12 | AM16: 12 | AN16: ='J01'!AN16:AR16 -> 0 | AS16: 1 | AT16: ='J01'!AS16-AS16 -> 0 | AU16: =IF(AS16>'J01'!AS16,'J01'!$AU$23,IF(AS16<'J01'!AS16,'J01'!$AS$23,IF(AS16='J01'!AS16,'J01'!$AT$23))) -> u | AV16: 12 | AW16: =SUMPRODUCT(($B$5:$F$13=AN16)*($BR$5:$BR$13))+SUMPRODUCT(($I$5:$M$13=AN16)*($BS$5:$BS$13))+'J01'!AW16 -> 0 | AX16: =SUMPRODUCT(($B$5:$F$13=AN16)*($BT$5:$BT$13))+SUMPRODUCT(($I$5:$M$13=AN16)*($BU$5:$BU$13))+'J01'!AX16 -> 0 | AY16: =SUMPRODUCT(($B$5:$F$13=AN16)*($BV$5:$BV$13))+SUMPRODUCT(($I$5:$M$13=AN16)*($BW$5:$BW$13))+'J01'!AY16 -> 0 | AZ16: =SUMPRODUCT(($B$5:$F$13=AN16)*($BX$5:$BX$13))+SUMPRODUCT(($I$5:$M$13=AN16)*($BY$5:$BY$13))+'J01'!AZ16 -> 0 | BA16: =SUMPRODUCT(($B$5:$F$13=AN16)*($BZ$5:$BZ$13))+SUMPRODUCT(($I$5:$M$13=AN16)*($CA$5:$CA$13))+'J01'!BA16 -> 0 | BB16: =SUMPRODUCT(($B$5:$F$13=AN16)*($CB$5:$CB$13))+SUMPRODUCT(($I$5:$M$13=AN16)*($CC$5:$CC$13))+'J01'!BB16 -> 0 | BC16: =SUMPRODUCT(($B$5:$F$13=AN16)*($CD$5:$CD$13))+SUMPRODUCT(($I$5:$M$13=AN16)*($CE$5:$CE$13))+'J01'!BC16 -> 0 | BD16: 0 | BE16: =SUMPRODUCT(($B$5:$F$13=AN16)*($CF$5:$CF$13))+'J01'!BE16 -> 0 | BF16: =SUMPRODUCT(($B$5:$F$13=AN16)*($CG$5:$CG$13))+'J01'!BF16 -> 0 | BG16: =SUMPRODUCT(($B$5:$F$13=AN16)*($CH$5:$CH$13))+'J01'!BG16 -> 0 | BH16: =SUMPRODUCT(($I$5:$M$13=AN16)*($CI$5:$CI$13))+'J01'!BH16 -> 0 | BI16: =SUMPRODUCT(($I$5:$M$13=AN16)*($CJ$5:$CJ$13))+'J01'!BI16 -> 0 | BJ16: =SUMPRODUCT(($I$5:$M$13=AN16)*($CK$5:$CK$13))+'J01'!BJ16 -> 0 | BL16: 0 | BM16: =BL16+0.00000019 -> 1.9e-07 | CL16: 0 | CM16: 0 | CN16: 1 | CO16: 0
O17: 0 | T17: 0 | U17: u | V17: 1 | W17: 0 | X17: 0 | Y17: 0 | Z17: 0 | AA17: 0 | AB17: 0 | AC17: 0 | AD17: 0 | AE17: 0 | AF17: 0 | AG17: 0 | AH17: 0 | AI17: 0 | AJ17: 0 | AL17: 13 | AM17: 13 | AN17: ='J01'!AN17:AR17 -> 0 | AS17: 1 | AT17: ='J01'!AS17-AS17 -> 0 | AU17: =IF(AS17>'J01'!AS17,'J01'!$AU$23,IF(AS17<'J01'!AS17,'J01'!$AS$23,IF(AS17='J01'!AS17,'J01'!$AT$23))) -> u | AV17: 13 | AW17: =SUMPRODUCT(($B$5:$F$13=AN17)*($BR$5:$BR$13))+SUMPRODUCT(($I$5:$M$13=AN17)*($BS$5:$BS$13))+'J01'!AW17 -> 0 | AX17: =SUMPRODUCT(($B$5:$F$13=AN17)*($BT$5:$BT$13))+SUMPRODUCT(($I$5:$M$13=AN17)*($BU$5:$BU$13))+'J01'!AX17 -> 0 | AY17: =SUMPRODUCT(($B$5:$F$13=AN17)*($BV$5:$BV$13))+SUMPRODUCT(($I$5:$M$13=AN17)*($BW$5:$BW$13))+'J01'!AY17 -> 0 | AZ17: =SUMPRODUCT(($B$5:$F$13=AN17)*($BX$5:$BX$13))+SUMPRODUCT(($I$5:$M$13=AN17)*($BY$5:$BY$13))+'J01'!AZ17 -> 0 | BA17: =SUMPRODUCT(($B$5:$F$13=AN17)*($BZ$5:$BZ$13))+SUMPRODUCT(($I$5:$M$13=AN17)*($CA$5:$CA$13))+'J01'!BA17 -> 0 | BB17: =SUMPRODUCT(($B$5:$F$13=AN17)*($CB$5:$CB$13))+SUMPRODUCT(($I$5:$M$13=AN17)*($CC$5:$CC$13))+'J01'!BB17 -> 0 | BC17: =SUMPRODUCT(($B$5:$F$13=AN17)*($CD$5:$CD$13))+SUMPRODUCT(($I$5:$M$13=AN17)*($CE$5:$CE$13))+'J01'!BC17 -> 0 | BD17: 0 | BE17: =SUMPRODUCT(($B$5:$F$13=AN17)*($CF$5:$CF$13))+'J01'!BE17 -> 0 | BF17: =SUMPRODUCT(($B$5:$F$13=AN17)*($CG$5:$CG$13))+'J01'!BF17 -> 0 | BG17: =SUMPRODUCT(($B$5:$F$13=AN17)*($CH$5:$CH$13))+'J01'!BG17 -> 0 | BH17: =SUMPRODUCT(($I$5:$M$13=AN17)*($CI$5:$CI$13))+'J01'!BH17 -> 0 | BI17: =SUMPRODUCT(($I$5:$M$13=AN17)*($CJ$5:$CJ$13))+'J01'!BI17 -> 0 | BJ17: =SUMPRODUCT(($I$5:$M$13=AN17)*($CK$5:$CK$13))+'J01'!BJ17 -> 0 | BL17: 0 | BM17: =BL17+0.00000018 -> 1.8e-07 | CL17: 0 | CM17: 0 | CN17: 1 | CO17: 0
O18: 0 | T18: 0 | U18: u | V18: 1 | W18: 0 | X18: 0 | Y18: 0 | Z18: 0 | AA18: 0 | AB18: 0 | AC18: 0 | AD18: 0 | AE18: 0 | AF18: 0 | AG18: 0 | AH18: 0 | AI18: 0 | AJ18: 0 | AL18: 14 | AM18: 14 | AN18: ='J01'!AN18:AR18 -> 0 | AS18: 1 | AT18: ='J01'!AS18-AS18 -> 0 | AU18: =IF(AS18>'J01'!AS18,'J01'!$AU$23,IF(AS18<'J01'!AS18,'J01'!$AS$23,IF(AS18='J01'!AS18,'J01'!$AT$23))) -> u | AV18: 14 | AW18: =SUMPRODUCT(($B$5:$F$13=AN18)*($BR$5:$BR$13))+SUMPRODUCT(($I$5:$M$13=AN18)*($BS$5:$BS$13))+'J01'!AW18 -> 0 | AX18: =SUMPRODUCT(($B$5:$F$13=AN18)*($BT$5:$BT$13))+SUMPRODUCT(($I$5:$M$13=AN18)*($BU$5:$BU$13))+'J01'!AX18 -> 0 | AY18: =SUMPRODUCT(($B$5:$F$13=AN18)*($BV$5:$BV$13))+SUMPRODUCT(($I$5:$M$13=AN18)*($BW$5:$BW$13))+'J01'!AY18 -> 0 | AZ18: =SUMPRODUCT(($B$5:$F$13=AN18)*($BX$5:$BX$13))+SUMPRODUCT(($I$5:$M$13=AN18)*($BY$5:$BY$13))+'J01'!AZ18 -> 0 | BA18: =SUMPRODUCT(($B$5:$F$13=AN18)*($BZ$5:$BZ$13))+SUMPRODUCT(($I$5:$M$13=AN18)*($CA$5:$CA$13))+'J01'!BA18 -> 0 | BB18: =SUMPRODUCT(($B$5:$F$13=AN18)*($CB$5:$CB$13))+SUMPRODUCT(($I$5:$M$13=AN18)*($CC$5:$CC$13))+'J01'!BB18 -> 0 | BC18: =SUMPRODUCT(($B$5:$F$13=AN18)*($CD$5:$CD$13))+SUMPRODUCT(($I$5:$M$13=AN18)*($CE$5:$CE$13))+'J01'!BC18 -> 0 | BD18: 0 | BE18: =SUMPRODUCT(($B$5:$F$13=AN18)*($CF$5:$CF$13))+'J01'!BE18 -> 0 | BF18: =SUMPRODUCT(($B$5:$F$13=AN18)*($CG$5:$CG$13))+'J01'!BF18 -> 0 | BG18: =SUMPRODUCT(($B$5:$F$13=AN18)*($CH$5:$CH$13))+'J01'!BG18 -> 0 | BH18: =SUMPRODUCT(($I$5:$M$13=AN18)*($CI$5:$CI$13))+'J01'!BH18 -> 0 | BI18: =SUMPRODUCT(($I$5:$M$13=AN18)*($CJ$5:$CJ$13))+'J01'!BI18 -> 0 | BJ18: =SUMPRODUCT(($I$5:$M$13=AN18)*($CK$5:$CK$13))+'J01'!BJ18 -> 0 | BL18: 0 | BM18: =BL18+0.00000017 -> 1.7e-07 | CL18: 0 | CM18: 0 | CN18: 1 | CO18: 0
O19: 0 | T19: 0 | U19: u | V19: 1 | W19: 0 | X19: 0 | Y19: 0 | Z19: 0 | AA19: 0 | AB19: 0 | AC19: 0 | AD19: 0 | AE19: 0 | AF19: 0 | AG19: 0 | AH19: 0 | AI19: 0 | AJ19: 0 | AL19: 15 | AM19: 15 | AN19: ='J01'!AN19:AR19 -> 0 | AS19: 1 | AT19: ='J01'!AS19-AS19 -> 0 | AU19: =IF(AS19>'J01'!AS19,'J01'!$AU$23,IF(AS19<'J01'!AS19,'J01'!$AS$23,IF(AS19='J01'!AS19,'J01'!$AT$23))) -> u | AV19: 15 | AW19: =SUMPRODUCT(($B$5:$F$13=AN19)*($BR$5:$BR$13))+SUMPRODUCT(($I$5:$M$13=AN19)*($BS$5:$BS$13))+'J01'!AW19 -> 0 | AX19: =SUMPRODUCT(($B$5:$F$13=AN19)*($BT$5:$BT$13))+SUMPRODUCT(($I$5:$M$13=AN19)*($BU$5:$BU$13))+'J01'!AX19 -> 0 | AY19: =SUMPRODUCT(($B$5:$F$13=AN19)*($BV$5:$BV$13))+SUMPRODUCT(($I$5:$M$13=AN19)*($BW$5:$BW$13))+'J01'!AY19 -> 0 | AZ19: =SUMPRODUCT(($B$5:$F$13=AN19)*($BX$5:$BX$13))+SUMPRODUCT(($I$5:$M$13=AN19)*($BY$5:$BY$13))+'J01'!AZ19 -> 0 | BA19: =SUMPRODUCT(($B$5:$F$13=AN19)*($BZ$5:$BZ$13))+SUMPRODUCT(($I$5:$M$13=AN19)*($CA$5:$CA$13))+'J01'!BA19 -> 0 | BB19: =SUMPRODUCT(($B$5:$F$13=AN19)*($CB$5:$CB$13))+SUMPRODUCT(($I$5:$M$13=AN19)*($CC$5:$CC$13))+'J01'!BB19 -> 0 | BC19: =SUMPRODUCT(($B$5:$F$13=AN19)*($CD$5:$CD$13))+SUMPRODUCT(($I$5:$M$13=AN19)*($CE$5:$CE$13))+'J01'!BC19 -> 0 | BD19: 0 | BE19: =SUMPRODUCT(($B$5:$F$13=AN19)*($CF$5:$CF$13))+'J01'!BE19 -> 0 | BF19: =SUMPRODUCT(($B$5:$F$13=AN19)*($CG$5:$CG$13))+'J01'!BF19 -> 0 | BG19: =SUMPRODUCT(($B$5:$F$13=AN19)*($CH$5:$CH$13))+'J01'!BG19 -> 0 | BH19: =SUMPRODUCT(($I$5:$M$13=AN19)*($CI$5:$CI$13))+'J01'!BH19 -> 0 | BI19: =SUMPRODUCT(($I$5:$M$13=AN19)*($CJ$5:$CJ$13))+'J01'!BI19 -> 0 | BJ19: =SUMPRODUCT(($I$5:$M$13=AN19)*($CK$5:$CK$13))+'J01'!BJ19 -> 0 | BL19: 0 | BM19: =BL19+0.00000016 -> 1.6e-07 | CL19: 0 | CM19: 0 | CN19: 1 | CO19: 0
O20: 0 | T20: 0 | U20: u | V20: 1 | W20: 0 | X20: 0 | Y20: 0 | Z20: 0 | AA20: 0 | AB20: 0 | AC20: 0 | AD20: 0 | AE20: 0 | AF20: 0 | AG20: 0 | AH20: 0 | AI20: 0 | AJ20: 0 | AL20: 16 | AM20: 16 | AN20: ='J01'!AN20:AR20 -> 0 | AS20: 1 | AT20: ='J01'!AS20-AS20 -> 0 | AU20: =IF(AS20>'J01'!AS20,'J01'!$AU$23,IF(AS20<'J01'!AS20,'J01'!$AS$23,IF(AS20='J01'!AS20,'J01'!$AT$23))) -> u | AV20: 16 | AW20: =SUMPRODUCT(($B$5:$F$13=AN20)*($BR$5:$BR$13))+SUMPRODUCT(($I$5:$M$13=AN20)*($BS$5:$BS$13))+'J01'!AW20 -> 0 | AX20: =SUMPRODUCT(($B$5:$F$13=AN20)*($BT$5:$BT$13))+SUMPRODUCT(($I$5:$M$13=AN20)*($BU$5:$BU$13))+'J01'!AX20 -> 0 | AY20: =SUMPRODUCT(($B$5:$F$13=AN20)*($BV$5:$BV$13))+SUMPRODUCT(($I$5:$M$13=AN20)*($BW$5:$BW$13))+'J01'!AY20 -> 0 | AZ20: =SUMPRODUCT(($B$5:$F$13=AN20)*($BX$5:$BX$13))+SUMPRODUCT(($I$5:$M$13=AN20)*($BY$5:$BY$13))+'J01'!AZ20 -> 0 | BA20: =SUMPRODUCT(($B$5:$F$13=AN20)*($BZ$5:$BZ$13))+SUMPRODUCT(($I$5:$M$13=AN20)*($CA$5:$CA$13))+'J01'!BA20 -> 0 | BB20: =SUMPRODUCT(($B$5:$F$13=AN20)*($CB$5:$CB$13))+SUMPRODUCT(($I$5:$M$13=AN20)*($CC$5:$CC$13))+'J01'!BB20 -> 0 | BC20: =SUMPRODUCT(($B$5:$F$13=AN20)*($CD$5:$CD$13))+SUMPRODUCT(($I$5:$M$13=AN20)*($CE$5:$CE$13))+'J01'!BC20 -> 0 | BD20: 0 | BE20: =SUMPRODUCT(($B$5:$F$13=AN20)*($CF$5:$CF$13))+'J01'!BE20 -> 0 | BF20: =SUMPRODUCT(($B$5:$F$13=AN20)*($CG$5:$CG$13))+'J01'!BF20 -> 0 | BG20: =SUMPRODUCT(($B$5:$F$13=AN20)*($CH$5:$CH$13))+'J01'!BG20 -> 0 | BH20: =SUMPRODUCT(($I$5:$M$13=AN20)*($CI$5:$CI$13))+'J01'!BH20 -> 0 | BI20: =SUMPRODUCT(($I$5:$M$13=AN20)*($CJ$5:$CJ$13))+'J01'!BI20 -> 0 | BJ20: =SUMPRODUCT(($I$5:$M$13=AN20)*($CK$5:$CK$13))+'J01'!BJ20 -> 0 | BL20: 0 | BM20: =BL20+0.00000015 -> 1.5e-07 | CL20: 0 | CM20: 0 | CN20: 1 | CO20: 0
O21: 0 | T21: 0 | U21: u | V21: 1 | W21: 0 | X21: 0 | Y21: 0 | Z21: 0 | AA21: 0 | AB21: 0 | AC21: 0 | AD21: 0 | AE21: 0 | AF21: 0 | AG21: 0 | AH21: 0 | AI21: 0 | AJ21: 0 | AL21: 17 | AM21: 17 | AN21: ='J01'!AN21:AR21 -> 0 | AS21: 1 | AT21: ='J01'!AS21-AS21 -> 0 | AU21: =IF(AS21>'J01'!AS21,'J01'!$AU$23,IF(AS21<'J01'!AS21,'J01'!$AS$23,IF(AS21='J01'!AS21,'J01'!$AT$23))) -> u | AV21: 17 | AW21: =SUMPRODUCT(($B$5:$F$13=AN21)*($BR$5:$BR$13))+SUMPRODUCT(($I$5:$M$13=AN21)*($BS$5:$BS$13))+'J01'!AW21 -> 0 | AX21: =SUMPRODUCT(($B$5:$F$13=AN21)*($BT$5:$BT$13))+SUMPRODUCT(($I$5:$M$13=AN21)*($BU$5:$BU$13))+'J01'!AX21 -> 0 | AY21: =SUMPRODUCT(($B$5:$F$13=AN21)*($BV$5:$BV$13))+SUMPRODUCT(($I$5:$M$13=AN21)*($BW$5:$BW$13))+'J01'!AY21 -> 0 | AZ21: =SUMPRODUCT(($B$5:$F$13=AN21)*($BX$5:$BX$13))+SUMPRODUCT(($I$5:$M$13=AN21)*($BY$5:$BY$13))+'J01'!AZ21 -> 0 | BA21: =SUMPRODUCT(($B$5:$F$13=AN21)*($BZ$5:$BZ$13))+SUMPRODUCT(($I$5:$M$13=AN21)*($CA$5:$CA$13))+'J01'!BA21 -> 0 | BB21: =SUMPRODUCT(($B$5:$F$13=AN21)*($CB$5:$CB$13))+SUMPRODUCT(($I$5:$M$13=AN21)*($CC$5:$CC$13))+'J01'!BB21 -> 0 | BC21: =SUMPRODUCT(($B$5:$F$13=AN21)*($CD$5:$CD$13))+SUMPRODUCT(($I$5:$M$13=AN21)*($CE$5:$CE$13))+'J01'!BC21 -> 0 | BD21: 0 | BE21: =SUMPRODUCT(($B$5:$F$13=AN21)*($CF$5:$CF$13))+'J01'!BE21 -> 0 | BF21: =SUMPRODUCT(($B$5:$F$13=AN21)*($CG$5:$CG$13))+'J01'!BF21 -> 0 | BG21: =SUMPRODUCT(($B$5:$F$13=AN21)*($CH$5:$CH$13))+'J01'!BG21 -> 0 | BH21: =SUMPRODUCT(($I$5:$M$13=AN21)*($CI$5:$CI$13))+'J01'!BH21 -> 0 | BI21: =SUMPRODUCT(($I$5:$M$13=AN21)*($CJ$5:$CJ$13))+'J01'!BI21 -> 0 | BJ21: =SUMPRODUCT(($I$5:$M$13=AN21)*($CK$5:$CK$13))+'J01'!BJ21 -> 0 | BL21: 0 | BM21: =BL21+0.00000014 -> 1.4e-07 | CL21: 0 | CM21: 0 | CN21: 1 | CO21: 0
O22: 0 | T22: 0 | U22: u | V22: 1 | W22: 0 | X22: 0 | Y22: 0 | Z22: 0 | AA22: 0 | AB22: 0 | AC22: 0 | AD22: 0 | AE22: 0 | AF22: 0 | AG22: 0 | AH22: 0 | AI22: 0 | AJ22: 0 | AL22: 18 | AM22: 18 | AN22: ='J01'!AN22:AR22 -> 0 | AS22: 1 | AT22: ='J01'!AS22-AS22 -> 0 | AU22: =IF(AS22>'J01'!AS22,'J01'!$AU$23,IF(AS22<'J01'!AS22,'J01'!$AS$23,IF(AS22='J01'!AS22,'J01'!$AT$23))) -> u | AV22: 18 | AW22: =SUMPRODUCT(($B$5:$F$13=AN22)*($BR$5:$BR$13))+SUMPRODUCT(($I$5:$M$13=AN22)*($BS$5:$BS$13))+'J01'!AW22 -> 0 | AX22: =SUMPRODUCT(($B$5:$F$13=AN22)*($BT$5:$BT$13))+SUMPRODUCT(($I$5:$M$13=AN22)*($BU$5:$BU$13))+'J01'!AX22 -> 0 | AY22: =SUMPRODUCT(($B$5:$F$13=AN22)*($BV$5:$BV$13))+SUMPRODUCT(($I$5:$M$13=AN22)*($BW$5:$BW$13))+'J01'!AY22 -> 0 | AZ22: =SUMPRODUCT(($B$5:$F$13=AN22)*($BX$5:$BX$13))+SUMPRODUCT(($I$5:$M$13=AN22)*($BY$5:$BY$13))+'J01'!AZ22 -> 0 | BA22: =SUMPRODUCT(($B$5:$F$13=AN22)*($BZ$5:$BZ$13))+SUMPRODUCT(($I$5:$M$13=AN22)*($CA$5:$CA$13))+'J01'!BA22 -> 0 | BB22: =SUMPRODUCT(($B$5:$F$13=AN22)*($CB$5:$CB$13))+SUMPRODUCT(($I$5:$M$13=AN22)*($CC$5:$CC$13))+'J01'!BB22 -> 0 | BC22: =SUMPRODUCT(($B$5:$F$13=AN22)*($CD$5:$CD$13))+SUMPRODUCT(($I$5:$M$13=AN22)*($CE$5:$CE$13))+'J01'!BC22 -> 0 | BD22: 0 | BE22: =SUMPRODUCT(($B$5:$F$13=AN22)*($CF$5:$CF$13))+'J01'!BE22 -> 0 | BF22: =SUMPRODUCT(($B$5:$F$13=AN22)*($CG$5:$CG$13))+'J01'!BF22 -> 0 | BG22: =SUMPRODUCT(($B$5:$F$13=AN22)*($CH$5:$CH$13))+'J01'!BG22 -> 0 | BH22: =SUMPRODUCT(($I$5:$M$13=AN22)*($CI$5:$CI$13))+'J01'!BH22 -> 0 | BI22: =SUMPRODUCT(($I$5:$M$13=AN22)*($CJ$5:$CJ$13))+'J01'!BI22 -> 0 | BJ22: =SUMPRODUCT(($I$5:$M$13=AN22)*($CK$5:$CK$13))+'J01'!BJ22 -> 0 | BL22: 0 | BM22: =BL22+0.00000013 -> 1.3e-07 | CL22: 0 | CM22: 0 | CN22: 1 | CO22: 0
W23: 2019 - 2020 | AC23: Buts Journée | AG23: Total Buts | AS23: p | AT23: u | AU23: q
AC24: =SUM(G5:H13) -> 0 | AG24: =AC24+'J01'!AG24:AJ26 -> 0 | AS24: p | AT24: u | AU24: q

Sheet J03
A1: TOURNOI 219 - 2020 | I1: JOURNEE 03 | O1: CLASSEMENT | AN1: CLASSEMENT
A3: Pén | B3: Equipes | G3: Bts | H3: Bts | I3: Equipes | N3: Pén | O3: Equipes | T3: Evolution | V3: R | W3: Pts | X3: J | Y3: G | Z3: N | AA3: P | AB3: Bts + | AC3: Bts - | AD3: Diff | AE3: Domicile | AH3: Extérieur | AN3: Equipes | AS3: R | AT3: Evolution | AV3: R | AW3: Pts | AX3: J | AY3: G | AZ3: N | BA3: P | BB3: Bts + | BC3: Bts - | BD3: Diff | BE3: Domicile | BH3: Extérieur | CF3: DOMICILE | CI3: EXTERIRUR
AE4: G | AF4: N | AG4: P | AH4: G | AI4: N | AJ4: P | AM4: R | BE4: G | BF4: N | BG4: P | BH4: G | BI4: N | BJ4: P | BL4: % | BM4: % | BN4: P | BO4: P | BP4: Pts | BQ4: Pts | BR4: T Pts | BS4: T Pts | BT4: J | BU4: J | BV4: G | BW4: G | BX4: N | BY4: N | BZ4: P | CA4: P | CB4: B + | CC4: B + | CD4: B - | CE4: B - | CF4: G | CG4: N | CH4: P | CI4: G | CJ4: N | CK4: P | CL4: Equipes | CM4: % | CN4: R | CO4: Equipes
O5: =VLOOKUP(AL5,$AM$5:$AR$22,2,0) -> 0 | T5: =VLOOKUP(O5,$AN$5:$BJ$22,7,0) -> 0 | U5: =VLOOKUP(O5,$AN$5:$BJ$22,8,0) -> u | V5: 1 | W5: =VLOOKUP(O5,$AN$5:$BJ$22,10,0) -> 0 | X5: =VLOOKUP(O5,$AN$5:$BJ$22,11,0) -> 0 | Y5: =VLOOKUP(O5,$AN$5:$BJ$22,12,0) -> 0 | Z5: =VLOOKUP(O5,$AN$5:$BJ$22,13,0) -> 0 | AA5: =VLOOKUP(O5,$AN$5:$BJ$22,14,0) -> 0 | AB5: =VLOOKUP(O5,$AN$5:$BJ$22,15,0) -> 0 | AC5: =VLOOKUP(O5,$AN$5:$BJ$22,16,0) -> 0 | AD5: =VLOOKUP(O5,$AN$5:$BJ$22,17,0) -> 0 | AE5: =VLOOKUP(O5,$AN$5:$BJ$22,18,0) -> 0 | AF5: =VLOOKUP(O5,$AN$5:$BJ$22,19,0) -> 0 | AG5: =VLOOKUP(O5,$AN$5:$BJ$22,20,0) -> 0 | AH5: =VLOOKUP(O5,$AN$5:$BJ$22,21,0) -> 0 | AI5: =VLOOKUP(O5,$AN$5:$BJ$22,22,0) -> 0 | AJ5: =VLOOKUP(O5,$AN$5:$BJ$22,23,0) -> 0 | AL5: 1 | AM5: =AV5 -> 1 | AN5: ='J01'!AN5:AR5 -> 0 | AS5: =RANK(BL5,$BL$5:$BL$22) -> 1 | AT5: ='J02'!AS5-AS5 -> 0 | AU5: =IF(AS5>'J02'!AS5,'J02'!$AU$23,IF(AS5<'J02'!AS5,'J02'!$AS$23,IF(AS5='J02'!AS5,'J02'!$AT$23))) -> u | AV5: =RANK(BM5,$BM$5:$BM$22) -> 1 | AW5: =SUMPRODUCT(($B$5:$F$13=AN5)*($BR$5:$BR$13))+SUMPRODUCT(($I$5:$M$13=AN5)*($BS$5:$BS$13))+'J02'!AW5 -> 0 | AX5: =SUMPRODUCT(($B$5:$F$13=AN5)*($BT$5:$BT$13))+SUMPRODUCT(($I$5:$M$13=AN5)*($BU$5:$BU$13))+'J02'!AX5 -> 0 | AY5: =SUMPRODUCT(($B$5:$F$13=AN5)*($BV$5:$BV$13))+SUMPRODUCT(($I$5:$M$13=AN5)*($BW$5:$BW$13))+'J02'!AY5 -> 0 | AZ5: =SUMPRODUCT(($B$5:$F$13=AN5)*($BX$5:$BX$13))+SUMPRODUCT(($I$5:$M$13=AN5)*($BY$5:$BY$13))+'J02'!AZ5 -> 0 | BA5: =SUMPRODUCT(($B$5:$F$13=AN5)*($BZ$5:$BZ$13))+SUMPRODUCT(($I$5:$M$13=AN5)*($CA$5:$CA$13))+'J02'!BA5 -> 0 | BB5: =SUMPRODUCT(($B$5:$F$13=AN5)*($CB$5:$CB$13))+SUMPRODUCT(($I$5:$M$13=AN5)*($CC$5:$CC$13))+'J02'!BB5 -> 0 | BC5: =SUMPRODUCT(($B$5:$F$13=AN5)*($CD$5:$CD$13))+SUMPRODUCT(($I$5:$M$13=AN5)*($CE$5:$CE$13))+'J02'!BC5 -> 0 | BD5: =BB5-BC5 -> 0 | BE5: =SUMPRODUCT(($B$5:$F$13=AN5)*($CF$5:$CF$13))+'J02'!BE5 -> 0 | BF5: =SUMPRODUCT(($B$5:$F$13=AN5)*($CG$5:$CG$13))+'J02'!BF5 -> 0 | BG5: =SUMPRODUCT(($B$5:$F$13=AN5)*($CH$5:$CH$13))+'J02'!BG5 -> 0 | BH5: =SUMPRODUCT(($I$5:$M$13=AN5)*($CI$5:$CI$13))+'J02'!BH5 -> 0 | BI5: =SUMPRODUCT(($I$5:$M$13=AN5)*($CJ$5:$CJ$13))+'J02'!BI5 -> 0 | BJ5: =SUMPRODUCT(($I$5:$M$13=AN5)*($CK$5:$CK$13))+'J02'!BJ5 -> 0 | BL5: =SUM(AW5*1000+(BD5/100+(BB5/1000))) -> 0 | BM5: =BL5+0.0000003 -> 3e-07 | BN5: =A5 -> 0 | BO5: =N5 -> 0 | BP5: =IF(G5="",0,IF(G5>H5,3,IF(G5=H5,1,IF(G5<H5,0)))) -> 0 | BQ5: =IF(H5="",0,IF(H5>G5,3,IF(H5=G5,1,IF(H5<G5,0)))) -> 0 | BR5: =BP5-BN5 -> 0 | BS5: =BQ5-BO5 -> 0 | BT5: =IF(G5="",0,1) -> 0 | BU5: =IF(H5="",0,1) -> 0 | BV5: =IF(G5<>"",IF(G5>H5,1)) -> FALSE | BW5: =IF(H5<>"",IF(H5>G5,1)) -> FALSE | BX5: =IF(G5<>"",IF(G5=H5,1)) -> FALSE | BY5: =IF(H5<>"",IF(H5=G5,1)) -> FALSE | BZ5: =IF(G5<>"",IF(G5<H5,1)) -> FALSE | CA5: =IF(H5<>"",IF(H5<G5,1)) -> FALSE | CB5: =G5 -> 0 | CC5: =H5 -> 0 | CD5: =H5 -> 0 | CE5: =G5 -> 0 | CF5: =IF(G5<>"",IF(G5>H5,1)) -> FALSE | CG5: =IF(G5<>"",IF(G5=H5,1)) -> FALSE | CH5: =IF(G5<>"",IF(G5<H5,1)) -> FALSE | CI5: =IF(H5<>"",IF(H5>G5,1)) -> FALSE | CJ5: =IF(H5<>"",IF(H5=G5,1)) -> FALSE | CK5: =IF(H5<>"",IF(H5<G5,1)) -> FALSE | CL5: =VLOOKUP(AL5,$AM$5:$AR$22,2,0) -> 0 | CM5: =VLOOKUP(CL5,$AN$5:$BL$22,25,0) -> 0 | CN5: =RANK(CM5,$CM$5:$CM$22) -> 1 | CO5: =AN5 -> 0
O6: =VLOOKUP(AL6,$AM$5:$AR$22,2,0) -> 0 | T6: =VLOOKUP(O6,$AN$5:$BJ$22,7,0) -> 0 | U6: =VLOOKUP(O6,$AN$5:$BJ$22,8,0) -> u | V6: =IF(CM6=CM5,CN5,CN6) -> 1 | W6: =VLOOKUP(O6,$AN$5:$BJ$22,10,0) -> 0 | X6: =VLOOKUP(O6,$AN$5:$BJ$22,11,0) -> 0 | Y6: =VLOOKUP(O6,$AN$5:$BJ$22,12,0) -> 0 | Z6: =VLOOKUP(O6,$AN$5:$BJ$22,13,0) -> 0 | AA6: =VLOOKUP(O6,$AN$5:$BJ$22,14,0) -> 0 | AB6: =VLOOKUP(O6,$AN$5:$BJ$22,15,0) -> 0 | AC6: =VLOOKUP(O6,$AN$5:$BJ$22,16,0) -> 0 | AD6: =VLOOKUP(O6,$AN$5:$BJ$22,17,0) -> 0 | AE6: =VLOOKUP(O6,$AN$5:$BJ$22,18,0) -> 0 | AF6: =VLOOKUP(O6,$AN$5:$BJ$22,19,0) -> 0 | AG6: =VLOOKUP(O6,$AN$5:$BJ$22,20,0) -> 0 | AH6: =VLOOKUP(O6,$AN$5:$BJ$22,21,0) -> 0 | AI6: =VLOOKUP(O6,$AN$5:$BJ$22,22,0) -> 0 | AJ6: =VLOOKUP(O6,$AN$5:$BJ$22,23,0) -> 0 | AL6: 2 | AM6: =AV6 -> 2 | AN6: ='J01'!AN6:AR6 -> 0 | AS6: =RANK(BL6,$BL$5:$BL$22) -> 1 | AT6: ='J02'!AS6-AS6 -> 0 | AU6: =IF(AS6>'J02'!AS6,'J02'!$AU$23,IF(AS6<'J02'!AS6,'J02'!$AS$23,IF(AS6='J02'!AS6,'J02'!$AT$23))) -> u | AV6: =RANK(BM6,$BM$5:$BM$22) -> 2 | AW6: =SUMPRODUCT(($B$5:$F$13=AN6)*($BR$5:$BR$13))+SUMPRODUCT(($I$5:$M$13=AN6)*($BS$5:$BS$13))+'J02'!AW6 -> 0 | AX6: =SUMPRODUCT(($B$5:$F$13=AN6)*($BT$5:$BT$13))+SUMPRODUCT(($I$5:$M$13=AN6)*($BU$5:$BU$13))+'J02'!AX6 -> 0 | AY6: =SUMPRODUCT(($B$5:$F$13=AN6)*($BV$5:$BV$13))+SUMPRODUCT(($I$5:$M$13=AN6)*($BW$5:$BW$13))+'J02'!AY6 -> 0 | AZ6: =SUMPRODUCT(($B$5:$F$13=AN6)*($BX$5:$BX$13))+SUMPRODUCT(($I$5:$M$13=AN6)*($BY$5:$BY$13))+'J02'!AZ6 -> 0 | BA6: =SUMPRODUCT(($B$5:$F$13=AN6)*($BZ$5:$BZ$13))+SUMPRODUCT(($I$5:$M$13=AN6)*($CA$5:$CA$13))+'J02'!BA6 -> 0 | BB6: =SUMPRODUCT(($B$5:$F$13=AN6)*($CB$5:$CB$13))+SUMPRODUCT(($I$5:$M$13=AN6)*($CC$5:$CC$13))+'J02'!BB6 -> 0 | BC6: =SUMPRODUCT(($B$5:$F$13=AN6)*($CD$5:$CD$13))+SUMPRODUCT(($I$5:$M$13=AN6)*($CE$5:$CE$13))+'J02'!BC6 -> 0 | BD6: =BB6-BC6 -> 0 | BE6: =SUMPRODUCT(($B$5:$F$13=AN6)*($CF$5:$CF$13))+'J02'!BE6 -> 0 | BF6: =SUMPRODUCT(($B$5:$F$13=AN6)*($CG$5:$CG$13))+'J02'!BF6 -> 0 | BG6: =SUMPRODUCT(($B$5:$F$13=AN6)*($CH$5:$CH$13))+'J02'!BG6 -> 0 | BH6: =SUMPRODUCT(($I$5:$M$13=AN6)*($CI$5:$CI$13))+'J02'!BH6 -> 0 | BI6: =SUMPRODUCT(($I$5:$M$13=AN6)*($CJ$5:$CJ$13))+'J02'!BI6 -> 0 | BJ6: =SUMPRODUCT(($I$5:$M$13=AN6)*($CK$5:$CK$13))+'J02'!BJ6 -> 0 | BL6: =SUM(AW6*1000+(BD6/100+(BB6/1000))) -> 0 | BM6: =BL6+0.00000029 -> 2.9e-07 | BN6: =A6 -> 0 | BO6: =N6 -> 0 | BP6: =IF(G6="",0,IF(G6>H6,3,IF(G6=H6,1,IF(G6<H6,0)))) -> 0 | BQ6: =IF(H6="",0,IF(H6>G6,3,IF(H6=G6,1,IF(H6<G6,0)))) -> 0 | BR6: =BP6-BN6 -> 0 | BS6: 0 | BT6: =IF(G6="",0,1) -> 0 | BU6: 0 | BV6: =IF(G6<>"",IF(G6>H6,1)) -> FALSE | BW6: =IF(H6<>"",IF(H6>G6,1)) -> FALSE | BX6: =IF(G6<>"",IF(G6=H6,1)) -> FALSE | BY6: =IF(H6<>"",IF(H6=G6,1)) -> FALSE | BZ6: =IF(G6<>"",IF(G6<H6,1)) -> FALSE | CA6: =IF(H6<>"",IF(H6<G6,1)) -> FALSE | CB6: =G6 -> 0 | CC6: 0 | CD6: =H6 -> 0 | CE6: =G6 -> 0 | CF6: =IF(G6<>"",IF(G6>H6,1)) -> FALSE | CG6: =IF(G6<>"",IF(G6=H6,1)) -> FALSE | CH6: =IF(G6<>"",IF(G6<H6,1)) -> FALSE | CI6: =IF(H6<>"",IF(H6>G6,1)) -> FALSE | CJ6: =IF(H6<>"",IF(H6=G6,1)) -> FALSE | CK6: =IF(H6<>"",IF(H6<G6,1)) -> FALSE | CL6: =VLOOKUP(AL6,$AM$5:$AR$22,2,0) -> 0 | CM6: =VLOOKUP(CL6,$AN$5:$BL$22,25,0) -> 0 | CN6: =RANK(CM6,$CM$5:$CM$22) -> 1 | CO6: =AN6 -> 0
O7: 0 | T7: 0 | U7: u | V7: =IF(CM7=CM6,CN6,CN7) -> 1 | W7: 0 | X7: 0 | Y7: 0 | Z7: 0 | AA7: 0 | AB7: 0 | AC7: 0 | AD7: 0 | AE7: 0 | AF7: 0 | AG7: 0 | AH7: 0 | AI7: 0 | AJ7: 0 | AL7: 3 | AM7: 3 | AN7: ='J01'!AN7:AR7 -> 0 | AS7: 1 | AT7: ='J02'!AS7-AS7 -> 0 | AU7: =IF(AS7>'J02'!AS7,'J02'!$AU$23,IF(AS7<'J02'!AS7,'J02'!$AS$23,IF(AS7='J02'!AS7,'J02'!$AT$23))) -> u | AV7: 3 | AW7: =SUMPRODUCT(($B$5:$F$13=AN7)*($BR$5:$BR$13))+SUMPRODUCT(($I$5:$M$13=AN7)*($BS$5:$BS$13))+'J02'!AW7 -> 0 | AX7: =SUMPRODUCT(($B$5:$F$13=AN7)*($BT$5:$BT$13))+SUMPRODUCT(($I$5:$M$13=AN7)*($BU$5:$BU$13))+'J02'!AX7 -> 0 | AY7: =SUMPRODUCT(($B$5:$F$13=AN7)*($BV$5:$BV$13))+SUMPRODUCT(($I$5:$M$13=AN7)*($BW$5:$BW$13))+'J02'!AY7 -> 0 | AZ7: =SUMPRODUCT(($B$5:$F$13=AN7)*($BX$5:$BX$13))+SUMPRODUCT(($I$5:$M$13=AN7)*($BY$5:$BY$13))+'J02'!AZ7 -> 0 | BA7: =SUMPRODUCT(($B$5:$F$13=AN7)*($BZ$5:$BZ$13))+SUMPRODUCT(($I$5:$M$13=AN7)*($CA$5:$CA$13))+'J02'!BA7 -> 0 | BB7: =SUMPRODUCT(($B$5:$F$13=AN7)*($CB$5:$CB$13))+SUMPRODUCT(($I$5:$M$13=AN7)*($CC$5:$CC$13))+'J02'!BB7 -> 0 | BC7: =SUMPRODUCT(($B$5:$F$13=AN7)*($CD$5:$CD$13))+SUMPRODUCT(($I$5:$M$13=AN7)*($CE$5:$CE$13))+'J02'!BC7 -> 0 | BD7: 0 | BE7: =SUMPRODUCT(($B$5:$F$13=AN7)*($CF$5:$CF$13))+'J02'!BE7 -> 0 | BF7: =SUMPRODUCT(($B$5:$F$13=AN7)*($CG$5:$CG$13))+'J02'!BF7 -> 0 | BG7: =SUMPRODUCT(($B$5:$F$13=AN7)*($CH$5:$CH$13))+'J02'!BG7 -> 0 | BH7: =SUMPRODUCT(($I$5:$M$13=AN7)*($CI$5:$CI$13))+'J02'!BH7 -> 0 | BI7: =SUMPRODUCT(($I$5:$M$13=AN7)*($CJ$5:$CJ$13))+'J02'!BI7 -> 0 | BJ7: =SUMPRODUCT(($I$5:$M$13=AN7)*($CK$5:$CK$13))+'J02'!BJ7 -> 0 | BL7: 0 | BM7: =BL7+0.00000028 -> 2.8e-07 | BN7: 0 | BO7: 0 | BP7: 0 | BQ7: 0 | BR7: 0 | BS7: 0 | BT7: 0 | BU7: 0 | BV7: FALSE | BW7: FALSE | BX7: FALSE | BY7: FALSE | BZ7: FALSE | CA7: FALSE | CB7: 0 | CC7: 0 | CD7: 0 | CE7: 0 | CF7: FALSE | CG7: FALSE | CH7: FALSE | CI7: FALSE | CJ7: FALSE | CK7: FALSE | CL7: 0 | CM7: 0 | CN7: 1 | CO7: 0
O8: 0 | T8: 0 | U8: u | V8: 1 | W8: 0 | X8: 0 | Y8: 0 | Z8: 0 | AA8: 0 | AB8: 0 | AC8: 0 | AD8: 0 | AE8: 0 | AF8: 0 | AG8: 0 | AH8: 0 | AI8: 0 | AJ8: 0 | AL8: 4 | AM8: 4 | AN8: ='J01'!AN8:AR8 -> 0 | AS8: 1 | AT8: ='J02'!AS8-AS8 -> 0 | AU8: =IF(AS8>'J02'!AS8,'J02'!$AU$23,IF(AS8<'J02'!AS8,'J02'!$AS$23,IF(AS8='J02'!AS8,'J02'!$AT$23))) -> u | AV8: 4 | AW8: =SUMPRODUCT(($B$5:$F$13=AN8)*($BR$5:$BR$13))+SUMPRODUCT(($I$5:$M$13=AN8)*($BS$5:$BS$13))+'J02'!AW8 -> 0 | AX8: =SUMPRODUCT(($B$5:$F$13=AN8)*($BT$5:$BT$13))+SUMPRODUCT(($I$5:$M$13=AN8)*($BU$5:$BU$13))+'J02'!AX8 -> 0 | AY8: =SUMPRODUCT(($B$5:$F$13=AN8)*($BV$5:$BV$13))+SUMPRODUCT(($I$5:$M$13=AN8)*($BW$5:$BW$13))+'J02'!AY8 -> 0 | AZ8: =SUMPRODUCT(($B$5:$F$13=AN8)*($BX$5:$BX$13))+SUMPRODUCT(($I$5:$M$13=AN8)*($BY$5:$BY$13))+'J02'!AZ8 -> 0 | BA8: =SUMPRODUCT(($B$5:$F$13=AN8)*($BZ$5:$BZ$13))+SUMPRODUCT(($I$5:$M$13=AN8)*($CA$5:$CA$13))+'J02'!BA8 -> 0 | BB8: =SUMPRODUCT(($B$5:$F$13=AN8)*($CB$5:$CB$13))+SUMPRODUCT(($I$5:$M$13=AN8)*($CC$5:$CC$13))+'J02'!BB8 -> 0 | BC8: =SUMPRODUCT(($B$5:$F$13=AN8)*($CD$5:$CD$13))+SUMPRODUCT(($I$5:$M$13=AN8)*($CE$5:$CE$13))+'J02'!BC8 -> 0 | BD8: 0 | BE8: =SUMPRODUCT(($B$5:$F$13=AN8)*($CF$5:$CF$13))+'J02'!BE8 -> 0 | BF8: =SUMPRODUCT(($B$5:$F$13=AN8)*($CG$5:$CG$13))+'J02'!BF8 -> 0 | BG8: =SUMPRODUCT(($B$5:$F$13=AN8)*($CH$5:$CH$13))+'J02'!BG8 -> 0 | BH8: =SUMPRODUCT(($I$5:$M$13=AN8)*($CI$5:$CI$13))+'J02'!BH8 -> 0 | BI8: =SUMPRODUCT(($I$5:$M$13=AN8)*($CJ$5:$CJ$13))+'J02'!BI8 -> 0 | BJ8: =SUMPRODUCT(($I$5:$M$13=AN8)*($CK$5:$CK$13))+'J02'!BJ8 -> 0 | BL8: 0 | BM8: =BL8+0.00000027 -> 2.7e-07 | BN8: 0 | BO8: 0 | BP8: 0 | BQ8: 0 | BR8: 0 | BS8: 0 | BT8: 0 | BU8: 0 | BV8: FALSE | BW8: FALSE | BX8: FALSE | BY8: FALSE | BZ8: FALSE | CA8: FALSE | CB8: 0 | CC8: 0 | CD8: 0 | CE8: 0 | CF8: FALSE | CG8: FALSE | CH8: FALSE | CI8: FALSE | CJ8: FALSE | CK8: FALSE | CL8: 0 | CM8: 0 | CN8: 1 | CO8: 0
O9: 0 | T9: 0 | U9: u | V9: 1 | W9: 0 | X9: 0 | Y9: 0 | Z9: 0 | AA9: 0 | AB9: 0 | AC9: 0 | AD9: 0 | AE9: 0 | AF9: 0 | AG9: 0 | AH9: 0 | AI9: 0 | AJ9: 0 | AL9: 5 | AM9: 5 | AN9: ='J01'!AN9:AR9 -> 0 | AS9: 1 | AT9: ='J02'!AS9-AS9 -> 0 | AU9: =IF(AS9>'J02'!AS9,'J02'!$AU$23,IF(AS9<'J02'!AS9,'J02'!$AS$23,IF(AS9='J02'!AS9,'J02'!$AT$23))) -> u | AV9: 5 | AW9: =SUMPRODUCT(($B$5:$F$13=AN9)*($BR$5:$BR$13))+SUMPRODUCT(($I$5:$M$13=AN9)*($BS$5:$BS$13))+'J02'!AW9 -> 0 | AX9: =SUMPRODUCT(($B$5:$F$13=AN9)*($BT$5:$BT$13))+SUMPRODUCT(($I$5:$M$13=AN9)*($BU$5:$BU$13))+'J02'!AX9 -> 0 | AY9: =SUMPRODUCT(($B$5:$F$13=AN9)*($BV$5:$BV$13))+SUMPRODUCT(($I$5:$M$13=AN9)*($BW$5:$BW$13))+'J02'!AY9 -> 0 | AZ9: =SUMPRODUCT(($B$5:$F$13=AN9)*($BX$5:$BX$13))+SUMPRODUCT(($I$5:$M$13=AN9)*($BY$5:$BY$13))+'J02'!AZ9 -> 0 | BA9: =SUMPRODUCT(($B$5:$F$13=AN9)*($BZ$5:$BZ$13))+SUMPRODUCT(($I$5:$M$13=AN9)*($CA$5:$CA$13))+'J02'!BA9 -> 0 | BB9: =SUMPRODUCT(($B$5:$F$13=AN9)*($CB$5:$CB$13))+SUMPRODUCT(($I$5:$M$13=AN9)*($CC$5:$CC$13))+'J02'!BB9 -> 0 | BC9: =SUMPRODUCT(($B$5:$F$13=AN9)*($CD$5:$CD$13))+SUMPRODUCT(($I$5:$M$13=AN9)*($CE$5:$CE$13))+'J02'!BC9 -> 0 | BD9: 0 | BE9: =SUMPRODUCT(($B$5:$F$13=AN9)*($CF$5:$CF$13))+'J02'!BE9 -> 0 | BF9: =SUMPRODUCT(($B$5:$F$13=AN9)*($CG$5:$CG$13))+'J02'!BF9 -> 0 | BG9: =SUMPRODUCT(($B$5:$F$13=AN9)*($CH$5:$CH$13))+'J02'!BG9 -> 0 | BH9: =SUMPRODUCT(($I$5:$M$13=AN9)*($CI$5:$CI$13))+'J02'!BH9 -> 0 | BI9: =SUMPRODUCT(($I$5:$M$13=AN9)*($CJ$5:$CJ$13))+'J02'!BI9 -> 0 | BJ9: =SUMPRODUCT(($I$5:$M$13=AN9)*($CK$5:$CK$13))+'J02'!BJ9 -> 0 | BL9: 0 | BM9: =BL9+0.00000026 -> 2.6e-07 | BN9: 0 | BO9: 0 | BP9: 0 | BQ9: 0 | BR9: 0 | BS9: 0 | BT9: 0 | BU9: 0 | BV9: FALSE | BW9: FALSE | BX9: FALSE | BY9: FALSE | BZ9: FALSE | CA9: FALSE | CB9: 0 | CC9: 0 | CD9: 0 | CE9: 0 | CF9: FALSE | CG9: FALSE | CH9: FALSE | CI9: FALSE | CJ9: FALSE | CK9: FALSE | CL9: 0 | CM9: 0 | CN9: 1 | CO9: 0
O10: 0 | T10: 0 | U10: u | V10: 1 | W10: 0 | X10: 0 | Y10: 0 | Z10: 0 | AA10: 0 | AB10: 0 | AC10: 0 | AD10: 0 | AE10: 0 | AF10: 0 | AG10: 0 | AH10: 0 | AI10: 0 | AJ10: 0 | AL10: 6 | AM10: 6 | AN10: ='J01'!AN10:AR10 -> 0 | AS10: 1 | AT10: ='J02'!AS10-AS10 -> 0 | AU10: =IF(AS10>'J02'!AS10,'J02'!$AU$23,IF(AS10<'J02'!AS10,'J02'!$AS$23,IF(AS10='J02'!AS10,'J02'!$AT$23))) -> u | AV10: 6 | AW10: =SUMPRODUCT(($B$5:$F$13=AN10)*($BR$5:$BR$13))+SUMPRODUCT(($I$5:$M$13=AN10)*($BS$5:$BS$13))+'J02'!AW10 -> 0 | AX10: =SUMPRODUCT(($B$5:$F$13=AN10)*($BT$5:$BT$13))+SUMPRODUCT(($I$5:$M$13=AN10)*($BU$5:$BU$13))+'J02'!AX10 -> 0 | AY10: =SUMPRODUCT(($B$5:$F$13=AN10)*($BV$5:$BV$13))+SUMPRODUCT(($I$5:$M$13=AN10)*($BW$5:$BW$13))+'J02'!AY10 -> 0 | AZ10: =SUMPRODUCT(($B$5:$F$13=AN10)*($BX$5:$BX$13))+SUMPRODUCT(($I$5:$M$13=AN10)*($BY$5:$BY$13))+'J02'!AZ10 -> 0 | BA10: =SUMPRODUCT(($B$5:$F$13=AN10)*($BZ$5:$BZ$13))+SUMPRODUCT(($I$5:$M$13=AN10)*($CA$5:$CA$13))+'J02'!BA10 -> 0 | BB10: =SUMPRODUCT(($B$5:$F$13=AN10)*($CB$5:$CB$13))+SUMPRODUCT(($I$5:$M$13=AN10)*($CC$5:$CC$13))+'J02'!BB10 -> 0 | BC10: =SUMPRODUCT(($B$5:$F$13=AN10)*($CD$5:$CD$13))+SUMPRODUCT(($I$5:$M$13=AN10)*($CE$5:$CE$13))+'J02'!BC10 -> 0 | BD10: 0 | BE10: =SUMPRODUCT(($B$5:$F$13=AN10)*($CF$5:$CF$13))+'J02'!BE10 -> 0 | BF10: =SUMPRODUCT(($B$5:$F$13=AN10)*($CG$5:$CG$13))+'J02'!BF10 -> 0 | BG10: =SUMPRODUCT(($B$5:$F$13=AN10)*($CH$5:$CH$13))+'J02'!BG10 -> 0 | BH10: =SUMPRODUCT(($I$5:$M$13=AN10)*($CI$5:$CI$13))+'J02'!BH10 -> 0 | BI10: =SUMPRODUCT(($I$5:$M$13=AN10)*($CJ$5:$CJ$13))+'J02'!BI10 -> 0 | BJ10: =SUMPRODUCT(($I$5:$M$13=AN10)*($CK$5:$CK$13))+'J02'!BJ10 -> 0 | BL10: 0 | BM10: =BL10+0.00000025 -> 2.5e-07 | BN10: 0 | BO10: 0 | BP10: 0 | BQ10: 0 | BR10: 0 | BS10: 0 | BT10: 0 | BU10: 0 | BV10: FALSE | BW10: FALSE | BX10: FALSE | BY10: FALSE | BZ10: FALSE | CA10: FALSE | CB10: 0 | CC10: 0 | CD10: 0 | CE10: 0 | CF10: FALSE | CG10: FALSE | CH10: FALSE | CI10: FALSE | CJ10: FALSE | CK10: FALSE | CL10: 0 | CM10: 0 | CN10: 1 | CO10: 0
O11: 0 | T11: 0 | U11: u | V11: 1 | W11: 0 | X11: 0 | Y11: 0 | Z11: 0 | AA11: 0 | AB11: 0 | AC11: 0 | AD11: 0 | AE11: 0 | AF11: 0 | AG11: 0 | AH11: 0 | AI11: 0 | AJ11: 0 | AL11: 7 | AM11: 7 | AN11: ='J01'!AN11:AR11 -> 0 | AS11: 1 | AT11: ='J02'!AS11-AS11 -> 0 | AU11: =IF(AS11>'J02'!AS11,'J02'!$AU$23,IF(AS11<'J02'!AS11,'J02'!$AS$23,IF(AS11='J02'!AS11,'J02'!$AT$23))) -> u | AV11: 7 | AW11: =SUMPRODUCT(($B$5:$F$13=AN11)*($BR$5:$BR$13))+SUMPRODUCT(($I$5:$M$13=AN11)*($BS$5:$BS$13))+'J02'!AW11 -> 0 | AX11: =SUMPRODUCT(($B$5:$F$13=AN11)*($BT$5:$BT$13))+SUMPRODUCT(($I$5:$M$13=AN11)*($BU$5:$BU$13))+'J02'!AX11 -> 0 | AY11: =SUMPRODUCT(($B$5:$F$13=AN11)*($BV$5:$BV$13))+SUMPRODUCT(($I$5:$M$13=AN11)*($BW$5:$BW$13))+'J02'!AY11 -> 0 | AZ11: =SUMPRODUCT(($B$5:$F$13=AN11)*($BX$5:$BX$13))+SUMPRODUCT(($I$5:$M$13=AN11)*($BY$5:$BY$13))+'J02'!AZ11 -> 0 | BA11: =SUMPRODUCT(($B$5:$F$13=AN11)*($BZ$5:$BZ$13))+SUMPRODUCT(($I$5:$M$13=AN11)*($CA$5:$CA$13))+'J02'!BA11 -> 0 | BB11: =SUMPRODUCT(($B$5:$F$13=AN11)*($CB$5:$CB$13))+SUMPRODUCT(($I$5:$M$13=AN11)*($CC$5:$CC$13))+'J02'!BB11 -> 0 | BC11: =SUMPRODUCT(($B$5:$F$13=AN11)*($CD$5:$CD$13))+SUMPRODUCT(($I$5:$M$13=AN11)*($CE$5:$CE$13))+'J02'!BC11 -> 0 | BD11: 0 | BE11: =SUMPRODUCT(($B$5:$F$13=AN11)*($CF$5:$CF$13))+'J02'!BE11 -> 0 | BF11: =SUMPRODUCT(($B$5:$F$13=AN11)*($CG$5:$CG$13))+'J02'!BF11 -> 0 | BG11: =SUMPRODUCT(($B$5:$F$13=AN11)*($CH$5:$CH$13))+'J02'!BG11 -> 0 | BH11: =SUMPRODUCT(($I$5:$M$13=AN11)*($CI$5:$CI$13))+'J02'!BH11 -> 0 | BI11: =SUMPRODUCT(($I$5:$M$13=AN11)*($CJ$5:$CJ$13))+'J02'!BI11 -> 0 | BJ11: =SUMPRODUCT(($I$5:$M$13=AN11)*($CK$5:$CK$13))+'J02'!BJ11 -> 0 | BL11: 0 | BM11: =BL11+0.00000024 -> 2.4e-07 | BN11: 0 | BO11: 0 | BP11: 0 | BQ11: 0 | BR11: 0 | BS11: 0 | BT11: 0 | BU11: 0 | BV11: FALSE | BW11: FALSE | BX11: FALSE | BY11: FALSE | BZ11: FALSE | CA11: FALSE | CB11: 0 | CC11: 0 | CD11: 0 | CE11: 0 | CF11: FALSE | CG11: FALSE | CH11: FALSE | CI11: FALSE | CJ11: FALSE | CK11: FALSE | CL11: 0 | CM11: 0 | CN11: 1 | CO11: 0
O12: 0 | T12: 0 | U12: u | V12: 1 | W12: 0 | X12: 0 | Y12: 0 | Z12: 0 | AA12: 0 | AB12: 0 | AC12: 0 | AD12: 0 | AE12: 0 | AF12: 0 | AG12: 0 | AH12: 0 | AI12: 0 | AJ12: 0 | AL12: 8 | AM12: 8 | AN12: ='J01'!AN12:AR12 -> 0 | AS12: 1 | AT12: ='J02'!AS12-AS12 -> 0 | AU12: =IF(AS12>'J02'!AS12,'J02'!$AU$23,IF(AS12<'J02'!AS12,'J02'!$AS$23,IF(AS12='J02'!AS12,'J02'!$AT$23))) -> u | AV12: 8 | AW12: =SUMPRODUCT(($B$5:$F$13=AN12)*($BR$5:$BR$13))+SUMPRODUCT(($I$5:$M$13=AN12)*($BS$5:$BS$13))+'J02'!AW12 -> 0 | AX12: =SUMPRODUCT(($B$5:$F$13=AN12)*($BT$5:$BT$13))+SUMPRODUCT(($I$5:$M$13=AN12)*($BU$5:$BU$13))+'J02'!AX12 -> 0 | AY12: =SUMPRODUCT(($B$5:$F$13=AN12)*($BV$5:$BV$13))+SUMPRODUCT(($I$5:$M$13=AN12)*($BW$5:$BW$13))+'J02'!AY12 -> 0 | AZ12: =SUMPRODUCT(($B$5:$F$13=AN12)*($BX$5:$BX$13))+SUMPRODUCT(($I$5:$M$13=AN12)*($BY$5:$BY$13))+'J02'!AZ12 -> 0 | BA12: =SUMPRODUCT(($B$5:$F$13=AN12)*($BZ$5:$BZ$13))+SUMPRODUCT(($I$5:$M$13=AN12)*($CA$5:$CA$13))+'J02'!BA12 -> 0 | BB12: =SUMPRODUCT(($B$5:$F$13=AN12)*($CB$5:$CB$13))+SUMPRODUCT(($I$5:$M$13=AN12)*($CC$5:$CC$13))+'J02'!BB12 -> 0 | BC12: =SUMPRODUCT(($B$5:$F$13=AN12)*($CD$5:$CD$13))+SUMPRODUCT(($I$5:$M$13=AN12)*($CE$5:$CE$13))+'J02'!BC12 -> 0 | BD12: 0 | BE12: =SUMPRODUCT(($B$5:$F$13=AN12)*($CF$5:$CF$13))+'J02'!BE12 -> 0 | BF12: =SUMPRODUCT(($B$5:$F$13=AN12)*($CG$5:$CG$13))+'J02'!BF12 -> 0 | BG12: =SUMPRODUCT(($B$5:$F$13=AN12)*($CH$5:$CH$13))+'J02'!BG12 -> 0 | BH12: =SUMPRODUCT(($I$5:$M$13=AN12)*($CI$5:$CI$13))+'J02'!BH12 -> 0 | BI12: =SUMPRODUCT(($I$5:$M$13=AN12)*($CJ$5:$CJ$13))+'J02'!BI12 -> 0 | BJ12: =SUMPRODUCT(($I$5:$M$13=AN12)*($CK$5:$CK$13))+'J02'!BJ12 -> 0 | BL12: 0 | BM12: =BL12+0.00000023 -> 2.3e-07 | BN12: 0 | BO12: 0 | BP12: 0 | BQ12: 0 | BR12: 0 | BS12: 0 | BT12: 0 | BU12: 0 | BV12: FALSE | BW12: FALSE | BX12: FALSE | BY12: FALSE | BZ12: FALSE | CA12: FALSE | CB12: 0 | CC12: 0 | CD12: 0 | CE12: 0 | CF12: FALSE | CG12: FALSE | CH12: FALSE | CI12: FALSE | CJ12: FALSE | CK12: FALSE | CL12: 0 | CM12: 0 | CN12: 1 | CO12: 0
O13: 0 | T13: 0 | U13: u | V13: 1 | W13: 0 | X13: 0 | Y13: 0 | Z13: 0 | AA13: 0 | AB13: 0 | AC13: 0 | AD13: 0 | AE13: 0 | AF13: 0 | AG13: 0 | AH13: 0 | AI13: 0 | AJ13: 0 | AL13: 9 | AM13: 9 | AN13: ='J01'!AN13:AR13 -> 0 | AS13: 1 | AT13: ='J02'!AS13-AS13 -> 0 | AU13: =IF(AS13>'J02'!AS13,'J02'!$AU$23,IF(AS13<'J02'!AS13,'J02'!$AS$23,IF(AS13='J02'!AS13,'J02'!$AT$23))) -> u | AV13: 9 | AW13: =SUMPRODUCT(($B$5:$F$13=AN13)*($BR$5:$BR$13))+SUMPRODUCT(($I$5:$M$13=AN13)*($BS$5:$BS$13))+'J02'!AW13 -> 0 | AX13: =SUMPRODUCT(($B$5:$F$13=AN13)*($BT$5:$BT$13))+SUMPRODUCT(($I$5:$M$13=AN13)*($BU$5:$BU$13))+'J02'!AX13 -> 0 | AY13: =SUMPRODUCT(($B$5:$F$13=AN13)*($BV$5:$BV$13))+SUMPRODUCT(($I$5:$M$13=AN13)*($BW$5:$BW$13))+'J02'!AY13 -> 0 | AZ13: =SUMPRODUCT(($B$5:$F$13=AN13)*($BX$5:$BX$13))+SUMPRODUCT(($I$5:$M$13=AN13)*($BY$5:$BY$13))+'J02'!AZ13 -> 0 | BA13: =SUMPRODUCT(($B$5:$F$13=AN13)*($BZ$5:$BZ$13))+SUMPRODUCT(($I$5:$M$13=AN13)*($CA$5:$CA$13))+'J02'!BA13 -> 0 | BB13: =SUMPRODUCT(($B$5:$F$13=AN13)*($CB$5:$CB$13))+SUMPRODUCT(($I$5:$M$13=AN13)*($CC$5:$CC$13))+'J02'!BB13 -> 0 | BC13: =SUMPRODUCT(($B$5:$F$13=AN13)*($CD$5:$CD$13))+SUMPRODUCT(($I$5:$M$13=AN13)*($CE$5:$CE$13))+'J02'!BC13 -> 0 | BD13: 0 | BE13: =SUMPRODUCT(($B$5:$F$13=AN13)*($CF$5:$CF$13))+'J02'!BE13 -> 0 | BF13: =SUMPRODUCT(($B$5:$F$13=AN13)*($CG$5:$CG$13))+'J02'!BF13 -> 0 | BG13: =SUMPRODUCT(($B$5:$F$13=AN13)*($CH$5:$CH$13))+'J02'!BG13 -> 0 | BH13: =SUMPRODUCT(($I$5:$M$13=AN13)*($CI$5:$CI$13))+'J02'!BH13 -> 0 | BI13: =SUMPRODUCT(($I$5:$M$13=AN13)*($CJ$5:$CJ$13))+'J02'!BI13 -> 0 | BJ13: =SUMPRODUCT(($I$5:$M$13=AN13)*($CK$5:$CK$13))+'J02'!BJ13 -> 0 | BL13: 0 | BM13: =BL13+0.00000022 -> 2.2e-07 | BN13: 0 | BO13: 0 | BP13: 0 | BQ13: 0 | BR13: 0 | BS13: 0 | BT13: 0 | BU13: 0 | BV13: FALSE | BW13: FALSE | BX13: FALSE | BY13: FALSE | BZ13: FALSE | CA13: FALSE | CB13: 0 | CC13: 0 | CD13: 0 | CE13: 0 | CF13: FALSE | CG13: FALSE | CH13: FALSE | CI13: FALSE | CJ13: FALSE | CK13: FALSE | CL13: 0 | CM13: 0 | CN13: 1 | CO13: 0
O14: 0 | T14: 0 | U14: u | V14: 1 | W14: 0 | X14: 0 | Y14: 0 | Z14: 0 | AA14: 0 | AB14: 0 | AC14: 0 | AD14: 0 | AE14: 0 | AF14: 0 | AG14: 0 | AH14: 0 | AI14: 0 | AJ14: 0 | AL14: 10 | AM14: 10 | AN14: ='J01'!AN14:AR14 -> 0 | AS14: 1 | AT14: ='J02'!AS14-AS14 -> 0 | AU14: =IF(AS14>'J02'!AS14,'J02'!$AU$23,IF(AS14<'J02'!AS14,'J02'!$AS$23,IF(AS14='J02'!AS14,'J02'!$AT$23))) -> u | AV14: 10 | AW14: =SUMPRODUCT(($B$5:$F$13=AN14)*($BR$5:$BR$13))+SUMPRODUCT(($I$5:$M$13=AN14)*($BS$5:$BS$13))+'J02'!AW14 -> 0 | AX14: =SUMPRODUCT(($B$5:$F$13=AN14)*($BT$5:$BT$13))+SUMPRODUCT(($I$5:$M$13=AN14)*($BU$5:$BU$13))+'J02'!AX14 -> 0 | AY14: =SUMPRODUCT(($B$5:$F$13=AN14)*($BV$5:$BV$13))+SUMPRODUCT(($I$5:$M$13=AN14)*($BW$5:$BW$13))+'J02'!AY14 -> 0 | AZ14: =SUMPRODUCT(($B$5:$F$13=AN14)*($BX$5:$BX$13))+SUMPRODUCT(($I$5:$M$13=AN14)*($BY$5:$BY$13))+'J02'!AZ14 -> 0 | BA14: =SUMPRODUCT(($B$5:$F$13=AN14)*($BZ$5:$BZ$13))+SUMPRODUCT(($I$5:$M$13=AN14)*($CA$5:$CA$13))+'J02'!BA14 -> 0 | BB14: =SUMPRODUCT(($B$5:$F$13=AN14)*($CB$5:$CB$13))+SUMPRODUCT(($I$5:$M$13=AN14)*($CC$5:$CC$13))+'J02'!BB14 -> 0 | BC14: =SUMPRODUCT(($B$5:$F$13=AN14)*($CD$5:$CD$13))+SUMPRODUCT(($I$5:$M$13=AN14)*($CE$5:$CE$13))+'J02'!BC14 -> 0 | BD14: 0 | BE14: =SUMPRODUCT(($B$5:$F$13=AN14)*($CF$5:$CF$13))+'J02'!BE14 -> 0 | BF14: =SUMPRODUCT(($B$5:$F$13=AN14)*($CG$5:$CG$13))+'J02'!BF14 -> 0 | BG14: =SUMPRODUCT(($B$5:$F$13=AN14)*($CH$5:$CH$13))+'J02'!BG14 -> 0 | BH14: =SUMPRODUCT(($I$5:$M$13=AN14)*($CI$5:$CI$13))+'J02'!BH14 -> 0 | BI14: =SUMPRODUCT(($I$5:$M$13=AN14)*($CJ$5:$CJ$13))+'J02'!BI14 -> 0 | BJ14: =SUMPRODUCT(($I$5:$M$13=AN14)*($CK$5:$CK$13))+'J02'!BJ14 -> 0 | BL14: 0 | BM14: =BL14+0.00000021 -> 2.1e-07 | CL14: 0 | CM14: 0 | CN14: 1 | CO14: 0
O15: 0 | T15: 0 | U15: u | V15: 1 | W15: 0 | X15: 0 | Y15: 0 | Z15: 0 | AA15: 0 | AB15: 0 | AC15: 0 | AD15: 0 | AE15: 0 | AF15: 0 | AG15: 0 | AH15: 0 | AI15: 0 | AJ15: 0 | AL15: 11 | AM15: 11 | AN15: ='J01'!AN15:AR15 -> 0 | AS15: 1 | AT15: ='J02'!AS15-AS15 -> 0 | AU15: =IF(AS15>'J02'!AS15,'J02'!$AU$23,IF(AS15<'J02'!AS15,'J02'!$AS$23,IF(AS15='J02'!AS15,'J02'!$AT$23))) -> u | AV15: 11 | AW15: =SUMPRODUCT(($B$5:$F$13=AN15)*($BR$5:$BR$13))+SUMPRODUCT(($I$5:$M$13=AN15)*($BS$5:$BS$13))+'J02'!AW15 -> 0 | AX15: =SUMPRODUCT(($B$5:$F$13=AN15)*($BT$5:$BT$13))+SUMPRODUCT(($I$5:$M$13=AN15)*($BU$5:$BU$13))+'J02'!AX15 -> 0 | AY15: =SUMPRODUCT(($B$5:$F$13=AN15)*($BV$5:$BV$13))+SUMPRODUCT(($I$5:$M$13=AN15)*($BW$5:$BW$13))+'J02'!AY15 -> 0 | AZ15: =SUMPRODUCT(($B$5:$F$13=AN15)*($BX$5:$BX$13))+SUMPRODUCT(($I$5:$M$13=AN15)*($BY$5:$BY$13))+'J02'!AZ15 -> 0 | BA15: =SUMPRODUCT(($B$5:$F$13=AN15)*($BZ$5:$BZ$13))+SUMPRODUCT(($I$5:$M$13=AN15)*($CA$5:$CA$13))+'J02'!BA15 -> 0 | BB15: =SUMPRODUCT(($B$5:$F$13=AN15)*($CB$5:$CB$13))+SUMPRODUCT(($I$5:$M$13=AN15)*($CC$5:$CC$13))+'J02'!BB15 -> 0 | BC15: =SUMPRODUCT(($B$5:$F$13=AN15)*($CD$5:$CD$13))+SUMPRODUCT(($I$5:$M$13=AN15)*($CE$5:$CE$13))+'J02'!BC15 -> 0 | BD15: 0 | BE15: =SUMPRODUCT(($B$5:$F$13=AN15)*($CF$5:$CF$13))+'J02'!BE15 -> 0 | BF15: =SUMPRODUCT(($B$5:$F$13=AN15)*($CG$5:$CG$13))+'J02'!BF15 -> 0 | BG15: =SUMPRODUCT(($B$5:$F$13=AN15)*($CH$5:$CH$13))+'J02'!BG15 -> 0 | BH15: =SUMPRODUCT(($I$5:$M$13=AN15)*($CI$5:$CI$13))+'J02'!BH15 -> 0 | BI15: =SUMPRODUCT(($I$5:$M$13=AN15)*($CJ$5:$CJ$13))+'J02'!BI15 -> 0 | BJ15: =SUMPRODUCT(($I$5:$M$13=AN15)*($CK$5:$CK$13))+'J02'!BJ15 -> 0 | BL15: 0 | BM15: =BL15+0.0000002 -> 2e-07 | CL15: 0 | CM15: 0 | CN15: 1 | CO15: 0
O16: 0 | T16: 0 | U16: u | V16: 1 | W16: 0 | X16: 0 | Y16: 0 | Z16: 0 | AA16: 0 | AB16: 0 | AC16: 0 | AD16: 0 | AE16: 0 | AF16: 0 | AG16: 0 | AH16: 0 | AI16: 0 | AJ16: 0 | AL16: 12 | AM16: 12 | AN16: ='J01'!AN16:AR16 -> 0 | AS16: 1 | AT16: ='J02'!AS16-AS16 -> 0 | AU16: =IF(AS16>'J02'!AS16,'J02'!$AU$23,IF(AS16<'J02'!AS16,'J02'!$AS$23,IF(AS16='J02'!AS16,'J02'!$AT$23))) -> u | AV16: 12 | AW16: =SUMPRODUCT(($B$5:$F$13=AN16)*($BR$5:$BR$13))+SUMPRODUCT(($I$5:$M$13=AN16)*($BS$5:$BS$13))+'J02'!AW16 -> 0 | AX16: =SUMPRODUCT(($B$5:$F$13=AN16)*($BT$5:$BT$13))+SUMPRODUCT(($I$5:$M$13=AN16)*($BU$5:$BU$13))+'J02'!AX16 -> 0 | AY16: =SUMPRODUCT(($B$5:$F$13=AN16)*($BV$5:$BV$13))+SUMPRODUCT(($I$5:$M$13=AN16)*($BW$5:$BW$13))+'J02'!AY16 -> 0 | AZ16: =SUMPRODUCT(($B$5:$F$13=AN16)*($BX$5:$BX$13))+SUMPRODUCT(($I$5:$M$13=AN16)*($BY$5:$BY$13))+'J02'!AZ16 -> 0 | BA16: =SUMPRODUCT(($B$5:$F$13=AN16)*($BZ$5:$BZ$13))+SUMPRODUCT(($I$5:$M$13=AN16)*($CA$5:$CA$13))+'J02'!BA16 -> 0 | BB16: =SUMPRODUCT(($B$5:$F$13=AN16)*($CB$5:$CB$13))+SUMPRODUCT(($I$5:$M$13=AN16)*($CC$5:$CC$13))+'J02'!BB16 -> 0 | BC16: =SUMPRODUCT(($B$5:$F$13=AN16)*($CD$5:$CD$13))+SUMPRODUCT(($I$5:$M$13=AN16)*($CE$5:$CE$13))+'J02'!BC16 -> 0 | BD16: 0 | BE16: =SUMPRODUCT(($B$5:$F$13=AN16)*($CF$5:$CF$13))+'J02'!BE16 -> 0 | BF16: =SUMPRODUCT(($B$5:$F$13=AN16)*($CG$5:$CG$13))+'J02'!BF16 -> 0 | BG16: =SUMPRODUCT(($B$5:$F$13=AN16)*($CH$5:$CH$13))+'J02'!BG16 -> 0 | BH16: =SUMPRODUCT(($I$5:$M$13=AN16)*($CI$5:$CI$13))+'J02'!BH16 -> 0 | BI16: =SUMPRODUCT(($I$5:$M$13=AN16)*($CJ$5:$CJ$13))+'J02'!BI16 -> 0 | BJ16: =SUMPRODUCT(($I$5:$M$13=AN16)*($CK$5:$CK$13))+'J02'!BJ16 -> 0 | BL16: 0 | BM16: =BL16+0.00000019 -> 1.9e-07 | CL16: 0 | CM16: 0 | CN16: 1 | CO16: 0
O17: 0 | T17: 0 | U17: u | V17: 1 | W17: 0 | X17: 0 | Y17: 0 | Z17: 0 | AA17: 0 | AB17: 0 | AC17: 0 | AD17: 0 | AE17: 0 | AF17: 0 | AG17: 0 | AH17: 0 | AI17: 0 | AJ17: 0 | AL17: 13 | AM17: 13 | AN17: ='J01'!AN17:AR17 -> 0 | AS17: 1 | AT17: ='J02'!AS17-AS17 -> 0 | AU17: =IF(AS17>'J02'!AS17,'J02'!$AU$23,IF(AS17<'J02'!AS17,'J02'!$AS$23,IF(AS17='J02'!AS17,'J02'!$AT$23))) -> u | AV17: 13 | AW17: =SUMPRODUCT(($B$5:$F$13=AN17)*($BR$5:$BR$13))+SUMPRODUCT(($I$5:$M$13=AN17)*($BS$5:$BS$13))+'J02'!AW17 -> 0 | AX17: =SUMPRODUCT(($B$5:$F$13=AN17)*($BT$5:$BT$13))+SUMPRODUCT(($I$5:$M$13=AN17)*($BU$5:$BU$13))+'J02'!AX17 -> 0 | AY17: =SUMPRODUCT(($B$5:$F$13=AN17)*($BV$5:$BV$13))+SUMPRODUCT(($I$5:$M$13=AN17)*($BW$5:$BW$13))+'J02'!AY17 -> 0 | AZ17: =SUMPRODUCT(($B$5:$F$13=AN17)*($BX$5:$BX$13))+SUMPRODUCT(($I$5:$M$13=AN17)*($BY$5:$BY$13))+'J02'!AZ17 -> 0 | BA17: =SUMPRODUCT(($B$5:$F$13=AN17)*($BZ$5:$BZ$13))+SUMPRODUCT(($I$5:$M$13=AN17)*($CA$5:$CA$13))+'J02'!BA17 -> 0 | BB17: =SUMPRODUCT(($B$5:$F$13=AN17)*($CB$5:$CB$13))+SUMPRODUCT(($I$5:$M$13=AN17)*($CC$5:$CC$13))+'J02'!BB17 -> 0 | BC17: =SUMPRODUCT(($B$5:$F$13=AN17)*($CD$5:$CD$13))+SUMPRODUCT(($I$5:$M$13=AN17)*($CE$5:$CE$13))+'J02'!BC17 -> 0 | BD17: 0 | BE17: =SUMPRODUCT(($B$5:$F$13=AN17)*($CF$5:$CF$13))+'J02'!BE17 -> 0 | BF17: =SUMPRODUCT(($B$5:$F$13=AN17)*($CG$5:$CG$13))+'J02'!BF17 -> 0 | BG17: =SUMPRODUCT(($B$5:$F$13=AN17)*($CH$5:$CH$13))+'J02'!BG17 -> 0 | BH17: =SUMPRODUCT(($I$5:$M$13=AN17)*($CI$5:$CI$13))+'J02'!BH17 -> 0 | BI17: =SUMPRODUCT(($I$5:$M$13=AN17)*($CJ$5:$CJ$13))+'J02'!BI17 -> 0 | BJ17: =SUMPRODUCT(($I$5:$M$13=AN17)*($CK$5:$CK$13))+'J02'!BJ17 -> 0 | BL17: 0 | BM17: =BL17+0.00000018 -> 1.8e-07 | CL17: 0 | CM17: 0 | CN17: 1 | CO17: 0
O18: 0 | T18: 0 | U18: u | V18: 1 | W18: 0 | X18: 0 | Y18: 0 | Z18: 0 | AA18: 0 | AB18: 0 | AC18: 0 | AD18: 0 | AE18: 0 | AF18: 0 | AG18: 0 | AH18: 0 | AI18: 0 | AJ18: 0 | AL18: 14 | AM18: 14 | AN18: ='J01'!AN18:AR18 -> 0 | AS18: 1 | AT18: ='J02'!AS18-AS18 -> 0 | AU18: =IF(AS18>'J02'!AS18,'J02'!$AU$23,IF(AS18<'J02'!AS18,'J02'!$AS$23,IF(AS18='J02'!AS18,'J02'!$AT$23))) -> u | AV18: 14 | AW18: =SUMPRODUCT(($B$5:$F$13=AN18)*($BR$5:$BR$13))+SUMPRODUCT(($I$5:$M$13=AN18)*($BS$5:$BS$13))+'J02'!AW18 -> 0 | AX18: =SUMPRODUCT(($B$5:$F$13=AN18)*($BT$5:$BT$13))+SUMPRODUCT(($I$5:$M$13=AN18)*($BU$5:$BU$13))+'J02'!AX18 -> 0 | AY18: =SUMPRODUCT(($B$5:$F$13=AN18)*($BV$5:$BV$13))+SUMPRODUCT(($I$5:$M$13=AN18)*($BW$5:$BW$13))+'J02'!AY18 -> 0 | AZ18: =SUMPRODUCT(($B$5:$F$13=AN18)*($BX$5:$BX$13))+SUMPRODUCT(($I$5:$M$13=AN18)*($BY$5:$BY$13))+'J02'!AZ18 -> 0 | BA18: =SUMPRODUCT(($B$5:$F$13=AN18)*($BZ$5:$BZ$13))+SUMPRODUCT(($I$5:$M$13=AN18)*($CA$5:$CA$13))+'J02'!BA18 -> 0 | BB18: =SUMPRODUCT(($B$5:$F$13=AN18)*($CB$5:$CB$13))+SUMPRODUCT(($I$5:$M$13=AN18)*($CC$5:$CC$13))+'J02'!BB18 -> 0 | BC18: =SUMPRODUCT(($B$5:$F$13=AN18)*($CD$5:$CD$13))+SUMPRODUCT(($I$5:$M$13=AN18)*($CE$5:$CE$13))+'J02'!BC18 -> 0 | BD18: 0 | BE18: =SUMPRODUCT(($B$5:$F$13=AN18)*($CF$5:$CF$13))+'J02'!BE18 -> 0 | BF18: =SUMPRODUCT(($B$5:$F$13=AN18)*($CG$5:$CG$13))+'J02'!BF18 -> 0 | BG18: =SUMPRODUCT(($B$5:$F$13=AN18)*($CH$5:$CH$13))+'J02'!BG18 -> 0 | BH18: =SUMPRODUCT(($I$5:$M$13=AN18)*($CI$5:$CI$13))+'J02'!BH18 -> 0 | BI18: =SUMPRODUCT(($I$5:$M$13=AN18)*($CJ$5:$CJ$13))+'J02'!BI18 -> 0 | BJ18: =SUMPRODUCT(($I$5:$M$13=AN18)*($CK$5:$CK$13))+'J02'!BJ18 -> 0 | BL18: 0 | BM18: =BL18+0.00000017 -> 1.7e-07 | CL18: 0 | CM18: 0 | CN18: 1 | CO18: 0
O19: 0 | T19: 0 | U19: u | V19: 1 | W19: 0 | X19: 0 | Y19: 0 | Z19: 0 | AA19: 0 | AB19: 0 | AC19: 0 | AD19: 0 | AE19: 0 | AF19: 0 | AG19: 0 | AH19: 0 | AI19: 0 | AJ19: 0 | AL19: 15 | AM19: 15 | AN19: ='J01'!AN19:AR19 -> 0 | AS19: 1 | AT19: ='J02'!AS19-AS19 -> 0 | AU19: =IF(AS19>'J02'!AS19,'J02'!$AU$23,IF(AS19<'J02'!AS19,'J02'!$AS$23,IF(AS19='J02'!AS19,'J02'!$AT$23))) -> u | AV19: 15 | AW19: =SUMPRODUCT(($B$5:$F$13=AN19)*($BR$5:$BR$13))+SUMPRODUCT(($I$5:$M$13=AN19)*($BS$5:$BS$13))+'J02'!AW19 -> 0 | AX19: =SUMPRODUCT(($B$5:$F$13=AN19)*($BT$5:$BT$13))+SUMPRODUCT(($I$5:$M$13=AN19)*($BU$5:$BU$13))+'J02'!AX19 -> 0 | AY19: =SUMPRODUCT(($B$5:$F$13=AN19)*($BV$5:$BV$13))+SUMPRODUCT(($I$5:$M$13=AN19)*($BW$5:$BW$13))+'J02'!AY19 -> 0 | AZ19: =SUMPRODUCT(($B$5:$F$13=AN19)*($BX$5:$BX$13))+SUMPRODUCT(($I$5:$M$13=AN19)*($BY$5:$BY$13))+'J02'!AZ19 -> 0 | BA19: =SUMPRODUCT(($B$5:$F$13=AN19)*($BZ$5:$BZ$13))+SUMPRODUCT(($I$5:$M$13=AN19)*($CA$5:$CA$13))+'J02'!BA19 -> 0 | BB19: =SUMPRODUCT(($B$5:$F$13=AN19)*($CB$5:$CB$13))+SUMPRODUCT(($I$5:$M$13=AN19)*($CC$5:$CC$13))+'J02'!BB19 -> 0 | BC19: =SUMPRODUCT(($B$5:$F$13=AN19)*($CD$5:$CD$13))+SUMPRODUCT(($I$5:$M$13=AN19)*($CE$5:$CE$13))+'J02'!BC19 -> 0 | BD19: 0 | BE19: =SUMPRODUCT(($B$5:$F$13=AN19)*($CF$5:$CF$13))+'J02'!BE19 -> 0 | BF19: =SUMPRODUCT(($B$5:$F$13=AN19)*($CG$5:$CG$13))+'J02'!BF19 -> 0 | BG19: =SUMPRODUCT(($B$5:$F$13=AN19)*($CH$5:$CH$13))+'J02'!BG19 -> 0 | BH19: =SUMPRODUCT(($I$5:$M$13=AN19)*($CI$5:$CI$13))+'J02'!BH19 -> 0 | BI19: =SUMPRODUCT(($I$5:$M$13=AN19)*($CJ$5:$CJ$13))+'J02'!BI19 -> 0 | BJ19: =SUMPRODUCT(($I$5:$M$13=AN19)*($CK$5:$CK$13))+'J02'!BJ19 -> 0 | BL19: 0 | BM19: =BL19+0.00000016 -> 1.6e-07 | CL19: 0 | CM19: 0 | CN19: 1 | CO19: 0
O20: 0 | T20: 0 | U20: u | V20: 1 | W20: 0 | X20: 0 | Y20: 0 | Z20: 0 | AA20: 0 | AB20: 0 | AC20: 0 | AD20: 0 | AE20: 0 | AF20: 0 | AG20: 0 | AH20: 0 | AI20: 0 | AJ20: 0 | AL20: 16 | AM20: 16 | AN20: ='J01'!AN20:AR20 -> 0 | AS20: 1 | AT20: ='J02'!AS20-AS20 -> 0 | AU20: =IF(AS20>'J02'!AS20,'J02'!$AU$23,IF(AS20<'J02'!AS20,'J02'!$AS$23,IF(AS20='J02'!AS20,'J02'!$AT$23))) -> u | AV20: 16 | AW20: =SUMPRODUCT(($B$5:$F$13=AN20)*($BR$5:$BR$13))+SUMPRODUCT(($I$5:$M$13=AN20)*($BS$5:$BS$13))+'J02'!AW20 -> 0 | AX20: =SUMPRODUCT(($B$5:$F$13=AN20)*($BT$5:$BT$13))+SUMPRODUCT(($I$5:$M$13=AN20)*($BU$5:$BU$13))+'J02'!AX20 -> 0 | AY20: =SUMPRODUCT(($B$5:$F$13=AN20)*($BV$5:$BV$13))+SUMPRODUCT(($I$5:$M$13=AN20)*($BW$5:$BW$13))+'J02'!AY20 -> 0 | AZ20: =SUMPRODUCT(($B$5:$F$13=AN20)*($BX$5:$BX$13))+SUMPRODUCT(($I$5:$M$13=AN20)*($BY$5:$BY$13))+'J02'!AZ20 -> 0 | BA20: =SUMPRODUCT(($B$5:$F$13=AN20)*($BZ$5:$BZ$13))+SUMPRODUCT(($I$5:$M$13=AN20)*($CA$5:$CA$13))+'J02'!BA20 -> 0 | BB20: =SUMPRODUCT(($B$5:$F$13=AN20)*($CB$5:$CB$13))+SUMPRODUCT(($I$5:$M$13=AN20)*($CC$5:$CC$13))+'J02'!BB20 -> 0 | BC20: =SUMPRODUCT(($B$5:$F$13=AN20)*($CD$5:$CD$13))+SUMPRODUCT(($I$5:$M$13=AN20)*($CE$5:$CE$13))+'J02'!BC20 -> 0 | BD20: 0 | BE20: =SUMPRODUCT(($B$5:$F$13=AN20)*($CF$5:$CF$13))+'J02'!BE20 -> 0 | BF20: =SUMPRODUCT(($B$5:$F$13=AN20)*($CG$5:$CG$13))+'J02'!BF20 -> 0 | BG20: =SUMPRODUCT(($B$5:$F$13=AN20)*($CH$5:$CH$13))+'J02'!BG20 -> 0 | BH20: =SUMPRODUCT(($I$5:$M$13=AN20)*($CI$5:$CI$13))+'J02'!BH20 -> 0 | BI20: =SUMPRODUCT(($I$5:$M$13=AN20)*($CJ$5:$CJ$13))+'J02'!BI20 -> 0 | BJ20: =SUMPRODUCT(($I$5:$M$13=AN20)*($CK$5:$CK$13))+'J02'!BJ20 -> 0 | BL20: 0 | BM20: =BL20+0.00000015 -> 1.5e-07 | CL20: 0 | CM20: 0 | CN20: 1 | CO20: 0
O21: 0 | T21: 0 | U21: u | V21: 1 | W21: 0 | X21: 0 | Y21: 0 | Z21: 0 | AA21: 0 | AB21: 0 | AC21: 0 | AD21: 0 | AE21: 0 | AF21: 0 | AG21: 0 | AH21: 0 | AI21: 0 | AJ21: 0 | AL21: 17 | AM21: 17 | AN21: ='J01'!AN21:AR21 -> 0 | AS21: 1 | AT21: ='J02'!AS21-AS21 -> 0 | AU21: =IF(AS21>'J02'!AS21,'J02'!$AU$23,IF(AS21<'J02'!AS21,'J02'!$AS$23,IF(AS21='J02'!AS21,'J02'!$AT$23))) -> u | AV21: 17 | AW21: =SUMPRODUCT(($B$5:$F$13=AN21)*($BR$5:$BR$13))+SUMPRODUCT(($I$5:$M$13=AN21)*($BS$5:$BS$13))+'J02'!AW21 -> 0 | AX21: =SUMPRODUCT(($B$5:$F$13=AN21)*($BT$5:$BT$13))+SUMPRODUCT(($I$5:$M$13=AN21)*($BU$5:$BU$13))+'J02'!AX21 -> 0 | AY21: =SUMPRODUCT(($B$5:$F$13=AN21)*($BV$5:$BV$13))+SUMPRODUCT(($I$5:$M$13=AN21)*($BW$5:$BW$13))+'J02'!AY21 -> 0 | AZ21: =SUMPRODUCT(($B$5:$F$13=AN21)*($BX$5:$BX$13))+SUMPRODUCT(($I$5:$M$13=AN21)*($BY$5:$BY$13))+'J02'!AZ21 -> 0 | BA21: =SUMPRODUCT(($B$5:$F$13=AN21)*($BZ$5:$BZ$13))+SUMPRODUCT(($I$5:$M$13=AN21)*($CA$5:$CA$13))+'J02'!BA21 -> 0 | BB21: =SUMPRODUCT(($B$5:$F$13=AN21)*($CB$5:$CB$13))+SUMPRODUCT(($I$5:$M$13=AN21)*($CC$5:$CC$13))+'J02'!BB21 -> 0 | BC21: =SUMPRODUCT(($B$5:$F$13=AN21)*($CD$5:$CD$13))+SUMPRODUCT(($I$5:$M$13=AN21)*($CE$5:$CE$13))+'J02'!BC21 -> 0 | BD21: 0 | BE21: =SUMPRODUCT(($B$5:$F$13=AN21)*($CF$5:$CF$13))+'J02'!BE21 -> 0 | BF21: =SUMPRODUCT(($B$5:$F$13=AN21)*($CG$5:$CG$13))+'J02'!BF21 -> 0 | BG21: =SUMPRODUCT(($B$5:$F$13=AN21)*($CH$5:$CH$13))+'J02'!BG21 -> 0 | BH21: =SUMPRODUCT(($I$5:$M$13=AN21)*($CI$5:$CI$13))+'J02'!BH21 -> 0 | BI21: =SUMPRODUCT(($I$5:$M$13=AN21)*($CJ$5:$CJ$13))+'J02'!BI21 -> 0 | BJ21: =SUMPRODUCT(($I$5:$M$13=AN21)*($CK$5:$CK$13))+'J02'!BJ21 -> 0 | BL21: 0 | BM21: =BL21+0.00000014 -> 1.4e-07 | CL21: 0 | CM21: 0 | CN21: 1 | CO21: 0
O22: 0 | T22: 0 | U22: u | V22: 1 | W22: 0 | X22: 0 | Y22: 0 | Z22: 0 | AA22: 0 | AB22: 0 | AC22: 0 | AD22: 0 | AE22: 0 | AF22: 0 | AG22: 0 | AH22: 0 | AI22: 0 | AJ22: 0 | AL22: 18 | AM22: 18 | AN22: ='J01'!AN22:AR22 -> 0 | AS22: 1 | AT22: ='J02'!AS22-AS22 -> 0 | AU22: =IF(AS22>'J02'!AS22,'J02'!$AU$23,IF(AS22<'J02'!AS22,'J02'!$AS$23,IF(AS22='J02'!AS22,'J02'!$AT$23))) -> u | AV22: 18 | AW22: =SUMPRODUCT(($B$5:$F$13=AN22)*($BR$5:$BR$13))+SUMPRODUCT(($I$5:$M$13=AN22)*($BS$5:$BS$13))+'J02'!AW22 -> 0 | AX22: =SUMPRODUCT(($B$5:$F$13=AN22)*($BT$5:$BT$13))+SUMPRODUCT(($I$5:$M$13=AN22)*($BU$5:$BU$13))+'J02'!AX22 -> 0 | AY22: =SUMPRODUCT(($B$5:$F$13=AN22)*($BV$5:$BV$13))+SUMPRODUCT(($I$5:$M$13=AN22)*($BW$5:$BW$13))+'J02'!AY22 -> 0 | AZ22: =SUMPRODUCT(($B$5:$F$13=AN22)*($BX$5:$BX$13))+SUMPRODUCT(($I$5:$M$13=AN22)*($BY$5:$BY$13))+'J02'!AZ22 -> 0 | BA22: =SUMPRODUCT(($B$5:$F$13=AN22)*($BZ$5:$BZ$13))+SUMPRODUCT(($I$5:$M$13=AN22)*($CA$5:$CA$13))+'J02'!BA22 -> 0 | BB22: =SUMPRODUCT(($B$5:$F$13=AN22)*($CB$5:$CB$13))+SUMPRODUCT(($I$5:$M$13=AN22)*($CC$5:$CC$13))+'J02'!BB22 -> 0 | BC22: =SUMPRODUCT(($B$5:$F$13=AN22)*($CD$5:$CD$13))+SUMPRODUCT(($I$5:$M$13=AN22)*($CE$5:$CE$13))+'J02'!BC22 -> 0 | BD22: 0 | BE22: =SUMPRODUCT(($B$5:$F$13=AN22)*($CF$5:$CF$13))+'J02'!BE22 -> 0 | BF22: =SUMPRODUCT(($B$5:$F$13=AN22)*($CG$5:$CG$13))+'J02'!BF22 -> 0 | BG22: =SUMPRODUCT(($B$5:$F$13=AN22)*($CH$5:$CH$13))+'J02'!BG22 -> 0 | BH22: =SUMPRODUCT(($I$5:$M$13=AN22)*($CI$5:$CI$13))+'J02'!BH22 -> 0 | BI22: =SUMPRODUCT(($I$5:$M$13=AN22)*($CJ$5:$CJ$13))+'J02'!BI22 -> 0 | BJ22: =SUMPRODUCT(($I$5:$M$13=AN22)*($CK$5:$CK$13))+'J02'!BJ22 -> 0 | BL22: 0 | BM22: =BL22+0.00000013 -> 1.3e-07 | CL22: 0 | CM22: 0 | CN22: 1 | CO22: 0
W23: 2019 - 2020 | AC23: Buts Journée | AG23: Total Buts | AS23: p | AT23: u | AU23: q
AC24: =SUM(G5:H13) -> 0 | AG24: =AC24+'J02'!AG24:AJ26 -> 0 | AS24: p | AT24: u | AU24: q

Sheet J04
A1: TOURNOI 219 - 2020 | I1: JOURNEE 04 | O1: CLASSEMENT | AN1: CLASSEMENT
A3: Pén | B3: Equipes | G3: Bts | H3: Bts | I3: Equipes | N3: Pén | O3: Equipes | T3: Evolution | V3: R | W3: Pts | X3: J | Y3: G | Z3: N | AA3: P | AB3: Bts + | AC3: Bts - | AD3: Diff | AE3: Domicile | AH3: Extérieur | AN3: Equipes | AS3: R | AT3: Evolution | AV3: R | AW3: Pts | AX3: J | AY3: G | AZ3: N | BA3: P | BB3: Bts + | BC3: Bts - | BD3: Diff | BE3: Domicile | BH3: Extérieur | CF3: DOMICILE | CI3: EXTERIRUR
AE4: G | AF4: N | AG4: P | AH4: G | AI4: N | AJ4: P | AM4: R | BE4: G | BF4: N | BG4: P | BH4: G | BI4: N | BJ4: P | BL4: % | BM4: % | BN4: P | BO4: P | BP4: Pts | BQ4: Pts | BR4: T Pts | BS4: T Pts | BT4: J | BU4: J | BV4: G | BW4: G | BX4: N | BY4: N | BZ4: P | CA4: P | CB4: B + | CC4: B + | CD4: B - | CE4: B - | CF4: G | CG4: N | CH4: P | CI4: G | CJ4: N | CK4: P | CL4: Equipes | CM4: % | CN4: R | CO4: Equipes
O5: =VLOOKUP(AL5,$AM$5:$AR$22,2,0) -> 0 | T5: =VLOOKUP(O5,$AN$5:$BJ$22,7,0) -> 0 | U5: =VLOOKUP(O5,$AN$5:$BJ$22,8,0) -> u | V5: 1 | W5: =VLOOKUP(O5,$AN$5:$BJ$22,10,0) -> 0 | X5: =VLOOKUP(O5,$AN$5:$BJ$22,11,0) -> 0 | Y5: =VLOOKUP(O5,$AN$5:$BJ$22,12,0) -> 0 | Z5: =VLOOKUP(O5,$AN$5:$BJ$22,13,0) -> 0 | AA5: =VLOOKUP(O5,$AN$5:$BJ$22,14,0) -> 0 | AB5: =VLOOKUP(O5,$AN$5:$BJ$22,15,0) -> 0 | AC5: =VLOOKUP(O5,$AN$5:$BJ$22,16,0) -> 0 | AD5: =VLOOKUP(O5,$AN$5:$BJ$22,17,0) -> 0 | AE5: =VLOOKUP(O5,$AN$5:$BJ$22,18,0) -> 0 | AF5: =VLOOKUP(O5,$AN$5:$BJ$22,19,0) -> 0 | AG5: =VLOOKUP(O5,$AN$5:$BJ$22,20,0) -> 0 | AH5: =VLOOKUP(O5,$AN$5:$BJ$22,21,0) -> 0 | AI5: =VLOOKUP(O5,$AN$5:$BJ$22,22,0) -> 0 | AJ5: =VLOOKUP(O5,$AN$5:$BJ$22,23,0) -> 0 | AL5: 1 | AM5: =AV5 -> 1 | AN5: ='J01'!AN5:AR5 -> 0 | AS5: =RANK(BL5,$BL$5:$BL$22) -> 1 | AT5: ='J03'!AS5-AS5 -> 0 | AU5: =IF(AS5>'J03'!AS5,'J03'!$AU$23,IF(AS5<'J03'!AS5,'J03'!$AS$23,IF(AS5='J03'!AS5,'J03'!$AT$23))) -> u | AV5: =RANK(BM5,$BM$5:$BM$22) -> 1 | AW5: =SUMPRODUCT(($B$5:$F$13=AN5)*($BR$5:$BR$13))+SUMPRODUCT(($I$5:$M$13=AN5)*($BS$5:$BS$13))+'J03'!AW5 -> 0 | AX5: =SUMPRODUCT(($B$5:$F$13=AN5)*($BT$5:$BT$13))+SUMPRODUCT(($I$5:$M$13=AN5)*($BU$5:$BU$13))+'J03'!AX5 -> 0 | AY5: =SUMPRODUCT(($B$5:$F$13=AN5)*($BV$5:$BV$13))+SUMPRODUCT(($I$5:$M$13=AN5)*($BW$5:$BW$13))+'J03'!AY5 -> 0 | AZ5: =SUMPRODUCT(($B$5:$F$13=AN5)*($BX$5:$BX$13))+SUMPRODUCT(($I$5:$M$13=AN5)*($BY$5:$BY$13))+'J03'!AZ5 -> 0 | BA5: =SUMPRODUCT(($B$5:$F$13=AN5)*($BZ$5:$BZ$13))+SUMPRODUCT(($I$5:$M$13=AN5)*($CA$5:$CA$13))+'J03'!BA5 -> 0 | BB5: =SUMPRODUCT(($B$5:$F$13=AN5)*($CB$5:$CB$13))+SUMPRODUCT(($I$5:$M$13=AN5)*($CC$5:$CC$13))+'J03'!BB5 -> 0 | BC5: =SUMPRODUCT(($B$5:$F$13=AN5)*($CD$5:$CD$13))+SUMPRODUCT(($I$5:$M$13=AN5)*($CE$5:$CE$13))+'J03'!BC5 -> 0 | BD5: =BB5-BC5 -> 0 | BE5: =SUMPRODUCT(($B$5:$F$13=AN5)*($CF$5:$CF$13))+'J03'!BE5 -> 0 | BF5: =SUMPRODUCT(($B$5:$F$13=AN5)*($CG$5:$CG$13))+'J03'!BF5 -> 0 | BG5: =SUMPRODUCT(($B$5:$F$13=AN5)*($CH$5:$CH$13))+'J03'!BG5 -> 0 | BH5: =SUMPRODUCT(($I$5:$M$13=AN5)*($CI$5:$CI$13))+'J03'!BH5 -> 0 | BI5: =SUMPRODUCT(($I$5:$M$13=AN5)*($CJ$5:$CJ$13))+'J03'!BI5 -> 0 | BJ5: =SUMPRODUCT(($I$5:$M$13=AN5)*($CK$5:$CK$13))+'J03'!BJ5 -> 0 | BL5: =SUM(AW5*1000+(BD5/100+(BB5/1000))) -> 0 | BM5: =BL5+0.0000003 -> 3e-07 | BN5: =A5 -> 0 | BO5: =N5 -> 0 | BP5: =IF(G5="",0,IF(G5>H5,3,IF(G5=H5,1,IF(G5<H5,0)))) -> 0 | BQ5: =IF(H5="",0,IF(H5>G5,3,IF(H5=G5,1,IF(H5<G5,0)))) -> 0 | BR5: =BP5-BN5 -> 0 | BS5: =BQ5-BO5 -> 0 | BT5: =IF(G5="",0,1) -> 0 | BU5: =IF(H5="",0,1) -> 0 | BV5: =IF(G5<>"",IF(G5>H5,1)) -> FALSE | BW5: =IF(H5<>"",IF(H5>G5,1)) -> FALSE | BX5: =IF(G5<>"",IF(G5=H5,1)) -> FALSE | BY5: =IF(H5<>"",IF(H5=G5,1)) -> FALSE | BZ5: =IF(G5<>"",IF(G5<H5,1)) -> FALSE | CA5: =IF(H5<>"",IF(H5<G5,1)) -> FALSE | CB5: =G5 -> 0 | CC5: =H5 -> 0 | CD5: =H5 -> 0 | CE5: =G5 -> 0 | CF5: =IF(G5<>"",IF(G5>H5,1)) -> FALSE | CG5: =IF(G5<>"",IF(G5=H5,1)) -> FALSE | CH5: =IF(G5<>"",IF(G5<H5,1)) -> FALSE | CI5: =IF(H5<>"",IF(H5>G5,1)) -> FALSE | CJ5: =IF(H5<>"",IF(H5=G5,1)) -> FALSE | CK5: =IF(H5<>"",IF(H5<G5,1)) -> FALSE | CL5: =VLOOKUP(AL5,$AM$5:$AR$22,2,0) -> 0 | CM5: =VLOOKUP(CL5,$AN$5:$BL$22,25,0) -> 0 | CN5: =RANK(CM5,$CM$5:$CM$22) -> 1 | CO5: =AN5 -> 0
O6: =VLOOKUP(AL6,$AM$5:$AR$22,2,0) -> 0 | T6: =VLOOKUP(O6,$AN$5:$BJ$22,7,0) -> 0 | U6: =VLOOKUP(O6,$AN$5:$BJ$22,8,0) -> u | V6: =IF(CM6=CM5,CN5,CN6) -> 1 | W6: =VLOOKUP(O6,$AN$5:$BJ$22,10,0) -> 0 | X6: =VLOOKUP(O6,$AN$5:$BJ$22,11,0) -> 0 | Y6: =VLOOKUP(O6,$AN$5:$BJ$22,12,0) -> 0 | Z6: =VLOOKUP(O6,$AN$5:$BJ$22,13,0) -> 0 | AA6: =VLOOKUP(O6,$AN$5:$BJ$22,14,0) -> 0 | AB6: =VLOOKUP(O6,$AN$5:$BJ$22,15,0) -> 0 | AC6: =VLOOKUP(O6,$AN$5:$BJ$22,16,0) -> 0 | AD6: =VLOOKUP(O6,$AN$5:$BJ$22,17,0) -> 0 | AE6: =VLOOKUP(O6,$AN$5:$BJ$22,18,0) -> 0 | AF6: =VLOOKUP(O6,$AN$5:$BJ$22,19,0) -> 0 | AG6: =VLOOKUP(O6,$AN$5:$BJ$22,20,0) -> 0 | AH6: =VLOOKUP(O6,$AN$5:$BJ$22,21,0) -> 0 | AI6: =VLOOKUP(O6,$AN$5:$BJ$22,22,0) -> 0 | AJ6: =VLOOKUP(O6,$AN$5:$BJ$22,23,0) -> 0 | AL6: 2 | AM6: =AV6 -> 2 | AN6: ='J01'!AN6:AR6 -> 0 | AS6: =RANK(BL6,$BL$5:$BL$22) -> 1 | AT6: ='J03'!AS6-AS6 -> 0 | AU6: =IF(AS6>'J03'!AS6,'J03'!$AU$23,IF(AS6<'J03'!AS6,'J03'!$AS$23,IF(AS6='J03'!AS6,'J03'!$AT$23))) -> u | AV6: =RANK(BM6,$BM$5:$BM$22) -> 2 | AW6: =SUMPRODUCT(($B$5:$F$13=AN6)*($BR$5:$BR$13))+SUMPRODUCT(($I$5:$M$13=AN6)*($BS$5:$BS$13))+'J03'!AW6 -> 0 | AX6: =SUMPRODUCT(($B$5:$F$13=AN6)*($BT$5:$BT$13))+SUMPRODUCT(($I$5:$M$13=AN6)*($BU$5:$BU$13))+'J03'!AX6 -> 0 | AY6: =SUMPRODUCT(($B$5:$F$13=AN6)*($BV$5:$BV$13))+SUMPRODUCT(($I$5:$M$13=AN6)*($BW$5:$BW$13))+'J03'!AY6 -> 0 | AZ6: =SUMPRODUCT(($B$5:$F$13=AN6)*($BX$5:$BX$13))+SUMPRODUCT(($I$5:$M$13=AN6)*($BY$5:$BY$13))+'J03'!AZ6 -> 0 | BA6: =SUMPRODUCT(($B$5:$F$13=AN6)*($BZ$5:$BZ$13))+SUMPRODUCT(($I$5:$M$13=AN6)*($CA$5:$CA$13))+'J03'!BA6 -> 0 | BB6: =SUMPRODUCT(($B$5:$F$13=AN6)*($CB$5:$CB$13))+SUMPRODUCT(($I$5:$M$13=AN6)*($CC$5:$CC$13))+'J03'!BB6 -> 0 | BC6: =SUMPRODUCT(($B$5:$F$13=AN6)*($CD$5:$CD$13))+SUMPRODUCT(($I$5:$M$13=AN6)*($CE$5:$CE$13))+'J03'!BC6 -> 0 | BD6: =BB6-BC6 -> 0 | BE6: =SUMPRODUCT(($B$5:$F$13=AN6)*($CF$5:$CF$13))+'J03'!BE6 -> 0 | BF6: =SUMPRODUCT(($B$5:$F$13=AN6)*($CG$5:$CG$13))+'J03'!BF6 -> 0 | BG6: =SUMPRODUCT(($B$5:$F$13=AN6)*($CH$5:$CH$13))+'J03'!BG6 -> 0 | BH6: =SUMPRODUCT(($I$5:$M$13=AN6)*($CI$5:$CI$13))+'J03'!BH6 -> 0 | BI6: =SUMPRODUCT(($I$5:$M$13=AN6)*($CJ$5:$CJ$13))+'J03'!BI6 -> 0 | BJ6: =SUMPRODUCT(($I$5:$M$13=AN6)*($CK$5:$CK$13))+'J03'!BJ6 -> 0 | BL6: =SUM(AW6*1000+(BD6/100+(BB6/1000))) -> 0 | BM6: =BL6+0.00000029 -> 2.9e-07 | BN6: =A6 -> 0 | BO6: =N6 -> 0 | BP6: =IF(G6="",0,IF(G6>H6,3,IF(G6=H6,1,IF(G6<H6,0)))) -> 0 | BQ6: =IF(H6="",0,IF(H6>G6,3,IF(H6=G6,1,IF(H6<G6,0)))) -> 0 | BR6: =BP6-BN6 -> 0 | BS6: 0 | BT6: =IF(G6="",0,1) -> 0 | BU6: 0 | BV6: =IF(G6<>"",IF(G6>H6,1)) -> FALSE | BW6: =IF(H6<>"",IF(H6>G6,1)) -> FALSE | BX6: =IF(G6<>"",IF(G6=H6,1)) -> FALSE | BY6: =IF(H6<>"",IF(H6=G6,1)) -> FALSE | BZ6: =IF(G6<>"",IF(G6<H6,1)) -> FALSE | CA6: =IF(H6<>"",IF(H6<G6,1)) -> FALSE | CB6: =G6 -> 0 | CC6: 0 | CD6: =H6 -> 0 | CE6: =G6 -> 0 | CF6: =IF(G6<>"",IF(G6>H6,1)) -> FALSE | CG6: =IF(G6<>"",IF(G6=H6,1)) -> FALSE | CH6: =IF(G6<>"",IF(G6<H6,1)) -> FALSE | CI6: =IF(H6<>"",IF(H6>G6,1)) -> FALSE | CJ6: =IF(H6<>"",IF(H6=G6,1)) -> FALSE | CK6: =IF(H6<>"",IF(H6<G6,1)) -> FALSE | CL6: =VLOOKUP(AL6,$AM$5:$AR$22,2,0) -> 0 | CM6: =VLOOKUP(CL6,$AN$5:$BL$22,25,0) -> 0 | CN6: =RANK(CM6,$CM$5:$CM$22) -> 1 | CO6: =AN6 -> 0
O7: 0 | T7: 0 | U7: u | V7: =IF(CM7=CM6,CN6,CN7) -> 1 | W7: 0 | X7: 0 | Y7: 0 | Z7: 0 | AA7: 0 | AB7: 0 | AC7: 0 | AD7: 0 | AE7: 0 | AF7: 0 | AG7: 0 | AH7: 0 | AI7: 0 | AJ7: 0 | AL7: 3 | AM7: 3 | AN7: ='J01'!AN7:AR7 -> 0 | AS7: 1 | AT7: ='J03'!AS7-AS7 -> 0 | AU7: =IF(AS7>'J03'!AS7,'J03'!$AU$23,IF(AS7<'J03'!AS7,'J03'!$AS$23,IF(AS7='J03'!AS7,'J03'!$AT$23))) -> u | AV7: 3 | AW7: =SUMPRODUCT(($B$5:$F$13=AN7)*($BR$5:$BR$13))+SUMPRODUCT(($I$5:$M$13=AN7)*($BS$5:$BS$13))+'J03'!AW7 -> 0 | AX7: =SUMPRODUCT(($B$5:$F$13=AN7)*($BT$5:$BT$13))+SUMPRODUCT(($I$5:$M$13=AN7)*($BU$5:$BU$13))+'J03'!AX7 -> 0 | AY7: =SUMPRODUCT(($B$5:$F$13=AN7)*($BV$5:$BV$13))+SUMPRODUCT(($I$5:$M$13=AN7)*($BW$5:$BW$13))+'J03'!AY7 -> 0 | AZ7: =SUMPRODUCT(($B$5:$F$13=AN7)*($BX$5:$BX$13))+SUMPRODUCT(($I$5:$M$13=AN7)*($BY$5:$BY$13))+'J03'!AZ7 -> 0 | BA7: =SUMPRODUCT(($B$5:$F$13=AN7)*($BZ$5:$BZ$13))+SUMPRODUCT(($I$5:$M$13=AN7)*($CA$5:$CA$13))+'J03'!BA7 -> 0 | BB7: =SUMPRODUCT(($B$5:$F$13=AN7)*($CB$5:$CB$13))+SUMPRODUCT(($I$5:$M$13=AN7)*($CC$5:$CC$13))+'J03'!BB7 -> 0 | BC7: =SUMPRODUCT(($B$5:$F$13=AN7)*($CD$5:$CD$13))+SUMPRODUCT(($I$5:$M$13=AN7)*($CE$5:$CE$13))+'J03'!BC7 -> 0 | BD7: 0 | BE7: =SUMPRODUCT(($B$5:$F$13=AN7)*($CF$5:$CF$13))+'J03'!BE7 -> 0 | BF7: =SUMPRODUCT(($B$5:$F$13=AN7)*($CG$5:$CG$13))+'J03'!BF7 -> 0 | BG7: =SUMPRODUCT(($B$5:$F$13=AN7)*($CH$5:$CH$13))+'J03'!BG7 -> 0 | BH7: =SUMPRODUCT(($I$5:$M$13=AN7)*($CI$5:$CI$13))+'J03'!BH7 -> 0 | BI7: =SUMPRODUCT(($I$5:$M$13=AN7)*($CJ$5:$CJ$13))+'J03'!BI7 -> 0 | BJ7: =SUMPRODUCT(($I$5:$M$13=AN7)*($CK$5:$CK$13))+'J03'!BJ7 -> 0 | BL7: 0 | BM7: =BL7+0.00000028 -> 2.8e-07 | BN7: 0 | BO7: 0 | BP7: 0 | BQ7: 0 | BR7: 0 | BS7: 0 | BT7: 0 | BU7: 0 | BV7: FALSE | BW7: FALSE | BX7: FALSE | BY7: FALSE | BZ7: FALSE | CA7: FALSE | CB7: 0 | CC7: 0 | CD7: 0 | CE7: 0 | CF7: FALSE | CG7: FALSE | CH7: FALSE | CI7: FALSE | CJ7: FALSE | CK7: FALSE | CL7: 0 | CM7: 0 | CN7: 1 | CO7: 0
O8: 0 | T8: 0 | U8: u | V8: 1 | W8: 0 | X8: 0 | Y8: 0 | Z8: 0 | AA8: 0 | AB8: 0 | AC8: 0 | AD8: 0 | AE8: 0 | AF8: 0 | AG8: 0 | AH8: 0 | AI8: 0 | AJ8: 0 | AL8: 4 | AM8: 4 | AN8: ='J01'!AN8:AR8 -> 0 | AS8: 1 | AT8: ='J03'!AS8-AS8 -> 0 | AU8: =IF(AS8>'J03'!AS8,'J03'!$AU$23,IF(AS8<'J03'!AS8,'J03'!$AS$23,IF(AS8='J03'!AS8,'J03'!$AT$23))) -> u | AV8: 4 | AW8: =SUMPRODUCT(($B$5:$F$13=AN8)*($BR$5:$BR$13))+SUMPRODUCT(($I$5:$M$13=AN8)*($BS$5:$BS$13))+'J03'!AW8 -> 0 | AX8: =SUMPRODUCT(($B$5:$F$13=AN8)*($BT$5:$BT$13))+SUMPRODUCT(($I$5:$M$13=AN8)*($BU$5:$BU$13))+'J03'!AX8 -> 0 | AY8: =SUMPRODUCT(($B$5:$F$13=AN8)*($BV$5:$BV$13))+SUMPRODUCT(($I$5:$M$13=AN8)*($BW$5:$BW$13))+'J03'!AY8 -> 0 | AZ8: =SUMPRODUCT(($B$5:$F$13=AN8)*($BX$5:$BX$13))+SUMPRODUCT(($I$5:$M$13=AN8)*($BY$5:$BY$13))+'J03'!AZ8 -> 0 | BA8: =SUMPRODUCT(($B$5:$F$13=AN8)*($BZ$5:$BZ$13))+SUMPRODUCT(($I$5:$M$13=AN8)*($CA$5:$CA$13))+'J03'!BA8 -> 0 | BB8: =SUMPRODUCT(($B$5:$F$13=AN8)*($CB$5:$CB$13))+SUMPRODUCT(($I$5:$M$13=AN8)*($CC$5:$CC$13))+'J03'!BB8 -> 0 | BC8: =SUMPRODUCT(($B$5:$F$13=AN8)*($CD$5:$CD$13))+SUMPRODUCT(($I$5:$M$13=AN8)*($CE$5:$CE$13))+'J03'!BC8 -> 0 | BD8: 0 | BE8: =SUMPRODUCT(($B$5:$F$13=AN8)*($CF$5:$CF$13))+'J03'!BE8 -> 0 | BF8: =SUMPRODUCT(($B$5:$F$13=AN8)*($CG$5:$CG$13))+'J03'!BF8 -> 0 | BG8: =SUMPRODUCT(($B$5:$F$13=AN8)*($CH$5:$CH$13))+'J03'!BG8 -> 0 | BH8: =SUMPRODUCT(($I$5:$M$13=AN8)*($CI$5:$CI$13))+'J03'!BH8 -> 0 | BI8: =SUMPRODUCT(($I$5:$M$13=AN8)*($CJ$5:$CJ$13))+'J03'!BI8 -> 0 | BJ8: =SUMPRODUCT(($I$5:$M$13=AN8)*($CK$5:$CK$13))+'J03'!BJ8 -> 0 | BL8: 0 | BM8: =BL8+0.00000027 -> 2.7e-07 | BN8: 0 | BO8: 0 | BP8: 0 | BQ8: 0 | BR8: 0 | BS8: 0 | BT8: 0 | BU8: 0 | BV8: FALSE | BW8: FALSE | BX8: FALSE | BY8: FALSE | BZ8: FALSE | CA8: FALSE | CB8: 0 | CC8: 0 | CD8: 0 | CE8: 0 | CF8: FALSE | CG8: FALSE | CH8: FALSE | CI8: FALSE | CJ8: FALSE | CK8: FALSE | CL8: 0 | CM8: 0 | CN8: 1 | CO8: 0
O9: 0 | T9: 0 | U9: u | V9: 1 | W9: 0 | X9: 0 | Y9: 0 | Z9: 0 | AA9: 0 | AB9: 0 | AC9: 0 | AD9: 0 | AE9: 0 | AF9: 0 | AG9: 0 | AH9: 0 | AI9: 0 | AJ9: 0 | AL9: 5 | AM9: 5 | AN9: ='J01'!AN9:AR9 -> 0 | AS9: 1 | AT9: ='J03'!AS9-AS9 -> 0 | AU9: =IF(AS9>'J03'!AS9,'J03'!$AU$23,IF(AS9<'J03'!AS9,'J03'!$AS$23,IF(AS9='J03'!AS9,'J03'!$AT$23))) -> u | AV9: 5 | AW9: =SUMPRODUCT(($B$5:$F$13=AN9)*($BR$5:$BR$13))+SUMPRODUCT(($I$5:$M$13=AN9)*($BS$5:$BS$13))+'J03'!AW9 -> 0 | AX9: =SUMPRODUCT(($B$5:$F$13=AN9)*($BT$5:$BT$13))+SUMPRODUCT(($I$5:$M$13=AN9)*($BU$5:$BU$13))+'J03'!AX9 -> 0 | AY9: =SUMPRODUCT(($B$5:$F$13=AN9)*($BV$5:$BV$13))+SUMPRODUCT(($I$5:$M$13=AN9)*($BW$5:$BW$13))+'J03'!AY9 -> 0 | AZ9: =SUMPRODUCT(($B$5:$F$13=AN9)*($BX$5:$BX$13))+SUMPRODUCT(($I$5:$M$13=AN9)*($BY$5:$BY$13))+'J03'!AZ9 -> 0 | BA9: =SUMPRODUCT(($B$5:$F$13=AN9)*($BZ$5:$BZ$13))+SUMPRODUCT(($I$5:$M$13=AN9)*($CA$5:$CA$13))+'J03'!BA9 -> 0 | BB9: =SUMPRODUCT(($B$5:$F$13=AN9)*($CB$5:$CB$13))+SUMPRODUCT(($I$5:$M$13=AN9)*($CC$5:$CC$13))+'J03'!BB9 -> 0 | BC9: =SUMPRODUCT(($B$5:$F$13=AN9)*($CD$5:$CD$13))+SUMPRODUCT(($I$5:$M$13=AN9)*($CE$5:$CE$13))+'J03'!BC9 -> 0 | BD9: 0 | BE9: =SUMPRODUCT(($B$5:$F$13=AN9)*($CF$5:$CF$13))+'J03'!BE9 -> 0 | BF9: =SUMPRODUCT(($B$5:$F$13=AN9)*($CG$5:$CG$13))+'J03'!BF9 -> 0 | BG9: =SUMPRODUCT(($B$5:$F$13=AN9)*($CH$5:$CH$13))+'J03'!BG9 -> 0 | BH9: =SUMPRODUCT(($I$5:$M$13=AN9)*($CI$5:$CI$13))+'J03'!BH9 -> 0 | BI9: =SUMPRODUCT(($I$5:$M$13=AN9)*($CJ$5:$CJ$13))+'J03'!BI9 -> 0 | BJ9: =SUMPRODUCT(($I$5:$M$13=AN9)*($CK$5:$CK$13))+'J03'!BJ9 -> 0 | BL9: 0 | BM9: =BL9+0.00000026 -> 2.6e-07 | BN9: 0 | BO9: 0 | BP9: 0 | BQ9: 0 | BR9: 0 | BS9: 0 | BT9: 0 | BU9: 0 | BV9: FALSE | BW9: FALSE | BX9: FALSE | BY9: FALSE | BZ9: FALSE | CA9: FALSE | CB9: 0 | CC9: 0 | CD9: 0 | CE9: 0 | CF9: FALSE | CG9: FALSE | CH9: FALSE | CI9: FALSE | CJ9: FALSE | CK9: FALSE | CL9: 0 | CM9: 0 | CN9: 1 | CO9: 0
O10: 0 | T10: 0 | U10: u | V10: 1 | W10: 0 | X10: 0 | Y10: 0 | Z10: 0 | AA10: 0 | AB10: 0 | AC10: 0 | AD10: 0 | AE10: 0 | AF10: 0 | AG10: 0 | AH10: 0 | AI10: 0 | AJ10: 0 | AL10: 6 | AM10: 6 | AN10: ='J01'!AN10:AR10 -> 0 | AS10: 1 | AT10: ='J03'!AS10-AS10 -> 0 | AU10: =IF(AS10>'J03'!AS10,'J03'!$AU$23,IF(AS10<'J03'!AS10,'J03'!$AS$23,IF(AS10='J03'!AS10,'J03'!$AT$23))) -> u | AV10: 6 | AW10: =SUMPRODUCT(($B$5:$F$13=AN10)*($BR$5:$BR$13))+SUMPRODUCT(($I$5:$M$13=AN10)*($BS$5:$BS$13))+'J03'!AW10 -> 0 | AX10: =SUMPRODUCT(($B$5:$F$13=AN10)*($BT$5:$BT$13))+SUMPRODUCT(($I$5:$M$13=AN10)*($BU$5:$BU$13))+'J03'!AX10 -> 0 | AY10: =SUMPRODUCT(($B$5:$F$13=AN10)*($BV$5:$BV$13))+SUMPRODUCT(($I$5:$M$13=AN10)*($BW$5:$BW$13))+'J03'!AY10 -> 0 | AZ10: =SUMPRODUCT(($B$5:$F$13=AN10)*($BX$5:$BX$13))+SUMPRODUCT(($I$5:$M$13=AN10)*($BY$5:$BY$13))+'J03'!AZ10 -> 0 | BA10: =SUMPRODUCT(($B$5:$F$13=AN10)*($BZ$5:$BZ$13))+SUMPRODUCT(($I$5:$M$13=AN10)*($CA$5:$CA$13))+'J03'!BA10 -> 0 | BB10: =SUMPRODUCT(($B$5:$F$13=AN10)*($CB$5:$CB$13))+SUMPRODUCT(($I$5:$M$13=AN10)*($CC$5:$CC$13))+'J03'!BB10 -> 0 | BC10: =SUMPRODUCT(($B$5:$F$13=AN10)*($CD$5:$CD$13))+SUMPRODUCT(($I$5:$M$13=AN10)*($CE$5:$CE$13))+'J03'!BC10 -> 0 | BD10: 0 | BE10: =SUMPRODUCT(($B$5:$F$13=AN10)*($CF$5:$CF$13))+'J03'!BE10 -> 0 | BF10: =SUMPRODUCT(($B$5:$F$13=AN10)*($CG$5:$CG$13))+'J03'!BF10 -> 0 | BG10: =SUMPRODUCT(($B$5:$F$13=AN10)*($CH$5:$CH$13))+'J03'!BG10 -> 0 | BH10: =SUMPRODUCT(($I$5:$M$13=AN10)*($CI$5:$CI$13))+'J03'!BH10 -> 0 | BI10: =SUMPRODUCT(($I$5:$M$13=AN10)*($CJ$5:$CJ$13))+'J03'!BI10 -> 0 | BJ10: =SUMPRODUCT(($I$5:$M$13=AN10)*($CK$5:$CK$13))+'J03'!BJ10 -> 0 | BL10: 0 | BM10: =BL10+0.00000025 -> 2.5e-07 | BN10: 0 | BO10: 0 | BP10: 0 | BQ10: 0 | BR10: 0 | BS10: 0 | BT10: 0 | BU10: 0 | BV10: FALSE | BW10: FALSE | BX10: FALSE | BY10: FALSE | BZ10: FALSE | CA10: FALSE | CB10: 0 | CC10: 0 | CD10: 0 | CE10: 0 | CF10: FALSE | CG10: FALSE | CH10: FALSE | CI10: FALSE | CJ10: FALSE | CK10: FALSE | CL10: 0 | CM10: 0 | CN10: 1 | CO10: 0
O11: 0 | T11: 0 | U11: u | V11: 1 | W11: 0 | X11: 0 | Y11: 0 | Z11: 0 | AA11: 0 | AB11: 0 | AC11: 0 | AD11: 0 | AE11: 0 | AF11: 0 | AG11: 0 | AH11: 0 | AI11: 0 | AJ11: 0 | AL11: 7 | AM11: 7 | AN11: ='J01'!AN11:AR11 -> 0 | AS11: 1 | AT11: ='J03'!AS11-AS11 -> 0 | AU11: =IF(AS11>'J03'!AS11,'J03'!$AU$23,IF(AS11<'J03'!AS11,'J03'!$AS$23,IF(AS11='J03'!AS11,'J03'!$AT$23))) -> u | AV11: 7 | AW11: =SUMPRODUCT(($B$5:$F$13=AN11)*($BR$5:$BR$13))+SUMPRODUCT(($I$5:$M$13=AN11)*($BS$5:$BS$13))+'J03'!AW11 -> 0 | AX11: =SUMPRODUCT(($B$5:$F$13=AN11)*($BT$5:$BT$13))+SUMPRODUCT(($I$5:$M$13=AN11)*($BU$5:$BU$13))+'J03'!AX11 -> 0 | AY11: =SUMPRODUCT(($B$5:$F$13=AN11)*($BV$5:$BV$13))+SUMPRODUCT(($I$5:$M$13=AN11)*($BW$5:$BW$13))+'J03'!AY11 -> 0 | AZ11: =SUMPRODUCT(($B$5:$F$13=AN11)*($BX$5:$BX$13))+SUMPRODUCT(($I$5:$M$13=AN11)*($BY$5:$BY$13))+'J03'!AZ11 -> 0 | BA11: =SUMPRODUCT(($B$5:$F$13=AN11)*($BZ$5:$BZ$13))+SUMPRODUCT(($I$5:$M$13=AN11)*($CA$5:$CA$13))+'J03'!BA11 -> 0 | BB11: =SUMPRODUCT(($B$5:$F$13=AN11)*($CB$5:$CB$13))+SUMPRODUCT(($I$5:$M$13=AN11)*($CC$5:$CC$13))+'J03'!BB11 -> 0 | BC11: =SUMPRODUCT(($B$5:$F$13=AN11)*($CD$5:$CD$13))+SUMPRODUCT(($I$5:$M$13=AN11)*($CE$5:$CE$13))+'J03'!BC11 -> 0 | BD11: 0 | BE11: =SUMPRODUCT(($B$5:$F$13=AN11)*($CF$5:$CF$13))+'J03'!BE11 -> 0 | BF11: =SUMPRODUCT(($B$5:$F$13=AN11)*($CG$5:$CG$13))+'J03'!BF11 -> 0 | BG11: =SUMPRODUCT(($B$5:$F$13=AN11)*($CH$5:$CH$13))+'J03'!BG11 -> 0 | BH11: =SUMPRODUCT(($I$5:$M$13=AN11)*($CI$5:$CI$13))+'J03'!BH11 -> 0 | BI11: =SUMPRODUCT(($I$5:$M$13=AN11)*($CJ$5:$CJ$13))+'J03'!BI11 -> 0 | BJ11: =SUMPRODUCT(($I$5:$M$13=AN11)*($CK$5:$CK$13))+'J03'!BJ11 -> 0 | BL11: 0 | BM11: =BL11+0.00000024 -> 2.4e-07 | BN11: 0 | BO11: 0 | BP11: 0 | BQ11: 0 | BR11: 0 | BS11: 0 | BT11: 0 | BU11: 0 | BV11: FALSE | BW11: FALSE | BX11: FALSE | BY11: FALSE | BZ11: FALSE | CA11: FALSE | CB11: 0 | CC11: 0 | CD11: 0 | CE11: 0 | CF11: FALSE | CG11: FALSE | CH11: FALSE | CI11: FALSE | CJ11: FALSE | CK11: FALSE | CL11: 0 | CM11: 0 | CN11: 1 | CO11: 0
O12: 0 | T12: 0 | U12: u | V12: 1 | W12: 0 | X12: 0 | Y12: 0 | Z12: 0 | AA12: 0 | AB12: 0 | AC12: 0 | AD12: 0 | AE12: 0 | AF12: 0 | AG12: 0 | AH12: 0 | AI12: 0 | AJ12: 0 | AL12: 8 | AM12: 8 | AN12: ='J01'!AN12:AR12 -> 0 | AS12: 1 | AT12: ='J03'!AS12-AS12 -> 0 | AU12: =IF(AS12>'J03'!AS12,'J03'!$AU$23,IF(AS12<'J03'!AS12,'J03'!$AS$23,IF(AS12='J03'!AS12,'J03'!$AT$23))) -> u | AV12: 8 | AW12: =SUMPRODUCT(($B$5:$F$13=AN12)*($BR$5:$BR$13))+SUMPRODUCT(($I$5:$M$13=AN12)*($BS$5:$BS$13))+'J03'!AW12 -> 0 | AX12: =SUMPRODUCT(($B$5:$F$13=AN12)*($BT$5:$BT$13))+SUMPRODUCT(($I$5:$M$13=AN12)*($BU$5:$BU$13))+'J03'!AX12 -> 0 | AY12: =SUMPRODUCT(($B$5:$F$13=AN12)*($BV$5:$BV$13))+SUMPRODUCT(($I$5:$M$13=AN12)*($BW$5:$BW$13))+'J03'!AY12 -> 0 | AZ12: =SUMPRODUCT(($B$5:$F$13=AN12)*($BX$5:$BX$13))+SUMPRODUCT(($I$5:$M$13=AN12)*($BY$5:$BY$13))+'J03'!AZ12 -> 0 | BA12: =SUMPRODUCT(($B$5:$F$13=AN12)*($BZ$5:$BZ$13))+SUMPRODUCT(($I$5:$M$13=AN12)*($CA$5:$CA$13))+'J03'!BA12 -> 0 | BB12: =SUMPRODUCT(($B$5:$F$13=AN12)*($CB$5:$CB$13))+SUMPRODUCT(($I$5:$M$13=AN12)*($CC$5:$CC$13))+'J03'!BB12 -> 0 | BC12: =SUMPRODUCT(($B$5:$F$13=AN12)*($CD$5:$CD$13))+SUMPRODUCT(($I$5:$M$13=AN12)*($CE$5:$CE$13))+'J03'!BC12 -> 0 | BD12: 0 | BE12: =SUMPRODUCT(($B$5:$F$13=AN12)*($CF$5:$CF$13))+'J03'!BE12 -> 0 | BF12: =SUMPRODUCT(($B$5:$F$13=AN12)*($CG$5:$CG$13))+'J03'!BF12 -> 0 | BG12: =SUMPRODUCT(($B$5:$F$13=AN12)*($CH$5:$CH$13))+'J03'!BG12 -> 0 | BH12: =SUMPRODUCT(($I$5:$M$13=AN12)*($CI$5:$CI$13))+'J03'!BH12 -> 0 | BI12: =SUMPRODUCT(($I$5:$M$13=AN12)*($CJ$5:$CJ$13))+'J03'!BI12 -> 0 | BJ12: =SUMPRODUCT(($I$5:$M$13=AN12)*($CK$5:$CK$13))+'J03'!BJ12 -> 0 | BL12: 0 | BM12: =BL12+0.00000023 -> 2.3e-07 | BN12: 0 | BO12: 0 | BP12: 0 | BQ12: 0 | BR12: 0 | BS12: 0 | BT12: 0 | BU12: 0 | BV12: FALSE | BW12: FALSE | BX12: FALSE | BY12: FALSE | BZ12: FALSE | CA12: FALSE | CB12: 0 | CC12: 0 | CD12: 0 | CE12: 0 | CF12: FALSE | CG12: FALSE | CH12: FALSE | CI12: FALSE | CJ12: FALSE | CK12: FALSE | CL12: 0 | CM12: 0 | CN12: 1 | CO12: 0
O13: 0 | T13: 0 | U13: u | V13: 1 | W13: 0 | X13: 0 | Y13: 0 | Z13: 0 | AA13: 0 | AB13: 0 | AC13: 0 | AD13: 0 | AE13: 0 | AF13: 0 | AG13: 0 | AH13: 0 | AI13: 0 | AJ13: 0 | AL13: 9 | AM13: 9 | AN13: ='J01'!AN13:AR13 -> 0 | AS13: 1 | AT13: ='J03'!AS13-AS13 -> 0 | AU13: =IF(AS13>'J03'!AS13,'J03'!$AU$23,IF(AS13<'J03'!AS13,'J03'!$AS$23,IF(AS13='J03'!AS13,'J03'!$AT$23))) -> u | AV13: 9 | AW13: =SUMPRODUCT(($B$5:$F$13=AN13)*($BR$5:$BR$13))+SUMPRODUCT(($I$5:$M$13=AN13)*($BS$5:$BS$13))+'J03'!AW13 -> 0 | AX13: =SUMPRODUCT(($B$5:$F$13=AN13)*($BT$5:$BT$13))+SUMPRODUCT(($I$5:$M$13=AN13)*($BU$5:$BU$13))+'J03'!AX13 -> 0 | AY13: =SUMPRODUCT(($B$5:$F$13=AN13)*($BV$5:$BV$13))+SUMPRODUCT(($I$5:$M$13=AN13)*($BW$5:$BW$13))+'J03'!AY13 -> 0 | AZ13: =SUMPRODUCT(($B$5:$F$13=AN13)*($BX$5:$BX$13))+SUMPRODUCT(($I$5:$M$13=AN13)*($BY$5:$BY$13))+'J03'!AZ13 -> 0 | BA13: =SUMPRODUCT(($B$5:$F$13=AN13)*($BZ$5:$BZ$13))+SUMPRODUCT(($I$5:$M$13=AN13)*($CA$5:$CA$13))+'J03'!BA13 -> 0 | BB13: =SUMPRODUCT(($B$5:$F$13=AN13)*($CB$5:$CB$13))+SUMPRODUCT(($I$5:$M$13=AN13)*($CC$5:$CC$13))+'J03'!BB13 -> 0 | BC13: =SUMPRODUCT(($B$5:$F$13=AN13)*($CD$5:$CD$13))+SUMPRODUCT(($I$5:$M$13=AN13)*($CE$5:$CE$13))+'J03'!BC13 -> 0 | BD13: 0 | BE13: =SUMPRODUCT(($B$5:$F$13=AN13)*($CF$5:$CF$13))+'J03'!BE13 -> 0 | BF13: =SUMPRODUCT(($B$5:$F$13=AN13)*($CG$5:$CG$13))+'J03'!BF13 -> 0 | BG13: =SUMPRODUCT(($B$5:$F$13=AN13)*($CH$5:$CH$13))+'J03'!BG13 -> 0 | BH13: =SUMPRODUCT(($I$5:$M$13=AN13)*($CI$5:$CI$13))+'J03'!BH13 -> 0 | BI13: =SUMPRODUCT(($I$5:$M$13=AN13)*($CJ$5:$CJ$13))+'J03'!BI13 -> 0 | BJ13: =SUMPRODUCT(($I$5:$M$13=AN13)*($CK$5:$CK$13))+'J03'!BJ13 -> 0 | BL13: 0 | BM13: =BL13+0.00000022 -> 2.2e-07 | BN13: 0 | BO13: 0 | BP13: 0 | BQ13: 0 | BR13: 0 | BS13: 0 | BT13: 0 | BU13: 0 | BV13: FALSE | BW13: FALSE | BX13: FALSE | BY13: FALSE | BZ13: FALSE | CA13: FALSE | CB13: 0 | CC13: 0 | CD13: 0 | CE13: 0 | CF13: FALSE | CG13: FALSE | CH13: FALSE | CI13: FALSE | CJ13: FALSE | CK13: FALSE | CL13: 0 | CM13: 0 | CN13: 1 | CO13: 0
O14: 0 | T14: 0 | U14: u | V14: 1 | W14: 0 | X14: 0 | Y14: 0 | Z14: 0 | AA14: 0 | AB14: 0 | AC14: 0 | AD14: 0 | AE14: 0 | AF14: 0 | AG14: 0 | AH14: 0 | AI14: 0 | AJ14: 0 | AL14: 10 | AM14: 10 | AN14: ='J01'!AN14:AR14 -> 0 | AS14: 1 | AT14: ='J03'!AS14-AS14 -> 0 | AU14: =IF(AS14>'J03'!AS14,'J03'!$AU$23,IF(AS14<'J03'!AS14,'J03'!$AS$23,IF(AS14='J03'!AS14,'J03'!$AT$23))) -> u | AV14: 10 | AW14: =SUMPRODUCT(($B$5:$F$13=AN14)*($BR$5:$BR$13))+SUMPRODUCT(($I$5:$M$13=AN14)*($BS$5:$BS$13))+'J03'!AW14 -> 0 | AX14: =SUMPRODUCT(($B$5:$F$13=AN14)*($BT$5:$BT$13))+SUMPRODUCT(($I$5:$M$13=AN14)*($BU$5:$BU$13))+'J03'!AX14 -> 0 | AY14: =SUMPRODUCT(($B$5:$F$13=AN14)*($BV$5:$BV$13))+SUMPRODUCT(($I$5:$M$13=AN14)*($BW$5:$BW$13))+'J03'!AY14 -> 0 | AZ14: =SUMPRODUCT(($B$5:$F$13=AN14)*($BX$5:$BX$13))+SUMPRODUCT(($I$5:$M$13=AN14)*($BY$5:$BY$13))+'J03'!AZ14 -> 0 | BA14: =SUMPRODUCT(($B$5:$F$13=AN14)*($BZ$5:$BZ$13))+SUMPRODUCT(($I$5:$M$13=AN14)*($CA$5:$CA$13))+'J03'!BA14 -> 0 | BB14: =SUMPRODUCT(($B$5:$F$13=AN14)*($CB$5:$CB$13))+SUMPRODUCT(($I$5:$M$13=AN14)*($CC$5:$CC$13))+'J03'!BB14 -> 0 | BC14: =SUMPRODUCT(($B$5:$F$13=AN14)*($CD$5:$CD$13))+SUMPRODUCT(($I$5:$M$13=AN14)*($CE$5:$CE$13))+'J03'!BC14 -> 0 | BD14: 0 | BE14: =SUMPRODUCT(($B$5:$F$13=AN14)*($CF$5:$CF$13))+'J03'!BE14 -> 0 | BF14: =SUMPRODUCT(($B$5:$F$13=AN14)*($CG$5:$CG$13))+'J03'!BF14 -> 0 | BG14: =SUMPRODUCT(($B$5:$F$13=AN14)*($CH$5:$CH$13))+'J03'!BG14 -> 0 | BH14: =SUMPRODUCT(($I$5:$M$13=AN14)*($CI$5:$CI$13))+'J03'!BH14 -> 0 | BI14: =SUMPRODUCT(($I$5:$M$13=AN14)*($CJ$5:$CJ$13))+'J03'!BI14 -> 0 | BJ14: =SUMPRODUCT(($I$5:$M$13=AN14)*($CK$5:$CK$13))+'J03'!BJ14 -> 0 | BL14: 0 | BM14: =BL14+0.00000021 -> 2.1e-07 | CL14: 0 | CM14: 0 | CN14: 1 | CO14: 0
O15: 0 | T15: 0 | U15: u | V15: 1 | W15: 0 | X15: 0 | Y15: 0 | Z15: 0 | AA15: 0 | AB15: 0 | AC15: 0 | AD15: 0 | AE15: 0 | AF15: 0 | AG15: 0 | AH15: 0 | AI15: 0 | AJ15: 0 | AL15: 11 | AM15: 11 | AN15: ='J01'!AN15:AR15 -> 0 | AS15: 1 | AT15: ='J03'!AS15-AS15 -> 0 | AU15: =IF(AS15>'J03'!AS15,'J03'!$AU$23,IF(AS15<'J03'!AS15,'J03'!$AS$23,IF(AS15='J03'!AS15,'J03'!$AT$23))) -> u | AV15: 11 | AW15: =SUMPRODUCT(($B$5:$F$13=AN15)*($BR$5:$BR$13))+SUMPRODUCT(($I$5:$M$13=AN15)*($BS$5:$BS$13))+'J03'!AW15 -> 0 | AX15: =SUMPRODUCT(($B$5:$F$13=AN15)*($BT$5:$BT$13))+SUMPRODUCT(($I$5:$M$13=AN15)*($BU$5:$BU$13))+'J03'!AX15 -> 0 | AY15: =SUMPRODUCT(($B$5:$F$13=AN15)*($BV$5:$BV$13))+SUMPRODUCT(($I$5:$M$13=AN15)*($BW$5:$BW$13))+'J03'!AY15 -> 0 | AZ15: =SUMPRODUCT(($B$5:$F$13=AN15)*($BX$5:$BX$13))+SUMPRODUCT(($I$5:$M$13=AN15)*($BY$5:$BY$13))+'J03'!AZ15 -> 0 | BA15: =SUMPRODUCT(($B$5:$F$13=AN15)*($BZ$5:$BZ$13))+SUMPRODUCT(($I$5:$M$13=AN15)*($CA$5:$CA$13))+'J03'!BA15 -> 0 | BB15: =SUMPRODUCT(($B$5:$F$13=AN15)*($CB$5:$CB$13))+SUMPRODUCT(($I$5:$M$13=AN15)*($CC$5:$CC$13))+'J03'!BB15 -> 0 | BC15: =SUMPRODUCT(($B$5:$F$13=AN15)*($CD$5:$CD$13))+SUMPRODUCT(($I$5:$M$13=AN15)*($CE$5:$CE$13))+'J03'!BC15 -> 0 | BD15: 0 | BE15: =SUMPRODUCT(($B$5:$F$13=AN15)*($CF$5:$CF$13))+'J03'!BE15 -> 0 | BF15: =SUMPRODUCT(($B$5:$F$13=AN15)*($CG$5:$CG$13))+'J03'!BF15 -> 0 | BG15: =SUMPRODUCT(($B$5:$F$13=AN15)*($CH$5:$CH$13))+'J03'!BG15 -> 0 | BH15: =SUMPRODUCT(($I$5:$M$13=AN15)*($CI$5:$CI$13))+'J03'!BH15 -> 0 | BI15: =SUMPRODUCT(($I$5:$M$13=AN15)*($CJ$5:$CJ$13))+'J03'!BI15 -> 0 | BJ15: =SUMPRODUCT(($I$5:$M$13=AN15)*($CK$5:$CK$13))+'J03'!BJ15 -> 0 | BL15: 0 | BM15: =BL15+0.0000002 -> 2e-07 | CL15: 0 | CM15: 0 | CN15: 1 | CO15: 0
O16: 0 | T16: 0 | U16: u | V16: 1 | W16: 0 | X16: 0 | Y16: 0 | Z16: 0 | AA16: 0 | AB16: 0 | AC16: 0 | AD16: 0 | AE16: 0 | AF16: 0 | AG16: 0 | AH16: 0 | AI16: 0 | AJ16: 0 | AL16: 12 | AM16: 12 | AN16: ='J01'!AN16:AR16 -> 0 | AS16: 1 | AT16: ='J03'!AS16-AS16 -> 0 | AU16: =IF(AS16>'J03'!AS16,'J03'!$AU$23,IF(AS16<'J03'!AS16,'J03'!$AS$23,IF(AS16='J03'!AS16,'J03'!$AT$23))) -> u | AV16: 12 | AW16: =SUMPRODUCT(($B$5:$F$13=AN16)*($BR$5:$BR$13))+SUMPRODUCT(($I$5:$M$13=AN16)*($BS$5:$BS$13))+'J03'!AW16 -> 0 | AX16: =SUMPRODUCT(($B$5:$F$13=AN16)*($BT$5:$BT$13))+SUMPRODUCT(($I$5:$M$13=AN16)*($BU$5:$BU$13))+'J03'!AX16 -> 0 | AY16: =SUMPRODUCT(($B$5:$F$13=AN16)*($BV$5:$BV$13))+SUMPRODUCT(($I$5:$M$13=AN16)*($BW$5:$BW$13))+'J03'!AY16 -> 0 | AZ16: =SUMPRODUCT(($B$5:$F$13=AN16)*($BX$5:$BX$13))+SUMPRODUCT(($I$5:$M$13=AN16)*($BY$5:$BY$13))+'J03'!AZ16 -> 0 | BA16: =SUMPRODUCT(($B$5:$F$13=AN16)*($BZ$5:$BZ$13))+SUMPRODUCT(($I$5:$M$13=AN16)*($CA$5:$CA$13))+'J03'!BA16 -> 0 | BB16: =SUMPRODUCT(($B$5:$F$13=AN16)*($CB$5:$CB$13))+SUMPRODUCT(($I$5:$M$13=AN16)*($CC$5:$CC$13))+'J03'!BB16 -> 0 | BC16: =SUMPRODUCT(($B$5:$F$13=AN16)*($CD$5:$CD$13))+SUMPRODUCT(($I$5:$M$13=AN16)*($CE$5:$CE$13))+'J03'!BC16 -> 0 | BD16: 0 | BE16: =SUMPRODUCT(($B$5:$F$13=AN16)*($CF$5:$CF$13))+'J03'!BE16 -> 0 | BF16: =SUMPRODUCT(($B$5:$F$13=AN16)*($CG$5:$CG$13))+'J03'!BF16 -> 0 | BG16: =SUMPRODUCT(($B$5:$F$13=AN16)*($CH$5:$CH$13))+'J03'!BG16 -> 0 | BH16: =SUMPRODUCT(($I$5:$M$13=AN16)*($CI$5:$CI$13))+'J03'!BH16 -> 0 | BI16: =SUMPRODUCT(($I$5:$M$13=AN16)*($CJ$5:$CJ$13))+'J03'!BI16 -> 0 | BJ16: =SUMPRODUCT(($I$5:$M$13=AN16)*($CK$5:$CK$13))+'J03'!BJ16 -> 0 | BL16: 0 | BM16: =BL16+0.00000019 -> 1.9e-07 | CL16: 0 | CM16: 0 | CN16: 1 | CO16: 0
O17: 0 | T17: 0 | U17: u | V17: 1 | W17: 0 | X17: 0 | Y17: 0 | Z17: 0 | AA17: 0 | AB17: 0 | AC17: 0 | AD17: 0 | AE17: 0 | AF17: 0 | AG17: 0 | AH17: 0 | AI17: 0 | AJ17: 0 | AL17: 13 | AM17: 13 | AN17: ='J01'!AN17:AR17 -> 0 | AS17: 1 | AT17: ='J03'!AS17-AS17 -> 0 | AU17: =IF(AS17>'J03'!AS17,'J03'!$AU$23,IF(AS17<'J03'!AS17,'J03'!$AS$23,IF(AS17='J03'!AS17,'J03'!$AT$23))) -> u | AV17: 13 | AW17: =SUMPRODUCT(($B$5:$F$13=AN17)*($BR$5:$BR$13))+SUMPRODUCT(($I$5:$M$13=AN17)*($BS$5:$BS$13))+'J03'!AW17 -> 0 | AX17: =SUMPRODUCT(($B$5:$F$13=AN17)*($BT$5:$BT$13))+SUMPRODUCT(($I$5:$M$13=AN17)*($BU$5:$BU$13))+'J03'!AX17 -> 0 | AY17: =SUMPRODUCT(($B$5:$F$13=AN17)*($BV$5:$BV$13))+SUMPRODUCT(($I$5:$M$13=AN17)*($BW$5:$BW$13))+'J03'!AY17 -> 0 | AZ17: =SUMPRODUCT(($B$5:$F$13=AN17)*($BX$5:$BX$13))+SUMPRODUCT(($I$5:$M$13=AN17)*($BY$5:$BY$13))+'J03'!AZ17 -> 0 | BA17: =SUMPRODUCT(($B$5:$F$13=AN17)*($BZ$5:$BZ$13))+SUMPRODUCT(($I$5:$M$13=AN17)*($CA$5:$CA$13))+'J03'!BA17 -> 0 | BB17: =SUMPRODUCT(($B$5:$F$13=AN17)*($CB$5:$CB$13))+SUMPRODUCT(($I$5:$M$13=AN17)*($CC$5:$CC$13))+'J03'!BB17 -> 0 | BC17: =SUMPRODUCT(($B$5:$F$13=AN17)*($CD$5:$CD$13))+SUMPRODUCT(($I$5:$M$13=AN17)*($CE$5:$CE$13))+'J03'!BC17 -> 0 | BD17: 0 | BE17: =SUMPRODUCT(($B$5:$F$13=AN17)*($CF$5:$CF$13))+'J03'!BE17 -> 0 | BF17: =SUMPRODUCT(($B$5:$F$13=AN17)*($CG$5:$CG$13))+'J03'!BF17 -> 0 | BG17: =SUMPRODUCT(($B$5:$F$13=AN17)*($CH$5:$CH$13))+'J03'!BG17 -> 0 | BH17: =SUMPRODUCT(($I$5:$M$13=AN17)*($CI$5:$CI$13))+'J03'!BH17 -> 0 | BI17: =SUMPRODUCT(($I$5:$M$13=AN17)*($CJ$5:$CJ$13))+'J03'!BI17 -> 0 | BJ17: =SUMPRODUCT(($I$5:$M$13=AN17)*($CK$5:$CK$13))+'J03'!BJ17 -> 0 | BL17: 0 | BM17: =BL17+0.00000018 -> 1.8e-07 | CL17: 0 | CM17: 0 | CN17: 1 | CO17: 0
O18: 0 | T18: 0 | U18: u | V18: 1 | W18: 0 | X18: 0 | Y18: 0 | Z18: 0 | AA18: 0 | AB18: 0 | AC18: 0 | AD18: 0 | AE18: 0 | AF18: 0 | AG18: 0 | AH18: 0 | AI18: 0 | AJ18: 0 | AL18: 14 | AM18: 14 | AN18: ='J01'!AN18:AR18 -> 0 | AS18: 1 | AT18: ='J03'!AS18-AS18 -> 0 | AU18: =IF(AS18>'J03'!AS18,'J03'!$AU$23,IF(AS18<'J03'!AS18,'J03'!$AS$23,IF(AS18='J03'!AS18,'J03'!$AT$23))) -> u | AV18: 14 | AW18: =SUMPRODUCT(($B$5:$F$13=AN18)*($BR$5:$BR$13))+SUMPRODUCT(($I$5:$M$13=AN18)*($BS$5:$BS$13))+'J03'!AW18 -> 0 | AX18: =SUMPRODUCT(($B$5:$F$13=AN18)*($BT$5:$BT$13))+SUMPRODUCT(($I$5:$M$13=AN18)*($BU$5:$BU$13))+'J03'!AX18 -> 0 | AY18: =SUMPRODUCT(($B$5:$F$13=AN18)*($BV$5:$BV$13))+SUMPRODUCT(($I$5:$M$13=AN18)*($BW$5:$BW$13))+'J03'!AY18 -> 0 | AZ18: =SUMPRODUCT(($B$5:$F$13=AN18)*($BX$5:$BX$13))+SUMPRODUCT(($I$5:$M$13=AN18)*($BY$5:$BY$13))+'J03'!AZ18 -> 0 | BA18: =SUMPRODUCT(($B$5:$F$13=AN18)*($BZ$5:$BZ$13))+SUMPRODUCT(($I$5:$M$13=AN18)*($CA$5:$CA$13))+'J03'!BA18 -> 0 | BB18: =SUMPRODUCT(($B$5:$F$13=AN18)*($CB$5:$CB$13))+SUMPRODUCT(($I$5:$M$13=AN18)*($CC$5:$CC$13))+'J03'!BB18 -> 0 | BC18: =SUMPRODUCT(($B$5:$F$13=AN18)*($CD$5:$CD$13))+SUMPRODUCT(($I$5:$M$13=AN18)*($CE$5:$CE$13))+'J03'!BC18 -> 0 | BD18: 0 | BE18: =SUMPRODUCT(($B$5:$F$13=AN18)*($CF$5:$CF$13))+'J03'!BE18 -> 0 | BF18: =SUMPRODUCT(($B$5:$F$13=AN18)*($CG$5:$CG$13))+'J03'!BF18 -> 0 | BG18: =SUMPRODUCT(($B$5:$F$13=AN18)*($CH$5:$CH$13))+'J03'!BG18 -> 0 | BH18: =SUMPRODUCT(($I$5:$M$13=AN18)*($CI$5:$CI$13))+'J03'!BH18 -> 0 | BI18: =SUMPRODUCT(($I$5:$M$13=AN18)*($CJ$5:$CJ$13))+'J03'!BI18 -> 0 | BJ18: =SUMPRODUCT(($I$5:$M$13=AN18)*($CK$5:$CK$13))+'J03'!BJ18 -> 0 | BL18: 0 | BM18: =BL18+0.00000017 -> 1.7e-07 | CL18: 0 | CM18: 0 | CN18: 1 | CO18: 0
O19: 0 | T19: 0 | U19: u | V19: 1 | W19: 0 | X19: 0 | Y19: 0 | Z19: 0 | AA19: 0 | AB19: 0 | AC19: 0 | AD19: 0 | AE19: 0 | AF19: 0 | AG19: 0 | AH19: 0 | AI19: 0 | AJ19: 0 | AL19: 15 | AM19: 15 | AN19: ='J01'!AN19:AR19 -> 0 | AS19: 1 | AT19: ='J03'!AS19-AS19 -> 0 | AU19: =IF(AS19>'J03'!AS19,'J03'!$AU$23,IF(AS19<'J03'!AS19,'J03'!$AS$23,IF(AS19='J03'!AS19,'J03'!$AT$23))) -> u | AV19: 15 | AW19: =SUMPRODUCT(($B$5:$F$13=AN19)*($BR$5:$BR$13))+SUMPRODUCT(($I$5:$M$13=AN19)*($BS$5:$BS$13))+'J03'!AW19 -> 0 | AX19: =SUMPRODUCT(($B$5:$F$13=AN19)*($BT$5:$BT$13))+SUMPRODUCT(($I$5:$M$13=AN19)*($BU$5:$BU$13))+'J03'!AX19 -> 0 | AY19: =SUMPRODUCT(($B$5:$F$13=AN19)*($BV$5:$BV$13))+SUMPRODUCT(($I$5:$M$13=AN19)*($BW$5:$BW$13))+'J03'!AY19 -> 0 | AZ19: =SUMPRODUCT(($B$5:$F$13=AN19)*($BX$5:$BX$13))+SUMPRODUCT(($I$5:$M$13=AN19)*($BY$5:$BY$13))+'J03'!AZ19 -> 0 | BA19: =SUMPRODUCT(($B$5:$F$13=AN19)*($BZ$5:$BZ$13))+SUMPRODUCT(($I$5:$M$13=AN19)*($CA$5:$CA$13))+'J03'!BA19 -> 0 | BB19: =SUMPRODUCT(($B$5:$F$13=AN19)*($CB$5:$CB$13))+SUMPRODUCT(($I$5:$M$13=AN19)*($CC$5:$CC$13))+'J03'!BB19 -> 0 | BC19: =SUMPRODUCT(($B$5:$F$13=AN19)*($CD$5:$CD$13))+SUMPRODUCT(($I$5:$M$13=AN19)*($CE$5:$CE$13))+'J03'!BC19 -> 0 | BD19: 0 | BE19: =SUMPRODUCT(($B$5:$F$13=AN19)*($CF$5:$CF$13))+'J03'!BE19 -> 0 | BF19: =SUMPRODUCT(($B$5:$F$13=AN19)*($CG$5:$CG$13))+'J03'!BF19 -> 0 | BG19: =SUMPRODUCT(($B$5:$F$13=AN19)*($CH$5:$CH$13))+'J03'!BG19 -> 0 | BH19: =SUMPRODUCT(($I$5:$M$13=AN19)*($CI$5:$CI$13))+'J03'!BH19 -> 0 | BI19: =SUMPRODUCT(($I$5:$M$13=AN19)*($CJ$5:$CJ$13))+'J03'!BI19 -> 0 | BJ19: =SUMPRODUCT(($I$5:$M$13=AN19)*($CK$5:$CK$13))+'J03'!BJ19 -> 0 | BL19: 0 | BM19: =BL19+0.00000016 -> 1.6e-07 | CL19: 0 | CM19: 0 | CN19: 1 | CO19: 0
O20: 0 | T20: 0 | U20: u | V20: 1 | W20: 0 | X20: 0 | Y20: 0 | Z20: 0 | AA20: 0 | AB20: 0 | AC20: 0 | AD20: 0 | AE20: 0 | AF20: 0 | AG20: 0 | AH20: 0 | AI20: 0 | AJ20: 0 | AL20: 16 | AM20: 16 | AN20: ='J01'!AN20:AR20 -> 0 | AS20: 1 | AT20: ='J03'!AS20-AS20 -> 0 | AU20: =IF(AS20>'J03'!AS20,'J03'!$AU$23,IF(AS20<'J03'!AS20,'J03'!$AS$23,IF(AS20='J03'!AS20,'J03'!$AT$23))) -> u | AV20: 16 | AW20: =SUMPRODUCT(($B$5:$F$13=AN20)*($BR$5:$BR$13))+SUMPRODUCT(($I$5:$M$13=AN20)*($BS$5:$BS$13))+'J03'!AW20 -> 0 | AX20: =SUMPRODUCT(($B$5:$F$13=AN20)*($BT$5:$BT$13))+SUMPRODUCT(($I$5:$M$13=AN20)*($BU$5:$BU$13))+'J03'!AX20 -> 0 | AY20: =SUMPRODUCT(($B$5:$F$13=AN20)*($BV$5:$BV$13))+SUMPRODUCT(($I$5:$M$13=AN20)*($BW$5:$BW$13))+'J03'!AY20 -> 0 | AZ20: =SUMPRODUCT(($B$5:$F$13=AN20)*($BX$5:$BX$13))+SUMPRODUCT(($I$5:$M$13=AN20)*($BY$5:$BY$13))+'J03'!AZ20 -> 0 | BA20: =SUMPRODUCT(($B$5:$F$13=AN20)*($BZ$5:$BZ$13))+SUMPRODUCT(($I$5:$M$13=AN20)*($CA$5:$CA$13))+'J03'!BA20 -> 0 | BB20: =SUMPRODUCT(($B$5:$F$13=AN20)*($CB$5:$CB$13))+SUMPRODUCT(($I$5:$M$13=AN20)*($CC$5:$CC$13))+'J03'!BB20 -> 0 | BC20: =SUMPRODUCT(($B$5:$F$13=AN20)*($CD$5:$CD$13))+SUMPRODUCT(($I$5:$M$13=AN20)*($CE$5:$CE$13))+'J03'!BC20 -> 0 | BD20: 0 | BE20: =SUMPRODUCT(($B$5:$F$13=AN20)*($CF$5:$CF$13))+'J03'!BE20 -> 0 | BF20: =SUMPRODUCT(($B$5:$F$13=AN20)*($CG$5:$CG$13))+'J03'!BF20 -> 0 | BG20: =SUMPRODUCT(($B$5:$F$13=AN20)*($CH$5:$CH$13))+'J03'!BG20 -> 0 | BH20: =SUMPRODUCT(($I$5:$M$13=AN20)*($CI$5:$CI$13))+'J03'!BH20 -> 0 | BI20: =SUMPRODUCT(($I$5:$M$13=AN20)*($CJ$5:$CJ$13))+'J03'!BI20 -> 0 | BJ20: =SUMPRODUCT(($I$5:$M$13=AN20)*($CK$5:$CK$13))+'J03'!BJ20 -> 0 | BL20: 0 | BM20: =BL20+0.00000015 -> 1.5e-07 | CL20: 0 | CM20: 0 | CN20: 1 | CO20: 0
O21: 0 | T21: 0 | U21: u | V21: 1 | W21: 0 | X21: 0 | Y21: 0 | Z21: 0 | AA21: 0 | AB21: 0 | AC21: 0 | AD21: 0 | AE21: 0 | AF21: 0 | AG21: 0 | AH21: 0 | AI21: 0 | AJ21: 0 | AL21: 17 | AM21: 17 | AN21: ='J01'!AN21:AR21 -> 0 | AS21: 1 | AT21: ='J03'!AS21-AS21 -> 0 | AU21: =IF(AS21>'J03'!AS21,'J03'!$AU$23,IF(AS21<'J03'!AS21,'J03'!$AS$23,IF(AS21='J03'!AS21,'J03'!$AT$23))) -> u | AV21: 17 | AW21: =SUMPRODUCT(($B$5:$F$13=AN21)*($BR$5:$BR$13))+SUMPRODUCT(($I$5:$M$13=AN21)*($BS$5:$BS$13))+'J03'!AW21 -> 0 | AX21: =SUMPRODUCT(($B$5:$F$13=AN21)*($BT$5:$BT$13))+SUMPRODUCT(($I$5:$M$13=AN21)*($BU$5:$BU$13))+'J03'!AX21 -> 0 | AY21: =SUMPRODUCT(($B$5:$F$13=AN21)*($BV$5:$BV$13))+SUMPRODUCT(($I$5:$M$13=AN21)*($BW$5:$BW$13))+'J03'!AY21 -> 0 | AZ21: =SUMPRODUCT(($B$5:$F$13=AN21)*($BX$5:$BX$13))+SUMPRODUCT(($I$5:$M$13=AN21)*($BY$5:$BY$13))+'J03'!AZ21 -> 0 | BA21: =SUMPRODUCT(($B$5:$F$13=AN21)*($BZ$5:$BZ$13))+SUMPRODUCT(($I$5:$M$13=AN21)*($CA$5:$CA$13))+'J03'!BA21 -> 0 | BB21: =SUMPRODUCT(($B$5:$F$13=AN21)*($CB$5:$CB$13))+SUMPRODUCT(($I$5:$M$13=AN21)*($CC$5:$CC$13))+'J03'!BB21 -> 0 | BC21: =SUMPRODUCT(($B$5:$F$13=AN21)*($CD$5:$CD$13))+SUMPRODUCT(($I$5:$M$13=AN21)*($CE$5:$CE$13))+'J03'!BC21 -> 0 | BD21: 0 | BE21: =SUMPRODUCT(($B$5:$F$13=AN21)*($CF$5:$CF$13))+'J03'!BE21 -> 0 | BF21: =SUMPRODUCT(($B$5:$F$13=AN21)*($CG$5:$CG$13))+'J03'!BF21 -> 0 | BG21: =SUMPRODUCT(($B$5:$F$13=AN21)*($CH$5:$CH$13))+'J03'!BG21 -> 0 | BH21: =SUMPRODUCT(($I$5:$M$13=AN21)*($CI$5:$CI$13))+'J03'!BH21 -> 0 | BI21: =SUMPRODUCT(($I$5:$M$13=AN21)*($CJ$5:$CJ$13))+'J03'!BI21 -> 0 | BJ21: =SUMPRODUCT(($I$5:$M$13=AN21)*($CK$5:$CK$13))+'J03'!BJ21 -> 0 | BL21: 0 | BM21: =BL21+0.00000014 -> 1.4e-07 | CL21: 0 | CM21: 0 | CN21: 1 | CO21: 0
O22: 0 | T22: 0 | U22: u | V22: 1 | W22: 0 | X22: 0 | Y22: 0 | Z22: 0 | AA22: 0 | AB22: 0 | AC22: 0 | AD22: 0 | AE22: 0 | AF22: 0 | AG22: 0 | AH22: 0 | AI22: 0 | AJ22: 0 | AL22: 18 | AM22: 18 | AN22: ='J01'!AN22:AR22 -> 0 | AS22: 1 | AT22: ='J03'!AS22-AS22 -> 0 | AU22: =IF(AS22>'J03'!AS22,'J03'!$AU$23,IF(AS22<'J03'!AS22,'J03'!$AS$23,IF(AS22='J03'!AS22,'J03'!$AT$23))) -> u | AV22: 18 | AW22: =SUMPRODUCT(($B$5:$F$13=AN22)*($BR$5:$BR$13))+SUMPRODUCT(($I$5:$M$13=AN22)*($BS$5:$BS$13))+'J03'!AW22 -> 0 | AX22: =SUMPRODUCT(($B$5:$F$13=AN22)*($BT$5:$BT$13))+SUMPRODUCT(($I$5:$M$13=AN22)*($BU$5:$BU$13))+'J03'!AX22 -> 0 | AY22: =SUMPRODUCT(($B$5:$F$13=AN22)*($BV$5:$BV$13))+SUMPRODUCT(($I$5:$M$13=AN22)*($BW$5:$BW$13))+'J03'!AY22 -> 0 | AZ22: =SUMPRODUCT(($B$5:$F$13=AN22)*($BX$5:$BX$13))+SUMPRODUCT(($I$5:$M$13=AN22)*($BY$5:$BY$13))+'J03'!AZ22 -> 0 | BA22: =SUMPRODUCT(($B$5:$F$13=AN22)*($BZ$5:$BZ$13))+SUMPRODUCT(($I$5:$M$13=AN22)*($CA$5:$CA$13))+'J03'!BA22 -> 0 | BB22: =SUMPRODUCT(($B$5:$F$13=AN22)*($CB$5:$CB$13))+SUMPRODUCT(($I$5:$M$13=AN22)*($CC$5:$CC$13))+'J03'!BB22 -> 0 | BC22: =SUMPRODUCT(($B$5:$F$13=AN22)*($CD$5:$CD$13))+SUMPRODUCT(($I$5:$M$13=AN22)*($CE$5:$CE$13))+'J03'!BC22 -> 0 | BD22: 0 | BE22: =SUMPRODUCT(($B$5:$F$13=AN22)*($CF$5:$CF$13))+'J03'!BE22 -> 0 | BF22: =SUMPRODUCT(($B$5:$F$13=AN22)*($CG$5:$CG$13))+'J03'!BF22 -> 0 | BG22: =SUMPRODUCT(($B$5:$F$13=AN22)*($CH$5:$CH$13))+'J03'!BG22 -> 0 | BH22: =SUMPRODUCT(($I$5:$M$13=AN22)*($CI$5:$CI$13))+'J03'!BH22 -> 0 | BI22: =SUMPRODUCT(($I$5:$M$13=AN22)*($CJ$5:$CJ$13))+'J03'!BI22 -> 0 | BJ22: =SUMPRODUCT(($I$5:$M$13=AN22)*($CK$5:$CK$13))+'J03'!BJ22 -> 0 | BL22: 0 | BM22: =BL22+0.00000013 -> 1.3e-07 | CL22: 0 | CM22: 0 | CN22: 1 | CO22: 0
W23: 2019 - 2020 | AC23: Buts Journée | AG23: Total Buts | AS23: p | AT23: u | AU23: q
AC24: =SUM(G5:H13) -> 0 | AG24: =AC24+'J03'!AG24:AJ26 -> 0 | AS24: p | AT24: u | AU24: q

Sheet J05
A1: TOURNOI 219 - 2020 | I1: JOURNEE 05 | O1: CLASSEMENT | AN1: CLASSEMENT
A3: Pén | B3: Equipes | G3: Bts | H3: Bts | I3: Equipes | N3: Pén | O3: Equipes | T3: Evolution | V3: R | W3: Pts | X3: J | Y3: G | Z3: N | AA3: P | AB3: Bts + | AC3: Bts - | AD3: Diff | AE3: Domicile | AH3: Extérieur | AN3: Equipes | AS3: R | AT3: Evolution | AV3: R | AW3: Pts | AX3: J | AY3: G | AZ3: N | BA3: P | BB3: Bts + | BC3: Bts - | BD3: Diff | BE3: Domicile | BH3: Extérieur | CF3: DOMICILE | CI3: EXTERIRUR
AE4: G | AF4: N | AG4: P | AH4: G | AI4: N | AJ4: P | AM4: R | BE4: G | BF4: N | BG4: P | BH4: G | BI4: N | BJ4: P | BL4: % | BM4: % | BN4: P | BO4: P | BP4: Pts | BQ4: Pts | BR4: T Pts | BS4: T Pts | BT4: J | BU4: J | BV4: G | BW4: G | BX4: N | BY4: N | BZ4: P | CA4: P | CB4: B + | CC4: B + | CD4: B - | CE4: B - | CF4: G | CG4: N | CH4: P | CI4: G | CJ4: N | CK4: P | CL4: Equipes | CM4: % | CN4: R | CO4: Equipes
O5: =VLOOKUP(AL5,$AM$5:$AR$22,2,0) -> 0 | T5: =VLOOKUP(O5,$AN$5:$BJ$22,7,0) -> 0 | U5: =VLOOKUP(O5,$AN$5:$BJ$22,8,0) -> u | V5: 1 | W5: =VLOOKUP(O5,$AN$5:$BJ$22,10,0) -> 0 | X5: =VLOOKUP(O5,$AN$5:$BJ$22,11,0) -> 0 | Y5: =VLOOKUP(O5,$AN$5:$BJ$22,12,0) -> 0 | Z5: =VLOOKUP(O5,$AN$5:$BJ$22,13,0) -> 0 | AA5: =VLOOKUP(O5,$AN$5:$BJ$22,14,0) -> 0 | AB5: =VLOOKUP(O5,$AN$5:$BJ$22,15,0) -> 0 | AC5: =VLOOKUP(O5,$AN$5:$BJ$22,16,0) -> 0 | AD5: =VLOOKUP(O5,$AN$5:$BJ$22,17,0) -> 0 | AE5: =VLOOKUP(O5,$AN$5:$BJ$22,18,0) -> 0 | AF5: =VLOOKUP(O5,$AN$5:$BJ$22,19,0) -> 0 | AG5: =VLOOKUP(O5,$AN$5:$BJ$22,20,0) -> 0 | AH5: =VLOOKUP(O5,$AN$5:$BJ$22,21,0) -> 0 | AI5: =VLOOKUP(O5,$AN$5:$BJ$22,22,0) -> 0 | AJ5: =VLOOKUP(O5,$AN$5:$BJ$22,23,0) -> 0 | AL5: 1 | AM5: =AV5 -> 1 | AN5: ='J01'!AN5:AR5 -> 0 | AS5: =RANK(BL5,$BL$5:$BL$22) -> 1 | AT5: ='J04'!AS5-AS5 -> 0 | AU5: =IF(AS5>'J04'!AS5,'J04'!$AU$23,IF(AS5<'J04'!AS5,'J04'!$AS$23,IF(AS5='J04'!AS5,'J04'!$AT$23))) -> u | AV5: =RANK(BM5,$BM$5:$BM$22) -> 1 | AW5: =SUMPRODUCT(($B$5:$F$13=AN5)*($BR$5:$BR$13))+SUMPRODUCT(($I$5:$M$13=AN5)*($BS$5:$BS$13))+'J04'!AW5 -> 0 | AX5: =SUMPRODUCT(($B$5:$F$13=AN5)*($BT$5:$BT$13))+SUMPRODUCT(($I$5:$M$13=AN5)*($BU$5:$BU$13))+'J04'!AX5 -> 0 | AY5: =SUMPRODUCT(($B$5:$F$13=AN5)*($BV$5:$BV$13))+SUMPRODUCT(($I$5:$M$13=AN5)*($BW$5:$BW$13))+'J04'!AY5 -> 0 | AZ5: =SUMPRODUCT(($B$5:$F$13=AN5)*($BX$5:$BX$13))+SUMPRODUCT(($I$5:$M$13=AN5)*($BY$5:$BY$13))+'J04'!AZ5 -> 0 | BA5: =SUMPRODUCT(($B$5:$F$13=AN5)*($BZ$5:$BZ$13))+SUMPRODUCT(($I$5:$M$13=AN5)*($CA$5:$CA$13))+'J04'!BA5 -> 0 | BB5: =SUMPRODUCT(($B$5:$F$13=AN5)*($CB$5:$CB$13))+SUMPRODUCT(($I$5:$M$13=AN5)*($CC$5:$CC$13))+'J04'!BB5 -> 0 | BC5: =SUMPRODUCT(($B$5:$F$13=AN5)*($CD$5:$CD$13))+SUMPRODUCT(($I$5:$M$13=AN5)*($CE$5:$CE$13))+'J04'!BC5 -> 0 | BD5: =BB5-BC5 -> 0 | BE5: =SUMPRODUCT(($B$5:$F$13=AN5)*($CF$5:$CF$13))+'J04'!BE5 -> 0 | BF5: =SUMPRODUCT(($B$5:$F$13=AN5)*($CG$5:$CG$13))+'J04'!BF5 -> 0 | BG5: =SUMPRODUCT(($B$5:$F$13=AN5)*($CH$5:$CH$13))+'J04'!BG5 -> 0 | BH5: =SUMPRODUCT(($I$5:$M$13=AN5)*($CI$5:$CI$13))+'J04'!BH5 -> 0 | BI5: =SUMPRODUCT(($I$5:$M$13=AN5)*($CJ$5:$CJ$13))+'J04'!BI5 -> 0 | BJ5: =SUMPRODUCT(($I$5:$M$13=AN5)*($CK$5:$CK$13))+'J04'!BJ5 -> 0 | BL5: =SUM(AW5*1000+(BD5/100+(BB5/1000))) -> 0 | BM5: =BL5+0.0000003 -> 3e-07 | BN5: =A5 -> 0 | BO5: =N5 -> 0 | BP5: =IF(G5="",0,IF(G5>H5,3,IF(G5=H5,1,IF(G5<H5,0)))) -> 0 | BQ5: =IF(H5="",0,IF(H5>G5,3,IF(H5=G5,1,IF(H5<G5,0)))) -> 0 | BR5: =BP5-BN5 -> 0 | BS5: =BQ5-BO5 -> 0 | BT5: =IF(G5="",0,1) -> 0 | BU5: =IF(H5="",0,1) -> 0 | BV5: =IF(G5<>"",IF(G5>H5,1)) -> FALSE | BW5: =IF(H5<>"",IF(H5>G5,1)) -> FALSE | BX5: =IF(G5<>"",IF(G5=H5,1)) -> FALSE | BY5: =IF(H5<>"",IF(H5=G5,1)) -> FALSE | BZ5: =IF(G5<>"",IF(G5<H5,1)) -> FALSE | CA5: =IF(H5<>"",IF(H5<G5,1)) -> FALSE | CB5: =G5 -> 0 | CC5: =H5 -> 0 | CD5: =H5 -> 0 | CE5: =G5 -> 0 | CF5: =IF(G5<>"",IF(G5>H5,1)) -> FALSE | CG5: =IF(G5<>"",IF(G5=H5,1)) -> FALSE | CH5: =IF(G5<>"",IF(G5<H5,1)) -> FALSE | CI5: =IF(H5<>"",IF(H5>G5,1)) -> FALSE | CJ5: =IF(H5<>"",IF(H5=G5,1)) -> FALSE | CK5: =IF(H5<>"",IF(H5<G5,1)) -> FALSE | CL5: =VLOOKUP(AL5,$AM$5:$AR$22,2,0) -> 0 | CM5: =VLOOKUP(CL5,$AN$5:$BL$22,25,0) -> 0 | CN5: =RANK(CM5,$CM$5:$CM$22) -> 1 | CO5: =AN5 -> 0
O6: =VLOOKUP(AL6,$AM$5:$AR$22,2,0) -> 0 | T6: =VLOOKUP(O6,$AN$5:$BJ$22,7,0) -> 0 | U6: =VLOOKUP(O6,$AN$5:$BJ$22,8,0) -> u | V6: =IF(CM6=CM5,CN5,CN6) -> 1 | W6: =VLOOKUP(O6,$AN$5:$BJ$22,10,0) -> 0 | X6: =VLOOKUP(O6,$AN$5:$BJ$22,11,0) -> 0 | Y6: =VLOOKUP(O6,$AN$5:$BJ$22,12,0) -> 0 | Z6: =VLOOKUP(O6,$AN$5:$BJ$22,13,0) -> 0 | AA6: =VLOOKUP(O6,$AN$5:$BJ$22,14,0) -> 0 | AB6: =VLOOKUP(O6,$AN$5:$BJ$22,15,0) -> 0 | AC6: =VLOOKUP(O6,$AN$5:$BJ$22,16,0) -> 0 | AD6: =VLOOKUP(O6,$AN$5:$BJ$22,17,0) -> 0 | AE6: =VLOOKUP(O6,$AN$5:$BJ$22,18,0) -> 0 | AF6: =VLOOKUP(O6,$AN$5:$BJ$22,19,0) -> 0 | AG6: =VLOOKUP(O6,$AN$5:$BJ$22,20,0) -> 0 | AH6: =VLOOKUP(O6,$AN$5:$BJ$22,21,0) -> 0 | AI6: =VLOOKUP(O6,$AN$5:$BJ$22,22,0) -> 0 | AJ6: =VLOOKUP(O6,$AN$5:$BJ$22,23,0) -> 0 | AL6: 2 | AM6: =AV6 -> 2 | AN6: ='J01'!AN6:AR6 -> 0 | AS6: =RANK(BL6,$BL$5:$BL$22) -> 1 | AT6: ='J04'!AS6-AS6 -> 0 | AU6: =IF(AS6>'J04'!AS6,'J04'!$AU$23,IF(AS6<'J04'!AS6,'J04'!$AS$23,IF(AS6='J04'!AS6,'J04'!$AT$23))) -> u | AV6: =RANK(BM6,$BM$5:$BM$22) -> 2 | AW6: =SUMPRODUCT(($B$5:$F$13=AN6)*($BR$5:$BR$13))+SUMPRODUCT(($I$5:$M$13=AN6)*($BS$5:$BS$13))+'J04'!AW6 -> 0 | AX6: =SUMPRODUCT(($B$5:$F$13=AN6)*($BT$5:$BT$13))+SUMPRODUCT(($I$5:$M$13=AN6)*($BU$5:$BU$13))+'J04'!AX6 -> 0 | AY6: =SUMPRODUCT(($B$5:$F$13=AN6)*($BV$5:$BV$13))+SUMPRODUCT(($I$5:$M$13=AN6)*($BW$5:$BW$13))+'J04'!AY6 -> 0 | AZ6: =SUMPRODUCT(($B$5:$F$13=AN6)*($BX$5:$BX$13))+SUMPRODUCT(($I$5:$M$13=AN6)*($BY$5:$BY$13))+'J04'!AZ6 -> 0 | BA6: =SUMPRODUCT(($B$5:$F$13=AN6)*($BZ$5:$BZ$13))+SUMPRODUCT(($I$5:$M$13=AN6)*($CA$5:$CA$13))+'J04'!BA6 -> 0 | BB6: =SUMPRODUCT(($B$5:$F$13=AN6)*($CB$5:$CB$13))+SUMPRODUCT(($I$5:$M$13=AN6)*($CC$5:$CC$13))+'J04'!BB6 -> 0 | BC6: =SUMPRODUCT(($B$5:$F$13=AN6)*($CD$5:$CD$13))+SUMPRODUCT(($I$5:$M$13=AN6)*($CE$5:$CE$13))+'J04'!BC6 -> 0 | BD6: =BB6-BC6 -> 0 | BE6: =SUMPRODUCT(($B$5:$F$13=AN6)*($CF$5:$CF$13))+'J04'!BE6 -> 0 | BF6: =SUMPRODUCT(($B$5:$F$13=AN6)*($CG$5:$CG$13))+'J04'!BF6 -> 0 | BG6: =SUMPRODUCT(($B$5:$F$13=AN6)*($CH$5:$CH$13))+'J04'!BG6 -> 0 | BH6: =SUMPRODUCT(($I$5:$M$13=AN6)*($CI$5:$CI$13))+'J04'!BH6 -> 0 | BI6: =SUMPRODUCT(($I$5:$M$13=AN6)*($CJ$5:$CJ$13))+'J04'!BI6 -> 0 | BJ6: =SUMPRODUCT(($I$5:$M$13=AN6)*($CK$5:$CK$13))+'J04'!BJ6 -> 0 | BL6: =SUM(AW6*1000+(BD6/100+(BB6/1000))) -> 0 | BM6: =BL6+0.00000029 -> 2.9e-07 | BN6: =A6 -> 0 | BO6: =N6 -> 0 | BP6: =IF(G6="",0,IF(G6>H6,3,IF(G6=H6,1,IF(G6<H6,0)))) -> 0 | BQ6: =IF(H6="",0,IF(H6>G6,3,IF(H6=G6,1,IF(H6<G6,0)))) -> 0 | BR6: =BP6-BN6 -> 0 | BS6: 0 | BT6: =IF(G6="",0,1) -> 0 | BU6: 0 | BV6: =IF(G6<>"",IF(G6>H6,1)) -> FALSE | BW6: =IF(H6<>"",IF(H6>G6,1)) -> FALSE | BX6: =IF(G6<>"",IF(G6=H6,1)) -> FALSE | BY6: =IF(H6<>"",IF(H6=G6,1)) -> FALSE | BZ6: =IF(G6<>"",IF(G6<H6,1)) -> FALSE | CA6: =IF(H6<>"",IF(H6<G6,1)) -> FALSE | CB6: =G6 -> 0 | CC6: 0 | CD6: =H6 -> 0 | CE6: =G6 -> 0 | CF6: =IF(G6<>"",IF(G6>H6,1)) -> FALSE | CG6: =IF(G6<>"",IF(G6=H6,1)) -> FALSE | CH6: =IF(G6<>"",IF(G6<H6,1)) -> FALSE | CI6: =IF(H6<>"",IF(H6>G6,1)) -> FALSE | CJ6: =IF(H6<>"",IF(H6=G6,1)) -> FALSE | CK6: =IF(H6<>"",IF(H6<G6,1)) -> FALSE | CL6: =VLOOKUP(AL6,$AM$5:$AR$22,2,0) -> 0 | CM6: =VLOOKUP(CL6,$AN$5:$BL$22,25,0) -> 0 | CN6: =RANK(CM6,$CM$5:$CM$22) -> 1 | CO6: =AN6 -> 0
O7: 0 | T7: 0 | U7: u | V7: =IF(CM7=CM6,CN6,CN7) -> 1 | W7: 0 | X7: 0 | Y7: 0 | Z7: 0 | AA7: 0 | AB7: 0 | AC7: 0 | AD7: 0 | AE7: 0 | AF7: 0 | AG7: 0 | AH7: 0 | AI7: 0 | AJ7: 0 | AL7: 3 | AM7: 3 | AN7: ='J01'!AN7:AR7 -> 0 | AS7: 1 | AT7: ='J04'!AS7-AS7 -> 0 | AU7: =IF(AS7>'J04'!AS7,'J04'!$AU$23,IF(AS7<'J04'!AS7,'J04'!$AS$23,IF(AS7='J04'!AS7,'J04'!$AT$23))) -> u | AV7: 3 | AW7: =SUMPRODUCT(($B$5:$F$13=AN7)*($BR$5:$BR$13))+SUMPRODUCT(($I$5:$M$13=AN7)*($BS$5:$BS$13))+'J04'!AW7 -> 0 | AX7: =SUMPRODUCT(($B$5:$F$13=AN7)*($BT$5:$BT$13))+SUMPRODUCT(($I$5:$M$13=AN7)*($BU$5:$BU$13))+'J04'!AX7 -> 0 | AY7: =SUMPRODUCT(($B$5:$F$13=AN7)*($BV$5:$BV$13))+SUMPRODUCT(($I$5:$M$13=AN7)*($BW$5:$BW$13))+'J04'!AY7 -> 0 | AZ7: =SUMPRODUCT(($B$5:$F$13=AN7)*($BX$5:$BX$13))+SUMPRODUCT(($I$5:$M$13=AN7)*($BY$5:$BY$13))+'J04'!AZ7 -> 0 | BA7: =SUMPRODUCT(($B$5:$F$13=AN7)*($BZ$5:$BZ$13))+SUMPRODUCT(($I$5:$M$13=AN7)*($CA$5:$CA$13))+'J04'!BA7 -> 0 | BB7: =SUMPRODUCT(($B$5:$F$13=AN7)*($CB$5:$CB$13))+SUMPRODUCT(($I$5:$M$13=AN7)*($CC$5:$CC$13))+'J04'!BB7 -> 0 | BC7: =SUMPRODUCT(($B$5:$F$13=AN7)*($CD$5:$CD$13))+SUMPRODUCT(($I$5:$M$13=AN7)*($CE$5:$CE$13))+'J04'!BC7 -> 0 | BD7: 0 | BE7: =SUMPRODUCT(($B$5:$F$13=AN7)*($CF$5:$CF$13))+'J04'!BE7 -> 0 | BF7: =SUMPRODUCT(($B$5:$F$13=AN7)*($CG$5:$CG$13))+'J04'!BF7 -> 0 | BG7: =SUMPRODUCT(($B$5:$F$13=AN7)*($CH$5:$CH$13))+'J04'!BG7 -> 0 | BH7: =SUMPRODUCT(($I$5:$M$13=AN7)*($CI$5:$CI$13))+'J04'!BH7 -> 0 | BI7: =SUMPRODUCT(($I$5:$M$13=AN7)*($CJ$5:$CJ$13))+'J04'!BI7 -> 0 | BJ7: =SUMPRODUCT(($I$5:$M$13=AN7)*($CK$5:$CK$13))+'J04'!BJ7 -> 0 | BL7: 0 | BM7: =BL7+0.00000028 -> 2.8e-07 | BN7: 0 | BO7: 0 | BP7: 0 | BQ7: 0 | BR7: 0 | BS7: 0 | BT7: 0 | BU7: 0 | BV7: FALSE | BW7: FALSE | BX7: FALSE | BY7: FALSE | BZ7: FALSE | CA7: FALSE | CB7: 0 | CC7: 0 | CD7: 0 | CE7: 0 | CF7: FALSE | CG7: FALSE | CH7: FALSE | CI7: FALSE | CJ7: FALSE | CK7: FALSE | CL7: 0 | CM7: 0 | CN7: 1 | CO7: 0
O8: 0 | T8: 0 | U8: u | V8: 1 | W8: 0 | X8: 0 | Y8: 0 | Z8: 0 | AA8: 0 | AB8: 0 | AC8: 0 | AD8: 0 | AE8: 0 | AF8: 0 | AG8: 0 | AH8: 0 | AI8: 0 | AJ8: 0 | AL8: 4 | AM8: 4 | AN8: ='J01'!AN8:AR8 -> 0 | AS8: 1 | AT8: ='J04'!AS8-AS8 -> 0 | AU8: =IF(AS8>'J04'!AS8,'J04'!$AU$23,IF(AS8<'J04'!AS8,'J04'!$AS$23,IF(AS8='J04'!AS8,'J04'!$AT$23))) -> u | AV8: 4 | AW8: =SUMPRODUCT(($B$5:$F$13=AN8)*($BR$5:$BR$13))+SUMPRODUCT(($I$5:$M$13=AN8)*($BS$5:$BS$13))+'J04'!AW8 -> 0 | AX8: =SUMPRODUCT(($B$5:$F$13=AN8)*($BT$5:$BT$13))+SUMPRODUCT(($I$5:$M$13=AN8)*($BU$5:$BU$13))+'J04'!AX8 -> 0 | AY8: =SUMPRODUCT(($B$5:$F$13=AN8)*($BV$5:$BV$13))+SUMPRODUCT(($I$5:$M$13=AN8)*($BW$5:$BW$13))+'J04'!AY8 -> 0 | AZ8: =SUMPRODUCT(($B$5:$F$13=AN8)*($BX$5:$BX$13))+SUMPRODUCT(($I$5:$M$13=AN8)*($BY$5:$BY$13))+'J04'!AZ8 -> 0 | BA8: =SUMPRODUCT(($B$5:$F$13=AN8)*($BZ$5:$BZ$13))+SUMPRODUCT(($I$5:$M$13=AN8)*($CA$5:$CA$13))+'J04'!BA8 -> 0 | BB8: =SUMPRODUCT(($B$5:$F$13=AN8)*($CB$5:$CB$13))+SUMPRODUCT(($I$5:$M$13=AN8)*($CC$5:$CC$13))+'J04'!BB8 -> 0 | BC8: =SUMPRODUCT(($B$5:$F$13=AN8)*($CD$5:$CD$13))+SUMPRODUCT(($I$5:$M$13=AN8)*($CE$5:$CE$13))+'J04'!BC8 -> 0 | BD8: 0 | BE8: =SUMPRODUCT(($B$5:$F$13=AN8)*($CF$5:$CF$13))+'J04'!BE8 -> 0 | BF8: =SUMPRODUCT(($B$5:$F$13=AN8)*($CG$5:$CG$13))+'J04'!BF8 -> 0 | BG8: =SUMPRODUCT(($B$5:$F$13=AN8)*($CH$5:$CH$13))+'J04'!BG8 -> 0 | BH8: =SUMPRODUCT(($I$5:$M$13=AN8)*($CI$5:$CI$13))+'J04'!BH8 -> 0 | BI8: =SUMPRODUCT(($I$5:$M$13=AN8)*($CJ$5:$CJ$13))+'J04'!BI8 -> 0 | BJ8: =SUMPRODUCT(($I$5:$M$13=AN8)*($CK$5:$CK$13))+'J04'!BJ8 -> 0 | BL8: 0 | BM8: =BL8+0.00000027 -> 2.7e-07 | BN8: 0 | BO8: 0 | BP8: 0 | BQ8: 0 | BR8: 0 | BS8: 0 | BT8: 0 | BU8: 0 | BV8: FALSE | BW8: FALSE | BX8: FALSE | BY8: FALSE | BZ8: FALSE | CA8: FALSE | CB8: 0 | CC8: 0 | CD8: 0 | CE8: 0 | CF8: FALSE | CG8: FALSE | CH8: FALSE | CI8: FALSE | CJ8: FALSE | CK8: FALSE | CL8: 0 | CM8: 0 | CN8: 1 | CO8: 0
O9: 0 | T9: 0 | U9: u | V9: 1 | W9: 0 | X9: 0 | Y9: 0 | Z9: 0 | AA9: 0 | AB9: 0 | AC9: 0 | AD9: 0 | AE9: 0 | AF9: 0 | AG9: 0 | AH9: 0 | AI9: 0 | AJ9: 0 | AL9: 5 | AM9: 5 | AN9: ='J01'!AN9:AR9 -> 0 | AS9: 1 | AT9: ='J04'!AS9-AS9 -> 0 | AU9: =IF(AS9>'J04'!AS9,'J04'!$AU$23,IF(AS9<'J04'!AS9,'J04'!$AS$23,IF(AS9='J04'!AS9,'J04'!$AT$23))) -> u | AV9: 5 | AW9: =SUMPRODUCT(($B$5:$F$13=AN9)*($BR$5:$BR$13))+SUMPRODUCT(($I$5:$M$13=AN9)*($BS$5:$BS$13))+'J04'!AW9 -> 0 | AX9: =SUMPRODUCT(($B$5:$F$13=AN9)*($BT$5:$BT$13))+SUMPRODUCT(($I$5:$M$13=AN9)*($BU$5:$BU$13))+'J04'!AX9 -> 0 | AY9: =SUMPRODUCT(($B$5:$F$13=AN9)*($BV$5:$BV$13))+SUMPRODUCT(($I$5:$M$13=AN9)*($BW$5:$BW$13))+'J04'!AY9 -> 0 | AZ9: =SUMPRODUCT(($B$5:$F$13=AN9)*($BX$5:$BX$13))+SUMPRODUCT(($I$5:$M$13=AN9)*($BY$5:$BY$13))+'J04'!AZ9 -> 0 | BA9: =SUMPRODUCT(($B$5:$F$13=AN9)*($BZ$5:$BZ$13))+SUMPRODUCT(($I$5:$M$13=AN9)*($CA$5:$CA$13))+'J04'!BA9 -> 0 | BB9: =SUMPRODUCT(($B$5:$F$13=AN9)*($CB$5:$CB$13))+SUMPRODUCT(($I$5:$M$13=AN9)*($CC$5:$CC$13))+'J04'!BB9 -> 0 | BC9: =SUMPRODUCT(($B$5:$F$13=AN9)*($CD$5:$CD$13))+SUMPRODUCT(($I$5:$M$13=AN9)*($CE$5:$CE$13))+'J04'!BC9 -> 0 | BD9: 0 | BE9: =SUMPRODUCT(($B$5:$F$13=AN9)*($CF$5:$CF$13))+'J04'!BE9 -> 0 | BF9: =SUMPRODUCT(($B$5:$F$13=AN9)*($CG$5:$CG$13))+'J04'!BF9 -> 0 | BG9: =SUMPRODUCT(($B$5:$F$13=AN9)*($CH$5:$CH$13))+'J04'!BG9 -> 0 | BH9: =SUMPRODUCT(($I$5:$M$13=AN9)*($CI$5:$CI$13))+'J04'!BH9 -> 0 | BI9: =SUMPRODUCT(($I$5:$M$13=AN9)*($CJ$5:$CJ$13))+'J04'!BI9 -> 0 | BJ9: =SUMPRODUCT(($I$5:$M$13=AN9)*($CK$5:$CK$13))+'J04'!BJ9 -> 0 | BL9: 0 | BM9: =BL9+0.00000026 -> 2.6e-07 | BN9: 0 | BO9: 0 | BP9: 0 | BQ9: 0 | BR9: 0 | BS9: 0 | BT9: 0 | BU9: 0 | BV9: FALSE | BW9: FALSE | BX9: FALSE | BY9: FALSE | BZ9: FALSE | CA9: FALSE | CB9: 0 | CC9: 0 | CD9: 0 | CE9: 0 | CF9: FALSE | CG9: FALSE | CH9: FALSE | CI9: FALSE | CJ9: FALSE | CK9: FALSE | CL9: 0 | CM9: 0 | CN9: 1 | CO9: 0
O10: 0 | T10: 0 | U10: u | V10: 1 | W10: 0 | X10: 0 | Y10: 0 | Z10: 0 | AA10: 0 | AB10: 0 | AC10: 0 | AD10: 0 | AE10: 0 | AF10: 0 | AG10: 0 | AH10: 0 | AI10: 0 | AJ10: 0 | AL10: 6 | AM10: 6 | AN10: ='J01'!AN10:AR10 -> 0 | AS10: 1 | AT10: ='J04'!AS10-AS10 -> 0 | AU10: =IF(AS10>'J04'!AS10,'J04'!$AU$23,IF(AS10<'J04'!AS10,'J04'!$AS$23,IF(AS10='J04'!AS10,'J04'!$AT$23))) -> u | AV10: 6 | AW10: =SUMPRODUCT(($B$5:$F$13=AN10)*($BR$5:$BR$13))+SUMPRODUCT(($I$5:$M$13=AN10)*($BS$5:$BS$13))+'J04'!AW10 -> 0 | AX10: =SUMPRODUCT(($B$5:$F$13=AN10)*($BT$5:$BT$13))+SUMPRODUCT(($I$5:$M$13=AN10)*($BU$5:$BU$13))+'J04'!AX10 -> 0 | AY10: =SUMPRODUCT(($B$5:$F$13=AN10)*($BV$5:$BV$13))+SUMPRODUCT(($I$5:$M$13=AN10)*($BW$5:$BW$13))+'J04'!AY10 -> 0 | AZ10: =SUMPRODUCT(($B$5:$F$13=AN10)*($BX$5:$BX$13))+SUMPRODUCT(($I$5:$M$13=AN10)*($BY$5:$BY$13))+'J04'!AZ10 -> 0 | BA10: =SUMPRODUCT(($B$5:$F$13=AN10)*($BZ$5:$BZ$13))+SUMPRODUCT(($I$5:$M$13=AN10)*($CA$5:$CA$13))+'J04'!BA10 -> 0 | BB10: =SUMPRODUCT(($B$5:$F$13=AN10)*($CB$5:$CB$13))+SUMPRODUCT(($I$5:$M$13=AN10)*($CC$5:$CC$13))+'J04'!BB10 -> 0 | BC10: =SUMPRODUCT(($B$5:$F$13=AN10)*($CD$5:$CD$13))+SUMPRODUCT(($I$5:$M$13=AN10)*($CE$5:$CE$13))+'J04'!BC10 -> 0 | BD10: 0 | BE10: =SUMPRODUCT(($B$5:$F$13=AN10)*($CF$5:$CF$13))+'J04'!BE10 -> 0 | BF10: =SUMPRODUCT(($B$5:$F$13=AN10)*($CG$5:$CG$13))+'J04'!BF10 -> 0 | BG10: =SUMPRODUCT(($B$5:$F$13=AN10)*($CH$5:$CH$13))+'J04'!BG10 -> 0 | BH10: =SUMPRODUCT(($I$5:$M$13=AN10)*($CI$5:$CI$13))+'J04'!BH10 -> 0 | BI10: =SUMPRODUCT(($I$5:$M$13=AN10)*($CJ$5:$CJ$13))+'J04'!BI10 -> 0 | BJ10: =SUMPRODUCT(($I$5:$M$13=AN10)*($CK$5:$CK$13))+'J04'!BJ10 -> 0 | BL10: 0 | BM10: =BL10+0.00000025 -> 2.5e-07 | BN10: 0 | BO10: 0 | BP10: 0 | BQ10: 0 | BR10: 0 | BS10: 0 | BT10: 0 | BU10: 0 | BV10: FALSE | BW10: FALSE | BX10: FALSE | BY10: FALSE | BZ10: FALSE | CA10: FALSE | CB10: 0 | CC10: 0 | CD10: 0 | CE10: 0 | CF10: FALSE | CG10: FALSE | CH10: FALSE | CI10: FALSE | CJ10: FALSE | CK10: FALSE | CL10: 0 | CM10: 0 | CN10: 1 | CO10: 0
O11: 0 | T11: 0 | U11: u | V11: 1 | W11: 0 | X11: 0 | Y11: 0 | Z11: 0 | AA11: 0 | AB11: 0 | AC11: 0 | AD11: 0 | AE11: 0 | AF11: 0 | AG11: 0 | AH11: 0 | AI11: 0 | AJ11: 0 | AL11: 7 | AM11: 7 | AN11: ='J01'!AN11:AR11 -> 0 | AS11: 1 | AT11: ='J04'!AS11-AS11 -> 0 | AU11: =IF(AS11>'J04'!AS11,'J04'!$AU$23,IF(AS11<'J04'!AS11,'J04'!$AS$23,IF(AS11='J04'!AS11,'J04'!$AT$23))) -> u | AV11: 7 | AW11: =SUMPRODUCT(($B$5:$F$13=AN11)*($BR$5:$BR$13))+SUMPRODUCT(($I$5:$M$13=AN11)*($BS$5:$BS$13))+'J04'!AW11 -> 0 | AX11: =SUMPRODUCT(($B$5:$F$13=AN11)*($BT$5:$BT$13))+SUMPRODUCT(($I$5:$M$13=AN11)*($BU$5:$BU$13))+'J04'!AX11 -> 0 | AY11: =SUMPRODUCT(($B$5:$F$13=AN11)*($BV$5:$BV$13))+SUMPRODUCT(($I$5:$M$13=AN11)*($BW$5:$BW$13))+'J04'!AY11 -> 0 | AZ11: =SUMPRODUCT(($B$5:$F$13=AN11)*($BX$5:$BX$13))+SUMPRODUCT(($I$5:$M$13=AN11)*($BY$5:$BY$13))+'J04'!AZ11 -> 0 | BA11: =SUMPRODUCT(($B$5:$F$13=AN11)*($BZ$5:$BZ$13))+SUMPRODUCT(($I$5:$M$13=AN11)*($CA$5:$CA$13))+'J04'!BA11 -> 0 | BB11: =SUMPRODUCT(($B$5:$F$13=AN11)*($CB$5:$CB$13))+SUMPRODUCT(($I$5:$M$13=AN11)*($CC$5:$CC$13))+'J04'!BB11 -> 0 | BC11: =SUMPRODUCT(($B$5:$F$13=AN11)*($CD$5:$CD$13))+SUMPRODUCT(($I$5:$M$13=AN11)*($CE$5:$CE$13))+'J04'!BC11 -> 0 | BD11: 0 | BE11: =SUMPRODUCT(($B$5:$F$13=AN11)*($CF$5:$CF$13))+'J04'!BE11 -> 0 | BF11: =SUMPRODUCT(($B$5:$F$13=AN11)*($CG$5:$CG$13))+'J04'!BF11 -> 0 | BG11: =SUMPRODUCT(($B$5:$F$13=AN11)*($CH$5:$CH$13))+'J04'!BG11 -> 0 | BH11: =SUMPRODUCT(($I$5:$M$13=AN11)*($CI$5:$CI$13))+'J04'!BH11 -> 0 | BI11: =SUMPRODUCT(($I$5:$M$13=AN11)*($CJ$5:$CJ$13))+'J04'!BI11 -> 0 | BJ11: =SUMPRODUCT(($I$5:$M$13=AN11)*($CK$5:$CK$13))+'J04'!BJ11 -> 0 | BL11: 0 | BM11: =BL11+0.00000024 -> 2.4e-07 | BN11: 0 | BO11: 0 | BP11: 0 | BQ11: 0 | BR11: 0 | BS11: 0 | BT11: 0 | BU11: 0 | BV11: FALSE | BW11: FALSE | BX11: FALSE | BY11: FALSE | BZ11: FALSE | CA11: FALSE | CB11: 0 | CC11: 0 | CD11: 0 | CE11: 0 | CF11: FALSE | CG11: FALSE | CH11: FALSE | CI11: FALSE | CJ11: FALSE | CK11: FALSE | CL11: 0 | CM11: 0 | CN11: 1 | CO11: 0
O12: 0 | T12: 0 | U12: u | V12: 1 | W12: 0 | X12: 0 | Y12: 0 | Z12: 0 | AA12: 0 | AB12: 0 | AC12: 0 | AD12: 0 | AE12: 0 | AF12: 0 | AG12: 0 | AH12: 0 | AI12: 0 | AJ12: 0 | AL12: 8 | AM12: 8 | AN12: ='J01'!AN12:AR12 -> 0 | AS12: 1 | AT12: ='J04'!AS12-AS12 -> 0 | AU12: =IF(AS12>'J04'!AS12,'J04'!$AU$23,IF(AS12<'J04'!AS12,'J04'!$AS$23,IF(AS12='J04'!AS12,'J04'!$AT$23))) -> u | AV12: 8 | AW12: =SUMPRODUCT(($B$5:$F$13=AN12)*($BR$5:$BR$13))+SUMPRODUCT(($I$5:$M$13=AN12)*($BS$5:$BS$13))+'J04'!AW12 -> 0 | AX12: =SUMPRODUCT(($B$5:$F$13=AN12)*($BT$5:$BT$13))+SUMPRODUCT(($I$5:$M$13=AN12)*($BU$5:$BU$13))+'J04'!AX12 -> 0 | AY12: =SUMPRODUCT(($B$5:$F$13=AN12)*($BV$5:$BV$13))+SUMPRODUCT(($I$5:$M$13=AN12)*($BW$5:$BW$13))+'J04'!AY12 -> 0 | AZ12: =SUMPRODUCT(($B$5:$F$13=AN12)*($BX$5:$BX$13))+SUMPRODUCT(($I$5:$M$13=AN12)*($BY$5:$BY$13))+'J04'!AZ12 -> 0 | BA12: =SUMPRODUCT(($B$5:$F$13=AN12)*($BZ$5:$BZ$13))+SUMPRODUCT(($I$5:$M$13=AN12)*($CA$5:$CA$13))+'J04'!BA12 -> 0 | BB12: =SUMPRODUCT(($B$5:$F$13=AN12)*($CB$5:$CB$13))+SUMPRODUCT(($I$5:$M$13=AN12)*($CC$5:$CC$13))+'J04'!BB12 -> 0 | BC12: =SUMPRODUCT(($B$5:$F$13=AN12)*($CD$5:$CD$13))+SUMPRODUCT(($I$5:$M$13=AN12)*($CE$5:$CE$13))+'J04'!BC12 -> 0 | BD12: 0 | BE12: =SUMPRODUCT(($B$5:$F$13=AN12)*($CF$5:$CF$13))+'J04'!BE12 -> 0 | BF12: =SUMPRODUCT(($B$5:$F$13=AN12)*($CG$5:$CG$13))+'J04'!BF12 -> 0 | BG12: =SUMPRODUCT(($B$5:$F$13=AN12)*($CH$5:$CH$13))+'J04'!BG12 -> 0 | BH12: =SUMPRODUCT(($I$5:$M$13=AN12)*($CI$5:$CI$13))+'J04'!BH12 -> 0 | BI12: =SUMPRODUCT(($I$5:$M$13=AN12)*($CJ$5:$CJ$13))+'J04'!BI12 -> 0 | BJ12: =SUMPRODUCT(($I$5:$M$13=AN12)*($CK$5:$CK$13))+'J04'!BJ12 -> 0 | BL12: 0 | BM12: =BL12+0.00000023 -> 2.3e-07 | BN12: 0 | BO12: 0 | BP12: 0 | BQ12: 0 | BR12: 0 | BS12: 0 | BT12: 0 | BU12: 0 | BV12: FALSE | BW12: FALSE | BX12: FALSE | BY12: FALSE | BZ12: FALSE | CA12: FALSE | CB12: 0 | CC12: 0 | CD12: 0 | CE12: 0 | CF12: FALSE | CG12: FALSE | CH12: FALSE | CI12: FALSE | CJ12: FALSE | CK12: FALSE | CL12: 0 | CM12: 0 | CN12: 1 | CO12: 0
O13: 0 | T13: 0 | U13: u | V13: 1 | W13: 0 | X13: 0 | Y13: 0 | Z13: 0 | AA13: 0 | AB13: 0 | AC13: 0 | AD13: 0 | AE13: 0 | AF13: 0 | AG13: 0 | AH13: 0 | AI13: 0 | AJ13: 0 | AL13: 9 | AM13: 9 | AN13: ='J01'!AN13:AR13 -> 0 | AS13: 1 | AT13: ='J04'!AS13-AS13 -> 0 | AU13: =IF(AS13>'J04'!AS13,'J04'!$AU$23,IF(AS13<'J04'!AS13,'J04'!$AS$23,IF(AS13='J04'!AS13,'J04'!$AT$23))) -> u | AV13: 9 | AW13: =SUMPRODUCT(($B$5:$F$13=AN13)*($BR$5:$BR$13))+SUMPRODUCT(($I$5:$M$13=AN13)*($BS$5:$BS$13))+'J04'!AW13 -> 0 | AX13: =SUMPRODUCT(($B$5:$F$13=AN13)*($BT$5:$BT$13))+SUMPRODUCT(($I$5:$M$13=AN13)*($BU$5:$BU$13))+'J04'!AX13 -> 0 | AY13: =SUMPRODUCT(($B$5:$F$13=AN13)*($BV$5:$BV$13))+SUMPRODUCT(($I$5:$M$13=AN13)*($BW$5:$BW$13))+'J04'!AY13 -> 0 | AZ13: =SUMPRODUCT(($B$5:$F$13=AN13)*($BX$5:$BX$13))+SUMPRODUCT(($I$5:$M$13=AN13)*($BY$5:$BY$13))+'J04'!AZ13 -> 0 | BA13: =SUMPRODUCT(($B$5:$F$13=AN13)*($BZ$5:$BZ$13))+SUMPRODUCT(($I$5:$M$13=AN13)*($CA$5:$CA$13))+'J04'!BA13 -> 0 | BB13: =SUMPRODUCT(($B$5:$F$13=AN13)*($CB$5:$CB$13))+SUMPRODUCT(($I$5:$M$13=AN13)*($CC$5:$CC$13))+'J04'!BB13 -> 0 | BC13: =SUMPRODUCT(($B$5:$F$13=AN13)*($CD$5:$CD$13))+SUMPRODUCT(($I$5:$M$13=AN13)*($CE$5:$CE$13))+'J04'!BC13 -> 0 | BD13: 0 | BE13: =SUMPRODUCT(($B$5:$F$13=AN13)*($CF$5:$CF$13))+'J04'!BE13 -> 0 | BF13: =SUMPRODUCT(($B$5:$F$13=AN13)*($CG$5:$CG$13))+'J04'!BF13 -> 0 | BG13: =SUMPRODUCT(($B$5:$F$13=AN13)*($CH$5:$CH$13))+'J04'!BG13 -> 0 | BH13: =SUMPRODUCT(($I$5:$M$13=AN13)*($CI$5:$CI$13))+'J04'!BH13 -> 0 | BI13: =SUMPRODUCT(($I$5:$M$13=AN13)*($CJ$5:$CJ$13))+'J04'!BI13 -> 0 | BJ13: =SUMPRODUCT(($I$5:$M$13=AN13)*($CK$5:$CK$13))+'J04'!BJ13 -> 0 | BL13: 0 | BM13: =BL13+0.00000022 -> 2.2e-07 | BN13: 0 | BO13: 0 | BP13: 0 | BQ13: 0 | BR13: 0 | BS13: 0 | BT13: 0 | BU13: 0 | BV13: FALSE | BW13: FALSE | BX13: FALSE | BY13: FALSE | BZ13: FALSE | CA13: FALSE | CB13: 0 | CC13: 0 | CD13: 0 | CE13: 0 | CF13: FALSE | CG13: FALSE | CH13: FALSE | CI13: FALSE | CJ13: FALSE | CK13: FALSE | CL13: 0 | CM13: 0 | CN13: 1 | CO13: 0
O14: 0 | T14: 0 | U14: u | V14: 1 | W14: 0 | X14: 0 | Y14: 0 | Z14: 0 | AA14: 0 | AB14: 0 | AC14: 0 | AD14: 0 | AE14: 0 | AF14: 0 | AG14: 0 | AH14: 0 | AI14: 0 | AJ14: 0 | AL14: 10 | AM14: 10 | AN14: ='J01'!AN14:AR14 -> 0 | AS14: 1 | AT14: ='J04'!AS14-AS14 -> 0 | AU14: =IF(AS14>'J04'!AS14,'J04'!$AU$23,IF(AS14<'J04'!AS14,'J04'!$AS$23,IF(AS14='J04'!AS14,'J04'!$AT$23))) -> u | AV14: 10 | AW14: =SUMPRODUCT(($B$5:$F$13=AN14)*($BR$5:$BR$13))+SUMPRODUCT(($I$5:$M$13=AN14)*($BS$5:$BS$13))+'J04'!AW14 -> 0 | AX14: =SUMPRODUCT(($B$5:$F$13=AN14)*($BT$5:$BT$13))+SUMPRODUCT(($I$5:$M$13=AN14)*($BU$5:$BU$13))+'J04'!AX14 -> 0 | AY14: =SUMPRODUCT(($B$5:$F$13=AN14)*($BV$5:$BV$13))+SUMPRODUCT(($I$5:$M$13=AN14)*($BW$5:$BW$13))+'J04'!AY14 -> 0 | AZ14: =SUMPRODUCT(($B$5:$F$13=AN14)*($BX$5:$BX$13))+SUMPRODUCT(($I$5:$M$13=AN14)*($BY$5:$BY$13))+'J04'!AZ14 -> 0 | BA14: =SUMPRODUCT(($B$5:$F$13=AN14)*($BZ$5:$BZ$13))+SUMPRODUCT(($I$5:$M$13=AN14)*($CA$5:$CA$13))+'J04'!BA14 -> 0 | BB14: =SUMPRODUCT(($B$5:$F$13=AN14)*($CB$5:$CB$13))+SUMPRODUCT(($I$5:$M$13=AN14)*($CC$5:$CC$13))+'J04'!BB14 -> 0 | BC14: =SUMPRODUCT(($B$5:$F$13=AN14)*($CD$5:$CD$13))+SUMPRODUCT(($I$5:$M$13=AN14)*($CE$5:$CE$13))+'J04'!BC14 -> 0 | BD14: 0 | BE14: =SUMPRODUCT(($B$5:$F$13=AN14)*($CF$5:$CF$13))+'J04'!BE14 -> 0 | BF14: =SUMPRODUCT(($B$5:$F$13=AN14)*($CG$5:$CG$13))+'J04'!BF14 -> 0 | BG14: =SUMPRODUCT(($B$5:$F$13=AN14)*($CH$5:$CH$13))+'J04'!BG14 -> 0 | BH14: =SUMPRODUCT(($I$5:$M$13=AN14)*($CI$5:$CI$13))+'J04'!BH14 -> 0 | BI14: =SUMPRODUCT(($I$5:$M$13=AN14)*($CJ$5:$CJ$13))+'J04'!BI14 -> 0 | BJ14: =SUMPRODUCT(($I$5:$M$13=AN14)*($CK$5:$CK$13))+'J04'!BJ14 -> 0 | BL14: 0 | BM14: =BL14+0.00000021 -> 2.1e-07 | CL14: 0 | CM14: 0 | CN14: 1 | CO14: 0
O15: 0 | T15: 0 | U15: u | V15: 1 | W15: 0 | X15: 0 | Y15: 0 | Z15: 0 | AA15: 0 | AB15: 0 | AC15: 0 | AD15: 0 | AE15: 0 | AF15: 0 | AG15: 0 | AH15: 0 | AI15: 0 | AJ15: 0 | AL15: 11 | AM15: 11 | AN15: ='J01'!AN15:AR15 -> 0 | AS15: 1 | AT15: ='J04'!AS15-AS15 -> 0 | AU15: =IF(AS15>'J04'!AS15,'J04'!$AU$23,IF(AS15<'J04'!AS15,'J04'!$AS$23,IF(AS15='J04'!AS15,'J04'!$AT$23))) -> u | AV15: 11 | AW15: =SUMPRODUCT(($B$5:$F$13=AN15)*($BR$5:$BR$13))+SUMPRODUCT(($I$5:$M$13=AN15)*($BS$5:$BS$13))+'J04'!AW15 -> 0 | AX15: =SUMPRODUCT(($B$5:$F$13=AN15)*($BT$5:$BT$13))+SUMPRODUCT(($I$5:$M$13=AN15)*($BU$5:$BU$13))+'J04'!AX15 -> 0 | AY15: =SUMPRODUCT(($B$5:$F$13=AN15)*($BV$5:$BV$13))+SUMPRODUCT(($I$5:$M$13=AN15)*($BW$5:$BW$13))+'J04'!AY15 -> 0 | AZ15: =SUMPRODUCT(($B$5:$F$13=AN15)*($BX$5:$BX$13))+SUMPRODUCT(($I$5:$M$13=AN15)*($BY$5:$BY$13))+'J04'!AZ15 -> 0 | BA15: =SUMPRODUCT(($B$5:$F$13=AN15)*($BZ$5:$BZ$13))+SUMPRODUCT(($I$5:$M$13=AN15)*($CA$5:$CA$13))+'J04'!BA15 -> 0 | BB15: =SUMPRODUCT(($B$5:$F$13=AN15)*($CB$5:$CB$13))+SUMPRODUCT(($I$5:$M$13=AN15)*($CC$5:$CC$13))+'J04'!BB15 -> 0 | BC15: =SUMPRODUCT(($B$5:$F$13=AN15)*($CD$5:$CD$13))+SUMPRODUCT(($I$5:$M$13=AN15)*($CE$5:$CE$13))+'J04'!BC15 -> 0 | BD15: 0 | BE15: =SUMPRODUCT(($B$5:$F$13=AN15)*($CF$5:$CF$13))+'J04'!BE15 -> 0 | BF15: =SUMPRODUCT(($B$5:$F$13=AN15)*($CG$5:$CG$13))+'J04'!BF15 -> 0 | BG15: =SUMPRODUCT(($B$5:$F$13=AN15)*($CH$5:$CH$13))+'J04'!BG15 -> 0 | BH15: =SUMPRODUCT(($I$5:$M$13=AN15)*($CI$5:$CI$13))+'J04'!BH15 -> 0 | BI15: =SUMPRODUCT(($I$5:$M$13=AN15)*($CJ$5:$CJ$13))+'J04'!BI15 -> 0 | BJ15: =SUMPRODUCT(($I$5:$M$13=AN15)*($CK$5:$CK$13))+'J04'!BJ15 -> 0 | BL15: 0 | BM15: =BL15+0.0000002 -> 2e-07 | CL15: 0 | CM15: 0 | CN15: 1 | CO15: 0
O16: 0 | T16: 0 | U16: u | V16: 1 | W16: 0 | X16: 0 | Y16: 0 | Z16: 0 | AA16: 0 | AB16: 0 | AC16: 0 | AD16: 0 | AE16: 0 | AF16: 0 | AG16: 0 | AH16: 0 | AI16: 0 | AJ16: 0 | AL16: 12 | AM16: 12 | AN16: ='J01'!AN16:AR16 -> 0 | AS16: 1 | AT16: ='J04'!AS16-AS16 -> 0 | AU16: =IF(AS16>'J04'!AS16,'J04'!$AU$23,IF(AS16<'J04'!AS16,'J04'!$AS$23,IF(AS16='J04'!AS16,'J04'!$AT$23))) -> u | AV16: 12 | AW16: =SUMPRODUCT(($B$5:$F$13=AN16)*($BR$5:$BR$13))+SUMPRODUCT(($I$5:$M$13=AN16)*($BS$5:$BS$13))+'J04'!AW16 -> 0 | AX16: =SUMPRODUCT(($B$5:$F$13=AN16)*($BT$5:$BT$13))+SUMPRODUCT(($I$5:$M$13=AN16)*($BU$5:$BU$13))+'J04'!AX16 -> 0 | AY16: =SUMPRODUCT(($B$5:$F$13=AN16)*($BV$5:$BV$13))+SUMPRODUCT(($I$5:$M$13=AN16)*($BW$5:$BW$13))+'J04'!AY16 -> 0 | AZ16: =SUMPRODUCT(($B$5:$F$13=AN16)*($BX$5:$BX$13))+SUMPRODUCT(($I$5:$M$13=AN16)*($BY$5:$BY$13))+'J04'!AZ16 -> 0 | BA16: =SUMPRODUCT(($B$5:$F$13=AN16)*($BZ$5:$BZ$13))+SUMPRODUCT(($I$5:$M$13=AN16)*($CA$5:$CA$13))+'J04'!BA16 -> 0 | BB16: =SUMPRODUCT(($B$5:$F$13=AN16)*($CB$5:$CB$13))+SUMPRODUCT(($I$5:$M$13=AN16)*($CC$5:$CC$13))+'J04'!BB16 -> 0 | BC16: =SUMPRODUCT(($B$5:$F$13=AN16)*($CD$5:$CD$13))+SUMPRODUCT(($I$5:$M$13=AN16)*($CE$5:$CE$13))+'J04'!BC16 -> 0 | BD16: 0 | BE16: =SUMPRODUCT(($B$5:$F$13=AN16)*($CF$5:$CF$13))+'J04'!BE16 -> 0 | BF16: =SUMPRODUCT(($B$5:$F$13=AN16)*($CG$5:$CG$13))+'J04'!BF16 -> 0 | BG16: =SUMPRODUCT(($B$5:$F$13=AN16)*($CH$5:$CH$13))+'J04'!BG16 -> 0 | BH16: =SUMPRODUCT(($I$5:$M$13=AN16)*($CI$5:$CI$13))+'J04'!BH16 -> 0 | BI16: =SUMPRODUCT(($I$5:$M$13=AN16)*($CJ$5:$CJ$13))+'J04'!BI16 -> 0 | BJ16: =SUMPRODUCT(($I$5:$M$13=AN16)*($CK$5:$CK$13))+'J04'!BJ16 -> 0 | BL16: 0 | BM16: =BL16+0.00000019 -> 1.9e-07 | CL16: 0 | CM16: 0 | CN16: 1 | CO16: 0
O17: 0 | T17: 0 | U17: u | V17: 1 | W17: 0 | X17: 0 | Y17: 0 | Z17: 0 | AA17: 0 | AB17: 0 | AC17: 0 | AD17: 0 | AE17: 0 | AF17: 0 | AG17: 0 | AH17: 0 | AI17: 0 | AJ17: 0 | AL17: 13 | AM17: 13 | AN17: ='J01'!AN17:AR17 -> 0 | AS17: 1 | AT17: ='J04'!AS17-AS17 -> 0 | AU17: =IF(AS17>'J04'!AS17,'J04'!$AU$23,IF(AS17<'J04'!AS17,'J04'!$AS$23,IF(AS17='J04'!AS17,'J04'!$AT$23))) -> u | AV17: 13 | AW17: =SUMPRODUCT(($B$5:$F$13=AN17)*($BR$5:$BR$13))+SUMPRODUCT(($I$5:$M$13=AN17)*($BS$5:$BS$13))+'J04'!AW17 -> 0 | AX17: =SUMPRODUCT(($B$5:$F$13=AN17)*($BT$5:$BT$13))+SUMPRODUCT(($I$5:$M$13=AN17)*($BU$5:$BU$13))+'J04'!AX17 -> 0 | AY17: =SUMPRODUCT(($B$5:$F$13=AN17)*($BV$5:$BV$13))+SUMPRODUCT(($I$5:$M$13=AN17)*($BW$5:$BW$13))+'J04'!AY17 -> 0 | AZ17: =SUMPRODUCT(($B$5:$F$13=AN17)*($BX$5:$BX$13))+SUMPRODUCT(($I$5:$M$13=AN17)*($BY$5:$BY$13))+'J04'!AZ17 -> 0 | BA17: =SUMPRODUCT(($B$5:$F$13=AN17)*($BZ$5:$BZ$13))+SUMPRODUCT(($I$5:$M$13=AN17)*($CA$5:$CA$13))+'J04'!BA17 -> 0 | BB17: =SUMPRODUCT(($B$5:$F$13=AN17)*($CB$5:$CB$13))+SUMPRODUCT(($I$5:$M$13=AN17)*($CC$5:$CC$13))+'J04'!BB17 -> 0 | BC17: =SUMPRODUCT(($B$5:$F$13=AN17)*($CD$5:$CD$13))+SUMPRODUCT(($I$5:$M$13=AN17)*($CE$5:$CE$13))+'J04'!BC17 -> 0 | BD17: 0 | BE17: =SUMPRODUCT(($B$5:$F$13=AN17)*($CF$5:$CF$13))+'J04'!BE17 -> 0 | BF17: =SUMPRODUCT(($B$5:$F$13=AN17)*($CG$5:$CG$13))+'J04'!BF17 -> 0 | BG17: =SUMPRODUCT(($B$5:$F$13=AN17)*($CH$5:$CH$13))+'J04'!BG17 -> 0 | BH17: =SUMPRODUCT(($I$5:$M$13=AN17)*($CI$5:$CI$13))+'J04'!BH17 -> 0 | BI17: =SUMPRODUCT(($I$5:$M$13=AN17)*($CJ$5:$CJ$13))+'J04'!BI17 -> 0 | BJ17: =SUMPRODUCT(($I$5:$M$13=AN17)*($CK$5:$CK$13))+'J04'!BJ17 -> 0 | BL17: 0 | BM17: =BL17+0.00000018 -> 1.8e-07 | CL17: 0 | CM17: 0 | CN17: 1 | CO17: 0
O18: 0 | T18: 0 | U18: u | V18: 1 | W18: 0 | X18: 0 | Y18: 0 | Z18: 0 | AA18: 0 | AB18: 0 | AC18: 0 | AD18: 0 | AE18: 0 | AF18: 0 | AG18: 0 | AH18: 0 | AI18: 0 | AJ18: 0 | AL18: 14 | AM18: 14 | AN18: ='J01'!AN18:AR18 -> 0 | AS18: 1 | AT18: ='J04'!AS18-AS18 -> 0 | AU18: =IF(AS18>'J04'!AS18,'J04'!$AU$23,IF(AS18<'J04'!AS18,'J04'!$AS$23,IF(AS18='J04'!AS18,'J04'!$AT$23))) -> u | AV18: 14 | AW18: =SUMPRODUCT(($B$5:$F$13=AN18)*($BR$5:$BR$13))+SUMPRODUCT(($I$5:$M$13=AN18)*($BS$5:$BS$13))+'J04'!AW18 -> 0 | AX18: =SUMPRODUCT(($B$5:$F$13=AN18)*($BT$5:$BT$13))+SUMPRODUCT(($I$5:$M$13=AN18)*($BU$5:$BU$13))+'J04'!AX18 -> 0 | AY18: =SUMPRODUCT(($B$5:$F$13=AN18)*($BV$5:$BV$13))+SUMPRODUCT(($I$5:$M$13=AN18)*($BW$5:$BW$13))+'J04'!AY18 -> 0 | AZ18: =SUMPRODUCT(($B$5:$F$13=AN18)*($BX$5:$BX$13))+SUMPRODUCT(($I$5:$M$13=AN18)*($BY$5:$BY$13))+'J04'!AZ18 -> 0 | BA18: =SUMPRODUCT(($B$5:$F$13=AN18)*($BZ$5:$BZ$13))+SUMPRODUCT(($I$5:$M$13=AN18)*($CA$5:$CA$13))+'J04'!BA18 -> 0 | BB18: =SUMPRODUCT(($B$5:$F$13=AN18)*($CB$5:$CB$13))+SUMPRODUCT(($I$5:$M$13=AN18)*($CC$5:$CC$13))+'J04'!BB18 -> 0 | BC18: =SUMPRODUCT(($B$5:$F$13=AN18)*($CD$5:$CD$13))+SUMPRODUCT(($I$5:$M$13=AN18)*($CE$5:$CE$13))+'J04'!BC18 -> 0 | BD18: 0 | BE18: =SUMPRODUCT(($B$5:$F$13=AN18)*($CF$5:$CF$13))+'J04'!BE18 -> 0 | BF18: =SUMPRODUCT(($B$5:$F$13=AN18)*($CG$5:$CG$13))+'J04'!BF18 -> 0 | BG18: =SUMPRODUCT(($B$5:$F$13=AN18)*($CH$5:$CH$13))+'J04'!BG18 -> 0 | BH18: =SUMPRODUCT(($I$5:$M$13=AN18)*($CI$5:$CI$13))+'J04'!BH18 -> 0 | BI18: =SUMPRODUCT(($I$5:$M$13=AN18)*($CJ$5:$CJ$13))+'J04'!BI18 -> 0 | BJ18: =SUMPRODUCT(($I$5:$M$13=AN18)*($CK$5:$CK$13))+'J04'!BJ18 -> 0 | BL18: 0 | BM18: =BL18+0.00000017 -> 1.7e-07 | CL18: 0 | CM18: 0 | CN18: 1 | CO18: 0
O19: 0 | T19: 0 | U19: u | V19: 1 | W19: 0 | X19: 0 | Y19: 0 | Z19: 0 | AA19: 0 | AB19: 0 | AC19: 0 | AD19: 0 | AE19: 0 | AF19: 0 | AG19: 0 | AH19: 0 | AI19: 0 | AJ19: 0 | AL19: 15 | AM19: 15 | AN19: ='J01'!AN19:AR19 -> 0 | AS19: 1 | AT19: ='J04'!AS19-AS19 -> 0 | AU19: =IF(AS19>'J04'!AS19,'J04'!$AU$23,IF(AS19<'J04'!AS19,'J04'!$AS$23,IF(AS19='J04'!AS19,'J04'!$AT$23))) -> u | AV19: 15 | AW19: =SUMPRODUCT(($B$5:$F$13=AN19)*($BR$5:$BR$13))+SUMPRODUCT(($I$5:$M$13=AN19)*($BS$5:$BS$13))+'J04'!AW19 -> 0 | AX19: =SUMPRODUCT(($B$5:$F$13=AN19)*($BT$5:$BT$13))+SUMPRODUCT(($I$5:$M$13=AN19)*($BU$5:$BU$13))+'J04'!AX19 -> 0 | AY19: =SUMPRODUCT(($B$5:$F$13=AN19)*($BV$5:$BV$13))+SUMPRODUCT(($I$5:$M$13=AN19)*($BW$5:$BW$13))+'J04'!AY19 -> 0 | AZ19: =SUMPRODUCT(($B$5:$F$13=AN19)*($BX$5:$BX$13))+SUMPRODUCT(($I$5:$M$13=AN19)*($BY$5:$BY$13))+'J04'!AZ19 -> 0 | BA19: =SUMPRODUCT(($B$5:$F$13=AN19)*($BZ$5:$BZ$13))+SUMPRODUCT(($I$5:$M$13=AN19)*($CA$5:$CA$13))+'J04'!BA19 -> 0 | BB19: =SUMPRODUCT(($B$5:$F$13=AN19)*($CB$5:$CB$13))+SUMPRODUCT(($I$5:$M$13=AN19)*($CC$5:$CC$13))+'J04'!BB19 -> 0 | BC19: =SUMPRODUCT(($B$5:$F$13=AN19)*($CD$5:$CD$13))+SUMPRODUCT(($I$5:$M$13=AN19)*($CE$5:$CE$13))+'J04'!BC19 -> 0 | BD19: 0 | BE19: =SUMPRODUCT(($B$5:$F$13=AN19)*($CF$5:$CF$13))+'J04'!BE19 -> 0 | BF19: =SUMPRODUCT(($B$5:$F$13=AN19)*($CG$5:$CG$13))+'J04'!BF19 -> 0 | BG19: =SUMPRODUCT(($B$5:$F$13=AN19)*($CH$5:$CH$13))+'J04'!BG19 -> 0 | BH19: =SUMPRODUCT(($I$5:$M$13=AN19)*($CI$5:$CI$13))+'J04'!BH19 -> 0 | BI19: =SUMPRODUCT(($I$5:$M$13=AN19)*($CJ$5:$CJ$13))+'J04'!BI19 -> 0 | BJ19: =SUMPRODUCT(($I$5:$M$13=AN19)*($CK$5:$CK$13))+'J04'!BJ19 -> 0 | BL19: 0 | BM19: =BL19+0.00000016 -> 1.6e-07 | CL19: 0 | CM19: 0 | CN19: 1 | CO19: 0
O20: 0 | T20: 0 | U20: u | V20: 1 | W20: 0 | X20: 0 | Y20: 0 | Z20: 0 | AA20: 0 | AB20: 0 | AC20: 0 | AD20: 0 | AE20: 0 | AF20: 0 | AG20: 0 | AH20: 0 | AI20: 0 | AJ20: 0 | AL20: 16 | AM20: 16 | AN20: ='J01'!AN20:AR20 -> 0 | AS20: 1 | AT20: ='J04'!AS20-AS20 -> 0 | AU20: =IF(AS20>'J04'!AS20,'J04'!$AU$23,IF(AS20<'J04'!AS20,'J04'!$AS$23,IF(AS20='J04'!AS20,'J04'!$AT$23))) -> u | AV20: 16 | AW20: =SUMPRODUCT(($B$5:$F$13=AN20)*($BR$5:$BR$13))+SUMPRODUCT(($I$5:$M$13=AN20)*($BS$5:$BS$13))+'J04'!AW20 -> 0 | AX20: =SUMPRODUCT(($B$5:$F$13=AN20)*($BT$5:$BT$13))+SUMPRODUCT(($I$5:$M$13=AN20)*($BU$5:$BU$13))+'J04'!AX20 -> 0 | AY20: =SUMPRODUCT(($B$5:$F$13=AN20)*($BV$5:$BV$13))+SUMPRODUCT(($I$5:$M$13=AN20)*($BW$5:$BW$13))+'J04'!AY20 -> 0 | AZ20: =SUMPRODUCT(($B$5:$F$13=AN20)*($BX$5:$BX$13))+SUMPRODUCT(($I$5:$M$13=AN20)*($BY$5:$BY$13))+'J04'!AZ20 -> 0 | BA20: =SUMPRODUCT(($B$5:$F$13=AN20)*($BZ$5:$BZ$13))+SUMPRODUCT(($I$5:$M$13=AN20)*($CA$5:$CA$13))+'J04'!BA20 -> 0 | BB20: =SUMPRODUCT(($B$5:$F$13=AN20)*($CB$5:$CB$13))+SUMPRODUCT(($I$5:$M$13=AN20)*($CC$5:$CC$13))+'J04'!BB20 -> 0 | BC20: =SUMPRODUCT(($B$5:$F$13=AN20)*($CD$5:$CD$13))+SUMPRODUCT(($I$5:$M$13=AN20)*($CE$5:$CE$13))+'J04'!BC20 -> 0 | BD20: 0 | BE20: =SUMPRODUCT(($B$5:$F$13=AN20)*($CF$5:$CF$13))+'J04'!BE20 -> 0 | BF20: =SUMPRODUCT(($B$5:$F$13=AN20)*($CG$5:$CG$13))+'J04'!BF20 -> 0 | BG20: =SUMPRODUCT(($B$5:$F$13=AN20)*($CH$5:$CH$13))+'J04'!BG20 -> 0 | BH20: =SUMPRODUCT(($I$5:$M$13=AN20)*($CI$5:$CI$13))+'J04'!BH20 -> 0 | BI20: =SUMPRODUCT(($I$5:$M$13=AN20)*($CJ$5:$CJ$13))+'J04'!BI20 -> 0 | BJ20: =SUMPRODUCT(($I$5:$M$13=AN20)*($CK$5:$CK$13))+'J04'!BJ20 -> 0 | BL20: 0 | BM20: =BL20+0.00000015 -> 1.5e-07 | CL20: 0 | CM20: 0 | CN20: 1 | CO20: 0
O21: 0 | T21: 0 | U21: u | V21: 1 | W21: 0 | X21: 0 | Y21: 0 | Z21: 0 | AA21: 0 | AB21: 0 | AC21: 0 | AD21: 0 | AE21: 0 | AF21: 0 | AG21: 0 | AH21: 0 | AI21: 0 | AJ21: 0 | AL21: 17 | AM21: 17 | AN21: ='J01'!AN21:AR21 -> 0 | AS21: 1 | AT21: ='J04'!AS21-AS21 -> 0 | AU21: =IF(AS21>'J04'!AS21,'J04'!$AU$23,IF(AS21<'J04'!AS21,'J04'!$AS$23,IF(AS21='J04'!AS21,'J04'!$AT$23))) -> u | AV21: 17 | AW21: =SUMPRODUCT(($B$5:$F$13=AN21)*($BR$5:$BR$13))+SUMPRODUCT(($I$5:$M$13=AN21)*($BS$5:$BS$13))+'J04'!AW21 -> 0 | AX21: =SUMPRODUCT(($B$5:$F$13=AN21)*($BT$5:$BT$13))+SUMPRODUCT(($I$5:$M$13=AN21)*($BU$5:$BU$13))+'J04'!AX21 -> 0 | AY21: =SUMPRODUCT(($B$5:$F$13=AN21)*($BV$5:$BV$13))+SUMPRODUCT(($I$5:$M$13=AN21)*($BW$5:$BW$13))+'J04'!AY21 -> 0 | AZ21: =SUMPRODUCT(($B$5:$F$13=AN21)*($BX$5:$BX$13))+SUMPRODUCT(($I$5:$M$13=AN21)*($BY$5:$BY$13))+'J04'!AZ21 -> 0 | BA21: =SUMPRODUCT(($B$5:$F$13=AN21)*($BZ$5:$BZ$13))+SUMPRODUCT(($I$5:$M$13=AN21)*($CA$5:$CA$13))+'J04'!BA21 -> 0 | BB21: =SUMPRODUCT(($B$5:$F$13=AN21)*($CB$5:$CB$13))+SUMPRODUCT(($I$5:$M$13=AN21)*($CC$5:$CC$13))+'J04'!BB21 -> 0 | BC21: =SUMPRODUCT(($B$5:$F$13=AN21)*($CD$5:$CD$13))+SUMPRODUCT(($I$5:$M$13=AN21)*($CE$5:$CE$13))+'J04'!BC21 -> 0 | BD21: 0 | BE21: =SUMPRODUCT(($B$5:$F$13=AN21)*($CF$5:$CF$13))+'J04'!BE21 -> 0 | BF21: =SUMPRODUCT(($B$5:$F$13=AN21)*($CG$5:$CG$13))+'J04'!BF21 -> 0 | BG21: =SUMPRODUCT(($B$5:$F$13=AN21)*($CH$5:$CH$13))+'J04'!BG21 -> 0 | BH21: =SUMPRODUCT(($I$5:$M$13=AN21)*($CI$5:$CI$13))+'J04'!BH21 -> 0 | BI21: =SUMPRODUCT(($I$5:$M$13=AN21)*($CJ$5:$CJ$13))+'J04'!BI21 -> 0 | BJ21: =SUMPRODUCT(($I$5:$M$13=AN21)*($CK$5:$CK$13))+'J04'!BJ21 -> 0 | BL21: 0 | BM21: =BL21+0.00000014 -> 1.4e-07 | CL21: 0 | CM21: 0 | CN21: 1 | CO21: 0
O22: 0 | T22: 0 | U22: u | V22: 1 | W22: 0 | X22: 0 | Y22: 0 | Z22: 0 | AA22: 0 | AB22: 0 | AC22: 0 | AD22: 0 | AE22: 0 | AF22: 0 | AG22: 0 | AH22: 0 | AI22: 0 | AJ22: 0 | AL22: 18 | AM22: 18 | AN22: ='J01'!AN22:AR22 -> 0 | AS22: 1 | AT22: ='J04'!AS22-AS22 -> 0 | AU22: =IF(AS22>'J04'!AS22,'J04'!$AU$23,IF(AS22<'J04'!AS22,'J04'!$AS$23,IF(AS22='J04'!AS22,'J04'!$AT$23))) -> u | AV22: 18 | AW22: =SUMPRODUCT(($B$5:$F$13=AN22)*($BR$5:$BR$13))+SUMPRODUCT(($I$5:$M$13=AN22)*($BS$5:$BS$13))+'J04'!AW22 -> 0 | AX22: =SUMPRODUCT(($B$5:$F$13=AN22)*($BT$5:$BT$13))+SUMPRODUCT(($I$5:$M$13=AN22)*($BU$5:$BU$13))+'J04'!AX22 -> 0 | AY22: =SUMPRODUCT(($B$5:$F$13=AN22)*($BV$5:$BV$13))+SUMPRODUCT(($I$5:$M$13=AN22)*($BW$5:$BW$13))+'J04'!AY22 -> 0 | AZ22: =SUMPRODUCT(($B$5:$F$13=AN22)*($BX$5:$BX$13))+SUMPRODUCT(($I$5:$M$13=AN22)*($BY$5:$BY$13))+'J04'!AZ22 -> 0 | BA22: =SUMPRODUCT(($B$5:$F$13=AN22)*($BZ$5:$BZ$13))+SUMPRODUCT(($I$5:$M$13=AN22)*($CA$5:$CA$13))+'J04'!BA22 -> 0 | BB22: =SUMPRODUCT(($B$5:$F$13=AN22)*($CB$5:$CB$13))+SUMPRODUCT(($I$5:$M$13=AN22)*($CC$5:$CC$13))+'J04'!BB22 -> 0 | BC22: =SUMPRODUCT(($B$5:$F$13=AN22)*($CD$5:$CD$13))+SUMPRODUCT(($I$5:$M$13=AN22)*($CE$5:$CE$13))+'J04'!BC22 -> 0 | BD22: 0 | BE22: =SUMPRODUCT(($B$5:$F$13=AN22)*($CF$5:$CF$13))+'J04'!BE22 -> 0 | BF22: =SUMPRODUCT(($B$5:$F$13=AN22)*($CG$5:$CG$13))+'J04'!BF22 -> 0 | BG22: =SUMPRODUCT(($B$5:$F$13=AN22)*($CH$5:$CH$13))+'J04'!BG22 -> 0 | BH22: =SUMPRODUCT(($I$5:$M$13=AN22)*($CI$5:$CI$13))+'J04'!BH22 -> 0 | BI22: =SUMPRODUCT(($I$5:$M$13=AN22)*($CJ$5:$CJ$13))+'J04'!BI22 -> 0 | BJ22: =SUMPRODUCT(($I$5:$M$13=AN22)*($CK$5:$CK$13))+'J04'!BJ22 -> 0 | BL22: 0 | BM22: =BL22+0.00000013 -> 1.3e-07 | CL22: 0 | CM22: 0 | CN22: 1 | CO22: 0
W23: 2019 - 2020 | AC23: Buts Journée | AG23: Total Buts | AS23: p | AT23: u | AU23: q
AC24: =SUM(G5:H13) -> 0 | AG24: =AC24+'J04'!AG24:AJ26 -> 0 | AS24: p | AT24: u | AU24: q

Sheet J06
A1: TOURNOI 219 - 2020 | I1: JOURNEE 06 | O1: CLASSEMENT | AN1: CLASSEMENT
A3: Pén | B3: Equipes | G3: Bts | H3: Bts | I3: Equipes | N3: Pén | O3: Equipes | T3: Evolution | V3: R | W3: Pts | X3: J | Y3: G | Z3: N | AA3: P | AB3: Bts + | AC3: Bts - | AD3: Diff | AE3: Domicile | AH3: Extérieur | AN3: Equipes | AS3: R | AT3: Evolution | AV3: R | AW3: Pts | AX3: J | AY3: G | AZ3: N | BA3: P | BB3: Bts + | BC3: Bts - | BD3: Diff | BE3: Domicile | BH3: Extérieur | CF3: DOMICILE | CI3: EXTERIRUR
AE4: G | AF4: N | AG4: P | AH4: G | AI4: N | AJ4: P | AM4: R | BE4: G | BF4: N | BG4: P | BH4: G | BI4: N | BJ4: P | BL4: % | BM4: % | BN4: P | BO4: P | BP4: Pts | BQ4: Pts | BR4: T Pts | BS4: T Pts | BT4: J | BU4: J | BV4: G | BW4: G | BX4: N | BY4: N | BZ4: P | CA4: P | CB4: B + | CC4: B + | CD4: B - | CE4: B - | CF4: G | CG4: N | CH4: P | CI4: G | CJ4: N | CK4: P | CL4: Equipes | CM4: % | CN4: R | CO4: Equipes
O5: =VLOOKUP(AL5,$AM$5:$AR$22,2,0) -> 0 | T5: =VLOOKUP(O5,$AN$5:$BJ$22,7,0) -> 0 | U5: =VLOOKUP(O5,$AN$5:$BJ$22,8,0) -> u | V5: 1 | W5: =VLOOKUP(O5,$AN$5:$BJ$22,10,0) -> 0 | X5: =VLOOKUP(O5,$AN$5:$BJ$22,11,0) -> 0 | Y5: =VLOOKUP(O5,$AN$5:$BJ$22,12,0) -> 0 | Z5: =VLOOKUP(O5,$AN$5:$BJ$22,13,0) -> 0 | AA5: =VLOOKUP(O5,$AN$5:$BJ$22,14,0) -> 0 | AB5: =VLOOKUP(O5,$AN$5:$BJ$22,15,0) -> 0 | AC5: =VLOOKUP(O5,$AN$5:$BJ$22,16,0) -> 0 | AD5: =VLOOKUP(O5,$AN$5:$BJ$22,17,0) -> 0 | AE5: =VLOOKUP(O5,$AN$5:$BJ$22,18,0) -> 0 | AF5: =VLOOKUP(O5,$AN$5:$BJ$22,19,0) -> 0 | AG5: =VLOOKUP(O5,$AN$5:$BJ$22,20,0) -> 0 | AH5: =VLOOKUP(O5,$AN$5:$BJ$22,21,0) -> 0 | AI5: =VLOOKUP(O5,$AN$5:$BJ$22,22,0) -> 0 | AJ5: =VLOOKUP(O5,$AN$5:$BJ$22,23,0) -> 0 | AL5: 1 | AM5: =AV5 -> 1 | AN5: ='J01'!AN5:AR5 -> 0 | AS5: =RANK(BL5,$BL$5:$BL$22) -> 1 | AT5: ='J05'!AS5-AS5 -> 0 | AU5: =IF(AS5>'J05'!AS5,'J05'!$AU$23,IF(AS5<'J05'!AS5,'J05'!$AS$23,IF(AS5='J05'!AS5,'J05'!$AT$23))) -> u | AV5: =RANK(BM5,$BM$5:$BM$22) -> 1 | AW5: =SUMPRODUCT(($B$5:$F$13=AN5)*($BR$5:$BR$13))+SUMPRODUCT(($I$5:$M$13=AN5)*($BS$5:$BS$13))+'J05'!AW5 -> 0 | AX5: =SUMPRODUCT(($B$5:$F$13=AN5)*($BT$5:$BT$13))+SUMPRODUCT(($I$5:$M$13=AN5)*($BU$5:$BU$13))+'J05'!AX5 -> 0 | AY5: =SUMPRODUCT(($B$5:$F$13=AN5)*($BV$5:$BV$13))+SUMPRODUCT(($I$5:$M$13=AN5)*($BW$5:$BW$13))+'J05'!AY5 -> 0 | AZ5: =SUMPRODUCT(($B$5:$F$13=AN5)*($BX$5:$BX$13))+SUMPRODUCT(($I$5:$M$13=AN5)*($BY$5:$BY$13))+'J05'!AZ5 -> 0 | BA5: =SUMPRODUCT(($B$5:$F$13=AN5)*($BZ$5:$BZ$13))+SUMPRODUCT(($I$5:$M$13=AN5)*($CA$5:$CA$13))+'J05'!BA5 -> 0 | BB5: =SUMPRODUCT(($B$5:$F$13=AN5)*($CB$5:$CB$13))+SUMPRODUCT(($I$5:$M$13=AN5)*($CC$5:$CC$13))+'J05'!BB5 -> 0 | BC5: =SUMPRODUCT(($B$5:$F$13=AN5)*($CD$5:$CD$13))+SUMPRODUCT(($I$5:$M$13=AN5)*($CE$5:$CE$13))+'J05'!BC5 -> 0 | BD5: =BB5-BC5 -> 0 | BE5: =SUMPRODUCT(($B$5:$F$13=AN5)*($CF$5:$CF$13))+'J05'!BE5 -> 0 | BF5: =SUMPRODUCT(($B$5:$F$13=AN5)*($CG$5:$CG$13))+'J05'!BF5 -> 0 | BG5: =SUMPRODUCT(($B$5:$F$13=AN5)*($CH$5:$CH$13))+'J05'!BG5 -> 0 | BH5: =SUMPRODUCT(($I$5:$M$13=AN5)*($CI$5:$CI$13))+'J05'!BH5 -> 0 | BI5: =SUMPRODUCT(($I$5:$M$13=AN5)*($CJ$5:$CJ$13))+'J05'!BI5 -> 0 | BJ5: =SUMPRODUCT(($I$5:$M$13=AN5)*($CK$5:$CK$13))+'J05'!BJ5 -> 0 | BL5: =SUM(AW5*1000+(BD5/100+(BB5/1000))) -> 0 | BM5: =BL5+0.0000003 -> 3e-07 | BN5: =A5 -> 0 | BO5: =N5 -> 0 | BP5: =IF(G5="",0,IF(G5>H5,3,IF(G5=H5,1,IF(G5<H5,0)))) -> 0 | BQ5: =IF(H5="",0,IF(H5>G5,3,IF(H5=G5,1,IF(H5<G5,0)))) -> 0 | BR5: =BP5-BN5 -> 0 | BS5: =BQ5-BO5 -> 0 | BT5: =IF(G5="",0,1) -> 0 | BU5: =IF(H5="",0,1) -> 0 | BV5: =IF(G5<>"",IF(G5>H5,1)) -> FALSE | BW5: =IF(H5<>"",IF(H5>G5,1)) -> FALSE | BX5: =IF(G5<>"",IF(G5=H5,1)) -> FALSE | BY5: =IF(H5<>"",IF(H5=G5,1)) -> FALSE | BZ5: =IF(G5<>"",IF(G5<H5,1)) -> FALSE | CA5: =IF(H5<>"",IF(H5<G5,1)) -> FALSE | CB5: =G5 -> 0 | CC5: =H5 -> 0 | CD5: =H5 -> 0 | CE5: =G5 -> 0 | CF5: =IF(G5<>"",IF(G5>H5,1)) -> FALSE | CG5: =IF(G5<>"",IF(G5=H5,1)) -> FALSE | CH5: =IF(G5<>"",IF(G5<H5,1)) -> FALSE | CI5: =IF(H5<>"",IF(H5>G5,1)) -> FALSE | CJ5: =IF(H5<>"",IF(H5=G5,1)) -> FALSE | CK5: =IF(H5<>"",IF(H5<G5,1)) -> FALSE | CL5: =VLOOKUP(AL5,$AM$5:$AR$22,2,0) -> 0 | CM5: =VLOOKUP(CL5,$AN$5:$BL$22,25,0) -> 0 | CN5: =RANK(CM5,$CM$5:$CM$22) -> 1 | CO5: =AN5 -> 0
